Workbook

Sheet Napoveda
B2: =verze!E13 -> << zpět | G2: =verze!E6 -> Úvod | O2: =verze!E7 -> Výběr zásuvek | U2: =verze!E8 ->  | AA2: =verze!E9 ->  | AI2: =verze!E10 -> Objednávka | AO2: =verze!E14 -> vpřed >>
B4: =verze!E15 -> Základní údaje // Nápověda
B7: =verze!E94 -> Formulář pro identifikační údaje | P7: =verze!E37 -> Sleva od prodejce [%]: | AA7: =" "&verze!E16 -> Nápověda
B8: =verze!E30 -> Odběratel
T9: 5 | AA9: =verze!E99 -> Před prvním spuštěním:
B10: =verze!E31 -> Adresa | AA10: ="1. "&verze!$E$100 -> 1. V levé části obrazovky vyplň identifikační údaje.
AA11: ="2. "&verze!$E$101 -> 2. Ve střední části vyplň výšku slevy od prodejce.
AA12: ="3. "&verze!$E$102 -> 3. Vrať se na úvod a soubor ulož nebo zavři s potvzením změn.
AA13: =" "&verze!$E$103 -> Identifikační údaje se budou zobrazovat v hlavičce objednávky.
B14: =verze!E33 -> Dodací adresa
AA17: =verze!$E$104 -> Na úvodní obrazovce :
B18: =verze!E34 -> IČO | AA18: ="1. "&verze!$E$111 -> 1. vyber barvu povrchové úpravy
AA19: ="2. "&verze!$E$112 -> 2. vyber způsob montáže čelního kování
B20: =verze!E35 -> DIČ | AA20: ="3. "&verze!$E$105 -> 3. vyber, jaké ceny se budou zobrazovat:
AA21: =" - "&verze!$E$106 -> - základní ceny, tj. ceníkové bez slevy
B22: =verze!E36 -> Telefon, fax, e-mail | AA22: =" - "&verze!$E$107 -> - nákupní ceny, tj. ceny se slevou od prodejce
AA24: =verze!$E$110 -> Zadáte-li slevu s mínusovým znamínkem, zobrazí se ceny o tuto hodnotu vyšší.

Sheet FORM
B2: =verze!E13 -> << zpět | G2: =verze!E6 -> Úvod | O2: =verze!E7 -> Výběr zásuvek | U2: =verze!E8 ->  | AA2: =verze!E9 ->  | AI2: =verze!E10 -> Objednávka | AO2: =verze!E14 -> vpřed >>
B4: Konfigurátor AvanTech YOU | AI4: =verze!E15 -> Základní údaje // Nápověda | AU4: =verze!E55 -> Vybrané
AU6: =verze!E61 -> stříbrná
U7: =verze!E56 -> barva: | AM7: =verze!E57 -> čelní kování: | AU7: =verze!E62 -> bílá
U8: stříbrná | AM8: na vruty | AU8: =verze!E63 -> antracit
AU10: =verze!E67 -> na vruty
AU11: =verze!E68 -> s rozpěrnými pouzdry
AU13: =verze!E26 -> flexibilní sety
U14: =IF(U8=AU6,AU4,"") -> Vybrané | Y14: =IF(U8=AU7,AU4,"") ->  | AC14: =IF(U8=AU8,AU4,"") ->  | AL14: =IF(AM8=AU10,AU4,"") -> Vybrané | AP14: =IF(AM8=AU11,AU4,"") ->  | AU14: =verze!E27 -> velkobalení
AU16: =verze!E71 -> v barvě bočnice | AW16: =verze!E77 -> žádná
U17: =verze!E25 -> způsob balení: | AM17: =verze!E70 -> dekorativní profil: | AU17: =verze!E72 -> hliník | AW17: =verze!E78 -> stříbrná s logem | AX17: 9257703
U18: flexibilní sety | AM18: v barvě bočnice | AU18: =verze!E73 -> nerez | AW18: =verze!E79 -> stříbrná bez loga | AX18: 9270185
AU19: =verze!E65 -> chrom | AW19: =verze!E80 -> bílá s logem | AX19: 9257704
AM20: =verze!E76 -> krytka: | AU20: =verze!E74 -> dub | AW20: =verze!E81 -> bílá bez loga | AX20: 9270186
AM21: žádná | AU21: =verze!E75 -> ořech | AW21: =verze!E82 -> antracitová s logem | AX21: 9257705
AW22: =verze!E83 -> antracitová bez loga | AX22: 9270187
W23: =IF(U18=AU13,AU4,"") -> Vybrané | AE23: =IF(U18=AU14,AU4,"") ->  | AM23: =verze!E84 -> tloušťka boku skřínky:
AM24: 18 | AU24: 16
B25: =" "&verze!E29 -> Prodejce: | AU25: 18
B26: =" "&CENY!C3 -> Hettich ČR k.s. | AU26: 19
B27: =" "&CENY!C4 -> Jihlavská 3 | U27: =verze!E58 -> Cenová hladina:
B28: =" "&CENY!C5 -> 591 01 Žďár nad Sázavou | U28: Základní ceny | AD28: =verze!E59&" " -> Sleva % | AE28: =IF(U28=AU30,0,IF(U28=AU31,Napoveda!T9,IF(U28=AU36,Napoveda!T10,1/0))) -> 0 | AO28: =verze!E51&" " -> Verze | AP28: =verze!E52 -> 1.0.0
B29: =" "&CENY!C6 -> tel. (+420) 566 692 111
B30: =" "&CENY!C7 -> fax (+420) 566 692 123 | AU30: =verze!E86 -> Základní ceny
B31: =" "&CENY!C8 -> hettich@hettich.cz | AU31: =verze!E87 -> Nákupní ceny
AV36: =verze!E88 -> S volitelnou slevou

Sheet MENU
B2: =verze!E13 -> << zpět | G2: =verze!E6 -> Úvod | O2: =verze!E7 -> Výběr zásuvek | U2: =verze!E8 ->  | AA2: =verze!E9 ->  | AI2: =verze!E10 -> Objednávka | AO2: =verze!E14 -> vpřed >>
B4: =verze!E7 -> Výběr zásuvek | BF4: AvanTech YOU
O6: Zásuvky - 101 mm | AD6: Zásuvky - 139 mm | AR6: Zásuvky - 187 mm | BF6: Zásuvky - 251 mm
C8: =verze!E119 -> zásuvka základní | Q8: =verze!E119 -> zásuvka základní | AF8: =verze!E119 -> zásuvka základní | AT8: =verze!E119 -> zásuvka základní
C9: =verze!E145 -> výška bočnice : | G9: 101 mm | Q9: =verze!E145 -> výška bočnice : | U9: 139 mm | AF9: =verze!E145 -> výška bočnice : | AJ9: 187 mm | AT9: =verze!E145 -> výška bočnice : | AX9: 251 mm
C12: =verze!E147 -> min.vestavná výška [mm] : | Q12: =verze!E147 -> min.vestavná výška [mm] : | AF12: =verze!E147 -> min.vestavná výška [mm] : | AT12: =verze!E147 -> min.vestavná výška [mm] :
C13: =verze!E148 -> jenom SiSy | F13: + P2O/SiSy | M13: =SUM('AVT101'!O19:AF22)+SUM('AVT101'!O27:AD30) -> 0 | Q13: =verze!E148 -> jenom SiSy | T13: + P2O/SiSy | AB13: =SUM('AVT139'!O19:AF22)+SUM('AVT139'!O27:AD30) -> 0 | AF13: =verze!E148 -> jenom SiSy | AI13: + P2O/SiSy | AP13: =SUM('AVT187'!O19:AF22)+SUM('AVT187'!O27:AD30) -> 0 | AT13: =verze!E148 -> jenom SiSy | AW13: + P2O/SiSy | BD13: =SUM('AVT251'!O19:AF22)+SUM('AVT251'!O27:AD30) -> 0
C14: 102 | F14: 104 | Q14: 140 | T14: 142 | AF14: 188 | AI14: 190 | AT14: 252 | AW14: 254
AF16: =verze!E120 -> zásuvka ze skleněnou bočnicí
AF17: =verze!E145 -> výška bočnice : | AJ17: 187 mm
AF20: =verze!E147 -> min.vestavná výška [mm] : | AT20: =verze!E196 -> Tlačítko "RESET" funguje jenom při zapnuté funkci MAKRO. Pokud není zapnutá, musíte pole vymazat ručne.
AF21: =verze!E148 -> jenom SiSy | AI21: + P2O/SiSy | AP21: =SUM(AVT187In!O19:AF22)+SUM(AVT187In!O27:AD30) -> 0
AF22: 188 | AI22: 190
O25: =verze!E125 -> Vnitřní zásuvka - 101 mm s ALU čelem | AD25: =verze!E126 -> Vnitřní zásuvka - 139 mm s ALU čelem | AR25: =verze!E127 -> Vnitřní zásuvka - 187 mm s ALU čelem
C26: =verze!E119 -> zásuvka základní | Q26: =verze!E119 -> zásuvka základní | AF26: =verze!E119 -> zásuvka základní
C27: =verze!E145 -> výška bočnice : | G27: 101 mm | Q27: =verze!E145 -> výška bočnice : | U27: 139 mm | AF27: =verze!E145 -> výška bočnice : | AJ27: 187 mm
C30: =verze!E147 -> min.vestavná výška [mm] : | Q30: =verze!E147 -> min.vestavná výška [mm] : | AF30: =verze!E147 -> min.vestavná výška [mm] :
C31: =verze!E148 -> jenom SiSy | F31: + P2O/SiSy | M31: =SUM('AVT101(vn-A)'!O19:AF22)+SUM('AVT101(vn-A)'!O27:AD30) -> 0 | Q31: =verze!E148 -> jenom SiSy | T31: + P2O/SiSy | AB31: =SUM('AVT139(vn-A)'!O19:AF22)+SUM('AVT139(vn-A)'!O27:AD30) -> 0 | AF31: =verze!E148 -> jenom SiSy | AI31: + P2O/SiSy | AP31: =SUM('AVT187(vn-A)'!O19:AF22)+SUM('AVT187(vn-A)'!O27:AD30) -> 0
C32: 105 | F32: 107 | Q32: 143 | T32: 145 | AF32: 192 | AI32: 194
O33: =IF(AND(M31=0,SUM('AVT101(vn-A)'!O84:AJ84)<>0),verze!E118&" ","") ->  | AD33: =IF(AND(AB31=0,SUM('AVT139(vn-A)'!O84:AJ84)<>0),verze!E118&" ","") ->  | AR33: =IF(AND(AP31=0,SUM('AVT187(vn-A)'!O84:AJ84)<>0),verze!E118&" ","") -> 
AF34: =verze!E120 -> zásuvka ze skleněnou bočnicí
AF35: =verze!E145 -> výška bočnice : | AJ35: 187 mm
AF38: =verze!E147 -> min.vestavná výška [mm] :
AF39: =verze!E148 -> jenom SiSy | AI39: + P2O/SiSy | AP39: =SUM('AVT187In(vn-A)'!O19:AF22)+SUM('AVT187In(vn-A)'!O27:AD30) -> 0
AF40: 188 | AI40: 190
AR41: =IF(AND(AP39=0,SUM('AVT187In(vn-A)'!O84:AJ84)<>0),verze!E118&" ","") -> 
AR43: =verze!E128 -> Vnitřní zásuvka - 187 mm se skleněným čelem
AF44: =verze!E119 -> zásuvka základní
AF45: =verze!E145 -> výška bočnice : | AJ45: 187 mm
AF48: =verze!E147 -> min.vestavná výška [mm] :
AF49: =verze!E148 -> jenom SiSy | AI49: + P2O/SiSy | AP49: =SUM('AVT187(vn-S)'!O19:AF22)+SUM('AVT187(vn-S)'!O27:AD30) -> 0
AF50: 194 | AI50: 196
AR51: =IF(AND(AP49=0,SUM('AVT187(vn-S)'!O84:AJ84)<>0),verze!E118&" ","") -> 
AF52: =verze!E120 -> zásuvka ze skleněnou bočnicí
AF53: =verze!E145 -> výška bočnice : | AJ53: 187 mm
AF56: =verze!E147 -> min.vestavná výška [mm] :
AF57: =verze!E148 -> jenom SiSy | AI57: + P2O/SiSy | AP57: =SUM('AVT187In(vn-S)'!O19:AF22)+SUM('AVT187In(vn-S)'!O27:AD30) -> 0
AF58: 194 | AI58: 196
AR59: =IF(AND(AP57=0,SUM('AVT187In(vn-S)'!O84:AJ84)<>0),verze!E118&" ","") -> 
B61: =verze!E141 -> Speciální zásuvky a speciální řešení
C63: =verze!E119 -> zásuvka základní
C64: =verze!E145 -> výška bočnice : | G64: 77 mm
C67: =verze!E147 -> min.vestavná výška [mm] :
C68: =verze!E148 -> jenom SiSy | F68: + P2O/SiSy | M68: =SUM('AVT77'!O19:AF22)+SUM('AVT77'!O27:AD30) -> 0
C69: 78 | F69: 80
B72: =verze!E142 -> Zásuvky úzké
C74: =verze!E136 -> zásuvka úzká spodní 101/187 | Q74: =verze!E137 -> zásuvka úzká spodní 139/187 | AF74: =verze!E138 -> zásuvka úzká spodní 2x187 | AT74: =verze!E138 -> zásuvka úzká spodní 2x187
C75: =verze!E119 -> zásuvka základní | Q75: =verze!E119 -> zásuvka základní | AF75: =verze!E119 -> zásuvka základní | AT75: =verze!E120 -> zásuvka ze skleněnou bočnicí
C76: =verze!E145 -> výška bočnice : | G76: 101/187 mm | Q76: =verze!E145 -> výška bočnice : | U76: 139/187 mm | AF76: =verze!E145 -> výška bočnice : | AJ76: 187 mm | AT76: =verze!E145 -> výška bočnice : | AX76: 187 mm
M79: =SUM('AVT-celny-101+187'!O19:AD19)+SUM('AVT-celny-101+187'!W20:AF20)+SUM('AVT-celny-101+187'!O25:AD25) -> 0 | AB79: =SUM('AVT-celny-139+187'!O19:AD19)+SUM('AVT-celny-139+187'!W20:AF20)+SUM('AVT-celny-139+187'!O25:AD25) -> 0 | AP79: =SUM('AVT-celny-2x187'!O19:AD19)+SUM('AVT-celny-2x187'!W20:AF20)+SUM('AVT-celny-2x187'!O25:AD25) -> 0 | BD79: =SUM('AVT-celny-2x187In'!S19:AD19)+SUM('AVT-celny-2x187In'!W20:AF20)+SUM('AVT-celny-2x187In'!S25:AD25) -> 0
B83: =verze!E143 -> Vysoké potravinové skříně
C85: =verze!E139 -> potravinová skříň vysoká výsuvná | Q85: =verze!E139 -> potravinová skříň vysoká výsuvná | AE85: =IF(AND(AP90=0,SUM('potr-v-DS'!O84:AH84)<>0),verze!E118&" ","") -> 
C86: =verze!E119 -> zásuvka základní | Q86: =verze!E120 -> zásuvka ze skleněnou bočnicí
M90: =SUM('potr-v-R'!O19:AR21)+SUM('potr-v-R'!O26:AR27) -> 0 | AB90: 0
O92: =IF(AND(M90=0,SUM('potr-v-R'!O84:AH84)<>0),verze!E118&" ","") -> 
C94: =verze!E140 -> potravinová skříň vysoká otvíravá | Q94: =verze!E140 -> potravinová skříň vysoká otvíravá | AT94: =verze!E140 -> potravinová skříň vysoká otvíravá
C95: =verze!E119 -> zásuvka základní | Q95: =verze!E120 -> zásuvka ze skleněnou bočnicí | AT95: =verze!E120 -> zásuvka ze skleněnou bočnicí
M99: =SUM('potr-ot-R'!O19:AR21)+SUM('potr-ot-R'!O26:AR27) -> 0 | AB99: 0 | BD99: =SUM('potr-ot-DS'!O19:AR21)+SUM('potr-ot-DS'!O26:AR27) -> 0
O101: =IF(AND(M99=0,SUM('potr-ot-R'!O84:AH84)<>0),verze!E118&" ","") ->  | BF101: =IF(AND(AP99=0,SUM('potr-ot-DS'!O84:AH84)<>0),verze!E118&" ","") -> 
C103: =verze!E201 -> SiSy = tlumení Silent System
C104: =verze!E202 -> P2O/SiSy = tlumení s otvíráním bez úchytky Push to open Silent

Sheet MENU-2
B2: =verze!E13 -> << zpět | G2: =verze!E6 -> Úvod | O2: =verze!E7 -> Výběr zásuvek | U2: =verze!E8 ->  | AA2: =verze!E9 ->  | AI2: =verze!E10 -> Objednávka | AO2: =verze!E14 -> vpřed >>
B4: =verze!E8 ->  | AR4: ATIRA
C8: OrgaTray 440 / 480
C9: =verze!$E$150 -> min.šířka korp.: | G9: 275 mm | Q9: =verze!$E$150 -> min.šířka korp.: | AF9: =verze!$E$150 -> min.šířka korp.:
C10: =verze!$E$151 -> max.šířka korp.: | G10: 1200 mm | Q10: =verze!$E$151 -> max.šířka korp.: | AF10: =verze!$E$151 -> max.šířka korp.:
C12: =verze!$E$152 -> min.hl.příbor. : | G12: 370 mm | Q12: =verze!$E$152 -> min.hl.příbor. : | AF12: =verze!$E$152 -> min.hl.příbor. : | AW12: =SUM('AVT101'!$O$19:$AP$19) -> 0 | AX12: =IF(AW12=MAX(AW$12:AW$14),1,0) -> 1 | AY12: =SUM(#REF!) ->  | AZ12: =IF(AY12=MAX(AY$12:AY$14),1,0) ->  | BA12: =SUM(#REF!) ->  | BB12: =IF(BA12=MAX(BA$12:BA$14),1,0) -> 
C13: =verze!$E$153 -> max.hl.příbor.: | G13: 620 mm | M13: =SUM('OT440'!O19:Z31)+SUM('OT440'!AF22:AJ29) -> 0 | Q13: =verze!$E$153 -> max.hl.příbor.: | AB13: =SUM(SUM(#REF!)+SUM(#REF!)) ->  | AF13: =verze!$E$153 -> max.hl.příbor.: | AP13: =SUM(SUM(#REF!)+SUM(#REF!)) ->  | AW13: =SUM('AVT101'!$O$20:$AP$20)+SUM('AVT101'!$O$27:$AP$27) -> 0 | AX13: =IF(AW13=MAX(AW$12:AW$14),1,0) -> 1 | AY13: =SUM(#REF!)+SUM(#REF!) ->  | AZ13: =IF(AY13=MAX(AY$12:AY$14),1,0) ->  | BA13: =SUM(#REF!)+SUM(#REF!) ->  | BB13: =IF(BA13=MAX(BA$12:BA$14),1,0) -> 
AW14: =SUM('AVT101'!$Q$21:$AR$21)+SUM('AVT101'!$Q$27:$AR$27) -> 0 | AX14: =IF(AW14=MAX(AW$12:AW$14),1,0) -> 1 | AY14: =SUM(#REF!)+SUM(#REF!) ->  | AZ14: =IF(AY14=MAX(AY$12:AY$14),1,0) ->  | BA14: =SUM(#REF!)+SUM(#REF!) ->  | BB14: =IF(BA14=MAX(BA$12:BA$14),1,0) -> 
C17: =verze!$E$150 -> min.šířka korp.: | Q17: =verze!$E$150 -> min.šířka korp.: | AF17: =verze!$E$150 -> min.šířka korp.:
C18: =verze!$E$151 -> max.šířka korp.: | Q18: =verze!$E$151 -> max.šířka korp.: | AF18: =verze!$E$151 -> max.šířka korp.:
C20: =verze!$E$152 -> min.hl.příbor. : | Q20: =verze!$E$152 -> min.hl.příbor. : | AF20: =verze!$E$152 -> min.hl.příbor. : | BA20: =SUM(#REF!) ->  | BB20: =IF(BA20=MAX(BA$20:BA$22),1,0) -> 
C21: =verze!$E$153 -> max.hl.příbor.: | M21: =SUM(SUM('AVT101'!O27:AR29)+SUM('AVT101'!O34:AR35)) -> 0 | Q21: =verze!$E$153 -> max.hl.příbor.: | AB21: =SUM(SUM(#REF!)+SUM(#REF!)) ->  | AF21: =verze!$E$153 -> max.hl.příbor.: | AP21: =SUM(SUM(#REF!)+SUM(#REF!)) ->  | BA21: =SUM(#REF!)+SUM(#REF!) ->  | BB21: =IF(BA21=MAX(BA$20:BA$22),1,0) -> 
BA22: =SUM(#REF!)+SUM(#REF!) ->  | BB22: =IF(BA22=MAX(BA$20:BA$22),1,0) -> 
C25: =verze!$E$150 -> min.šířka korp.: | Q25: =verze!$E$150 -> min.šířka korp.: | AF25: =verze!$E$150 -> min.šířka korp.:
C26: =verze!$E$151 -> max.šířka korp.: | Q26: =verze!$E$151 -> max.šířka korp.: | AF26: =verze!$E$151 -> max.šířka korp.:
C28: =verze!$E$152 -> min.hl.příbor. : | Q28: =verze!$E$152 -> min.hl.příbor. : | AF28: =verze!$E$152 -> min.hl.příbor. : | AY28: =SUM(#REF!) ->  | AZ28: =IF(AY28=MAX(AY$28:AY$30),1,0) ->  | BA28: =SUM(#REF!) ->  | BB28: =IF(BA28=MAX(BA$28:BA$30),1,0) -> 
C29: =verze!$E$153 -> max.hl.příbor.: | M29: =SUM(SUM('AVT101'!O35:AR37)+SUM('AVT101'!O42:AR43)) -> 0 | Q29: =verze!$E$153 -> max.hl.příbor.: | AB29: =SUM(SUM(#REF!)+SUM(#REF!)) ->  | AF29: =verze!$E$153 -> max.hl.příbor.: | AP29: =SUM(SUM(#REF!)+SUM(#REF!)) ->  | AY29: =SUM(#REF!)+SUM(#REF!) ->  | AZ29: =IF(AY29=MAX(AY$28:AY$30),1,0) ->  | BA29: =SUM(#REF!)+SUM(#REF!) ->  | BB29: =IF(BA29=MAX(BA$28:BA$30),1,0) -> 
AY30: =SUM(#REF!)+SUM(#REF!) ->  | AZ30: =IF(AY30=MAX(AY$28:AY$30),1,0) ->  | BA30: =SUM(#REF!)+SUM(#REF!) ->  | BB30: =IF(BA30=MAX(BA$28:BA$30),1,0) -> 

Sheet AVT77
B2: =verze!E13 -> << zpět | G2: =verze!E6 -> Úvod | O2: =verze!E7 -> Výběr zásuvek | U2: =verze!E8 ->  | AA2: =verze!E9 ->  | AI2: =verze!E10 -> Objednávka | AO2: =verze!E14 -> vpřed >>
B4: Zásuvka AVANTECH YOU 77 | AU4: MALOBALENIE : | AW4: =IF(FORM!AU13=FORM!U18,1,0) -> 1 | BB4: =SUM(BB5:BB935) -> 0 | BD4: VELKOBALENIE: | BK4: =SUM(BK5:BK928) -> 0
AU5: =OBJ!B23 -> 9255240 | AV5: =VLOOKUP(AU5,CENY!$B$11:$G$1034,2,FALSE) -> AVANTECH YOU BOKY V SADĚ V77 MM NL400 MM STŘÍBRNÁ | AW5: =VLOOKUP(AU5,CENY!$B$11:$G$1034,3,FALSE) -> 1 | AX5: 6 | AY5: =U20+U28+U30 -> 0 | AZ5: =IF(AY5="","",IF($AW$4=1,AY5,0)) -> 0 | BA5: =VLOOKUP(AU5,CENY!$B$11:$M$2005,12,FALSE) -> 562.36 | BB5: =IF(BA5="","",BA5*AY5) -> 0 | BD5: =OBJ!B29 -> 9255000 | BE5: =VLOOKUP(BD5,CENY!$B$11:$G$1034,2,FALSE) -> AVANTECH YOU BOK V77 MM NL400 MM STŘÍBRNÝ LEVÝ | BF5: =VLOOKUP(BD5,CENY!$B$11:$G$1034,3,FALSE) -> 10 | BH5: =AY5 -> 0 | BI5: =IF(BH5="","",IF($AW$4=0,BH5,0)) -> 0 | BJ5: =VLOOKUP(BD5,CENY!$B$11:$M$2005,12,FALSE) -> 186.44 | BK5: =IF(BJ5="","",BJ5*BH5) -> 0
B6: =" "&verze!E90 -> bočnice: | F6: .77 | AU6: =OBJ!B24 -> 9255241 | AV6: =VLOOKUP(AU6,CENY!$B$11:$G$1034,2,FALSE) -> AVANTECH YOU BOKY V SADĚ V77 MM NL450 MM STŘÍBRNÁ | AW6: =VLOOKUP(AU6,CENY!$B$11:$G$1034,3,FALSE) -> 1 | AX6: 6 | AY6: =W20+W22+W28+W30 -> 0 | AZ6: =IF(AY6="","",IF($AW$4=1,AY6,0)) -> 0 | BA6: =VLOOKUP(AU6,CENY!$B$11:$M$2005,12,FALSE) -> 569.32 | BB6: 0 | BD6: =OBJ!B30 -> 9255001 | BE6: =VLOOKUP(BD6,CENY!$B$11:$G$1034,2,FALSE) -> AVANTECH YOU BOK V77 MM NL400 MM STŘÍBRNÝ PRAVÝ | BF6: =VLOOKUP(BD6,CENY!$B$11:$G$1034,3,FALSE) -> 10 | BH6: =AY5 -> 0 | BI6: =IF(BH6="","",IF($AW$4=0,BH6,0)) -> 0 | BJ6: =VLOOKUP(BD6,CENY!$B$11:$M$2005,12,FALSE) -> 186.44 | BK6: =IF(BJ6="","",BJ6*BH6) -> 0
B7: =" "&verze!E56 -> barva: | F7: =" "&FORM!U8 -> stříbrná | AU7: =OBJ!B25 -> 9255242 | AV7: =VLOOKUP(AU7,CENY!$B$11:$G$1034,2,FALSE) -> AVANTECH YOU BOKY V SADĚ V77 MM NL500 MM STŘÍBRNÁ | AW7: =VLOOKUP(AU7,CENY!$B$11:$G$1034,3,FALSE) -> 1 | AX7: 8 | AY7: =Y20+Y22+Y28+Y30 -> 0 | AZ7: 0 | BA7: =VLOOKUP(AU7,CENY!$B$11:$M$2005,12,FALSE) -> 576.28 | BB7: 0 | BD7: =OBJ!B31 -> 9255002 | BE7: =VLOOKUP(BD7,CENY!$B$11:$G$1034,2,FALSE) -> AVANTECH YOU BOK V77 MM NL450 MM STŘÍBRNÝ LEVÝ | BF7: =VLOOKUP(BD7,CENY!$B$11:$G$1034,3,FALSE) -> 10 | BH7: =AY6 -> 0 | BI7: 0 | BJ7: =VLOOKUP(BD7,CENY!$B$11:$M$2005,12,FALSE) -> 189.75 | BK7: 0
B8: =" "&verze!E70 -> dekorativní profil: | F8: =" "&FORM!AM18 -> v barvě bočnice | AU8: =OBJ!B26 -> 9255243 | AV8: =VLOOKUP(AU8,CENY!$B$11:$G$1034,2,FALSE) -> AVANTECH YOU BOKY V SADĚ V77 MM NL550 MM STŘÍBRNÁ | AW8: =VLOOKUP(AU8,CENY!$B$11:$G$1034,3,FALSE) -> 1 | AX8: 8 | AY8: =AA20+AA22+AA28+AA30 -> 0 | AZ8: 0 | BA8: =VLOOKUP(AU8,CENY!$B$11:$M$2005,12,FALSE) -> 583.24 | BB8: 0 | BD8: =OBJ!B32 -> 9255003 | BE8: =VLOOKUP(BD8,CENY!$B$11:$G$1034,2,FALSE) -> AVANTECH YOU BOK V77 MM NL450 MM STŘÍBRNÝ PRAVÝ | BF8: =VLOOKUP(BD8,CENY!$B$11:$G$1034,3,FALSE) -> 10 | BH8: =AY6 -> 0 | BI8: 0 | BJ8: =VLOOKUP(BD8,CENY!$B$11:$M$2005,12,FALSE) -> 189.75 | BK8: 0
BD9: =OBJ!B33 -> 9255004 | BE9: =VLOOKUP(BD9,CENY!$B$11:$G$1034,2,FALSE) -> AVANTECH YOU BOK V77 MM NL500 MM STŘÍBRNÝ LEVÝ | BF9: =VLOOKUP(BD9,CENY!$B$11:$G$1034,3,FALSE) -> 10 | BH9: =AY7 -> 0 | BI9: 0 | BJ9: =VLOOKUP(BD9,CENY!$B$11:$M$2005,12,FALSE) -> 193.06 | BK9: 0
B10: =" "&verze!E57 -> čelní kování: | F10: =" "&FORM!AM8 -> na vruty | AU10: =OBJ!B74 -> 9255807 | AV10: =VLOOKUP(AU10,CENY!$B$11:$G$1034,2,FALSE) -> AVANTECH YOU DEKORATIVNÍ PROFIL NL400 MM STŘÍBRNÝ | AW10: =VLOOKUP(AU10,CENY!$B$11:$G$1034,3,FALSE) -> 200 | AY10: =IF(FORM!AM18=FORM!AU16,0,2*(U20+U28+U30)) -> 0 | AZ10: 0 | BA10: =VLOOKUP(AU10,CENY!$B$11:$M$2005,12,FALSE) -> 9.62 | BB10: 0 | BD10: =OBJ!B34 -> 9255005 | BE10: =VLOOKUP(BD10,CENY!$B$11:$G$1034,2,FALSE) -> AVANTECH YOU BOK V77 MM NL500 MM STŘÍBRNÝ PRAVÝ | BF10: =VLOOKUP(BD10,CENY!$B$11:$G$1034,3,FALSE) -> 10 | BH10: =AY7 -> 0 | BI10: 0 | BJ10: =VLOOKUP(BD10,CENY!$B$11:$M$2005,12,FALSE) -> 193.06 | BK10: 0
B11: =" "&verze!E76 -> krytka: | F11: =" "&FORM!AM21 -> žádná | AU11: =OBJ!B75 -> 9255808 | AV11: =VLOOKUP(AU11,CENY!$B$11:$G$1034,2,FALSE) -> AVANTECH YOU DEKORATIVNÍ PROFIL NL450 MM STŘÍBRNÝ | AW11: =VLOOKUP(AU11,CENY!$B$11:$G$1034,3,FALSE) -> 200 | AY11: =IF(FORM!AM18=FORM!AU16,0,2*(W20+W22+W28+W30)) -> 0 | AZ11: 0 | BA11: =VLOOKUP(AU11,CENY!$B$11:$M$2005,12,FALSE) -> 9.8 | BB11: 0 | BD11: =OBJ!B35 -> 9255006 | BE11: =VLOOKUP(BD11,CENY!$B$11:$G$1034,2,FALSE) -> AVANTECH YOU BOK V77 MM NL550 MM STŘÍBRNÝ LEVÝ | BF11: =VLOOKUP(BD11,CENY!$B$11:$G$1034,3,FALSE) -> 10 | BH11: =AY8 -> 0 | BI11: 0 | BJ11: =VLOOKUP(BD11,CENY!$B$11:$M$2005,12,FALSE) -> 196.37 | BK11: 0
AU12: =OBJ!B76 -> 9255809 | AV12: =VLOOKUP(AU12,CENY!$B$11:$G$1034,2,FALSE) -> AVANTECH YOU DEKORATIVNÍ PROFIL NL500 MM STŘÍBRNÝ | AW12: =VLOOKUP(AU12,CENY!$B$11:$G$1034,3,FALSE) -> 200 | AY12: =IF(FORM!AM18=FORM!AU16,0,2*(Y20+Y22+Y28+Y30)) -> 0 | AZ12: 0 | BA12: =VLOOKUP(AU12,CENY!$B$11:$M$2005,12,FALSE) -> 9.97 | BB12: 0 | BD12: =OBJ!B36 -> 9255007 | BE12: =VLOOKUP(BD12,CENY!$B$11:$G$1034,2,FALSE) -> AVANTECH YOU BOK V77 MM NL550 MM STŘÍBRNÝ PRAVÝ | BF12: =VLOOKUP(BD12,CENY!$B$11:$G$1034,3,FALSE) -> 10 | BH12: =AY8 -> 0 | BI12: 0 | BJ12: =VLOOKUP(BD12,CENY!$B$11:$M$2005,12,FALSE) -> 196.37 | BK12: 0
B13: =" "&verze!E92 -> cena kování: | F13: =IF(AW4=1,BB4,BK4) -> 0 | J13: =IF(verze!E1="CZK","CZK","EUR") -> CZK | AU13: =OBJ!B77 -> 9255810 | AV13: =VLOOKUP(AU13,CENY!$B$11:$G$1034,2,FALSE) -> AVANTECH YOU DEKORATIVNÍ PROFIL NL550 MM STŘÍBRNÝ | AW13: =VLOOKUP(AU13,CENY!$B$11:$G$1034,3,FALSE) -> 200 | AY13: =IF(FORM!AM18=FORM!AU16,0,2*(AA20+AA22+AA28+AA30)) -> 0 | AZ13: 0 | BA13: =VLOOKUP(AU13,CENY!$B$11:$M$2005,12,FALSE) -> 10.14 | BB13: 0
BD14: =OBJ!B37 -> 9255832 | BE14: =VLOOKUP(BD14,CENY!$B$11:$G$1034,2,FALSE) -> AVANTECH YOU PŘÍCHYTKA ČELA V77 MM K NAŠROUBOVÁNÍ | BF14: =VLOOKUP(BD14,CENY!$B$11:$G$1034,3,FALSE) -> 100 | BH14: =2*(SUM(O19:T19)+SUM(O20:AD20)+SUM(W22:AF22)+SUM(O27:T27)+SUM(O28:AD28)+SUM(O30:AD30)) -> 0 | BI14: 0 | BJ14: =VLOOKUP(BD14,CENY!$B$11:$M$2005,12,FALSE) -> 17.72 | BK14: 0
AU15: =OBJ!B239 -> 9257004 | AV15: =VLOOKUP(AU15,CENY!$B$11:$G$1034,2,FALSE) -> ACTRO YOU 40KG PLNOVÝSUV 400 MM EB21 SILENT SYSTEM SADA | AW15: =VLOOKUP(AU15,CENY!$B$11:$G$1034,3,FALSE) -> 1 | AX15: 8 | AY15: =U20 -> 0 | AZ15: 0 | BA15: =VLOOKUP(AU15,CENY!$B$11:$M$2005,12,FALSE) -> 567.85 | BB15: 0 | BD15: =OBJ!B27 -> 79665 | BE15: =VLOOKUP(BD15,CENY!$B$11:$G$1034,2,FALSE) -> SPOJOVACI ÚHELNÍK 31X31 MM | BF15: =VLOOKUP(BD15,CENY!$B$11:$G$1034,3,FALSE) -> 100 | BH15: =2*(SUM(O19:T19)+SUM(O20:AD20)+SUM(W22:AF22)+SUM(O27:T27)+SUM(O28:AD28)+SUM(O30:AD30)) -> 0 | BI15: 0 | BJ15: =VLOOKUP(BD15,CENY!$B$11:$M$2005,12,FALSE) -> 5.96 | BK15: 0
AU16: =OBJ!B240 -> 9257006 | AV16: =VLOOKUP(AU16,CENY!$B$11:$G$1034,2,FALSE) -> ACTRO YOU 40KG PLNOVÝSUV 450 MM EB21 SILENT SYSTEM SADA | AW16: =VLOOKUP(AU16,CENY!$B$11:$G$1034,3,FALSE) -> 1 | AX16: 10 | AY16: =W20 -> 0 | AZ16: 0 | BA16: =VLOOKUP(AU16,CENY!$B$11:$M$2005,12,FALSE) -> 574.04 | BB16: 0
B17: Actro YOU | O17: =FORM!U18 -> flexibilní sety | AI17: =verze!E198 -> P2O Silent pro Actro | AU17: =OBJ!B241 -> 9257008 | AV17: =VLOOKUP(AU17,CENY!$B$11:$G$1034,2,FALSE) -> ACTRO YOU 40KG PLNOVÝSUV 500 MM EB21 SILENT SYSTEM SADA | AW17: =VLOOKUP(AU17,CENY!$B$11:$G$1034,3,FALSE) -> 1 | AX17: 10 | AY17: =Y20 -> 0 | AZ17: 0 | BA17: =VLOOKUP(AU17,CENY!$B$11:$M$2005,12,FALSE) -> 580.26 | BB17: 0 | BD17: =OBJ!B74 -> 9255807 | BE17: =VLOOKUP(BD17,CENY!$B$11:$G$1034,2,FALSE) -> AVANTECH YOU DEKORATIVNÍ PROFIL NL400 MM STŘÍBRNÝ | BF17: =VLOOKUP(BD17,CENY!$B$11:$G$1034,3,FALSE) -> 200 | BH17: =2*(U20+U28+U30) -> 0 | BI17: 0 | BJ17: =VLOOKUP(BD17,CENY!$B$11:$M$2005,12,FALSE) -> 9.62 | BK17: 0
N18: =verze!$E$20&" " -> Jmenovitá délka: | O18: 270 | Q18: 300 | S18: 350 | U18: 400 | W18: 450 | Y18: 500 | AA18: 550 | AC18: 600 | AE18: 650 | AI18: typ | AU18: =OBJ!B242 -> 9257010 | AV18: =VLOOKUP(AU18,CENY!$B$11:$G$1034,2,FALSE) -> ACTRO YOU 40KG PLNOVÝSUV 550 MM EB21 SILENT SYSTEM SADA | AW18: =VLOOKUP(AU18,CENY!$B$11:$G$1034,3,FALSE) -> 1 | AX18: 10 | AY18: =AA20 -> 0 | AZ18: 0 | BA18: =VLOOKUP(AU18,CENY!$B$11:$M$2005,12,FALSE) -> 613.44 | BB18: 0 | BD18: =OBJ!B75 -> 9255808 | BE18: =VLOOKUP(BD18,CENY!$B$11:$G$1034,2,FALSE) -> AVANTECH YOU DEKORATIVNÍ PROFIL NL450 MM STŘÍBRNÝ | BF18: =VLOOKUP(BD18,CENY!$B$11:$G$1034,3,FALSE) -> 200 | BH18: =2*(W20+W22+W28+W30) -> 0 | BI18: 0 | BJ18: =VLOOKUP(BD18,CENY!$B$11:$M$2005,12,FALSE) -> 9.8 | BK18: 0
B19: Actro YOU 10 / SiSy | H19: =verze!E18 -> plnovýsuv | M19: 10 kg | AM19: < 10 kg | BD19: =OBJ!B76 -> 9255809 | BE19: =VLOOKUP(BD19,CENY!$B$11:$G$1034,2,FALSE) -> AVANTECH YOU DEKORATIVNÍ PROFIL NL500 MM STŘÍBRNÝ | BF19: =VLOOKUP(BD19,CENY!$B$11:$G$1034,3,FALSE) -> 200 | BH19: =2*(Y20+Y22+Y28+Y30) -> 0 | BI19: 0 | BJ19: =VLOOKUP(BD19,CENY!$B$11:$M$2005,12,FALSE) -> 9.97 | BK19: 0
B20: Actro YOU 40 / SiSy | H20: =verze!E18 -> plnovýsuv | M20: 40 kg | AM20: 8 - 20 kg | AU20: =OBJ!B261 -> 9257034 | AV20: =VLOOKUP(AU20,CENY!$B$11:$G$1034,2,FALSE) -> ACTRO YOU 70KG PLNOVÝSUV 450 MM EB21 SILENT SYSTEM SADA | AW20: =VLOOKUP(AU20,CENY!$B$11:$G$1034,3,FALSE) -> 1 | AX20: 10 | AY20: =W22 -> 0 | AZ20: 0 | BA20: =VLOOKUP(AU20,CENY!$B$11:$M$2005,12,FALSE) -> 691.9 | BB20: 0 | BD20: =OBJ!B77 -> 9255810 | BE20: =VLOOKUP(BD20,CENY!$B$11:$G$1034,2,FALSE) -> AVANTECH YOU DEKORATIVNÍ PROFIL NL550 MM STŘÍBRNÝ | BF20: =VLOOKUP(BD20,CENY!$B$11:$G$1034,3,FALSE) -> 200 | BH20: =2*(AA20+AA22+AA28+AA30) -> 0 | BI20: 0 | BJ20: =VLOOKUP(BD20,CENY!$B$11:$M$2005,12,FALSE) -> 10.14 | BK20: 0
AM21: 10 - 40 kg | AU21: =OBJ!B262 -> 9257036 | AV21: =VLOOKUP(AU21,CENY!$B$11:$G$1034,2,FALSE) -> ACTRO YOU 70KG PLNOVÝSUV 500 MM EB21 SILENT SYSTEM SADA | AW21: =VLOOKUP(AU21,CENY!$B$11:$G$1034,3,FALSE) -> 1 | AX21: 10 | AY21: =Y22 -> 0 | AZ21: 0 | BA21: =VLOOKUP(AU21,CENY!$B$11:$M$2005,12,FALSE) -> 698.13 | BB21: 0
B22: Actro YOU 70 / SiSy | H22: =verze!E18 -> plnovýsuv | M22: 70 kg | AM22: 20 - 70 kg | AU22: =OBJ!B263 -> 9257038 | AV22: =VLOOKUP(AU22,CENY!$B$11:$G$1034,2,FALSE) -> ACTRO YOU 70KG PLNOVÝSUV 550 MM EB21 SILENT SYSTEM SADA | AW22: =VLOOKUP(AU22,CENY!$B$11:$G$1034,3,FALSE) -> 1 | AX22: 10 | AY22: =AA22 -> 0 | AZ22: 0 | BA22: =VLOOKUP(AU22,CENY!$B$11:$M$2005,12,FALSE) -> 731.3 | BB22: 0 | BD22: =OBJ!B250 -> 9256984 | BE22: =VLOOKUP(BD22,CENY!$B$11:$G$1034,2,FALSE) -> ACTRO YOU 40KG PLNOVÝSUV 400 MM EB21 SILENT SYSTEM LEVÝ | BF22: =VLOOKUP(BD22,CENY!$B$11:$G$1034,3,FALSE) -> 10 | BH22: =AY15 -> 0 | BI22: 0 | BJ22: =VLOOKUP(BD22,CENY!$B$11:$M$2005,12,FALSE) -> 247.05 | BK22: 0
BD23: =OBJ!B251 -> 9256985 | BE23: =VLOOKUP(BD23,CENY!$B$11:$G$1034,2,FALSE) -> ACTRO YOU 40KG PLNOVÝSUV 400 MM EB21 SILENT SYSTEM PRAVÝ | BF23: =VLOOKUP(BD23,CENY!$B$11:$G$1034,3,FALSE) -> 10 | BH23: =AY15 -> 0 | BI23: 0 | BJ23: =VLOOKUP(BD23,CENY!$B$11:$M$2005,12,FALSE) -> 247.05 | BK23: 0
AU24: =OBJ!B277 -> 9257890 | AV24: =VLOOKUP(AU24,CENY!$B$11:$G$1034,2,FALSE) -> PUSH TO OPEN SILENT ACTRO YOU / ACTRO 5D 10 KG | AW24: =VLOOKUP(AU24,CENY!$B$11:$G$1034,3,FALSE) -> 1 | AY24: =AN19 -> 0 | AZ24: 0 | BA24: =VLOOKUP(AU24,CENY!$B$11:$M$2005,12,FALSE) -> 544.37 | BB24: 0 | BD24: =OBJ!B252 -> 9256988 | BE24: =VLOOKUP(BD24,CENY!$B$11:$G$1034,2,FALSE) -> ACTRO YOU 40KG PLNOVÝSUV 450 MM EB21 SILENT SYSTEM LEVÝ | BF24: =VLOOKUP(BD24,CENY!$B$11:$G$1034,3,FALSE) -> 10 | BH24: =AY16 -> 0 | BI24: 0 | BJ24: =VLOOKUP(BD24,CENY!$B$11:$M$2005,12,FALSE) -> 250.14 | BK24: 0
B25: Quadro YOU | AI25: =verze!E199 -> P2O Silent pro Quadro | AU25: =OBJ!B278 -> 9257891 | AV25: =VLOOKUP(AU25,CENY!$B$11:$G$1034,2,FALSE) -> PUSH TO OPEN SILENT ACTRO YOU / ACTRO 5D 20 KG | AW25: =VLOOKUP(AU25,CENY!$B$11:$G$1034,3,FALSE) -> 1 | AY25: =AN20 -> 0 | AZ25: 0 | BA25: =VLOOKUP(AU25,CENY!$B$11:$M$2005,12,FALSE) -> 544.37 | BB25: 0 | BD25: =OBJ!B253 -> 9256989 | BE25: =VLOOKUP(BD25,CENY!$B$11:$G$1034,2,FALSE) -> ACTRO YOU 40KG PLNOVÝSUV 450 MM EB21 SILENT SYSTEM PRAVÝ | BF25: =VLOOKUP(BD25,CENY!$B$11:$G$1034,3,FALSE) -> 10 | BH25: =AY16 -> 0 | BI25: 0 | BJ25: =VLOOKUP(BD25,CENY!$B$11:$M$2005,12,FALSE) -> 250.14 | BK25: 0
N26: =verze!$E$20&" " -> Jmenovitá délka: | O26: 270 | Q26: 300 | S26: 350 | U26: 400 | W26: 450 | Y26: 500 | AA26: 550 | AC26: 600 | AI26: typ | AU26: =OBJ!B279 -> 9257892 | AV26: =VLOOKUP(AU26,CENY!$B$11:$G$1034,2,FALSE) -> PUSH TO OPEN SILENT ACTRO YOU / ACTRO 5D 40 KG | AW26: =VLOOKUP(AU26,CENY!$B$11:$G$1034,3,FALSE) -> 1 | AY26: =AN21 -> 0 | AZ26: 0 | BA26: =VLOOKUP(AU26,CENY!$B$11:$M$2005,12,FALSE) -> 544.37 | BB26: 0 | BD26: =OBJ!B254 -> 9256992 | BE26: =VLOOKUP(BD26,CENY!$B$11:$G$1034,2,FALSE) -> ACTRO YOU 40KG PLNOVÝSUV 500 MM EB21 SILENT SYSTEM LEVÝ | BF26: =VLOOKUP(BD26,CENY!$B$11:$G$1034,3,FALSE) -> 10 | BH26: =AY17 -> 0 | BI26: 0 | BJ26: =VLOOKUP(BD26,CENY!$B$11:$M$2005,12,FALSE) -> 253.25 | BK26: 0
B27: Quadro YOU 10 / SiSy | H27: =verze!E18 -> plnovýsuv | M27: 10 kg | AM27: < 10 kg | AU27: =OBJ!B280 -> 9257893 | AV27: =VLOOKUP(AU27,CENY!$B$11:$G$1034,2,FALSE) -> PUSH TO OPEN SILENT ACTRO YOU / ACTRO 5D 70 KG | AW27: =VLOOKUP(AU27,CENY!$B$11:$G$1034,3,FALSE) -> 1 | AY27: =AN22 -> 0 | AZ27: 0 | BA27: =VLOOKUP(AU27,CENY!$B$11:$M$2005,12,FALSE) -> 544.37 | BB27: 0 | BD27: =OBJ!B255 -> 9256993 | BE27: =VLOOKUP(BD27,CENY!$B$11:$G$1034,2,FALSE) -> ACTRO YOU 40KG PLNOVÝSUV 500 MM EB21 SILENT SYSTEM PRAVÝ | BF27: =VLOOKUP(BD27,CENY!$B$11:$G$1034,3,FALSE) -> 10 | BH27: =AY17 -> 0 | BI27: 0 | BJ27: =VLOOKUP(BD27,CENY!$B$11:$M$2005,12,FALSE) -> 253.25 | BK27: 0
B28: Quadro YOU 30 / SiSy | H28: =verze!E18 -> plnovýsuv | M28: 30 kg | AM28: 8 - 20 kg | AU28: =OBJ!B281 -> 9236718 | AV28: =VLOOKUP(AU28,CENY!$B$11:$G$1034,2,FALSE) -> PUSH TO OPEN SYNCHRONIZAČNÍ TYČ 2000 MM | AW28: =VLOOKUP(AU28,CENY!$B$11:$G$1034,3,FALSE) -> 100 | AY28: =SUM(AN19:AO22)+SUM(AN27:AO29)+SUM(O30:AD30) -> 0 | AZ28: 0 | BA28: =VLOOKUP(AU28,CENY!$B$11:$M$2005,12,FALSE) -> 144.3 | BB28: 0 | BD28: =OBJ!B256 -> 9256996 | BE28: =VLOOKUP(BD28,CENY!$B$11:$G$1034,2,FALSE) -> ACTRO YOU 40KG PLNOVÝSUV 550 MM EB21 SILENT SYSTEM LEVÝ | BF28: =VLOOKUP(BD28,CENY!$B$11:$G$1034,3,FALSE) -> 10 | BH28: =AY18 -> 0 | BI28: 0 | BJ28: =VLOOKUP(BD28,CENY!$B$11:$M$2005,12,FALSE) -> 269.84 | BK28: 0
AM29: 10 - 30 kg | BD29: =OBJ!B257 -> 9256997 | BE29: =VLOOKUP(BD29,CENY!$B$11:$G$1034,2,FALSE) -> ACTRO YOU 40KG PLNOVÝSUV 550 MM EB21 SILENT SYSTEM PRAVÝ | BF29: =VLOOKUP(BD29,CENY!$B$11:$G$1034,3,FALSE) -> 10 | BH29: =AY18 -> 0 | BI29: 0 | BJ29: =VLOOKUP(BD29,CENY!$B$11:$M$2005,12,FALSE) -> 269.84 | BK29: 0
B30: Quadro YOU 30 / P2O | H30: =verze!E18 -> plnovýsuv | M30: 30 kg | AU30: =OBJ!B300 -> 9256888 | AV30: =VLOOKUP(AU30,CENY!$B$11:$G$1034,2,FALSE) -> QUADRO YOU PLNOVÝSUV 400 MM EB21 SILENT SYSTEM SADA | AW30: =VLOOKUP(AU30,CENY!$B$11:$G$1034,3,FALSE) -> 1 | AX30: 8 | AY30: =U28 -> 0 | AZ30: 0 | BA30: =VLOOKUP(AU30,CENY!$B$11:$M$2005,12,FALSE) -> 384.24 | BB30: 0
AU31: =OBJ!B301 -> 9256890 | AV31: =VLOOKUP(AU31,CENY!$B$11:$G$1034,2,FALSE) -> QUADRO YOU PLNOVÝSUV 450 MM EB21 SILENT SYSTEM SADA | AW31: =VLOOKUP(AU31,CENY!$B$11:$G$1034,3,FALSE) -> 1 | AX31: 8 | AY31: =W28 -> 0 | AZ31: 0 | BA31: =VLOOKUP(AU31,CENY!$B$11:$M$2005,12,FALSE) -> 391.72 | BB31: 0 | BD31: =OBJ!B266 -> 9257013 | BE31: =VLOOKUP(BD31,CENY!$B$11:$G$1034,2,FALSE) -> ACTRO YOU 70KG PLNOVÝSUV 450 MM EB21 SILENT SYSTEM LEVÝ | BF31: =VLOOKUP(BD31,CENY!$B$11:$G$1034,3,FALSE) -> 10 | BH31: =AY20 -> 0 | BI31: 0 | BJ31: =VLOOKUP(BD31,CENY!$B$11:$M$2005,12,FALSE) -> 309.07 | BK31: 0
B32: =verze!E201 -> SiSy = tlumení Silent System | AU32: =OBJ!B302 -> 9256892 | AV32: =VLOOKUP(AU32,CENY!$B$11:$G$1034,2,FALSE) -> QUADRO YOU PLNOVÝSUV 500 MM EB21 SILENT SYSTEM SADA | AW32: =VLOOKUP(AU32,CENY!$B$11:$G$1034,3,FALSE) -> 1 | AX32: 8 | AY32: =Y28 -> 0 | AZ32: 0 | BA32: =VLOOKUP(AU32,CENY!$B$11:$M$2005,12,FALSE) -> 399.19 | BB32: 0 | BD32: =OBJ!B267 -> 9257014 | BE32: =VLOOKUP(BD32,CENY!$B$11:$G$1034,2,FALSE) -> ACTRO YOU 70KG PLNOVÝSUV 450 MM EB21 SILENT SYSTEM PRAVÝ | BF32: =VLOOKUP(BD32,CENY!$B$11:$G$1034,3,FALSE) -> 10 | BH32: =AY20 -> 0 | BI32: 0 | BJ32: =VLOOKUP(BD32,CENY!$B$11:$M$2005,12,FALSE) -> 309.07 | BK32: 0
B33: =verze!E204 -> P2O = otvírání bez úchytky Push to open | AU33: =OBJ!B303 -> 9256894 | AV33: =VLOOKUP(AU33,CENY!$B$11:$G$1034,2,FALSE) -> QUADRO YOU PLNOVÝSUV 550 MM EB21 SILENT SYSTEM SADA | AW33: =VLOOKUP(AU33,CENY!$B$11:$G$1034,3,FALSE) -> 1 | AX33: 8 | AY33: =AA28 -> 0 | AZ33: 0 | BA33: =VLOOKUP(AU33,CENY!$B$11:$M$2005,12,FALSE) -> 412.64 | BB33: 0 | BD33: =OBJ!B268 -> 9257017 | BE33: =VLOOKUP(BD33,CENY!$B$11:$G$1034,2,FALSE) -> ACTRO YOU 70KG PLNOVÝSUV 500 MM EB21 SILENT SYSTEM LEVÝ | BF33: =VLOOKUP(BD33,CENY!$B$11:$G$1034,3,FALSE) -> 10 | BH33: =AY21 -> 0 | BI33: 0 | BJ33: =VLOOKUP(BD33,CENY!$B$11:$M$2005,12,FALSE) -> 312.18 | BK33: 0
B34: =verze!E203 -> P2O Silent = tlumení s otvíráním bez úchytky Push to open Silent | BD34: =OBJ!B269 -> 9257018 | BE34: =VLOOKUP(BD34,CENY!$B$11:$G$1034,2,FALSE) -> ACTRO YOU 70KG PLNOVÝSUV 500 MM EB21 SILENT SYSTEM PRAVÝ | BF34: =VLOOKUP(BD34,CENY!$B$11:$G$1034,3,FALSE) -> 10 | BH34: =AY21 -> 0 | BI34: 0 | BJ34: =VLOOKUP(BD34,CENY!$B$11:$M$2005,12,FALSE) -> 312.18 | BK34: 0
AU35: =OBJ!B322 -> 9257894 | AV35: =VLOOKUP(AU35,CENY!$B$11:$G$1034,2,FALSE) -> PUSH TO OPEN SILENT QUADRO YOU 10 KG | AW35: =VLOOKUP(AU35,CENY!$B$11:$G$1034,3,FALSE) -> 1 | AY35: =AN27 -> 0 | AZ35: 0 | BA35: =VLOOKUP(AU35,CENY!$B$11:$M$2005,12,FALSE) -> 544.37 | BB35: 0 | BD35: =OBJ!B270 -> 9257021 | BE35: =VLOOKUP(BD35,CENY!$B$11:$G$1034,2,FALSE) -> ACTRO YOU 70KG PLNOVÝSUV 550 MM EB21 SILENT SYSTEM LEVÝ | BF35: =VLOOKUP(BD35,CENY!$B$11:$G$1034,3,FALSE) -> 10 | BH35: =AY22 -> 0 | BI35: 0 | BJ35: =VLOOKUP(BD35,CENY!$B$11:$M$2005,12,FALSE) -> 328.77 | BK35: 0
AU36: =OBJ!B323 -> 9257895 | AV36: =VLOOKUP(AU36,CENY!$B$11:$G$1034,2,FALSE) -> PUSH TO OPEN SILENT QUADRO YOU 20 KG | AW36: =VLOOKUP(AU36,CENY!$B$11:$G$1034,3,FALSE) -> 1 | AY36: =AN28 -> 0 | AZ36: 0 | BA36: =VLOOKUP(AU36,CENY!$B$11:$M$2005,12,FALSE) -> 544.37 | BB36: 0 | BD36: =OBJ!B271 -> 9257022 | BE36: =VLOOKUP(BD36,CENY!$B$11:$G$1034,2,FALSE) -> ACTRO YOU 70KG PLNOVÝSUV 550 MM EB21 SILENT SYSTEM PRAVÝ | BF36: =VLOOKUP(BD36,CENY!$B$11:$G$1034,3,FALSE) -> 10 | BH36: =AY22 -> 0 | BI36: 0 | BJ36: =VLOOKUP(BD36,CENY!$B$11:$M$2005,12,FALSE) -> 328.77 | BK36: 0
AU37: =OBJ!B324 -> 9257896 | AV37: =VLOOKUP(AU37,CENY!$B$11:$G$1034,2,FALSE) -> PUSH TO OPEN SILENT QUADRO YOU 30 KG | AW37: =VLOOKUP(AU37,CENY!$B$11:$G$1034,3,FALSE) -> 1 | AY37: =AN29 -> 0 | AZ37: 0 | BA37: =VLOOKUP(AU37,CENY!$B$11:$M$2005,12,FALSE) -> 544.37 | BB37: 0 | BK37: =IF(BJ37="","",BJ37*BH37) -> 
BB38: =IF(BA38="","",BA38*AY38) ->  | BD38: =OBJ!B277 -> 9257890 | BE38: =VLOOKUP(BD38,CENY!$B$11:$G$1034,2,FALSE) -> PUSH TO OPEN SILENT ACTRO YOU / ACTRO 5D 10 KG | BF38: =VLOOKUP(BD38,CENY!$B$11:$G$1034,3,FALSE) -> 1 | BH38: =AY24 -> 0 | BI38: 0 | BJ38: =VLOOKUP(BD38,CENY!$B$11:$M$2005,12,FALSE) -> 544.37 | BK38: 0
AU39: =OBJ!B329 -> 9256933 | AV39: =VLOOKUP(AU39,CENY!$B$11:$G$1034,2,FALSE) -> QUADRO YOU PLNOVÝSUV 400 MM EB21 PUSH TO OPEN SADA | AW39: =VLOOKUP(AU39,CENY!$B$11:$G$1034,3,FALSE) -> 1 | AX39: 8 | AY39: =U30 -> 0 | AZ39: 0 | BA39: =VLOOKUP(AU39,CENY!$B$11:$M$2005,12,FALSE) -> 429.08 | BB39: 0 | BD39: =OBJ!B278 -> 9257891 | BE39: =VLOOKUP(BD39,CENY!$B$11:$G$1034,2,FALSE) -> PUSH TO OPEN SILENT ACTRO YOU / ACTRO 5D 20 KG | BF39: =VLOOKUP(BD39,CENY!$B$11:$G$1034,3,FALSE) -> 1 | BH39: =AY25 -> 0 | BI39: 0 | BJ39: =VLOOKUP(BD39,CENY!$B$11:$M$2005,12,FALSE) -> 544.37 | BK39: 0
AU40: =OBJ!B330 -> 9256935 | AV40: =VLOOKUP(AU40,CENY!$B$11:$G$1034,2,FALSE) -> QUADRO YOU PLNOVÝSUV 450 MM EB21 PUSH TO OPEN SADA | AW40: =VLOOKUP(AU40,CENY!$B$11:$G$1034,3,FALSE) -> 1 | AX40: 8 | AY40: =W30 -> 0 | AZ40: 0 | BA40: =VLOOKUP(AU40,CENY!$B$11:$M$2005,12,FALSE) -> 436.55 | BB40: 0 | BD40: =OBJ!B279 -> 9257892 | BE40: =VLOOKUP(BD40,CENY!$B$11:$G$1034,2,FALSE) -> PUSH TO OPEN SILENT ACTRO YOU / ACTRO 5D 40 KG | BF40: =VLOOKUP(BD40,CENY!$B$11:$G$1034,3,FALSE) -> 1 | BH40: =AY26 -> 0 | BI40: 0 | BJ40: =VLOOKUP(BD40,CENY!$B$11:$M$2005,12,FALSE) -> 544.37 | BK40: 0
AU41: =OBJ!B331 -> 9256937 | AV41: =VLOOKUP(AU41,CENY!$B$11:$G$1034,2,FALSE) -> QUADRO YOU PLNOVÝSUV 500 MM EB21 PUSH TO OPEN SADA | AW41: =VLOOKUP(AU41,CENY!$B$11:$G$1034,3,FALSE) -> 1 | AX41: 8 | AY41: =Y30 -> 0 | AZ41: 0 | BA41: =VLOOKUP(AU41,CENY!$B$11:$M$2005,12,FALSE) -> 444.02 | BB41: 0 | BD41: =OBJ!B280 -> 9257893 | BE41: =VLOOKUP(BD41,CENY!$B$11:$G$1034,2,FALSE) -> PUSH TO OPEN SILENT ACTRO YOU / ACTRO 5D 70 KG | BF41: =VLOOKUP(BD41,CENY!$B$11:$G$1034,3,FALSE) -> 1 | BH41: =AY27 -> 0 | BI41: 0 | BJ41: =VLOOKUP(BD41,CENY!$B$11:$M$2005,12,FALSE) -> 544.37 | BK41: 0
AU42: =OBJ!B332 -> 9256939 | AV42: =VLOOKUP(AU42,CENY!$B$11:$G$1034,2,FALSE) -> QUADRO YOU PLNOVÝSUV 550 MM EB21 PUSH TO OPEN SADA | AW42: =VLOOKUP(AU42,CENY!$B$11:$G$1034,3,FALSE) -> 1 | AX42: 8 | AY42: =AA30 -> 0 | AZ42: 0 | BA42: =VLOOKUP(AU42,CENY!$B$11:$M$2005,12,FALSE) -> 457.48 | BB42: 0 | BD42: =OBJ!B281 -> 9236718 | BE42: =VLOOKUP(BD42,CENY!$B$11:$G$1034,2,FALSE) -> PUSH TO OPEN SYNCHRONIZAČNÍ TYČ 2000 MM | BF42: =VLOOKUP(BD42,CENY!$B$11:$G$1034,3,FALSE) -> 100 | BH42: =AY28 -> 0 | BI42: 0 | BJ42: =VLOOKUP(BD42,CENY!$B$11:$M$2005,12,FALSE) -> 144.3 | BK42: 0
AU44: =OBJ!B351 -> 9219966 | AV44: =VLOOKUP(AU44,CENY!$B$11:$G$1034,2,FALSE) -> PUSH TO OPEN SYNCHRO ADAPTÉR TYP A | AW44: =VLOOKUP(AU44,CENY!$B$11:$G$1034,3,FALSE) -> 200 | AY44: =2*SUM(O30:AD30) -> 0 | AZ44: 0 | BA44: =VLOOKUP(AU44,CENY!$B$11:$M$2005,12,FALSE) -> 13.07 | BB44: 0 | BD44: =OBJ!B311 -> 9256864 | BE44: =VLOOKUP(BD44,CENY!$B$11:$G$1034,2,FALSE) -> QUADRO YOU PLNOVÝSUV 400 MM EB21 SILENT SYSTEM LEVÝ | BF44: =VLOOKUP(BD44,CENY!$B$11:$G$1034,3,FALSE) -> 20 | BH44: =AY30 -> 0 | BI44: 0 | BJ44: =VLOOKUP(BD44,CENY!$B$11:$M$2005,12,FALSE) -> 180.17 | BK44: 0
BD45: =OBJ!B312 -> 9256865 | BE45: =VLOOKUP(BD45,CENY!$B$11:$G$1034,2,FALSE) -> QUADRO YOU PLNOVÝSUV 400 MM EB21 SILENT SYSTEM PRAVÝ | BF45: =VLOOKUP(BD45,CENY!$B$11:$G$1034,3,FALSE) -> 20 | BH45: =AY30 -> 0 | BI45: 0 | BJ45: =VLOOKUP(BD45,CENY!$B$11:$M$2005,12,FALSE) -> 180.17 | BK45: 0
AU46: 9255833 | AV46: =VLOOKUP(AU46,CENY!$B$11:$G$1034,2,FALSE) -> AVANTECH YOU PŘÍCHYTKA ČELA V77 MM K ZALISOVÁNÍ | AW46: =VLOOKUP(AU46,CENY!$B$11:$G$1034,3,FALSE) -> 100 | AY46: =IF(FORM!AM8=FORM!AU11,(2*(+SUM(O19:T19)+SUM(O20:AD20)+SUM(W22:AF22)+SUM(O27:T27)+SUM(O28:AD28)+SUM(O30:AD30))),0) -> 0 | AZ46: 0 | BA46: =VLOOKUP(AU46,CENY!$B$11:$M$2005,12,FALSE) -> 18.37 | BB46: 0 | BD46: =OBJ!B313 -> 9256868 | BE46: =VLOOKUP(BD46,CENY!$B$11:$G$1034,2,FALSE) -> QUADRO YOU PLNOVÝSUV 450 MM EB21 SILENT SYSTEM LEVÝ | BF46: =VLOOKUP(BD46,CENY!$B$11:$G$1034,3,FALSE) -> 20 | BH46: =AY31 -> 0 | BI46: 0 | BJ46: =VLOOKUP(BD46,CENY!$B$11:$M$2005,12,FALSE) -> 183.9 | BK46: 0
BD47: =OBJ!B314 -> 9256869 | BE47: =VLOOKUP(BD47,CENY!$B$11:$G$1034,2,FALSE) -> QUADRO YOU PLNOVÝSUV 450 MM EB21 SILENT SYSTEM PRAVÝ | BF47: =VLOOKUP(BD47,CENY!$B$11:$G$1034,3,FALSE) -> 20 | BH47: =AY31 -> 0 | BI47: 0 | BJ47: =VLOOKUP(BD47,CENY!$B$11:$M$2005,12,FALSE) -> 183.9 | BK47: 0
AU48: =OBJ!B207 -> 0 | AV48: =VLOOKUP(AU48,CENY!$B$11:$G$1034,2,FALSE) ->  | AW48: =VLOOKUP(AU48,CENY!$B$11:$G$1034,3,FALSE) ->  | AY48: =IF(FORM!AM21<>FORM!AW16,(2*(+SUM(O19:T19)+SUM(O20:AD20)+SUM(W22:AF22)+SUM(O27:T27)+SUM(O28:AD28)+SUM(O30:AD30))),0) -> 0 | AZ48: 0 | BA48: =IF(AU48=0,"",VLOOKUP(AU48,CENY!$B$11:$M$2005,12,FALSE)) ->  | BB48: =IF(BA48="","",BA48*AY48) ->  | BD48: =OBJ!B315 -> 9256872 | BE48: =VLOOKUP(BD48,CENY!$B$11:$G$1034,2,FALSE) -> QUADRO YOU PLNOVÝSUV 500 MM EB21 SILENT SYSTEM LEVÝ | BF48: =VLOOKUP(BD48,CENY!$B$11:$G$1034,3,FALSE) -> 20 | BH48: =AY32 -> 0 | BI48: 0 | BJ48: =VLOOKUP(BD48,CENY!$B$11:$M$2005,12,FALSE) -> 187.64 | BK48: 0
BD49: =OBJ!B316 -> 9256873 | BE49: =VLOOKUP(BD49,CENY!$B$11:$G$1034,2,FALSE) -> QUADRO YOU PLNOVÝSUV 500 MM EB21 SILENT SYSTEM PRAVÝ | BF49: =VLOOKUP(BD49,CENY!$B$11:$G$1034,3,FALSE) -> 20 | BH49: =AY32 -> 0 | BI49: 0 | BJ49: =VLOOKUP(BD49,CENY!$B$11:$M$2005,12,FALSE) -> 187.64 | BK49: 0
BD50: =OBJ!B317 -> 9256876 | BE50: =VLOOKUP(BD50,CENY!$B$11:$G$1034,2,FALSE) -> QUADRO YOU PLNOVÝSUV 550 MM EB21 SILENT SYSTEM LEVÝ | BF50: =VLOOKUP(BD50,CENY!$B$11:$G$1034,3,FALSE) -> 20 | BH50: =AY33 -> 0 | BI50: 0 | BJ50: =VLOOKUP(BD50,CENY!$B$11:$M$2005,12,FALSE) -> 194.36 | BK50: 0
BD51: =OBJ!B318 -> 9256877 | BE51: =VLOOKUP(BD51,CENY!$B$11:$G$1034,2,FALSE) -> QUADRO YOU PLNOVÝSUV 550 MM EB21 SILENT SYSTEM PRAVÝ | BF51: =VLOOKUP(BD51,CENY!$B$11:$G$1034,3,FALSE) -> 20 | BH51: =AY33 -> 0 | BI51: 0 | BJ51: =VLOOKUP(BD51,CENY!$B$11:$M$2005,12,FALSE) -> 194.36 | BK51: 0
BD53: =OBJ!B322 -> 9257894 | BE53: =VLOOKUP(BD53,CENY!$B$11:$G$1034,2,FALSE) -> PUSH TO OPEN SILENT QUADRO YOU 10 KG | BF53: =VLOOKUP(BD53,CENY!$B$11:$G$1034,3,FALSE) -> 1 | BH53: =AY35 -> 0 | BI53: 0 | BJ53: =VLOOKUP(BD53,CENY!$B$11:$M$2005,12,FALSE) -> 544.37 | BK53: 0
BD54: =OBJ!B323 -> 9257895 | BE54: =VLOOKUP(BD54,CENY!$B$11:$G$1034,2,FALSE) -> PUSH TO OPEN SILENT QUADRO YOU 20 KG | BF54: =VLOOKUP(BD54,CENY!$B$11:$G$1034,3,FALSE) -> 1 | BH54: =AY36 -> 0 | BI54: 0 | BJ54: =VLOOKUP(BD54,CENY!$B$11:$M$2005,12,FALSE) -> 544.37 | BK54: 0
BD55: =OBJ!B324 -> 9257896 | BE55: =VLOOKUP(BD55,CENY!$B$11:$G$1034,2,FALSE) -> PUSH TO OPEN SILENT QUADRO YOU 30 KG | BF55: =VLOOKUP(BD55,CENY!$B$11:$G$1034,3,FALSE) -> 1 | BH55: =AY37 -> 0 | BI55: 0 | BJ55: =VLOOKUP(BD55,CENY!$B$11:$M$2005,12,FALSE) -> 544.37 | BK55: 0
BD57: =OBJ!B340 -> 9256909 | BE57: =VLOOKUP(BD57,CENY!$B$11:$G$1034,2,FALSE) -> QUADRO YOU PLNOVÝSUV 400 MM EB21 PUSH TO OPEN LEVÝ | BF57: =VLOOKUP(BD57,CENY!$B$11:$G$1034,3,FALSE) -> 20 | BH57: =AY39 -> 0 | BI57: 0 | BJ57: =VLOOKUP(BD57,CENY!$B$11:$M$2005,12,FALSE) -> 202.58 | BK57: 0
BD58: =OBJ!B341 -> 9256910 | BE58: =VLOOKUP(BD58,CENY!$B$11:$G$1034,2,FALSE) -> QUADRO YOU PLNOVÝSUV 400 MM EB21 PUSH TO OPEN PRAVÝ | BF58: =VLOOKUP(BD58,CENY!$B$11:$G$1034,3,FALSE) -> 20 | BH58: =AY39 -> 0 | BI58: 0 | BJ58: =VLOOKUP(BD58,CENY!$B$11:$M$2005,12,FALSE) -> 202.58 | BK58: 0
BD59: =OBJ!B342 -> 9256913 | BE59: =VLOOKUP(BD59,CENY!$B$11:$G$1034,2,FALSE) -> QUADRO YOU PLNOVÝSUV 450 MM EB21 PUSH TO OPEN LEVÝ | BF59: =VLOOKUP(BD59,CENY!$B$11:$G$1034,3,FALSE) -> 20 | BH59: =AY40 -> 0 | BI59: 0 | BJ59: =VLOOKUP(BD59,CENY!$B$11:$M$2005,12,FALSE) -> 206.32 | BK59: 0
BD60: =OBJ!B343 -> 9256914 | BE60: =VLOOKUP(BD60,CENY!$B$11:$G$1034,2,FALSE) -> QUADRO YOU PLNOVÝSUV 450 MM EB21 PUSH TO OPEN PRAVÝ | BF60: =VLOOKUP(BD60,CENY!$B$11:$G$1034,3,FALSE) -> 20 | BH60: =AY40 -> 0 | BI60: 0 | BJ60: =VLOOKUP(BD60,CENY!$B$11:$M$2005,12,FALSE) -> 206.32 | BK60: 0
BD61: =OBJ!B344 -> 9256917 | BE61: =VLOOKUP(BD61,CENY!$B$11:$G$1034,2,FALSE) -> QUADRO YOU PLNOVÝSUV 500 MM EB21 PUSH TO OPEN LEVÝ | BF61: =VLOOKUP(BD61,CENY!$B$11:$G$1034,3,FALSE) -> 20 | BH61: =AY41 -> 0 | BI61: 0 | BJ61: =VLOOKUP(BD61,CENY!$B$11:$M$2005,12,FALSE) -> 210.06 | BK61: 0
BD62: =OBJ!B345 -> 9256918 | BE62: =VLOOKUP(BD62,CENY!$B$11:$G$1034,2,FALSE) -> QUADRO YOU PLNOVÝSUV 500 MM EB21 PUSH TO OPEN PRAVÝ | BF62: =VLOOKUP(BD62,CENY!$B$11:$G$1034,3,FALSE) -> 20 | BH62: =AY41 -> 0 | BI62: 0 | BJ62: =VLOOKUP(BD62,CENY!$B$11:$M$2005,12,FALSE) -> 210.06 | BK62: 0
BD63: =OBJ!B346 -> 9256921 | BE63: =VLOOKUP(BD63,CENY!$B$11:$G$1034,2,FALSE) -> QUADRO YOU PLNOVÝSUV 550 MM EB21 PUSH TO OPEN LEVÝ | BF63: =VLOOKUP(BD63,CENY!$B$11:$G$1034,3,FALSE) -> 20 | BH63: =AY42 -> 0 | BI63: 0 | BJ63: =VLOOKUP(BD63,CENY!$B$11:$M$2005,12,FALSE) -> 216.78 | BK63: 0
BD64: =OBJ!B347 -> 9256922 | BE64: =VLOOKUP(BD64,CENY!$B$11:$G$1034,2,FALSE) -> QUADRO YOU PLNOVÝSUV 550 MM EB21 PUSH TO OPEN PRAVÝ | BF64: =VLOOKUP(BD64,CENY!$B$11:$G$1034,3,FALSE) -> 20 | BH64: =AY42 -> 0 | BI64: 0 | BJ64: =VLOOKUP(BD64,CENY!$B$11:$M$2005,12,FALSE) -> 216.78 | BK64: 0
BD66: =OBJ!B351 -> 9219966 | BE66: =VLOOKUP(BD66,CENY!$B$11:$G$1034,2,FALSE) -> PUSH TO OPEN SYNCHRO ADAPTÉR TYP A | BF66: =VLOOKUP(BD66,CENY!$B$11:$G$1034,3,FALSE) -> 200 | BH66: =AY44 -> 0 | BI66: 0 | BJ66: =VLOOKUP(BD66,CENY!$B$11:$M$2005,12,FALSE) -> 13.07 | BK66: 0
BD68: =OBJ!B207 -> 0 | BE68: =VLOOKUP(BD68,CENY!$B$11:$G$1034,2,FALSE) ->  | BF68: =VLOOKUP(BD68,CENY!$B$11:$G$1034,3,FALSE) ->  | BH68: =AY48 -> 0 | BI68: 0 | BJ68: =IF(BD68=0,"",VLOOKUP(BD68,CENY!$B$11:$M$2005,12,FALSE)) ->  | BK68: =IF(BJ68="","",BJ68*BH68) -> 
AU70: =OBJ!B353 -> 9278225 | AV70: =VLOOKUP(AU70,CENY!$B$11:$G$1034,2,FALSE) -> AVANTECH YOU VRUT 3,5X6,5 PANHEAD POZINK. | AW70: =VLOOKUP(AU70,CENY!$B$11:$G$1034,3,FALSE) -> 200 | AY70: =SUMPRODUCT(AX5:AX8,AY5:AY8) -> 0 | AZ70: =IF(AY70="","",IF($AW$4=1,AY70,0)) -> 0 | BA70: =VLOOKUP(AU70,CENY!$B$11:$M$2005,12,FALSE) -> 0.73 | BB70: 0 | BC70: na dno + 1/2 stabilizátor chrbáta | BD70: =OBJ!B353 -> 9278225 | BE70: =VLOOKUP(BD70,CENY!$B$11:$G$1034,2,FALSE) -> AVANTECH YOU VRUT 3,5X6,5 PANHEAD POZINK. | BF70: =VLOOKUP(BD70,CENY!$B$11:$G$1034,3,FALSE) -> 200 | BH70: =AY70+BH15*1 -> 0 | BI70: =IF(BH70="","",IF($AW$4=0,BH70,0)) -> 0 | BJ70: =VLOOKUP(BD70,CENY!$B$11:$M$2005,12,FALSE) -> 0.73 | BK70: =IF(BJ70="","",BJ70*BH70) -> 0
AU71: =OBJ!B354 -> 45167 | AV71: =VLOOKUP(AU71,CENY!$B$11:$G$1034,2,FALSE) -> VRUT PANHEAD 35X12 | AW71: =VLOOKUP(AU71,CENY!$B$11:$G$1034,3,FALSE) -> 200 | AY71: 0 | AZ71: 0 | BA71: =VLOOKUP(AU71,CENY!$B$11:$M$2005,12,FALSE) -> 0.54 | BB71: =IF(BA71="","",BA71*AY71) -> 0 | BC71: na 2/2 stabilizátor chrbáta | BD71: =OBJ!B354 -> 45167 | BE71: =VLOOKUP(BD71,CENY!$B$11:$G$1034,2,FALSE) -> VRUT PANHEAD 35X12 | BF71: =VLOOKUP(BD71,CENY!$B$11:$G$1034,3,FALSE) -> 200 | BH71: =BH15*1 -> 0 | BI71: 0 | BJ71: =VLOOKUP(BD71,CENY!$B$11:$M$2005,12,FALSE) -> 0.54 | BK71: 0
AU72: =OBJ!B355 -> 45168 | AV72: =VLOOKUP(AU72,CENY!$B$11:$G$1034,2,FALSE) -> VRUT PANHEAD 35X20 | AW72: =VLOOKUP(AU72,CENY!$B$11:$G$1034,3,FALSE) -> 200 | AY72: 0 | AZ72: 0 | BA72: =VLOOKUP(AU72,CENY!$B$11:$M$2005,12,FALSE) -> 0.78 | BB72: =IF(BA72="","",BA72*AY72) -> 0 | BC72: na príchytky čela | BD72: =OBJ!B355 -> 45168 | BE72: =VLOOKUP(BD72,CENY!$B$11:$G$1034,2,FALSE) -> VRUT PANHEAD 35X20 | BF72: =VLOOKUP(BD72,CENY!$B$11:$G$1034,3,FALSE) -> 200 | BH72: =IF(FORM!$AM$8=FORM!$AU$10,BH14*2,0) -> 0 | BI72: 0 | BJ72: =VLOOKUP(BD72,CENY!$B$11:$M$2005,12,FALSE) -> 0.78 | BK72: 0
AU73: =OBJ!B356 -> 9278224 | AV73: =VLOOKUP(AU73,CENY!$B$11:$G$1034,2,FALSE) -> AVANTECH YOU VRUT 3,5X30 PANHEAD POZINK. | AW73: =VLOOKUP(AU73,CENY!$B$11:$G$1034,3,FALSE) -> 200 | AY73: 0 | AZ73: 0 | BA73: =VLOOKUP(AU73,CENY!$B$11:$M$2005,12,FALSE) -> 0.73 | BB73: =IF(BA73="","",BA73*AY73) -> 0 | BC73: na chrbát | BD73: =OBJ!B356 -> 9278224 | BE73: =VLOOKUP(BD73,CENY!$B$11:$G$1034,2,FALSE) -> AVANTECH YOU VRUT 3,5X30 PANHEAD POZINK. | BF73: =VLOOKUP(BD73,CENY!$B$11:$G$1034,3,FALSE) -> 200 | BH73: =SUM(BH5:BH12) -> 0 | BI73: 0 | BJ73: =VLOOKUP(BD73,CENY!$B$11:$M$2005,12,FALSE) -> 0.73 | BK73: 0
AU74: =OBJ!B357 -> 9279197 | AV74: =VLOOKUP(AU74,CENY!$B$11:$G$1034,2,FALSE) -> SAMOŘEZNÝ ŠROUB 3,5X12 PANHEAD POZINK. | AW74: =VLOOKUP(AU74,CENY!$B$11:$G$1034,3,FALSE) -> 1000 | AY74: 0 | AZ74: 0 | BA74: =VLOOKUP(AU74,CENY!$B$11:$M$2005,12,FALSE) -> 1.51 | BB74: =IF(BA74="","",BA74*AY74) -> 0 | BC74: na ALU čelo | BD74: =OBJ!B357 -> 9279197 | BE74: =VLOOKUP(BD74,CENY!$B$11:$G$1034,2,FALSE) -> SAMOŘEZNÝ ŠROUB 3,5X12 PANHEAD POZINK. | BF74: =VLOOKUP(BD74,CENY!$B$11:$G$1034,3,FALSE) -> 1000 | BH74: =AY74 -> 0 | BI74: 0 | BJ74: =VLOOKUP(BD74,CENY!$B$11:$M$2005,12,FALSE) -> 1.51 | BK74: 0
AU75: =OBJ!B358 -> 9137114 | AV75: =VLOOKUP(AU75,CENY!$B$11:$G$1034,2,FALSE) -> EUROŠROUB DBS 60 X 14 | AW75: =VLOOKUP(AU75,CENY!$B$11:$G$1034,3,FALSE) -> 200 | AY75: =SUMPRODUCT(AX15:AX42,AY15:AY42) -> 0 | AZ75: 0 | BA75: =VLOOKUP(AU75,CENY!$B$11:$M$2005,12,FALSE) -> 1.2 | BB75: =IF(BA75="","",BA75*AY75) -> 0 | BC75: na Quadro a Actro lišty | BD75: =OBJ!B358 -> 9137114 | BE75: =VLOOKUP(BD75,CENY!$B$11:$G$1034,2,FALSE) -> EUROŠROUB DBS 60 X 14 | BF75: =VLOOKUP(BD75,CENY!$B$11:$G$1034,3,FALSE) -> 200 | BH75: =AY75 -> 0 | BI75: 0 | BJ75: =VLOOKUP(BD75,CENY!$B$11:$M$2005,12,FALSE) -> 1.2 | BK75: 0
AZ76: =IF(AY76="","",IF($AW$4=1,AY76,0)) -> 
AZ77: =IF(AY77="","",IF($AW$4=1,AY77,0)) ->  | BK77: =IF(BJ77="","",BJ77*BH77) -> 
AZ78: =IF(AY78="","",IF($AW$4=1,AY78,0)) ->  | BB78: =IF(BA78="","",BA78*AY78) ->  | BK78: =IF(BJ78="","",BJ78*BH78) -> 

Sheet potr-v-R
AW1: IT70 | AY1: =AP9 -> 0
B2: =verze!E13 -> << zpět | G2: =verze!E6 -> Úvod | O2: =verze!E7 -> Výběr zásuvek | U2: =verze!E8 ->  | AA2: =verze!E9 ->  | AI2: =verze!E10 -> Objednávka | AO2: =verze!E14 -> vpřed >> | AW2: IT70-vnútorná | AY2: =AP6 -> 2
AW3: IT144 | AY3: =AP15 -> 2
B4: Zásuvka ATIRA 70/144 | AU4: MALOBALENIE : | AW4: IT144-vnútorná | AY4: =AP12 -> 0 | BA4: =SUM(BA5:BA75) ->  | BC4: VELKOBALENIE: | BI4: =SUM(BI5:BI1016) -> 
AU5: =OBJ!B25 -> 9255242 | AV5: =VLOOKUP(AU5,CENY!$B$11:$G$1034,2,FALSE) -> AVANTECH YOU BOKY V SADĚ V77 MM NL500 MM STŘÍBRNÁ | AW5: =VLOOKUP(AU5,CENY!$B$11:$G$1034,3,FALSE) -> 1 | AZ5: =VLOOKUP(AU5,CENY!$B$11:$M$2005,12,FALSE) -> 576.28 | BA5: =IF(AZ5="","",AZ5*AY5) -> 0 | BC5: =OBJ!B62 -> 9255020 | BD5: =VLOOKUP(BC5,CENY!$B$11:$G$1034,2,FALSE) -> AVANTECH YOU BOK V101 MM NL550 MM STŘÍBRNÝ LEVÝ | BE5: =VLOOKUP(BC5,CENY!$B$11:$G$1034,3,FALSE) -> 20 | BH5: =VLOOKUP(BC5,CENY!$B$11:$M$2005,12,FALSE) -> 196.37 | BI5: =IF(BH5="","",BH5*BG5) -> 0
B6: =" "&verze!E90 -> bočnice: | F6: .70 | AO6: ……………… | AP6: 2 | AU6: =OBJ!B26 -> 9255243 | AV6: =VLOOKUP(AU6,CENY!$B$11:$G$1034,2,FALSE) -> AVANTECH YOU BOKY V SADĚ V77 MM NL550 MM STŘÍBRNÁ | AW6: =VLOOKUP(AU6,CENY!$B$11:$G$1034,3,FALSE) -> 1 | AZ6: =VLOOKUP(AU6,CENY!$B$11:$M$2005,12,FALSE) -> 583.24 | BA6: 0 | BC6: =OBJ!B63 -> 9255021 | BD6: =VLOOKUP(BC6,CENY!$B$11:$G$1034,2,FALSE) -> AVANTECH YOU BOK V101 MM NL550 MM STŘÍBRNÝ PRAVÝ | BE6: =VLOOKUP(BC6,CENY!$B$11:$G$1034,3,FALSE) -> 20 | BH6: =VLOOKUP(BC6,CENY!$B$11:$M$2005,12,FALSE) -> 196.37 | BI6: 0
B7: =" "&verze!E91 -> záda: | F7: .70/144 | AU7: =OBJ!B27 -> 79665 | AV7: =VLOOKUP(AU7,CENY!$B$11:$G$1034,2,FALSE) -> SPOJOVACI ÚHELNÍK 31X31 MM | AW7: =VLOOKUP(AU7,CENY!$B$11:$G$1034,3,FALSE) -> 100 | AY7: =SUM(AY1:AY4)*(S19+S20+S21+S26+S27) -> 0 | AZ7: =VLOOKUP(AU7,CENY!$B$11:$M$2005,12,FALSE) -> 5.96 | BA7: 0 | BC7: =OBJ!B64 -> 9255022 | BD7: =VLOOKUP(BC7,CENY!$B$11:$G$1034,2,FALSE) -> AVANTECH YOU BOK V101 MM NL600 MM STŘÍBRNÝ LEVÝ | BE7: =VLOOKUP(BC7,CENY!$B$11:$G$1034,3,FALSE) -> 20 | BH7: =VLOOKUP(BC7,CENY!$B$11:$M$2005,12,FALSE) -> 201.36 | BI7: 0
B8: =" "&verze!E56 -> barva: | F8: =" "&FORM!U8 -> stříbrná | AU8: =OBJ!B28 -> 0 | AV8: =VLOOKUP(AU8,CENY!$B$11:$G$1034,2,FALSE) ->  | AW8: =VLOOKUP(AU8,CENY!$B$11:$G$1034,3,FALSE) ->  | AY8: =SUM(AY1:AY4)*(U19+U20+U21+U26+U27) -> 0 | AZ8: =VLOOKUP(AU8,CENY!$B$11:$M$2005,12,FALSE) ->  | BC8: =OBJ!B65 -> 9255023 | BD8: =VLOOKUP(BC8,CENY!$B$11:$G$1034,2,FALSE) -> AVANTECH YOU BOK V101 MM NL600 MM STŘÍBRNÝ PRAVÝ | BE8: =VLOOKUP(BC8,CENY!$B$11:$G$1034,3,FALSE) -> 20 | BH8: =VLOOKUP(BC8,CENY!$B$11:$M$2005,12,FALSE) -> 201.36 | BI8: 0
AO9: ……………… | AP9: 0 | AU9: =OBJ!B29 -> 9255000 | AV9: =VLOOKUP(AU9,CENY!$B$11:$G$1034,2,FALSE) -> AVANTECH YOU BOK V77 MM NL400 MM STŘÍBRNÝ LEVÝ | AW9: =VLOOKUP(AU9,CENY!$B$11:$G$1034,3,FALSE) -> 10 | AY9: =SUM(AY1:AY4)*(W19+W20+W21+W26+W27) -> 0 | AZ9: =VLOOKUP(AU9,CENY!$B$11:$M$2005,12,FALSE) -> 186.44 | BA9: 0 | BC9: =OBJ!B66 -> 9255024 | BD9: =VLOOKUP(BC9,CENY!$B$11:$G$1034,2,FALSE) -> AVANTECH YOU BOK V101 MM NL650 MM STŘÍBRNÝ LEVÝ | BE9: =VLOOKUP(BC9,CENY!$B$11:$G$1034,3,FALSE) -> 20 | BG9: =SUM(AY1:AY4)*(AI$19+AI$20+AI$21+AI$26+AI$27) -> 0 | BH9: =VLOOKUP(BC9,CENY!$B$11:$M$2005,12,FALSE) -> 208.15 | BI9: 0
B10: =" "&verze!E57 -> čelní kování: | F10: =" "&FORM!AM8 -> na vruty | AU10: =OBJ!B30 -> 9255001 | AV10: =VLOOKUP(AU10,CENY!$B$11:$G$1034,2,FALSE) -> AVANTECH YOU BOK V77 MM NL400 MM STŘÍBRNÝ PRAVÝ | AW10: =VLOOKUP(AU10,CENY!$B$11:$G$1034,3,FALSE) -> 10 | AY10: =SUM(AY1:AY4)*(Y19+Y20+Y21+Y26+Y27) -> 0 | AZ10: =VLOOKUP(AU10,CENY!$B$11:$M$2005,12,FALSE) -> 186.44 | BA10: 0 | BC10: =OBJ!B67 -> 9255025 | BD10: =VLOOKUP(BC10,CENY!$B$11:$G$1034,2,FALSE) -> AVANTECH YOU BOK V101 MM NL650 MM STŘÍBRNÝ PRAVÝ | BE10: =VLOOKUP(BC10,CENY!$B$11:$G$1034,3,FALSE) -> 20 | BG10: =SUM(AY1:AY4)*(AI$19+AI$20+AI$21+AI$26+AI$27) -> 0 | BH10: =VLOOKUP(BC10,CENY!$B$11:$M$2005,12,FALSE) -> 208.15 | BI10: 0
B11: =" "&verze!E92 -> cena kování: | F11: =BA4 ->  | J11: =IF(verze!E1="CZK","CZK","EUR") -> CZK | AU11: =OBJ!B31 -> 9255002 | AV11: =VLOOKUP(AU11,CENY!$B$11:$G$1034,2,FALSE) -> AVANTECH YOU BOK V77 MM NL450 MM STŘÍBRNÝ LEVÝ | AW11: =VLOOKUP(AU11,CENY!$B$11:$G$1034,3,FALSE) -> 10 | AY11: =SUM(AY1:AY4)*(AA21+AA27) -> 0 | AZ11: =VLOOKUP(AU11,CENY!$B$11:$M$2005,12,FALSE) -> 189.75 | BA11: 0 | BC11: =OBJ!#REF! ->  | BD11: =VLOOKUP(BC11,CENY!$B$11:$G$1034,2,FALSE) ->  | BE11: =VLOOKUP(BC11,CENY!$B$11:$G$1034,3,FALSE) ->  | BG11: =SUM(AY1:AY4)*(AK$19+AK$20+AK$21+AK$26+AK$27) -> 0 | BH11: =VLOOKUP(BC11,CENY!$B$11:$M$2005,12,FALSE) -> 
F12: =BI4 ->  | J12: =IF(verze!E1="CZK","CZK","EUR") -> CZK | AO12: ……………… | AP12: 0 | BC12: =OBJ!B71 -> 9255804 | BD12: =VLOOKUP(BC12,CENY!$B$11:$G$1034,2,FALSE) -> AVANTECH YOU DEKORATIVNÍ PROFIL NL270 MM STŘÍBRNÝ | BE12: =VLOOKUP(BC12,CENY!$B$11:$G$1034,3,FALSE) -> 200 | BG12: =SUM(AY1:AY4)*(AK$19+AK$20+AK$21+AK$26+AK$27) -> 0 | BH12: =VLOOKUP(BC12,CENY!$B$11:$M$2005,12,FALSE) -> 9.18 | BI12: 0
F13: =SUM(BA77:BA100) ->  | J13: =IF(verze!E1="CZK","CZK","EUR") -> CZK | AU13: =OBJ!B34 -> 9255005 | AV13: =VLOOKUP(AU13,CENY!$B$11:$G$1034,2,FALSE) -> AVANTECH YOU BOK V77 MM NL500 MM STŘÍBRNÝ PRAVÝ | AW13: =VLOOKUP(AU13,CENY!$B$11:$G$1034,3,FALSE) -> 10 | AY13: =(AY1+AY2)*(SUM(O19:Z20)+SUM(Q21:AB21)+SUM(O26:Z26)+SUM(Q27:AB27)) -> 0 | AZ13: =VLOOKUP(AU13,CENY!$B$11:$M$2005,12,FALSE) -> 193.06 | BA13: 0 | BC13: =OBJ!B72 -> 9255805 | BD13: =VLOOKUP(BC13,CENY!$B$11:$G$1034,2,FALSE) -> AVANTECH YOU DEKORATIVNÍ PROFIL NL300 MM STŘÍBRNÝ | BE13: =VLOOKUP(BC13,CENY!$B$11:$G$1034,3,FALSE) -> 200 | BG13: =SUM(AY1:AY4)*(AM$19+AM$20+AM$21+AM$26+AM$27) -> 0 | BH13: =VLOOKUP(BC13,CENY!$B$11:$M$2005,12,FALSE) -> 9.28 | BI13: 0
AU14: =OBJ!B35 -> 9255006 | AV14: =VLOOKUP(AU14,CENY!$B$11:$G$1034,2,FALSE) -> AVANTECH YOU BOK V77 MM NL550 MM STŘÍBRNÝ LEVÝ | AW14: =VLOOKUP(AU14,CENY!$B$11:$G$1034,3,FALSE) -> 10 | AY14: =(AY3+AY4)*(SUM(O19:Z20)+SUM(Q21:AB21)+SUM(O26:Z26)+SUM(Q27:AB27)) -> 0 | AZ14: =VLOOKUP(AU14,CENY!$B$11:$M$2005,12,FALSE) -> 196.37 | BA14: 0 | BC14: =OBJ!B73 -> 9255806 | BD14: =VLOOKUP(BC14,CENY!$B$11:$G$1034,2,FALSE) -> AVANTECH YOU DEKORATIVNÍ PROFIL NL350 MM STŘÍBRNÝ | BE14: =VLOOKUP(BC14,CENY!$B$11:$G$1034,3,FALSE) -> 200 | BG14: =SUM(AY1:AY4)*(AM$19+AM$20+AM$21+AM$26+AM$27) -> 0 | BH14: =VLOOKUP(BC14,CENY!$B$11:$M$2005,12,FALSE) -> 9.45 | BI14: 0
AO15: ……………… | AP15: 2 | BC15: =OBJ!B74 -> 9255807 | BD15: =VLOOKUP(BC15,CENY!$B$11:$G$1034,2,FALSE) -> AVANTECH YOU DEKORATIVNÍ PROFIL NL400 MM STŘÍBRNÝ | BE15: =VLOOKUP(BC15,CENY!$B$11:$G$1034,3,FALSE) -> 200 | BG15: =SUM(AY1:AY4)*(AO$19+AO$20+AO$21+AO$26+AO$27) -> 0 | BH15: =VLOOKUP(BC15,CENY!$B$11:$M$2005,12,FALSE) -> 9.62 | BI15: 0
AU16: =OBJ!B39 -> 9255244 | AV16: =VLOOKUP(AU16,CENY!$B$11:$G$1034,2,FALSE) -> AVANTECH YOU BOKY V SADĚ V101 MM NL270 MM STŘÍBRNÁ | AW16: =VLOOKUP(AU16,CENY!$B$11:$G$1034,3,FALSE) -> 1 | AY16: =(AY3)*(S19+S20+S21+S26+S27) -> 0 | AZ16: =VLOOKUP(AU16,CENY!$B$11:$M$2005,12,FALSE) -> 561.98 | BA16: 0 | BC16: =OBJ!B75 -> 9255808 | BD16: =VLOOKUP(BC16,CENY!$B$11:$G$1034,2,FALSE) -> AVANTECH YOU DEKORATIVNÍ PROFIL NL450 MM STŘÍBRNÝ | BE16: =VLOOKUP(BC16,CENY!$B$11:$G$1034,3,FALSE) -> 200 | BG16: =SUM(AY1:AY4)*(AO$19+AO$20+AO$21+AO$26+AO$27) -> 0 | BH16: =VLOOKUP(BC16,CENY!$B$11:$M$2005,12,FALSE) -> 9.8 | BI16: 0
B17: =verze!E23 -> SILENT SYSTEM - s tlumením | O17: =verze!$E$26 -> flexibilní sety | AE17: =verze!$E$27 -> velkobalení | AU17: =OBJ!B40 -> 9255245 | AV17: =VLOOKUP(AU17,CENY!$B$11:$G$1034,2,FALSE) -> AVANTECH YOU BOKY V SADĚ V101 MM NL300 MM STŘÍBRNÁ | AW17: =VLOOKUP(AU17,CENY!$B$11:$G$1034,3,FALSE) -> 1 | AY17: =(AY3)*(U19+U20+U21+U26+U27) -> 0 | AZ17: =VLOOKUP(AU17,CENY!$B$11:$M$2005,12,FALSE) -> 566.15 | BA17: 0 | BC17: =OBJ!B76 -> 9255809 | BD17: =VLOOKUP(BC17,CENY!$B$11:$G$1034,2,FALSE) -> AVANTECH YOU DEKORATIVNÍ PROFIL NL500 MM STŘÍBRNÝ | BE17: =VLOOKUP(BC17,CENY!$B$11:$G$1034,3,FALSE) -> 200 | BG17: =SUM(AY1:AY4)*(AQ$21+AQ$27) -> 0 | BH17: =VLOOKUP(BC17,CENY!$B$11:$M$2005,12,FALSE) -> 9.97 | BI17: =IF(BH17="","",BH17*BG17) -> 0
N18: =verze!$E$20&" " -> Jmenovitá délka: | O18: 260 | Q18: 300 | S18: 350 | U18: 420 | W18: 470 | Y18: 520 | AA18: 620 | AE18: 260 | AG18: 300 | AI18: 350 | AK18: 420 | AM18: 470 | AO18: 520 | AQ18: 620 | AU18: =OBJ!B41 -> 9255246 | AV18: =VLOOKUP(AU18,CENY!$B$11:$G$1034,2,FALSE) -> AVANTECH YOU BOKY V SADĚ V101 MM NL350 MM STŘÍBRNÁ | AW18: =VLOOKUP(AU18,CENY!$B$11:$G$1034,3,FALSE) -> 1 | AY18: =(AY3)*(W19+W20+W21+W26+W27) -> 0 | AZ18: =VLOOKUP(AU18,CENY!$B$11:$M$2005,12,FALSE) -> 573.11 | BA18: 0 | BC18: =OBJ!B77 -> 9255810 | BD18: =VLOOKUP(BC18,CENY!$B$11:$G$1034,2,FALSE) -> AVANTECH YOU DEKORATIVNÍ PROFIL NL550 MM STŘÍBRNÝ | BE18: =VLOOKUP(BC18,CENY!$B$11:$G$1034,3,FALSE) -> 200 | BG18: =SUM(AY1:AY4)*(AQ$21+AQ$27) -> 0 | BH18: =VLOOKUP(BC18,CENY!$B$11:$M$2005,12,FALSE) -> 10.14 | BI18: =IF(BH18="","",BH18*BG18) -> 0
B19: Quadro 30 / SiSy | H19: =verze!E19 -> částečný výsuv | M19: 25 kg | AU19: =OBJ!B42 -> 9255247 | AV19: =VLOOKUP(AU19,CENY!$B$11:$G$1034,2,FALSE) -> AVANTECH YOU BOKY V SADĚ V101 MM NL400 MM STŘÍBRNÁ | AW19: =VLOOKUP(AU19,CENY!$B$11:$G$1034,3,FALSE) -> 1 | AY19: =(AY3)*(Y19+Y20+Y21+Y26+Y27) -> 0 | AZ19: =VLOOKUP(AU19,CENY!$B$11:$M$2005,12,FALSE) -> 580.07 | BA19: 0 | BI19: =IF(BH19="","",BH19*BG19) -> 
B20: Quadro V6 / SiSy | H20: =verze!E18 -> plnovýsuv | M20: 30 kg | AU20: =OBJ!B43 -> 9255248 | AV20: =VLOOKUP(AU20,CENY!$B$11:$G$1034,2,FALSE) -> AVANTECH YOU BOKY V SADĚ V101 MM NL450 MM STŘÍBRNÁ | AW20: =VLOOKUP(AU20,CENY!$B$11:$G$1034,3,FALSE) -> 1 | AY20: =(AY3)*(AA21+AA27) -> 0 | AZ20: =VLOOKUP(AU20,CENY!$B$11:$M$2005,12,FALSE) -> 587.04 | BA20: 0 | BC20: =OBJ!B88 -> 0 | BD20: =VLOOKUP(BC20,CENY!$B$11:$G$1034,2,FALSE) ->  | BE20: =VLOOKUP(BC20,CENY!$B$11:$G$1034,3,FALSE) ->  | BG20: =((2*(AY1+AY3))*(SUM(AE19:AP20)+SUM(AG21:AR21)+SUM(AE26:AP26)+SUM(AG27:AR27))) -> 0 | BH20: =VLOOKUP(BC20,CENY!$B$11:$M$2005,12,FALSE) -> 
B21: Quadro V6+ / SiSy | H21: =verze!E18 -> plnovýsuv | M21: 50 kg | BC21: =OBJ!B89 -> 9255028 | BD21: =VLOOKUP(BC21,CENY!$B$11:$G$1034,2,FALSE) -> AVANTECH YOU BOK V139 MM NL300 MM STŘÍBRNÝ LEVÝ | BE21: =VLOOKUP(BC21,CENY!$B$11:$G$1034,3,FALSE) -> 20 | BG21: =((2*AY3)*(SUM(AE19:AP20)+SUM(AG21:AR21)+SUM(AE26:AP26)+SUM(AG27:AR27))) -> 0 | BH21: =VLOOKUP(BC21,CENY!$B$11:$M$2005,12,FALSE) -> 229.12 | BI21: 0
AU22: =OBJ!B53 -> 9255011 | AV22: =VLOOKUP(AU22,CENY!$B$11:$G$1034,2,FALSE) -> AVANTECH YOU BOK V101 MM NL300 MM STŘÍBRNÝ PRAVÝ | AW22: =VLOOKUP(AU22,CENY!$B$11:$G$1034,3,FALSE) -> 20 | AY22: =(AY4)*(S19+S20+S21+S26+S27) -> 0 | AZ22: =VLOOKUP(AU22,CENY!$B$11:$M$2005,12,FALSE) -> 179.82 | BA22: 0 | BC22: =OBJ!B91 -> 9255030 | BD22: =VLOOKUP(BC22,CENY!$B$11:$G$1034,2,FALSE) -> AVANTECH YOU BOK V139 MM NL350 MM STŘÍBRNÝ LEVÝ | BE22: =VLOOKUP(BC22,CENY!$B$11:$G$1034,3,FALSE) -> 20 | BG22: =((2*SUM(AY1:AY4))*(SUM(AE19:AP20)+SUM(AG21:AR21)+SUM(AE26:AP26)+SUM(AG27:AR27))) -> 0 | BH22: =VLOOKUP(BC22,CENY!$B$11:$M$2005,12,FALSE) -> 233.33 | BI22: 0
AU23: =OBJ!B54 -> 9255012 | AV23: =VLOOKUP(AU23,CENY!$B$11:$G$1034,2,FALSE) -> AVANTECH YOU BOK V101 MM NL350 MM STŘÍBRNÝ LEVÝ | AW23: =VLOOKUP(AU23,CENY!$B$11:$G$1034,3,FALSE) -> 20 | AY23: =(AY4)*(U19+U20+U21+U26+U27) -> 0 | AZ23: =VLOOKUP(AU23,CENY!$B$11:$M$2005,12,FALSE) -> 183.13 | BA23: 0
O24: =verze!E160 -> Je nutné natypovat šířky čel ? | V24: =verze!E156 -> Ke každé zásuvce je uvažované jedno přední 2m hliníkové čelo a příčny reling. | AU24: =OBJ!B55 -> 9255013 | AV24: =VLOOKUP(AU24,CENY!$B$11:$G$1034,2,FALSE) -> AVANTECH YOU BOK V101 MM NL350 MM STŘÍBRNÝ PRAVÝ | AW24: =VLOOKUP(AU24,CENY!$B$11:$G$1034,3,FALSE) -> 20 | AY24: =(AY4)*(W19+W20+W21+W26+W27) -> 0 | AZ24: =VLOOKUP(AU24,CENY!$B$11:$M$2005,12,FALSE) -> 183.13 | BA24: 0 | BC24: =OBJ!B100 -> 9255039 | BD24: =VLOOKUP(BC24,CENY!$B$11:$G$1034,2,FALSE) -> AVANTECH YOU BOK V139 MM NL550 MM STŘÍBRNÝ PRAVÝ | BE24: =VLOOKUP(BC24,CENY!$B$11:$G$1034,3,FALSE) -> 20 | BG24: =(AY3)*(AI$19+AI$20+AI$21+AI$26+AI$27) -> 0 | BH24: =VLOOKUP(BC24,CENY!$B$11:$M$2005,12,FALSE) -> 250.2 | BI24: =IF(BH24="","",BH24*BG24) -> 0
V25: =verze!E158 -> Případnou úpravu počtu hliníkových čel (profilů) a příčných relingů vykonej v objednávce. | AU25: =OBJ!B56 -> 9255014 | AV25: =VLOOKUP(AU25,CENY!$B$11:$G$1034,2,FALSE) -> AVANTECH YOU BOK V101 MM NL400 MM STŘÍBRNÝ LEVÝ | AW25: =VLOOKUP(AU25,CENY!$B$11:$G$1034,3,FALSE) -> 20 | AY25: =(AY4)*(Y19+Y20+Y21+Y26+Y27) -> 0 | AZ25: =VLOOKUP(AU25,CENY!$B$11:$M$2005,12,FALSE) -> 186.44 | BA25: =IF(AZ25="","",AZ25*AY25) -> 0 | BC25: =OBJ!B101 -> 9255040 | BD25: =VLOOKUP(BC25,CENY!$B$11:$G$1034,2,FALSE) -> AVANTECH YOU BOK V139 MM NL600 MM STŘÍBRNÝ LEVÝ | BE25: =VLOOKUP(BC25,CENY!$B$11:$G$1034,3,FALSE) -> 20 | BG25: =(AY3)*(AI$19+AI$20+AI$21+AI$26+AI$27) -> 0 | BH25: =VLOOKUP(BC25,CENY!$B$11:$M$2005,12,FALSE) -> 256.56 | BI25: 0
AU26: =OBJ!B57 -> 9255015 | AV26: =VLOOKUP(AU26,CENY!$B$11:$G$1034,2,FALSE) -> AVANTECH YOU BOK V101 MM NL400 MM STŘÍBRNÝ PRAVÝ | AW26: =VLOOKUP(AU26,CENY!$B$11:$G$1034,3,FALSE) -> 20 | AY26: =(AY4)*(AA21+AA27) -> 0 | AZ26: =VLOOKUP(AU26,CENY!$B$11:$M$2005,12,FALSE) -> 186.44 | BA26: 0 | BC26: =OBJ!B102 -> 9255041 | BD26: =VLOOKUP(BC26,CENY!$B$11:$G$1034,2,FALSE) -> AVANTECH YOU BOK V139 MM NL600 MM STŘÍBRNÝ PRAVÝ | BE26: =VLOOKUP(BC26,CENY!$B$11:$G$1034,3,FALSE) -> 20 | BG26: =(AY3)*(AK$19+AK$20+AK$21+AK$26+AK$27) -> 0 | BH26: =VLOOKUP(BC26,CENY!$B$11:$M$2005,12,FALSE) -> 256.56 | BI26: 0
BC27: =OBJ!B104 -> 9257884 | BD27: =VLOOKUP(BC27,CENY!$B$11:$G$1034,2,FALSE) -> AVANTECH YOU PŘÍCHYTKA ČELA V139 MM K NAŠROUBOVÁNÍ | BE27: =VLOOKUP(BC27,CENY!$B$11:$G$1034,3,FALSE) -> 200 | BG27: =(AY3)*(AK$19+AK$20+AK$21+AK$26+AK$27) -> 0 | BH27: =VLOOKUP(BC27,CENY!$B$11:$M$2005,12,FALSE) -> 35.43 | BI27: 0
AU28: =OBJ!B137 -> 9255273 | AV28: =VLOOKUP(AU28,CENY!$B$11:$G$1034,2,FALSE) -> AVANTECH YOU BOKY V SADĚ V251 MM NL350 MM STŘÍBRNÁ | AW28: =VLOOKUP(AU28,CENY!$B$11:$G$1034,3,FALSE) -> 1 | AZ28: =VLOOKUP(AU28,CENY!$B$11:$M$2005,12,FALSE) -> 1230.56 | BA28: 0 | BC28: =OBJ!#REF! ->  | BD28: =VLOOKUP(BC28,CENY!$B$11:$G$1034,2,FALSE) ->  | BE28: =VLOOKUP(BC28,CENY!$B$11:$G$1034,3,FALSE) ->  | BG28: =(AY3)*(AM$19+AM$20+AM$21+AM$26+AM$27) -> 0 | BH28: =VLOOKUP(BC28,CENY!$B$11:$M$2005,12,FALSE) -> 
AU29: =OBJ!B140 -> 9255276 | AV29: =VLOOKUP(AU29,CENY!$B$11:$G$1034,2,FALSE) -> AVANTECH YOU BOKY V SADĚ V251 MM NL500 MM STŘÍBRNÁ | AW29: =VLOOKUP(AU29,CENY!$B$11:$G$1034,3,FALSE) -> 1 | AZ29: =VLOOKUP(AU29,CENY!$B$11:$M$2005,12,FALSE) -> 1283.24 | BA29: 0 | BC29: =OBJ!B105 -> 0 | BD29: =VLOOKUP(BC29,CENY!$B$11:$G$1034,2,FALSE) ->  | BE29: =VLOOKUP(BC29,CENY!$B$11:$G$1034,3,FALSE) ->  | BG29: =(AY3)*(AM$19+AM$20+AM$21+AM$26+AM$27) -> 0 | BH29: =VLOOKUP(BC29,CENY!$B$11:$M$2005,12,FALSE) -> 
AU30: =OBJ!B141 -> 9255277 | AV30: =VLOOKUP(AU30,CENY!$B$11:$G$1034,2,FALSE) -> AVANTECH YOU BOKY V SADĚ V251 MM NL550 MM STŘÍBRNÁ | AW30: =VLOOKUP(AU30,CENY!$B$11:$G$1034,3,FALSE) -> 1 | AZ30: =VLOOKUP(AU30,CENY!$B$11:$M$2005,12,FALSE) -> 1300.81 | BA30: 0 | BC30: =OBJ!B106 -> 9255262 | BD30: =VLOOKUP(BC30,CENY!$B$11:$G$1034,2,FALSE) -> AVANTECH YOU BOKY V SADĚ V187 MM NL270 MM STŘÍBRNÁ | BE30: =VLOOKUP(BC30,CENY!$B$11:$G$1034,3,FALSE) -> 1 | BG30: =(AY3)*(AO$19+AO$20+AO$21+AO$26+AO$27) -> 0 | BH30: =VLOOKUP(BC30,CENY!$B$11:$M$2005,12,FALSE) -> 847.2 | BI30: 0
AU31: =OBJ!B142 -> 9255278 | AV31: =VLOOKUP(AU31,CENY!$B$11:$G$1034,2,FALSE) -> AVANTECH YOU BOKY V SADĚ V251 MM NL600 MM STŘÍBRNÁ | AW31: =VLOOKUP(AU31,CENY!$B$11:$G$1034,3,FALSE) -> 1 | AZ31: =VLOOKUP(AU31,CENY!$B$11:$M$2005,12,FALSE) -> 1327.3 | BA31: 0 | BC31: =OBJ!B107 -> 9255263 | BD31: =VLOOKUP(BC31,CENY!$B$11:$G$1034,2,FALSE) -> AVANTECH YOU BOKY V SADĚ V187 MM NL300 MM STŘÍBRNÁ | BE31: =VLOOKUP(BC31,CENY!$B$11:$G$1034,3,FALSE) -> 1 | BG31: =(AY3)*(AO$19+AO$20+AO$21+AO$26+AO$27) -> 0 | BH31: =VLOOKUP(BC31,CENY!$B$11:$M$2005,12,FALSE) -> 853.97 | BI31: =IF(BH31="","",BH31*BG31) -> 0
AU32: =OBJ!B143 -> 9255279 | AV32: =VLOOKUP(AU32,CENY!$B$11:$G$1034,2,FALSE) -> AVANTECH YOU BOKY V SADĚ V251 MM NL650 MM STŘÍBRNÁ | AW32: =VLOOKUP(AU32,CENY!$B$11:$G$1034,3,FALSE) -> 1 | AZ32: =VLOOKUP(AU32,CENY!$B$11:$M$2005,12,FALSE) -> 1363.32 | BA32: 0 | BC32: =OBJ!B108 -> 9255264 | BD32: =VLOOKUP(BC32,CENY!$B$11:$G$1034,2,FALSE) -> AVANTECH YOU BOKY V SADĚ V187 MM NL350 MM STŘÍBRNÁ | BE32: =VLOOKUP(BC32,CENY!$B$11:$G$1034,3,FALSE) -> 1 | BG32: =(AY3)*(AQ$21+AQ$27) -> 0 | BH32: =VLOOKUP(BC32,CENY!$B$11:$M$2005,12,FALSE) -> 865.25 | BI32: =IF(BH32="","",BH32*BG32) -> 0
AU33: =OBJ!B144 -> 0 | AV33: =VLOOKUP(AU33,CENY!$B$11:$G$1034,2,FALSE) ->  | AW33: =VLOOKUP(AU33,CENY!$B$11:$G$1034,3,FALSE) ->  | AZ33: =VLOOKUP(AU33,CENY!$B$11:$M$2005,12,FALSE) ->  | BC33: =OBJ!B109 -> 9255265 | BD33: =VLOOKUP(BC33,CENY!$B$11:$G$1034,2,FALSE) -> AVANTECH YOU BOKY V SADĚ V187 MM NL400 MM STŘÍBRNÁ | BE33: =VLOOKUP(BC33,CENY!$B$11:$G$1034,3,FALSE) -> 1 | BG33: =(AY3)*(AQ$21+AQ$27) -> 0 | BH33: =VLOOKUP(BC33,CENY!$B$11:$M$2005,12,FALSE) -> 876.53 | BI33: =IF(BH33="","",BH33*BG33) -> 0
BI34: =IF(BH34="","",BH34*BG34) -> 
AU35: =OBJ!B137 -> 9255273 | AV35: =VLOOKUP(AU35,CENY!$B$11:$G$1034,2,FALSE) -> AVANTECH YOU BOKY V SADĚ V251 MM NL350 MM STŘÍBRNÁ | AW35: =VLOOKUP(AU35,CENY!$B$11:$G$1034,3,FALSE) -> 1 | AZ35: =VLOOKUP(AU35,CENY!$B$11:$M$2005,12,FALSE) -> 1230.56 | BA35: 0 | BC35: =OBJ!B126 -> 9255054 | BD35: =VLOOKUP(BC35,CENY!$B$11:$G$1034,2,FALSE) -> AVANTECH YOU BOK V187 MM NL500 MM STŘÍBRNÝ LEVÝ | BE35: =VLOOKUP(BC35,CENY!$B$11:$G$1034,3,FALSE) -> 10 | BG35: =(AY4)*(AI$19+AI$20+AI$21+AI$26+AI$27) -> 0 | BH35: =VLOOKUP(BC35,CENY!$B$11:$M$2005,12,FALSE) -> 319.03 | BI35: 0
AU36: =OBJ!B221 -> 9283233 | AV36: =VLOOKUP(AU36,CENY!$B$11:$G$1034,2,FALSE) -> AVANTECH YOU SKLENĚNÁ VÝPLŇ 10 MM K ČELU INLAY V130 MM Š450 MM KD18 MM | AW36: =VLOOKUP(AU36,CENY!$B$11:$G$1034,3,FALSE) -> 1 | AZ36: =VLOOKUP(AU36,CENY!$B$11:$M$2005,12,FALSE) -> 458.09 | BA36: 0 | BC36: =OBJ!B127 -> 9255055 | BD36: =VLOOKUP(BC36,CENY!$B$11:$G$1034,2,FALSE) -> AVANTECH YOU BOK V187 MM NL500 MM STŘÍBRNÝ PRAVÝ | BE36: =VLOOKUP(BC36,CENY!$B$11:$G$1034,3,FALSE) -> 10 | BG36: =(AY4)*(AI$19+AI$20+AI$21+AI$26+AI$27) -> 0 | BH36: =VLOOKUP(BC36,CENY!$B$11:$M$2005,12,FALSE) -> 319.03 | BI36: 0
AU37: =OBJ!B222 -> 9283235 | AV37: =VLOOKUP(AU37,CENY!$B$11:$G$1034,2,FALSE) -> AVANTECH YOU SKLENĚNÁ VÝPLŇ 10 MM K ČELU INLAY V130 MM Š600 MM KD18 MM | AW37: =VLOOKUP(AU37,CENY!$B$11:$G$1034,3,FALSE) -> 1 | AZ37: =VLOOKUP(AU37,CENY!$B$11:$M$2005,12,FALSE) -> 520.58 | BA37: 0 | BC37: =OBJ!B128 -> 9255056 | BD37: =VLOOKUP(BC37,CENY!$B$11:$G$1034,2,FALSE) -> AVANTECH YOU BOK V187 MM NL550 MM STŘÍBRNÝ LEVÝ | BE37: =VLOOKUP(BC37,CENY!$B$11:$G$1034,3,FALSE) -> 10 | BG37: =(AY4)*(AK$19+AK$20+AK$21+AK$26+AK$27) -> 0 | BH37: =VLOOKUP(BC37,CENY!$B$11:$M$2005,12,FALSE) -> 324.5 | BI37: 0
AU38: =OBJ!B223 -> 9283237 | AV38: =VLOOKUP(AU38,CENY!$B$11:$G$1034,2,FALSE) -> AVANTECH YOU SKLENĚNÁ VÝPLŇ 10 MM K ČELU INLAY V130 MM Š900 MM KD18 MM | AW38: =VLOOKUP(AU38,CENY!$B$11:$G$1034,3,FALSE) -> 1 | AZ38: =VLOOKUP(AU38,CENY!$B$11:$M$2005,12,FALSE) -> 867.64 | BA38: 0 | BC38: =OBJ!B129 -> 9255057 | BD38: =VLOOKUP(BC38,CENY!$B$11:$G$1034,2,FALSE) -> AVANTECH YOU BOK V187 MM NL550 MM STŘÍBRNÝ PRAVÝ | BE38: =VLOOKUP(BC38,CENY!$B$11:$G$1034,3,FALSE) -> 10 | BG38: =(AY4)*(AK$19+AK$20+AK$21+AK$26+AK$27) -> 0 | BH38: =VLOOKUP(BC38,CENY!$B$11:$M$2005,12,FALSE) -> 324.5 | BI38: 0
AU39: =OBJ!B224 -> 9283238 | AV39: =VLOOKUP(AU39,CENY!$B$11:$G$1034,2,FALSE) -> AVANTECH YOU SKLENĚNÁ VÝPLŇ 10 MM K ČELU INLAY V130 MM Š1200 MM KD18 MM | AW39: =VLOOKUP(AU39,CENY!$B$11:$G$1034,3,FALSE) -> 1 | AZ39: =VLOOKUP(AU39,CENY!$B$11:$M$2005,12,FALSE) -> 1117.52 | BA39: 0 | BC39: =OBJ!B130 -> 9255058 | BD39: =VLOOKUP(BC39,CENY!$B$11:$G$1034,2,FALSE) -> AVANTECH YOU BOK V187 MM NL600 MM STŘÍBRNÝ LEVÝ | BE39: =VLOOKUP(BC39,CENY!$B$11:$G$1034,3,FALSE) -> 10 | BG39: =(AY4)*(AM$19+AM$20+AM$21+AM$26+AM$27) -> 0 | BH39: =VLOOKUP(BC39,CENY!$B$11:$M$2005,12,FALSE) -> 332.75 | BI39: 0
AU40: =OBJ!#REF! ->  | AV40: =VLOOKUP(AU40,CENY!$B$11:$G$1034,2,FALSE) ->  | AW40: =VLOOKUP(AU40,CENY!$B$11:$G$1034,3,FALSE) ->  | AZ40: =VLOOKUP(AU40,CENY!$B$11:$M$2005,12,FALSE) ->  | BC40: =OBJ!B131 -> 9255059 | BD40: =VLOOKUP(BC40,CENY!$B$11:$G$1034,2,FALSE) -> AVANTECH YOU BOK V187 MM NL600 MM STŘÍBRNÝ PRAVÝ | BE40: =VLOOKUP(BC40,CENY!$B$11:$G$1034,3,FALSE) -> 10 | BG40: =(AY4)*(AM$19+AM$20+AM$21+AM$26+AM$27) -> 0 | BH40: =VLOOKUP(BC40,CENY!$B$11:$M$2005,12,FALSE) -> 332.75 | BI40: 0
BC41: =OBJ!B132 -> 9255060 | BD41: =VLOOKUP(BC41,CENY!$B$11:$G$1034,2,FALSE) -> AVANTECH YOU BOK V187 MM NL650 MM STŘÍBRNÝ LEVÝ | BE41: =VLOOKUP(BC41,CENY!$B$11:$G$1034,3,FALSE) -> 10 | BG41: =(AY4)*(AO$19+AO$20+AO$21+AO$26+AO$27) -> 0 | BH41: =VLOOKUP(BC41,CENY!$B$11:$M$2005,12,FALSE) -> 343.97 | BI41: 0
AU42: =OBJ!B258 -> 9268679 | AV42: =VLOOKUP(AU42,CENY!$B$11:$G$1034,2,FALSE) -> ACTRO YOU 40KG PLNOVÝSUV 600 MM EB21 SILENT SYSTÉM LEVÝ | AW42: =VLOOKUP(AU42,CENY!$B$11:$G$1034,3,FALSE) -> 10 | AY42: =O19 -> 0 | AZ42: =VLOOKUP(AU42,CENY!$B$11:$M$2005,12,FALSE) -> 273.51 | BA42: 0 | BC42: =OBJ!B133 -> 9255061 | BD42: =VLOOKUP(BC42,CENY!$B$11:$G$1034,2,FALSE) -> AVANTECH YOU BOK V187 MM NL650 MM STŘÍBRNÝ PRAVÝ | BE42: =VLOOKUP(BC42,CENY!$B$11:$G$1034,3,FALSE) -> 10 | BG42: =(AY4)*(AO$19+AO$20+AO$21+AO$26+AO$27) -> 0 | BH42: =VLOOKUP(BC42,CENY!$B$11:$M$2005,12,FALSE) -> 343.97 | BI42: 0
AU43: =OBJ!B259 -> 9268680 | AV43: =VLOOKUP(AU43,CENY!$B$11:$G$1034,2,FALSE) -> ACTRO YOU 40KG PLNOVÝSUV 600 MM EB21 SILENT SYSTÉM PRAVÝ | AW43: =VLOOKUP(AU43,CENY!$B$11:$G$1034,3,FALSE) -> 10 | AY43: =Q19 -> 0 | AZ43: =VLOOKUP(AU43,CENY!$B$11:$M$2005,12,FALSE) -> 273.51 | BA43: 0 | BC43: =OBJ!B135 -> 9255838 | BD43: =VLOOKUP(BC43,CENY!$B$11:$G$1034,2,FALSE) -> AVANTECH YOU PŘÍCHYTKA ČELA V187 / 251 MM K NAŠROUBOVÁNÍ | BE43: =VLOOKUP(BC43,CENY!$B$11:$G$1034,3,FALSE) -> 200 | BG43: =(AY4)*(AQ$21+AQ$27) -> 0 | BH43: =VLOOKUP(BC43,CENY!$B$11:$M$2005,12,FALSE) -> 53.15 | BI43: 0
AU44: =OBJ!B260 -> 0 | AV44: =VLOOKUP(AU44,CENY!$B$11:$G$1034,2,FALSE) ->  | AW44: =VLOOKUP(AU44,CENY!$B$11:$G$1034,3,FALSE) ->  | AY44: =IF((AY1+AY3)>1,SUM(AY1:AY4)*S19-1*S19,SUM(AY1:AY4)*S19) -> 0 | AZ44: =VLOOKUP(AU44,CENY!$B$11:$M$2005,12,FALSE) ->  | BC44: =OBJ!#REF! ->  | BD44: =VLOOKUP(BC44,CENY!$B$11:$G$1034,2,FALSE) ->  | BE44: =VLOOKUP(BC44,CENY!$B$11:$G$1034,3,FALSE) ->  | BG44: =(AY4)*(AQ$21+AQ$27) -> 0 | BH44: =VLOOKUP(BC44,CENY!$B$11:$M$2005,12,FALSE) -> 
AU45: =OBJ!B261 -> 9257034 | AV45: =VLOOKUP(AU45,CENY!$B$11:$G$1034,2,FALSE) -> ACTRO YOU 70KG PLNOVÝSUV 450 MM EB21 SILENT SYSTEM SADA | AW45: =VLOOKUP(AU45,CENY!$B$11:$G$1034,3,FALSE) -> 1 | AY45: =IF((AY1+AY3)>1,SUM(AY1:AY4)*U19-1*U19,SUM(AY1:AY4)*U19) -> 0 | AZ45: =VLOOKUP(AU45,CENY!$B$11:$M$2005,12,FALSE) -> 691.9 | BA45: 0
AU46: =OBJ!B262 -> 9257036 | AV46: =VLOOKUP(AU46,CENY!$B$11:$G$1034,2,FALSE) -> ACTRO YOU 70KG PLNOVÝSUV 500 MM EB21 SILENT SYSTEM SADA | AW46: =VLOOKUP(AU46,CENY!$B$11:$G$1034,3,FALSE) -> 1 | AY46: =IF((AY1+AY3)>1,SUM(AY1:AY4)*W19-1*W19,SUM(AY1:AY4)*W19) -> 0 | AZ46: =VLOOKUP(AU46,CENY!$B$11:$M$2005,12,FALSE) -> 698.13 | BA46: 0 | BC46: =OBJ!B81 -> 9255254 | BD46: =VLOOKUP(BC46,CENY!$B$11:$G$1034,2,FALSE) -> AVANTECH YOU BOKY V SADĚ V139 MM NL300 MM STŘÍBRNÁ | BE46: =VLOOKUP(BC46,CENY!$B$11:$G$1034,3,FALSE) -> 1 | BG46: =(AY1+AY2)*(SUM(AE19:AP20)+SUM(AG21:AR21)+SUM(AE26:AP26)+SUM(AG27:AR27)) -> 0 | BH46: =VLOOKUP(BC46,CENY!$B$11:$M$2005,12,FALSE) -> 682.46 | BI46: =IF(BH46="","",BH46*BG46) -> 0
AU47: =OBJ!B263 -> 9257038 | AV47: =VLOOKUP(AU47,CENY!$B$11:$G$1034,2,FALSE) -> ACTRO YOU 70KG PLNOVÝSUV 550 MM EB21 SILENT SYSTEM SADA | AW47: =VLOOKUP(AU47,CENY!$B$11:$G$1034,3,FALSE) -> 1 | AY47: =IF((AY1+AY3)>1,SUM(AY1:AY4)*Y19-1*Y19,SUM(AY1:AY4)*Y19) -> 0 | AZ47: =VLOOKUP(AU47,CENY!$B$11:$M$2005,12,FALSE) -> 731.3 | BA47: 0 | BC47: =OBJ!B82 -> 9255255 | BD47: =VLOOKUP(BC47,CENY!$B$11:$G$1034,2,FALSE) -> AVANTECH YOU BOKY V SADĚ V139 MM NL350 MM STŘÍBRNÁ | BE47: =VLOOKUP(BC47,CENY!$B$11:$G$1034,3,FALSE) -> 1 | BG47: =(AY1+AY2)*(SUM(AE19:AP20)+SUM(AG21:AR21)+SUM(AE26:AP26)+SUM(AG27:AR27)) -> 0 | BH47: =VLOOKUP(BC47,CENY!$B$11:$M$2005,12,FALSE) -> 691.23 | BI47: =IF(BH47="","",BH47*BG47) -> 0
AU48: =OBJ!B264 -> 9257040 | AV48: =VLOOKUP(AU48,CENY!$B$11:$G$1034,2,FALSE) -> ACTRO YOU 70KG PLNOVÝSUV 600 MM EB21 SILENT SYSTEM SADA | AW48: =VLOOKUP(AU48,CENY!$B$11:$G$1034,3,FALSE) -> 1 | AY48: =O20 -> 0 | AZ48: =VLOOKUP(AU48,CENY!$B$11:$M$2005,12,FALSE) -> 798.31 | BA48: 0 | BC48: =OBJ!B83 -> 9255256 | BD48: =VLOOKUP(BC48,CENY!$B$11:$G$1034,2,FALSE) -> AVANTECH YOU BOKY V SADĚ V139 MM NL400 MM STŘÍBRNÁ | BE48: =VLOOKUP(BC48,CENY!$B$11:$G$1034,3,FALSE) -> 1 | BG48: =(AY3+AY4)*(SUM(AE19:AP20)+SUM(AG21:AR21)+SUM(AE26:AP26)+SUM(AG27:AR27)) -> 0 | BH48: =VLOOKUP(BC48,CENY!$B$11:$M$2005,12,FALSE) -> 700.01 | BI48: 0
AU49: =OBJ!B265 -> 9257041 | AV49: =VLOOKUP(AU49,CENY!$B$11:$G$1034,2,FALSE) -> ACTRO YOU 70KG PLNOVÝSUV 650 MM EB21 SILENT SYSTEM SADA | AW49: =VLOOKUP(AU49,CENY!$B$11:$G$1034,3,FALSE) -> 1 | AY49: =Q20 -> 0 | AZ49: =VLOOKUP(AU49,CENY!$B$11:$M$2005,12,FALSE) -> 828.55 | BA49: 0 | BC49: =OBJ!B84 -> 9255257 | BD49: =VLOOKUP(BC49,CENY!$B$11:$G$1034,2,FALSE) -> AVANTECH YOU BOKY V SADĚ V139 MM NL450 MM STŘÍBRNÁ | BE49: =VLOOKUP(BC49,CENY!$B$11:$G$1034,3,FALSE) -> 1 | BG49: =(AY3+AY4)*(SUM(AE19:AP20)+SUM(AG21:AR21)+SUM(AE26:AP26)+SUM(AG27:AR27)) -> 0 | BH49: =VLOOKUP(BC49,CENY!$B$11:$M$2005,12,FALSE) -> 708.78 | BI49: 0
AU50: =OBJ!B266 -> 9257013 | AV50: =VLOOKUP(AU50,CENY!$B$11:$G$1034,2,FALSE) -> ACTRO YOU 70KG PLNOVÝSUV 450 MM EB21 SILENT SYSTEM LEVÝ | AW50: =VLOOKUP(AU50,CENY!$B$11:$G$1034,3,FALSE) -> 10 | AY50: =IF((AY1+AY3)>1,SUM(AY1:AY4)*S20-1*S20,SUM(AY1:AY4)*S20) -> 0 | AZ50: =VLOOKUP(AU50,CENY!$B$11:$M$2005,12,FALSE) -> 309.07 | BA50: 0 | BI50: =IF(BH50="","",BH50*BG50) -> 
AU51: =OBJ!B267 -> 9257014 | AV51: =VLOOKUP(AU51,CENY!$B$11:$G$1034,2,FALSE) -> ACTRO YOU 70KG PLNOVÝSUV 450 MM EB21 SILENT SYSTEM PRAVÝ | AW51: =VLOOKUP(AU51,CENY!$B$11:$G$1034,3,FALSE) -> 10 | AY51: =IF((AY1+AY3)>1,SUM(AY1:AY4)*U20-1*U20,SUM(AY1:AY4)*U20) -> 0 | AZ51: =VLOOKUP(AU51,CENY!$B$11:$M$2005,12,FALSE) -> 309.07 | BA51: 0 | BC51: =OBJ!B137 -> 9255273 | BD51: =VLOOKUP(BC51,CENY!$B$11:$G$1034,2,FALSE) -> AVANTECH YOU BOKY V SADĚ V251 MM NL350 MM STŘÍBRNÁ | BE51: =VLOOKUP(BC51,CENY!$B$11:$G$1034,3,FALSE) -> 1 | BH51: =VLOOKUP(BC51,CENY!$B$11:$M$2005,12,FALSE) -> 1230.56 | BI51: =IF(BH51="","",BH51*BG51) -> 0
AU52: =OBJ!B268 -> 9257017 | AV52: =VLOOKUP(AU52,CENY!$B$11:$G$1034,2,FALSE) -> ACTRO YOU 70KG PLNOVÝSUV 500 MM EB21 SILENT SYSTEM LEVÝ | AW52: =VLOOKUP(AU52,CENY!$B$11:$G$1034,3,FALSE) -> 10 | AY52: =IF((AY1+AY3)>1,SUM(AY1:AY4)*W20-1*W20,SUM(AY1:AY4)*W20) -> 0 | AZ52: =VLOOKUP(AU52,CENY!$B$11:$M$2005,12,FALSE) -> 312.18 | BA52: 0 | BC52: =OBJ!B140 -> 9255276 | BD52: =VLOOKUP(BC52,CENY!$B$11:$G$1034,2,FALSE) -> AVANTECH YOU BOKY V SADĚ V251 MM NL500 MM STŘÍBRNÁ | BE52: =VLOOKUP(BC52,CENY!$B$11:$G$1034,3,FALSE) -> 1 | BH52: =VLOOKUP(BC52,CENY!$B$11:$M$2005,12,FALSE) -> 1283.24 | BI52: 0
AU53: =OBJ!B269 -> 9257018 | AV53: =VLOOKUP(AU53,CENY!$B$11:$G$1034,2,FALSE) -> ACTRO YOU 70KG PLNOVÝSUV 500 MM EB21 SILENT SYSTEM PRAVÝ | AW53: =VLOOKUP(AU53,CENY!$B$11:$G$1034,3,FALSE) -> 10 | AY53: =IF((AY1+AY3)>1,SUM(AY1:AY4)*Y20-1*Y20,SUM(AY1:AY4)*Y20) -> 0 | AZ53: =VLOOKUP(AU53,CENY!$B$11:$M$2005,12,FALSE) -> 312.18 | BA53: 0 | BC53: =OBJ!B141 -> 9255277 | BD53: =VLOOKUP(BC53,CENY!$B$11:$G$1034,2,FALSE) -> AVANTECH YOU BOKY V SADĚ V251 MM NL550 MM STŘÍBRNÁ | BE53: =VLOOKUP(BC53,CENY!$B$11:$G$1034,3,FALSE) -> 1 | BH53: =VLOOKUP(BC53,CENY!$B$11:$M$2005,12,FALSE) -> 1300.81 | BI53: 0
AU54: =OBJ!B270 -> 9257021 | AV54: =VLOOKUP(AU54,CENY!$B$11:$G$1034,2,FALSE) -> ACTRO YOU 70KG PLNOVÝSUV 550 MM EB21 SILENT SYSTEM LEVÝ | AW54: =VLOOKUP(AU54,CENY!$B$11:$G$1034,3,FALSE) -> 10 | AY54: =Q21 -> 0 | AZ54: =VLOOKUP(AU54,CENY!$B$11:$M$2005,12,FALSE) -> 328.77 | BA54: 0 | BC54: =OBJ!B142 -> 9255278 | BD54: =VLOOKUP(BC54,CENY!$B$11:$G$1034,2,FALSE) -> AVANTECH YOU BOKY V SADĚ V251 MM NL600 MM STŘÍBRNÁ | BE54: =VLOOKUP(BC54,CENY!$B$11:$G$1034,3,FALSE) -> 1 | BH54: =VLOOKUP(BC54,CENY!$B$11:$M$2005,12,FALSE) -> 1327.3 | BI54: 0
AU55: =OBJ!B271 -> 9257022 | AV55: =VLOOKUP(AU55,CENY!$B$11:$G$1034,2,FALSE) -> ACTRO YOU 70KG PLNOVÝSUV 550 MM EB21 SILENT SYSTEM PRAVÝ | AW55: =VLOOKUP(AU55,CENY!$B$11:$G$1034,3,FALSE) -> 10 | AY55: =IF((AY1+AY3)<2,SUM(AY1:AY4)*S21,1*(S20+S19)+SUM(AY1:AY4)*S21) -> 0 | AZ55: =VLOOKUP(AU55,CENY!$B$11:$M$2005,12,FALSE) -> 328.77 | BA55: 0 | BC55: =OBJ!B143 -> 9255279 | BD55: =VLOOKUP(BC55,CENY!$B$11:$G$1034,2,FALSE) -> AVANTECH YOU BOKY V SADĚ V251 MM NL650 MM STŘÍBRNÁ | BE55: =VLOOKUP(BC55,CENY!$B$11:$G$1034,3,FALSE) -> 1 | BH55: =VLOOKUP(BC55,CENY!$B$11:$M$2005,12,FALSE) -> 1363.32 | BI55: 0
AU56: =OBJ!B272 -> 9257025 | AV56: =VLOOKUP(AU56,CENY!$B$11:$G$1034,2,FALSE) -> ACTRO YOU 70KG PLNOVÝSUV 600 MM EB21 SILENT SYSTEM LEVÝ | AW56: =VLOOKUP(AU56,CENY!$B$11:$G$1034,3,FALSE) -> 10 | AY56: =IF((AY1+AY3)<2,SUM(AY1:AY4)*U21,1*(U20+U19)+SUM(AY1:AY4)*U21) -> 0 | AZ56: =VLOOKUP(AU56,CENY!$B$11:$M$2005,12,FALSE) -> 362.28 | BA56: 0 | BC56: =OBJ!B144 -> 0 | BD56: =VLOOKUP(BC56,CENY!$B$11:$G$1034,2,FALSE) ->  | BE56: =VLOOKUP(BC56,CENY!$B$11:$G$1034,3,FALSE) ->  | BH56: =VLOOKUP(BC56,CENY!$B$11:$M$2005,12,FALSE) -> 
AU57: =OBJ!B273 -> 9257026 | AV57: =VLOOKUP(AU57,CENY!$B$11:$G$1034,2,FALSE) -> ACTRO YOU 70KG PLNOVÝSUV 600 MM EB21 SILENT SYSTEM PRAVÝ | AW57: =VLOOKUP(AU57,CENY!$B$11:$G$1034,3,FALSE) -> 10 | AY57: =IF((AY1+AY3)<2,SUM(AY1:AY4)*W21,1*(W20+W19)+SUM(AY1:AY4)*W21) -> 0 | AZ57: =VLOOKUP(AU57,CENY!$B$11:$M$2005,12,FALSE) -> 362.28 | BA57: 0
AU58: =OBJ!B274 -> 9257027 | AV58: =VLOOKUP(AU58,CENY!$B$11:$G$1034,2,FALSE) -> ACTRO YOU 70KG PLNOVÝSUV 650 MM EB21 SILENT SYSTEM LEVÝ | AW58: =VLOOKUP(AU58,CENY!$B$11:$G$1034,3,FALSE) -> 5 | AY58: =IF((AY1+AY3)<2,SUM(AY1:AY4)*Y21,1*(Y20+Y19)+SUM(AY1:AY4)*Y21) -> 0 | AZ58: =VLOOKUP(AU58,CENY!$B$11:$M$2005,12,FALSE) -> 377.39 | BA58: 0 | BC58: =OBJ!B137 -> 9255273 | BD58: =VLOOKUP(BC58,CENY!$B$11:$G$1034,2,FALSE) -> AVANTECH YOU BOKY V SADĚ V251 MM NL350 MM STŘÍBRNÁ | BE58: =VLOOKUP(BC58,CENY!$B$11:$G$1034,3,FALSE) -> 1 | BH58: =VLOOKUP(BC58,CENY!$B$11:$M$2005,12,FALSE) -> 1230.56 | BI58: 0
AU59: =OBJ!B275 -> 9257028 | AV59: =VLOOKUP(AU59,CENY!$B$11:$G$1034,2,FALSE) -> ACTRO YOU 70KG PLNOVÝSUV 650 MM EB21 SILENT SYSTEM PRAVÝ | AW59: =VLOOKUP(AU59,CENY!$B$11:$G$1034,3,FALSE) -> 5 | AY59: =SUM(AY1:AY4)*AA21 -> 0 | AZ59: =VLOOKUP(AU59,CENY!$B$11:$M$2005,12,FALSE) -> 377.39 | BA59: 0 | BC59: =OBJ!B221 -> 9283233 | BD59: =VLOOKUP(BC59,CENY!$B$11:$G$1034,2,FALSE) -> AVANTECH YOU SKLENĚNÁ VÝPLŇ 10 MM K ČELU INLAY V130 MM Š450 MM KD18 MM | BE59: =VLOOKUP(BC59,CENY!$B$11:$G$1034,3,FALSE) -> 1 | BH59: =VLOOKUP(BC59,CENY!$B$11:$M$2005,12,FALSE) -> 458.09 | BI59: 0
AU60: =OBJ!B276 -> 0 | AV60: =VLOOKUP(AU60,CENY!$B$11:$G$1034,2,FALSE) ->  | AW60: =VLOOKUP(AU60,CENY!$B$11:$G$1034,3,FALSE) ->  | AY60: =O26 -> 0 | AZ60: =VLOOKUP(AU60,CENY!$B$11:$M$2005,12,FALSE) ->  | BC60: =OBJ!B222 -> 9283235 | BD60: =VLOOKUP(BC60,CENY!$B$11:$G$1034,2,FALSE) -> AVANTECH YOU SKLENĚNÁ VÝPLŇ 10 MM K ČELU INLAY V130 MM Š600 MM KD18 MM | BE60: =VLOOKUP(BC60,CENY!$B$11:$G$1034,3,FALSE) -> 1 | BH60: =VLOOKUP(BC60,CENY!$B$11:$M$2005,12,FALSE) -> 520.58 | BI60: 0
AU61: =OBJ!B277 -> 9257890 | AV61: =VLOOKUP(AU61,CENY!$B$11:$G$1034,2,FALSE) -> PUSH TO OPEN SILENT ACTRO YOU / ACTRO 5D 10 KG | AW61: =VLOOKUP(AU61,CENY!$B$11:$G$1034,3,FALSE) -> 1 | AY61: =Q26 -> 0 | AZ61: =VLOOKUP(AU61,CENY!$B$11:$M$2005,12,FALSE) -> 544.37 | BA61: 0 | BC61: =OBJ!B223 -> 9283237 | BD61: =VLOOKUP(BC61,CENY!$B$11:$G$1034,2,FALSE) -> AVANTECH YOU SKLENĚNÁ VÝPLŇ 10 MM K ČELU INLAY V130 MM Š900 MM KD18 MM | BE61: =VLOOKUP(BC61,CENY!$B$11:$G$1034,3,FALSE) -> 1 | BH61: =VLOOKUP(BC61,CENY!$B$11:$M$2005,12,FALSE) -> 867.64 | BI61: 0
AU62: =OBJ!B278 -> 9257891 | AV62: =VLOOKUP(AU62,CENY!$B$11:$G$1034,2,FALSE) -> PUSH TO OPEN SILENT ACTRO YOU / ACTRO 5D 20 KG | AW62: =VLOOKUP(AU62,CENY!$B$11:$G$1034,3,FALSE) -> 1 | AY62: =IF((AY1+AY3)>1,SUM(AY1:AY4)*S26-1*S26,SUM(AY1:AY4)*S26) -> 0 | AZ62: =VLOOKUP(AU62,CENY!$B$11:$M$2005,12,FALSE) -> 544.37 | BA62: 0 | BC62: =OBJ!B224 -> 9283238 | BD62: =VLOOKUP(BC62,CENY!$B$11:$G$1034,2,FALSE) -> AVANTECH YOU SKLENĚNÁ VÝPLŇ 10 MM K ČELU INLAY V130 MM Š1200 MM KD18 MM | BE62: =VLOOKUP(BC62,CENY!$B$11:$G$1034,3,FALSE) -> 1 | BH62: =VLOOKUP(BC62,CENY!$B$11:$M$2005,12,FALSE) -> 1117.52 | BI62: 0
AU63: =OBJ!B279 -> 9257892 | AV63: =VLOOKUP(AU63,CENY!$B$11:$G$1034,2,FALSE) -> PUSH TO OPEN SILENT ACTRO YOU / ACTRO 5D 40 KG | AW63: =VLOOKUP(AU63,CENY!$B$11:$G$1034,3,FALSE) -> 1 | AY63: =IF((AY1+AY3)>1,SUM(AY1:AY4)*U26-1*U26,SUM(AY1:AY4)*U26) -> 0 | AZ63: =VLOOKUP(AU63,CENY!$B$11:$M$2005,12,FALSE) -> 544.37 | BA63: 0 | BC63: =OBJ!#REF! ->  | BD63: =VLOOKUP(BC63,CENY!$B$11:$G$1034,2,FALSE) ->  | BE63: =VLOOKUP(BC63,CENY!$B$11:$G$1034,3,FALSE) ->  | BH63: =VLOOKUP(BC63,CENY!$B$11:$M$2005,12,FALSE) -> 
AU64: =OBJ!B280 -> 9257893 | AV64: =VLOOKUP(AU64,CENY!$B$11:$G$1034,2,FALSE) -> PUSH TO OPEN SILENT ACTRO YOU / ACTRO 5D 70 KG | AW64: =VLOOKUP(AU64,CENY!$B$11:$G$1034,3,FALSE) -> 1 | AY64: =IF((AY1+AY3)>1,SUM(AY1:AY4)*W26-1*W26,SUM(AY1:AY4)*W26) -> 0 | AZ64: =VLOOKUP(AU64,CENY!$B$11:$M$2005,12,FALSE) -> 544.37 | BA64: 0 | BI64: =IF(BH64="","",BH64*BG64) -> 
AU65: =OBJ!B281 -> 9236718 | AV65: =VLOOKUP(AU65,CENY!$B$11:$G$1034,2,FALSE) -> PUSH TO OPEN SYNCHRONIZAČNÍ TYČ 2000 MM | AW65: =VLOOKUP(AU65,CENY!$B$11:$G$1034,3,FALSE) -> 100 | AY65: =IF((AY1+AY3)>1,SUM(AY1:AY4)*Y26-1*Y26,SUM(AY1:AY4)*Y26) -> 0 | AZ65: =VLOOKUP(AU65,CENY!$B$11:$M$2005,12,FALSE) -> 144.3 | BA65: 0 | BC65: =OBJ!B289 -> 9256956 | BD65: =VLOOKUP(BC65,CENY!$B$11:$G$1034,2,FALSE) -> QUADRO YOU 10 KG PLNOVÝSUV 350 MM EB21 SILENT SYSTEM SADA | BE65: =VLOOKUP(BC65,CENY!$B$11:$G$1034,3,FALSE) -> 1 | BG65: =AE$19 -> 0 | BH65: =VLOOKUP(BC65,CENY!$B$11:$M$2005,12,FALSE) -> 421.61 | BI65: 0
AU66: =OBJ!B282 -> 9221295 | AV66: =VLOOKUP(AU66,CENY!$B$11:$G$1034,2,FALSE) -> PUSH TO OPEN SYNCHRO SPOJKA | AW66: =VLOOKUP(AU66,CENY!$B$11:$G$1034,3,FALSE) -> 20 | AY66: =Q27 -> 0 | AZ66: =VLOOKUP(AU66,CENY!$B$11:$M$2005,12,FALSE) -> 13.07 | BA66: 0 | BC66: =OBJ!B290 -> 9256944 | BD66: =VLOOKUP(BC66,CENY!$B$11:$G$1034,2,FALSE) -> QUADRO YOU 10 KG PLNOVÝSUV 270 MM EB21 SILENT SYSTEM LEVÝ | BE66: =VLOOKUP(BC66,CENY!$B$11:$G$1034,3,FALSE) -> 20 | BG66: =AE$19 -> 0 | BH66: =VLOOKUP(BC66,CENY!$B$11:$M$2005,12,FALSE) -> 174.19 | BI66: 0
B67: =verze!E13 -> << zpět | G67: =verze!E6 -> Úvod | O67: =verze!E7 -> Výběr zásuvek | U67: =verze!E8 ->  | AA67: =verze!E9 ->  | AI67: =verze!E10 -> Objednávka | AO67: =verze!E14 -> vpřed >> | AU67: =OBJ!B283 -> 9278452 | AV67: =VLOOKUP(AU67,CENY!$B$11:$G$1034,2,FALSE) -> PUSH TO OPEN SILENT ACTRO YOU MULTISYNCHRO - SPOJKA | AW67: =VLOOKUP(AU67,CENY!$B$11:$G$1034,3,FALSE) -> 20 | AY67: =IF((AY1+AY3)<2,SUM(AY1:AY4)*S27,1*(S26)+SUM(AY1:AY4)*S27) -> 0 | AZ67: =VLOOKUP(AU67,CENY!$B$11:$M$2005,12,FALSE) -> 35.33 | BA67: 0 | BC67: =OBJ!B291 -> 9256945 | BD67: =VLOOKUP(BC67,CENY!$B$11:$G$1034,2,FALSE) -> QUADRO YOU 10 KG PLNOVÝSUV 270 MM EB21 SILENT SYSTEM PRAVÝ | BE67: =VLOOKUP(BC67,CENY!$B$11:$G$1034,3,FALSE) -> 20 | BG67: =AG$19 -> 0 | BH67: =VLOOKUP(BC67,CENY!$B$11:$M$2005,12,FALSE) -> 174.19 | BI67: 0
AU68: =OBJ!B284 -> 9262213 | AV68: =VLOOKUP(AU68,CENY!$B$11:$G$1034,2,FALSE) -> PUSH TO OPEN SILENT SYNCHRO ADAPTÉR FLEXIBILNÍ | AW68: =VLOOKUP(AU68,CENY!$B$11:$G$1034,3,FALSE) -> 20 | AY68: =IF((AY1+AY3)<2,SUM(AY1:AY4)*U27,1*(U26)+SUM(AY1:AY4)*U27) -> 0 | AZ68: =VLOOKUP(AU68,CENY!$B$11:$M$2005,12,FALSE) -> 82.35 | BA68: 0 | BC68: =OBJ!B292 -> 9256946 | BD68: =VLOOKUP(BC68,CENY!$B$11:$G$1034,2,FALSE) -> QUADRO YOU 10 KG PLNOVÝSUV 300 MM EB21 SILENT SYSTEM LEVÝ | BE68: =VLOOKUP(BC68,CENY!$B$11:$G$1034,3,FALSE) -> 20 | BG68: =AG$19 -> 0 | BH68: =VLOOKUP(BC68,CENY!$B$11:$M$2005,12,FALSE) -> 172.7 | BI68: 0
B69: Zásuvka ATIRA 144 | AU69: =OBJ!B285 -> 9278453 | AV69: =VLOOKUP(AU69,CENY!$B$11:$G$1034,2,FALSE) -> PUSH TO OPEN SILENT ACTRO YOU SYNCHRO POSUNUTÉ NAPOJENÍ | AW69: =VLOOKUP(AU69,CENY!$B$11:$G$1034,3,FALSE) -> 1 | AY69: =IF((AY1+AY3)<2,SUM(AY1:AY4)*W27,1*(W26)+SUM(AY1:AY4)*W27) -> 0 | AZ69: =VLOOKUP(AU69,CENY!$B$11:$M$2005,12,FALSE) -> 783.93 | BA69: 0 | BC69: =OBJ!B293 -> 9256947 | BD69: =VLOOKUP(BC69,CENY!$B$11:$G$1034,2,FALSE) -> QUADRO YOU 10 KG PLNOVÝSUV 300 MM EB21 SILENT SYSTEM PRAVÝ | BE69: =VLOOKUP(BC69,CENY!$B$11:$G$1034,3,FALSE) -> 20 | BG69: =IF((AY1+AY3)>1,SUM(AY1:AY4)*AI19-1*AI19,SUM(AY1:AY4)*AI19) -> 0 | BH69: =VLOOKUP(BC69,CENY!$B$11:$M$2005,12,FALSE) -> 172.7 | BI69: 0
AU70: =OBJ!B286 -> 0 | AV70: =VLOOKUP(AU70,CENY!$B$11:$G$1034,2,FALSE) ->  | AW70: =VLOOKUP(AU70,CENY!$B$11:$G$1034,3,FALSE) ->  | AY70: =IF((AY1+AY3)<2,SUM(AY1:AY4)*Y27,1*(Y26)+SUM(AY1:AY4)*Y27) -> 0 | AZ70: =VLOOKUP(AU70,CENY!$B$11:$M$2005,12,FALSE) ->  | BA70: =IF(AZ70="","",AZ70*AY70) ->  | BC70: =OBJ!B294 -> 9256950 | BD70: =VLOOKUP(BC70,CENY!$B$11:$G$1034,2,FALSE) -> QUADRO YOU 10 KG PLNOVÝSUV 350 MM EB21 SILENT SYSTEM LEVÝ | BE70: =VLOOKUP(BC70,CENY!$B$11:$G$1034,3,FALSE) -> 20 | BG70: =IF((AY1+AY3)>1,SUM(AY1:AY4)*AI19-1*AI19,SUM(AY1:AY4)*AI19) -> 0 | BH70: =VLOOKUP(BC70,CENY!$B$11:$M$2005,12,FALSE) -> 176.43 | BI70: 0
AU71: =OBJ!B287 -> 9256953 | AV71: =VLOOKUP(AU71,CENY!$B$11:$G$1034,2,FALSE) -> QUADRO YOU 10 KG PLNOVÝSUV 270 MM EB21 SILENT SYSTEM SADA | AW71: =VLOOKUP(AU71,CENY!$B$11:$G$1034,3,FALSE) -> 1 | AY71: =SUM(AY1:AY4)*AA27 -> 0 | AZ71: =VLOOKUP(AU71,CENY!$B$11:$M$2005,12,FALSE) -> 413.4 | BA71: =IF(AZ71="","",AZ71*AY71) -> 0 | BC71: =OBJ!B295 -> 9256951 | BD71: =VLOOKUP(BC71,CENY!$B$11:$G$1034,2,FALSE) -> QUADRO YOU 10 KG PLNOVÝSUV 350 MM EB21 SILENT SYSTEM PRAVÝ | BE71: =VLOOKUP(BC71,CENY!$B$11:$G$1034,3,FALSE) -> 20 | BG71: =IF((AY1+AY3)>1,SUM(AY1:AY4)*AK19-1*AK19,SUM(AY1:AY4)*AK19) -> 0 | BH71: =VLOOKUP(BC71,CENY!$B$11:$M$2005,12,FALSE) -> 176.43 | BI71: 0
BA72: =IF(AZ72="","",AZ72*AY72) ->  | BC72: =OBJ!B296 -> 0 | BD72: =VLOOKUP(BC72,CENY!$B$11:$G$1034,2,FALSE) ->  | BE72: =VLOOKUP(BC72,CENY!$B$11:$G$1034,3,FALSE) ->  | BG72: =IF((AY1+AY3)>1,SUM(AY1:AY4)*AK19-1*AK19,SUM(AY1:AY4)*AK19) -> 0 | BH72: =VLOOKUP(BC72,CENY!$B$11:$M$2005,12,FALSE) -> 
AU73: 1065191 | AV73: =VLOOKUP(AU73,CENY!$B$11:$G$1034,2,FALSE) ->  | AW73: =VLOOKUP(AU73,CENY!$B$11:$G$1034,3,FALSE) ->  | AY73: =IF(FORM!AM8=FORM!AU10,((2*(AY1+AY3))*(SUM(O19:Z20)+SUM(Q21:AB21)+SUM(O26:Z26)+SUM(Q27:AB27))),0) -> 0 | AZ73: =VLOOKUP(AU73,CENY!$B$11:$M$2005,12,FALSE) ->  | BC73: =OBJ!B297 -> 9256883 | BD73: =VLOOKUP(BC73,CENY!$B$11:$G$1034,2,FALSE) -> QUADRO YOU PLNOVÝSUV 270 MM EB21 SILENT SYSTEM SADA | BE73: =VLOOKUP(BC73,CENY!$B$11:$G$1034,3,FALSE) -> 1 | BG73: =IF((AY1+AY3)>1,SUM(AY1:AY4)*AM19-1*AM19,SUM(AY1:AY4)*AM19) -> 0 | BH73: =VLOOKUP(BC73,CENY!$B$11:$M$2005,12,FALSE) -> 372.29 | BI73: 0
AU74: 9002503 | AV74: =VLOOKUP(AU74,CENY!$B$11:$G$1034,2,FALSE) ->  | AW74: =VLOOKUP(AU74,CENY!$B$11:$G$1034,3,FALSE) ->  | AY74: =IF(FORM!AM8=FORM!AU10,((2*AY3)*(SUM(O19:Z20)+SUM(Q21:AB21)+SUM(O26:Z26)+SUM(Q27:AB27))),0) -> 0 | AZ74: =VLOOKUP(AU74,CENY!$B$11:$M$2005,12,FALSE) ->  | BA74: =IF(AZ74="","",AZ74*AY74) ->  | BC74: =OBJ!B298 -> 9256884 | BD74: =VLOOKUP(BC74,CENY!$B$11:$G$1034,2,FALSE) -> QUADRO YOU PLNOVÝSUV 300 MM EB21 SILENT SYSTEM SADA | BE74: =VLOOKUP(BC74,CENY!$B$11:$G$1034,3,FALSE) -> 1 | BG74: =IF((AY1+AY3)>1,SUM(AY1:AY4)*AM19-1*AM19,SUM(AY1:AY4)*AM19) -> 0 | BH74: =VLOOKUP(BC74,CENY!$B$11:$M$2005,12,FALSE) -> 369.3 | BI74: 0
BA75: =IF(AZ75="","",AZ75*AY75) ->  | BC75: =OBJ!B299 -> 9256886 | BD75: =VLOOKUP(BC75,CENY!$B$11:$G$1034,2,FALSE) -> QUADRO YOU PLNOVÝSUV 350 MM EB21 SILENT SYSTEM SADA | BE75: =VLOOKUP(BC75,CENY!$B$11:$G$1034,3,FALSE) -> 1 | BG75: =IF((AY1+AY3)>1,SUM(AY1:AY4)*AO19-1*AO19,SUM(AY1:AY4)*AO19) -> 0 | BH75: =VLOOKUP(BC75,CENY!$B$11:$M$2005,12,FALSE) -> 376.77 | BI75: 0
BC76: =OBJ!B300 -> 9256888 | BD76: =VLOOKUP(BC76,CENY!$B$11:$G$1034,2,FALSE) -> QUADRO YOU PLNOVÝSUV 400 MM EB21 SILENT SYSTEM SADA | BE76: =VLOOKUP(BC76,CENY!$B$11:$G$1034,3,FALSE) -> 1 | BG76: =IF((AY1+AY3)>1,SUM(AY1:AY4)*AO19-1*AO19,SUM(AY1:AY4)*AO19) -> 0 | BH76: =VLOOKUP(BC76,CENY!$B$11:$M$2005,12,FALSE) -> 384.24 | BI76: 0
AU77: =OBJ!B186 -> 0 | AV77: =VLOOKUP(AU77,CENY!$B$11:$G$1034,2,FALSE) ->  | AW77: =VLOOKUP(AU77,CENY!$B$11:$G$1034,3,FALSE) ->  | AY77: =((AY2+AY4)*((SUM(O19:Z20)+SUM(Q21:AB21)+SUM(O26:Z26)+SUM(Q27:AB27))+1*(SUM(AE19:AP20)+SUM(AG21:AR21)+SUM(AE26:AP26)+SUM(AG27:AR27))))-(AU106*(AY2+AY4)) -> 0 | AZ77: =VLOOKUP(AU77,CENY!$B$11:$M$2005,12,FALSE) ->  | BA77: =IF(AZ77="","",AZ77*AY77) ->  | BC77: =OBJ!B301 -> 9256890 | BD77: =VLOOKUP(BC77,CENY!$B$11:$G$1034,2,FALSE) -> QUADRO YOU PLNOVÝSUV 450 MM EB21 SILENT SYSTEM SADA | BE77: =VLOOKUP(BC77,CENY!$B$11:$G$1034,3,FALSE) -> 1 | BG77: =AE$20 -> 0 | BH77: =VLOOKUP(BC77,CENY!$B$11:$M$2005,12,FALSE) -> 391.72 | BI77: 0
AU78: =OBJ!B187 -> 9257269 | AV78: =VLOOKUP(AU78,CENY!$B$11:$G$1034,2,FALSE) -> AVANTECH YOU ALU PROFIL VNITŘNÍ ČELO V101 MM L2000 MM STŘÍBRNÁ | AW78: =VLOOKUP(AU78,CENY!$B$11:$G$1034,3,FALSE) -> 1 | AY78: =((AY2)*((SUM(O19:Z20)+SUM(Q21:AB21)+SUM(O26:Z26)+SUM(Q27:AB27))+1*(SUM(AE19:AP20)+SUM(AG21:AR21)+SUM(AE26:AP26)+SUM(AG27:AR27))))-(AU106*(AY2)) -> 0 | AZ78: =VLOOKUP(AU78,CENY!$B$11:$M$2005,12,FALSE) -> 1421.71 | BA78: =IF(AZ78="","",AZ78*AY78) -> 0 | BC78: =OBJ!B302 -> 9256892 | BD78: =VLOOKUP(BC78,CENY!$B$11:$G$1034,2,FALSE) -> QUADRO YOU PLNOVÝSUV 500 MM EB21 SILENT SYSTEM SADA | BE78: =VLOOKUP(BC78,CENY!$B$11:$G$1034,3,FALSE) -> 1 | BG78: =AE$20 -> 0 | BH78: =VLOOKUP(BC78,CENY!$B$11:$M$2005,12,FALSE) -> 399.19 | BI78: 0
AU79: =OBJ!B188 -> 9257270 | AV79: =VLOOKUP(AU79,CENY!$B$11:$G$1034,2,FALSE) -> AVANTECH YOU ALU PROFIL VNITŘNÍ ČELO V139 MM L2000 MM STŘÍBRNÁ | AW79: =VLOOKUP(AU79,CENY!$B$11:$G$1034,3,FALSE) -> 1 | AY79: =((AY4)*((SUM(O19:Z20)+SUM(Q21:AB21)+SUM(O26:Z26)+SUM(Q27:AB27))+1*(SUM(AE19:AP20)+SUM(AG21:AR21)+SUM(AE26:AP26)+SUM(AG27:AR27))))-(AU106*(AY4)) -> 0 | AZ79: =VLOOKUP(AU79,CENY!$B$11:$M$2005,12,FALSE) -> 1700.74 | BA79: =IF(AZ79="","",AZ79*AY79) -> 0 | BC79: =OBJ!B303 -> 9256894 | BD79: =VLOOKUP(BC79,CENY!$B$11:$G$1034,2,FALSE) -> QUADRO YOU PLNOVÝSUV 550 MM EB21 SILENT SYSTEM SADA | BE79: =VLOOKUP(BC79,CENY!$B$11:$G$1034,3,FALSE) -> 1 | BG79: =AG$20 -> 0 | BH79: =VLOOKUP(BC79,CENY!$B$11:$M$2005,12,FALSE) -> 412.64 | BI79: 0
AU80: =OBJ!B189 -> 9257271 | AV80: =VLOOKUP(AU80,CENY!$B$11:$G$1034,2,FALSE) -> AVANTECH YOU ALU PROFIL VNITŘNÍ ČELO V187 MM L2000 MM STŘÍBRNÁ | AW80: =VLOOKUP(AU80,CENY!$B$11:$G$1034,3,FALSE) -> 1 | AY80: =((AY4)*((SUM(O19:Z20)+SUM(Q21:AB21)+SUM(O26:Z26)+SUM(Q27:AB27))+1*(SUM(AE19:AP20)+SUM(AG21:AR21)+SUM(AE26:AP26)+SUM(AG27:AR27))))-(AU106*(AY4)) -> 0 | AZ80: =VLOOKUP(AU80,CENY!$B$11:$M$2005,12,FALSE) -> 2125.92 | BA80: =IF(AZ80="","",AZ80*AY80) -> 0 | BC80: =OBJ!B304 -> 9256896 | BD80: =VLOOKUP(BC80,CENY!$B$11:$G$1034,2,FALSE) -> QUADRO YOU PLNOVÝSUV 600 MM EB21 SILENT SYSTEM SADA | BE80: =VLOOKUP(BC80,CENY!$B$11:$G$1034,3,FALSE) -> 1 | BG80: =AG$20 -> 0 | BH80: =VLOOKUP(BC80,CENY!$B$11:$M$2005,12,FALSE) -> 420.11 | BI80: 0
BA81: =IF(AZ81="","",AZ81*AY81) ->  | BC81: =OBJ!B305 -> 9256854 | BD81: =VLOOKUP(BC81,CENY!$B$11:$G$1034,2,FALSE) -> QUADRO YOU PLNOVÝSUV 270 MM EB21 SILENT SYSTEM LEVÝ | BE81: =VLOOKUP(BC81,CENY!$B$11:$G$1034,3,FALSE) -> 20 | BG81: =IF((AY1+AY3)>1,SUM(AY1:AY4)*AI20-1*AI20,SUM(AY1:AY4)*AI20) -> 0 | BH81: =VLOOKUP(BC81,CENY!$B$11:$M$2005,12,FALSE) -> 174.19 | BI81: 0
B82: =verze!E162 -> Čelo na vnitřní zásuvku | O82: =verze!E163 -> vnější rozměry zásuvkové skřínky [mm] | AU82: =OBJ!B191 -> 9257611 | AV82: =VLOOKUP(AU82,CENY!$B$11:$G$1034,2,FALSE) -> AVANTECH YOU SADA SPOJEK PRO VNITŘNÍ ČELO K BOKŮM V101 MM STŘÍBRNÁ | AW82: =VLOOKUP(AU82,CENY!$B$11:$G$1034,3,FALSE) -> 1 | AY82: =AY2*O84 -> 0 | AZ82: =VLOOKUP(AU82,CENY!$B$11:$M$2005,12,FALSE) -> 76.28 | BA82: 0 | BC82: =OBJ!B306 -> 9256855 | BD82: =VLOOKUP(BC82,CENY!$B$11:$G$1034,2,FALSE) -> QUADRO YOU PLNOVÝSUV 270 MM EB21 SILENT SYSTEM PRAVÝ | BE82: =VLOOKUP(BC82,CENY!$B$11:$G$1034,3,FALSE) -> 20 | BG82: =IF((AY1+AY3)>1,SUM(AY1:AY4)*AI20-1*AI20,SUM(AY1:AY4)*AI20) -> 0 | BH82: =VLOOKUP(BC82,CENY!$B$11:$M$2005,12,FALSE) -> 174.19 | BI82: 0
N83: =verze!E166&" " -> Šířka korpusu: | O83: 300 | Q83: 400 | S83: 450 | U83: 500 | W83: 600 | Y83: 800 | AA83: 900 | AC83: 1000 | AE83: 1200 | AU83: =OBJ!B192 -> 9257612 | AV83: =VLOOKUP(AU83,CENY!$B$11:$G$1034,2,FALSE) -> AVANTECH YOU SADA SPOJEK PRO VNITŘNÍ ČELO K BOKŮM V139 MM STŘÍBRNÁ | AW83: =VLOOKUP(AU83,CENY!$B$11:$G$1034,3,FALSE) -> 1 | AY83: =AY2*Q84 -> 0 | AZ83: =VLOOKUP(AU83,CENY!$B$11:$M$2005,12,FALSE) -> 96.7 | BA83: 0 | BC83: =OBJ!B307 -> 9256856 | BD83: =VLOOKUP(BC83,CENY!$B$11:$G$1034,2,FALSE) -> QUADRO YOU PLNOVÝSUV 300 MM EB21 SILENT SYSTEM LEVÝ | BE83: =VLOOKUP(BC83,CENY!$B$11:$G$1034,3,FALSE) -> 20 | BG83: =IF((AY1+AY3)>1,SUM(AY1:AY4)*AK20-1*AK20,SUM(AY1:AY4)*AK20) -> 0 | BH83: =VLOOKUP(BC83,CENY!$B$11:$M$2005,12,FALSE) -> 172.7 | BI83: 0
B84: =" "&verze!E167 -> ALU čelo | AU84: =OBJ!B193 -> 9257613 | AV84: =VLOOKUP(AU84,CENY!$B$11:$G$1034,2,FALSE) -> AVANTECH YOU SADA SPOJEK PRO VNITŘNÍ ČELO K BOKŮM V187 MM STŘÍBRNÁ | AW84: =VLOOKUP(AU84,CENY!$B$11:$G$1034,3,FALSE) -> 1 | AY84: =AY2*S84 -> 0 | AZ84: =VLOOKUP(AU84,CENY!$B$11:$M$2005,12,FALSE) -> 135.11 | BA84: 0 | BC84: =OBJ!B308 -> 9256857 | BD84: =VLOOKUP(BC84,CENY!$B$11:$G$1034,2,FALSE) -> QUADRO YOU PLNOVÝSUV 300 MM EB21 SILENT SYSTEM PRAVÝ | BE84: =VLOOKUP(BC84,CENY!$B$11:$G$1034,3,FALSE) -> 20 | BG84: =IF((AY1+AY3)>1,SUM(AY1:AY4)*AK20-1*AK20,SUM(AY1:AY4)*AK20) -> 0 | BH84: =VLOOKUP(BC84,CENY!$B$11:$M$2005,12,FALSE) -> 172.7 | BI84: 0
AU85: =OBJ!#REF! ->  | AV85: =VLOOKUP(AU85,CENY!$B$11:$G$1034,2,FALSE) ->  | AW85: =VLOOKUP(AU85,CENY!$B$11:$G$1034,3,FALSE) ->  | AY85: =AY2*U84 -> 0 | AZ85: =VLOOKUP(AU85,CENY!$B$11:$M$2005,12,FALSE) ->  | BC85: =OBJ!B309 -> 9256860 | BD85: =VLOOKUP(BC85,CENY!$B$11:$G$1034,2,FALSE) -> QUADRO YOU PLNOVÝSUV 350 MM EB21 SILENT SYSTEM LEVÝ | BE85: =VLOOKUP(BC85,CENY!$B$11:$G$1034,3,FALSE) -> 20 | BG85: =IF((AY1+AY3)>1,SUM(AY1:AY4)*AM20-1*AM20,SUM(AY1:AY4)*AM20) -> 0 | BH85: =VLOOKUP(BC85,CENY!$B$11:$M$2005,12,FALSE) -> 176.43 | BI85: 0
AR86: =IF(SUM(O84:AF84)=0,verze!E175&" "&AU104&" "&verze!E176,"") -> Je potřebné vybrat vnitřní čela na 0 skříň (skříně). | AU86: =OBJ!B194 -> 9257623 | AV86: =VLOOKUP(AU86,CENY!$B$11:$G$1034,2,FALSE) -> AVANTECH YOU SADA SPOJEK PRO VNITŘNÍ ČELO K BOKŮM INLAY V187 MM STŘÍBRNÁ | AW86: =VLOOKUP(AU86,CENY!$B$11:$G$1034,3,FALSE) -> 1 | AY86: =AY2*W84 -> 0 | AZ86: =VLOOKUP(AU86,CENY!$B$11:$M$2005,12,FALSE) -> 121.83 | BA86: 0 | BC86: =OBJ!B310 -> 9256861 | BD86: =VLOOKUP(BC86,CENY!$B$11:$G$1034,2,FALSE) -> QUADRO YOU PLNOVÝSUV 350 MM EB21 SILENT SYSTEM PRAVÝ | BE86: =VLOOKUP(BC86,CENY!$B$11:$G$1034,3,FALSE) -> 20 | BG86: =IF((AY1+AY3)>1,SUM(AY1:AY4)*AM20-1*AM20,SUM(AY1:AY4)*AM20) -> 0 | BH86: =VLOOKUP(BC86,CENY!$B$11:$M$2005,12,FALSE) -> 176.43 | BI86: 0
AR87: =IF(AU106=0,"",IF(AU104=AU106,verze!E174,IF(AU107<0,verze!E177&" "&AU108&" "&verze!E176,verze!E178&" "&AU107&" "&verze!E179))) ->  | BC87: =OBJ!B311 -> 9256864 | BD87: =VLOOKUP(BC87,CENY!$B$11:$G$1034,2,FALSE) -> QUADRO YOU PLNOVÝSUV 400 MM EB21 SILENT SYSTEM LEVÝ | BE87: =VLOOKUP(BC87,CENY!$B$11:$G$1034,3,FALSE) -> 20 | BG87: =IF((AY1+AY3)>1,SUM(AY1:AY4)*AO20-1*AO20,SUM(AY1:AY4)*AO20) -> 0 | BH87: =VLOOKUP(BC87,CENY!$B$11:$M$2005,12,FALSE) -> 180.17 | BI87: 0
AU88: =OBJ!B201 -> 9257734 | AV88: =VLOOKUP(AU88,CENY!$B$11:$G$1034,2,FALSE) -> AVANTECH YOU UNAŠEČ PRO VNITŘNÍ ČELO SADA STŘÍBRNÁ | AW88: =VLOOKUP(AU88,CENY!$B$11:$G$1034,3,FALSE) -> 1 | AY88: =AY4*O84 -> 0 | AZ88: =VLOOKUP(AU88,CENY!$B$11:$M$2005,12,FALSE) -> 139.51 | BA88: 0 | BC88: =OBJ!B312 -> 9256865 | BD88: =VLOOKUP(BC88,CENY!$B$11:$G$1034,2,FALSE) -> QUADRO YOU PLNOVÝSUV 400 MM EB21 SILENT SYSTEM PRAVÝ | BE88: =VLOOKUP(BC88,CENY!$B$11:$G$1034,3,FALSE) -> 20 | BG88: =IF((AY1+AY3)>1,SUM(AY1:AY4)*AO20-1*AO20,SUM(AY1:AY4)*AO20) -> 0 | BH88: =VLOOKUP(BC88,CENY!$B$11:$M$2005,12,FALSE) -> 180.17 | BI88: 0
AU89: =OBJ!B202 -> 0 | AV89: =VLOOKUP(AU89,CENY!$B$11:$G$1034,2,FALSE) ->  | AW89: =VLOOKUP(AU89,CENY!$B$11:$G$1034,3,FALSE) ->  | AY89: =AY4*Q84 -> 0 | AZ89: =VLOOKUP(AU89,CENY!$B$11:$M$2005,12,FALSE) ->  | BC89: =OBJ!B313 -> 9256868 | BD89: =VLOOKUP(BC89,CENY!$B$11:$G$1034,2,FALSE) -> QUADRO YOU PLNOVÝSUV 450 MM EB21 SILENT SYSTEM LEVÝ | BE89: =VLOOKUP(BC89,CENY!$B$11:$G$1034,3,FALSE) -> 20 | BG89: =AG$21 -> 0 | BH89: =VLOOKUP(BC89,CENY!$B$11:$M$2005,12,FALSE) -> 183.9 | BI89: 0
AU90: =OBJ!B203 -> 9257663 | AV90: =VLOOKUP(AU90,CENY!$B$11:$G$1034,2,FALSE) -> AVANTECH YOU NOSNÝ PROFIL PRO VNITŘNÍ ČELO INLAY L2000 MM STŘÍBRNÁ | AW90: =VLOOKUP(AU90,CENY!$B$11:$G$1034,3,FALSE) -> 1 | AY90: =AY4*S84 -> 0 | AZ90: =VLOOKUP(AU90,CENY!$B$11:$M$2005,12,FALSE) -> 710.85 | BA90: 0 | BC90: =OBJ!B314 -> 9256869 | BD90: =VLOOKUP(BC90,CENY!$B$11:$G$1034,2,FALSE) -> QUADRO YOU PLNOVÝSUV 450 MM EB21 SILENT SYSTEM PRAVÝ | BE90: =VLOOKUP(BC90,CENY!$B$11:$G$1034,3,FALSE) -> 20 | BG90: =AG$21 -> 0 | BH90: =VLOOKUP(BC90,CENY!$B$11:$M$2005,12,FALSE) -> 183.9 | BI90: 0
AU91: =OBJ!B204 -> 9257651 | AV91: =VLOOKUP(AU91,CENY!$B$11:$G$1034,2,FALSE) -> AVANTECH YOU SADA SPOJEK PRO VNITŘNÍ ČELO INLAY K BOKŮM STANDARD V187 MM STŘÍBRNÁ | AW91: =VLOOKUP(AU91,CENY!$B$11:$G$1034,3,FALSE) -> 1 | AY91: =AY4*U84 -> 0 | AZ91: =VLOOKUP(AU91,CENY!$B$11:$M$2005,12,FALSE) -> 492.14 | BA91: =IF(AZ91="","",AZ91*AY91) -> 0 | BC91: =OBJ!B315 -> 9256872 | BD91: =VLOOKUP(BC91,CENY!$B$11:$G$1034,2,FALSE) -> QUADRO YOU PLNOVÝSUV 500 MM EB21 SILENT SYSTEM LEVÝ | BE91: =VLOOKUP(BC91,CENY!$B$11:$G$1034,3,FALSE) -> 20 | BG91: =IF((AY1+AY3)<2,SUM(AY1:AY4)*AI21,1*(AI20+AI19)+SUM(AY1:AY4)*AI21) -> 0 | BH91: =VLOOKUP(BC91,CENY!$B$11:$M$2005,12,FALSE) -> 187.64 | BI91: 0
AU92: =OBJ!B205 -> 9257657 | AV92: =VLOOKUP(AU92,CENY!$B$11:$G$1034,2,FALSE) -> AVANTECH YOU SADA SPOJEK PRO VNITŘNÍ ČELO INLAY K BOKŮM INLAY V187 MM STŘÍBRNÁ | AW92: =VLOOKUP(AU92,CENY!$B$11:$G$1034,3,FALSE) -> 1 | AY92: =AY4*W84 -> 0 | AZ92: =VLOOKUP(AU92,CENY!$B$11:$M$2005,12,FALSE) -> 492.14 | BA92: =IF(AZ92="","",AZ92*AY92) -> 0 | BC92: =OBJ!B316 -> 9256873 | BD92: =VLOOKUP(BC92,CENY!$B$11:$G$1034,2,FALSE) -> QUADRO YOU PLNOVÝSUV 500 MM EB21 SILENT SYSTEM PRAVÝ | BE92: =VLOOKUP(BC92,CENY!$B$11:$G$1034,3,FALSE) -> 20 | BG92: =IF((AY1+AY3)<2,SUM(AY1:AY4)*AI21,1*(AI20+AI19)+SUM(AY1:AY4)*AI21) -> 0 | BH92: =VLOOKUP(BC92,CENY!$B$11:$M$2005,12,FALSE) -> 187.64 | BI92: =IF(BH92="","",BH92*BG92) -> 0
BC93: =OBJ!B317 -> 9256876 | BD93: =VLOOKUP(BC93,CENY!$B$11:$G$1034,2,FALSE) -> QUADRO YOU PLNOVÝSUV 550 MM EB21 SILENT SYSTEM LEVÝ | BE93: =VLOOKUP(BC93,CENY!$B$11:$G$1034,3,FALSE) -> 20 | BG93: =IF((AY1+AY3)<2,SUM(AY1:AY4)*AK21,1*(AK20+AK19)+SUM(AY1:AY4)*AK21) -> 0 | BH93: =VLOOKUP(BC93,CENY!$B$11:$M$2005,12,FALSE) -> 194.36 | BI93: 0
BC94: =OBJ!B318 -> 9256877 | BD94: =VLOOKUP(BC94,CENY!$B$11:$G$1034,2,FALSE) -> QUADRO YOU PLNOVÝSUV 550 MM EB21 SILENT SYSTEM PRAVÝ | BE94: =VLOOKUP(BC94,CENY!$B$11:$G$1034,3,FALSE) -> 20 | BG94: =IF((AY1+AY3)<2,SUM(AY1:AY4)*AK21,1*(AK20+AK19)+SUM(AY1:AY4)*AK21) -> 0 | BH94: =VLOOKUP(BC94,CENY!$B$11:$M$2005,12,FALSE) -> 194.36 | BI94: 0
BC95: =OBJ!B319 -> 9256880 | BD95: =VLOOKUP(BC95,CENY!$B$11:$G$1034,2,FALSE) -> QUADRO YOU PLNOVÝSUV 600 MM EB21 SILENT SYSTEM LEVÝ | BE95: =VLOOKUP(BC95,CENY!$B$11:$G$1034,3,FALSE) -> 20 | BG95: =IF((AY1+AY3)<2,SUM(AY1:AY4)*AM21,1*(AM20+AM19)+SUM(AY1:AY4)*AM21) -> 0 | BH95: =VLOOKUP(BC95,CENY!$B$11:$M$2005,12,FALSE) -> 198.1 | BI95: 0
BC96: =OBJ!B320 -> 9256881 | BD96: =VLOOKUP(BC96,CENY!$B$11:$G$1034,2,FALSE) -> QUADRO YOU PLNOVÝSUV 600 MM EB21 SILENT SYSTEM PRAVÝ | BE96: =VLOOKUP(BC96,CENY!$B$11:$G$1034,3,FALSE) -> 20 | BG96: =IF((AY1+AY3)<2,SUM(AY1:AY4)*AM21,1*(AM20+AM19)+SUM(AY1:AY4)*AM21) -> 0 | BH96: =VLOOKUP(BC96,CENY!$B$11:$M$2005,12,FALSE) -> 198.1 | BI96: 0
BC97: =OBJ!B321 -> 0 | BD97: =VLOOKUP(BC97,CENY!$B$11:$G$1034,2,FALSE) ->  | BE97: =VLOOKUP(BC97,CENY!$B$11:$G$1034,3,FALSE) ->  | BG97: =IF((AY1+AY3)<2,SUM(AY1:AY4)*AO21,1*(AO20+AO19)+SUM(AY1:AY4)*AO21) -> 0 | BH97: =VLOOKUP(BC97,CENY!$B$11:$M$2005,12,FALSE) -> 
BC98: =OBJ!B322 -> 9257894 | BD98: =VLOOKUP(BC98,CENY!$B$11:$G$1034,2,FALSE) -> PUSH TO OPEN SILENT QUADRO YOU 10 KG | BE98: =VLOOKUP(BC98,CENY!$B$11:$G$1034,3,FALSE) -> 1 | BG98: =IF((AY1+AY3)<2,SUM(AY1:AY4)*AO21,1*(AO20+AO19)+SUM(AY1:AY4)*AO21) -> 0 | BH98: =VLOOKUP(BC98,CENY!$B$11:$M$2005,12,FALSE) -> 544.37 | BI98: 0
BC99: =OBJ!B323 -> 9257895 | BD99: =VLOOKUP(BC99,CENY!$B$11:$G$1034,2,FALSE) -> PUSH TO OPEN SILENT QUADRO YOU 20 KG | BE99: =VLOOKUP(BC99,CENY!$B$11:$G$1034,3,FALSE) -> 1 | BG99: =SUM(AY1:AY4)*AQ21 -> 0 | BH99: =VLOOKUP(BC99,CENY!$B$11:$M$2005,12,FALSE) -> 544.37 | BI99: 0
BC100: =OBJ!B324 -> 9257896 | BD100: =VLOOKUP(BC100,CENY!$B$11:$G$1034,2,FALSE) -> PUSH TO OPEN SILENT QUADRO YOU 30 KG | BE100: =VLOOKUP(BC100,CENY!$B$11:$G$1034,3,FALSE) -> 1 | BG100: =SUM(AY1:AY4)*AQ21 -> 0 | BH100: =VLOOKUP(BC100,CENY!$B$11:$M$2005,12,FALSE) -> 544.37 | BI100: 0
BC101: =OBJ!B325 -> 0 | BD101: =VLOOKUP(BC101,CENY!$B$11:$G$1034,2,FALSE) ->  | BE101: =VLOOKUP(BC101,CENY!$B$11:$G$1034,3,FALSE) ->  | BG101: =AE$26 -> 0 | BH101: =VLOOKUP(BC101,CENY!$B$11:$M$2005,12,FALSE) -> 
AU102: =1*(SUM(O19:Z20)+SUM(Q21:AB21)+SUM(O26:Z26)+SUM(Q27:AB27)) -> 0 | AV102: =verze!E174 -> Počet vnitřních čel nyní pasuje s počtem zásuvek. | BC102: =OBJ!B326 -> 9256928 | BD102: =VLOOKUP(BC102,CENY!$B$11:$G$1034,2,FALSE) -> QUADRO YOU PLNOVÝSUV 270 MM EB21 PUSH TO OPEN SADA | BE102: =VLOOKUP(BC102,CENY!$B$11:$G$1034,3,FALSE) -> 1 | BG102: =AE$26 -> 0 | BH102: =VLOOKUP(BC102,CENY!$B$11:$M$2005,12,FALSE) -> 413.4 | BI102: 0
AU103: =1*(SUM(AE19:AP20)+SUM(AG21:AR21)+SUM(AE26:AP26)+SUM(AG27:AR27)) -> 0 | BC103: =OBJ!B327 -> 9256929 | BD103: =VLOOKUP(BC103,CENY!$B$11:$G$1034,2,FALSE) -> QUADRO YOU PLNOVÝSUV 300 MM EB21 PUSH TO OPEN SADA | BE103: =VLOOKUP(BC103,CENY!$B$11:$G$1034,3,FALSE) -> 1 | BG103: =AG$26 -> 0 | BH103: =VLOOKUP(BC103,CENY!$B$11:$M$2005,12,FALSE) -> 414.13 | BI103: 0
AU104: =AU103+AU102 -> 0 | BC104: =OBJ!B328 -> 9256931 | BD104: =VLOOKUP(BC104,CENY!$B$11:$G$1034,2,FALSE) -> QUADRO YOU PLNOVÝSUV 350 MM EB21 PUSH TO OPEN SADA | BE104: =VLOOKUP(BC104,CENY!$B$11:$G$1034,3,FALSE) -> 1 | BG104: =AG$26 -> 0 | BH104: =VLOOKUP(BC104,CENY!$B$11:$M$2005,12,FALSE) -> 421.61 | BI104: 0
BC105: =OBJ!B329 -> 9256933 | BD105: =VLOOKUP(BC105,CENY!$B$11:$G$1034,2,FALSE) -> QUADRO YOU PLNOVÝSUV 400 MM EB21 PUSH TO OPEN SADA | BE105: =VLOOKUP(BC105,CENY!$B$11:$G$1034,3,FALSE) -> 1 | BG105: =IF((AY1+AY3)>1,SUM(AY1:AY4)*AI26-1*AI26,SUM(AY1:AY4)*AI26) -> 0 | BH105: =VLOOKUP(BC105,CENY!$B$11:$M$2005,12,FALSE) -> 429.08 | BI105: 0
AU106: =SUM(O84:AF84) -> 0 | BC106: =OBJ!B330 -> 9256935 | BD106: =VLOOKUP(BC106,CENY!$B$11:$G$1034,2,FALSE) -> QUADRO YOU PLNOVÝSUV 450 MM EB21 PUSH TO OPEN SADA | BE106: =VLOOKUP(BC106,CENY!$B$11:$G$1034,3,FALSE) -> 1 | BG106: =IF((AY1+AY3)>1,SUM(AY1:AY4)*AI26-1*AI26,SUM(AY1:AY4)*AI26) -> 0 | BH106: =VLOOKUP(BC106,CENY!$B$11:$M$2005,12,FALSE) -> 436.55 | BI106: 0
AU107: =AU106-AU104 -> 0 | BC107: =OBJ!B331 -> 9256937 | BD107: =VLOOKUP(BC107,CENY!$B$11:$G$1034,2,FALSE) -> QUADRO YOU PLNOVÝSUV 500 MM EB21 PUSH TO OPEN SADA | BE107: =VLOOKUP(BC107,CENY!$B$11:$G$1034,3,FALSE) -> 1 | BG107: =IF((AY1+AY3)>1,SUM(AY1:AY4)*AK26-1*AK26,SUM(AY1:AY4)*AK26) -> 0 | BH107: =VLOOKUP(BC107,CENY!$B$11:$M$2005,12,FALSE) -> 444.02 | BI107: 0
AU108: =AU104-AU106 -> 0 | BC108: =OBJ!B332 -> 9256939 | BD108: =VLOOKUP(BC108,CENY!$B$11:$G$1034,2,FALSE) -> QUADRO YOU PLNOVÝSUV 550 MM EB21 PUSH TO OPEN SADA | BE108: =VLOOKUP(BC108,CENY!$B$11:$G$1034,3,FALSE) -> 1 | BG108: =IF((AY1+AY3)>1,SUM(AY1:AY4)*AK26-1*AK26,SUM(AY1:AY4)*AK26) -> 0 | BH108: =VLOOKUP(BC108,CENY!$B$11:$M$2005,12,FALSE) -> 457.48 | BI108: 0
BC109: =OBJ!B333 -> 9256941 | BD109: =VLOOKUP(BC109,CENY!$B$11:$G$1034,2,FALSE) -> QUADRO YOU PLNOVÝSUV 600 MM EB21 PUSH TO OPEN SADA | BE109: =VLOOKUP(BC109,CENY!$B$11:$G$1034,3,FALSE) -> 1 | BG109: =IF((AY1+AY3)>1,SUM(AY1:AY4)*AM26-1*AM26,SUM(AY1:AY4)*AM26) -> 0 | BH109: =VLOOKUP(BC109,CENY!$B$11:$M$2005,12,FALSE) -> 464.95 | BI109: 0
BC110: =OBJ!B334 -> 9256899 | BD110: =VLOOKUP(BC110,CENY!$B$11:$G$1034,2,FALSE) -> QUADRO YOU PLNOVÝSUV 270 MM EB21 PUSH TO OPEN LEVÝ | BE110: =VLOOKUP(BC110,CENY!$B$11:$G$1034,3,FALSE) -> 20 | BG110: =IF((AY1+AY3)>1,SUM(AY1:AY4)*AM26-1*AM26,SUM(AY1:AY4)*AM26) -> 0 | BH110: =VLOOKUP(BC110,CENY!$B$11:$M$2005,12,FALSE) -> 194.74 | BI110: 0
BC111: =OBJ!B335 -> 9256900 | BD111: =VLOOKUP(BC111,CENY!$B$11:$G$1034,2,FALSE) -> QUADRO YOU PLNOVÝSUV 270 MM EB21 PUSH TO OPEN PRAVÝ | BE111: =VLOOKUP(BC111,CENY!$B$11:$G$1034,3,FALSE) -> 20 | BG111: =IF((AY1+AY3)>1,SUM(AY1:AY4)*AO26-1*AO26,SUM(AY1:AY4)*AO26) -> 0 | BH111: =VLOOKUP(BC111,CENY!$B$11:$M$2005,12,FALSE) -> 194.74 | BI111: 0
BC112: =OBJ!B336 -> 9256901 | BD112: =VLOOKUP(BC112,CENY!$B$11:$G$1034,2,FALSE) -> QUADRO YOU PLNOVÝSUV 300 MM EB21 PUSH TO OPEN LEVÝ | BE112: =VLOOKUP(BC112,CENY!$B$11:$G$1034,3,FALSE) -> 20 | BG112: =IF((AY1+AY3)>1,SUM(AY1:AY4)*AO26-1*AO26,SUM(AY1:AY4)*AO26) -> 0 | BH112: =VLOOKUP(BC112,CENY!$B$11:$M$2005,12,FALSE) -> 195.11 | BI112: 0
BC113: =OBJ!B337 -> 9256902 | BD113: =VLOOKUP(BC113,CENY!$B$11:$G$1034,2,FALSE) -> QUADRO YOU PLNOVÝSUV 300 MM EB21 PUSH TO OPEN PRAVÝ | BE113: =VLOOKUP(BC113,CENY!$B$11:$G$1034,3,FALSE) -> 20 | BG113: =AG$27 -> 0 | BH113: =VLOOKUP(BC113,CENY!$B$11:$M$2005,12,FALSE) -> 195.11 | BI113: 0
BC114: =OBJ!B338 -> 9256905 | BD114: =VLOOKUP(BC114,CENY!$B$11:$G$1034,2,FALSE) -> QUADRO YOU PLNOVÝSUV 350 MM EB21 PUSH TO OPEN LEVÝ | BE114: =VLOOKUP(BC114,CENY!$B$11:$G$1034,3,FALSE) -> 20 | BG114: =AG$27 -> 0 | BH114: =VLOOKUP(BC114,CENY!$B$11:$M$2005,12,FALSE) -> 198.85 | BI114: 0
BC115: =OBJ!B339 -> 9256906 | BD115: =VLOOKUP(BC115,CENY!$B$11:$G$1034,2,FALSE) -> QUADRO YOU PLNOVÝSUV 350 MM EB21 PUSH TO OPEN PRAVÝ | BE115: =VLOOKUP(BC115,CENY!$B$11:$G$1034,3,FALSE) -> 20 | BG115: =IF((AY1+AY3)<2,SUM(AY1:AY4)*AI27,1*(AI26)+SUM(AY1:AY4)*AI27) -> 0 | BH115: =VLOOKUP(BC115,CENY!$B$11:$M$2005,12,FALSE) -> 198.85 | BI115: 0
BC116: =OBJ!B340 -> 9256909 | BD116: =VLOOKUP(BC116,CENY!$B$11:$G$1034,2,FALSE) -> QUADRO YOU PLNOVÝSUV 400 MM EB21 PUSH TO OPEN LEVÝ | BE116: =VLOOKUP(BC116,CENY!$B$11:$G$1034,3,FALSE) -> 20 | BG116: =IF((AY1+AY3)<2,SUM(AY1:AY4)*AI27,1*(AI26)+SUM(AY1:AY4)*AI27) -> 0 | BH116: =VLOOKUP(BC116,CENY!$B$11:$M$2005,12,FALSE) -> 202.58 | BI116: 0
BC117: =OBJ!B341 -> 9256910 | BD117: =VLOOKUP(BC117,CENY!$B$11:$G$1034,2,FALSE) -> QUADRO YOU PLNOVÝSUV 400 MM EB21 PUSH TO OPEN PRAVÝ | BE117: =VLOOKUP(BC117,CENY!$B$11:$G$1034,3,FALSE) -> 20 | BG117: =IF((AY1+AY3)<2,SUM(AY1:AY4)*AK27,1*(AK26)+SUM(AY1:AY4)*AK27) -> 0 | BH117: =VLOOKUP(BC117,CENY!$B$11:$M$2005,12,FALSE) -> 202.58 | BI117: 0
BC118: =OBJ!B342 -> 9256913 | BD118: =VLOOKUP(BC118,CENY!$B$11:$G$1034,2,FALSE) -> QUADRO YOU PLNOVÝSUV 450 MM EB21 PUSH TO OPEN LEVÝ | BE118: =VLOOKUP(BC118,CENY!$B$11:$G$1034,3,FALSE) -> 20 | BG118: =IF((AY1+AY3)<2,SUM(AY1:AY4)*AK27,1*(AK26)+SUM(AY1:AY4)*AK27) -> 0 | BH118: =VLOOKUP(BC118,CENY!$B$11:$M$2005,12,FALSE) -> 206.32 | BI118: 0
BC119: =OBJ!B343 -> 9256914 | BD119: =VLOOKUP(BC119,CENY!$B$11:$G$1034,2,FALSE) -> QUADRO YOU PLNOVÝSUV 450 MM EB21 PUSH TO OPEN PRAVÝ | BE119: =VLOOKUP(BC119,CENY!$B$11:$G$1034,3,FALSE) -> 20 | BG119: =IF((AY1+AY3)<2,SUM(AY1:AY4)*AM27,1*(AM26)+SUM(AY1:AY4)*AM27) -> 0 | BH119: =VLOOKUP(BC119,CENY!$B$11:$M$2005,12,FALSE) -> 206.32 | BI119: 0
BC120: =OBJ!B344 -> 9256917 | BD120: =VLOOKUP(BC120,CENY!$B$11:$G$1034,2,FALSE) -> QUADRO YOU PLNOVÝSUV 500 MM EB21 PUSH TO OPEN LEVÝ | BE120: =VLOOKUP(BC120,CENY!$B$11:$G$1034,3,FALSE) -> 20 | BG120: =IF((AY1+AY3)<2,SUM(AY1:AY4)*AM27,1*(AM26)+SUM(AY1:AY4)*AM27) -> 0 | BH120: =VLOOKUP(BC120,CENY!$B$11:$M$2005,12,FALSE) -> 210.06 | BI120: 0
BC121: =OBJ!B345 -> 9256918 | BD121: =VLOOKUP(BC121,CENY!$B$11:$G$1034,2,FALSE) -> QUADRO YOU PLNOVÝSUV 500 MM EB21 PUSH TO OPEN PRAVÝ | BE121: =VLOOKUP(BC121,CENY!$B$11:$G$1034,3,FALSE) -> 20 | BG121: =IF((AY1+AY3)<2,SUM(AY1:AY4)*AO27,1*(AO26)+SUM(AY1:AY4)*AO27) -> 0 | BH121: =VLOOKUP(BC121,CENY!$B$11:$M$2005,12,FALSE) -> 210.06 | BI121: 0
BC122: =OBJ!B346 -> 9256921 | BD122: =VLOOKUP(BC122,CENY!$B$11:$G$1034,2,FALSE) -> QUADRO YOU PLNOVÝSUV 550 MM EB21 PUSH TO OPEN LEVÝ | BE122: =VLOOKUP(BC122,CENY!$B$11:$G$1034,3,FALSE) -> 20 | BG122: =IF((AY1+AY3)<2,SUM(AY1:AY4)*AO27,1*(AO26)+SUM(AY1:AY4)*AO27) -> 0 | BH122: =VLOOKUP(BC122,CENY!$B$11:$M$2005,12,FALSE) -> 216.78 | BI122: 0
BC123: =OBJ!B347 -> 9256922 | BD123: =VLOOKUP(BC123,CENY!$B$11:$G$1034,2,FALSE) -> QUADRO YOU PLNOVÝSUV 550 MM EB21 PUSH TO OPEN PRAVÝ | BE123: =VLOOKUP(BC123,CENY!$B$11:$G$1034,3,FALSE) -> 20 | BG123: =SUM(AY1:AY4)*AQ27 -> 0 | BH123: =VLOOKUP(BC123,CENY!$B$11:$M$2005,12,FALSE) -> 216.78 | BI123: 0
BC124: =OBJ!B348 -> 9256925 | BD124: =VLOOKUP(BC124,CENY!$B$11:$G$1034,2,FALSE) -> QUADRO YOU PLNOVÝSUV 600 MM EB21 PUSH TO OPEN LEVÝ | BE124: =VLOOKUP(BC124,CENY!$B$11:$G$1034,3,FALSE) -> 20 | BG124: =SUM(AY1:AY4)*AQ27 -> 0 | BH124: =VLOOKUP(BC124,CENY!$B$11:$M$2005,12,FALSE) -> 223.51 | BI124: 0
BI127: =IF(BH127="","",BH127*BG127) -> 

Sheet potr-ot-R
AW1: IT70
B2: =verze!E13 -> << zpět | G2: =verze!E6 -> Úvod | O2: =verze!E7 -> Výběr zásuvek | U2: =verze!E8 ->  | AA2: =verze!E9 ->  | AI2: =verze!E10 -> Objednávka | AO2: =verze!E14 -> vpřed >> | AW2: IT70-vnútorná | AY2: =AP9 -> 2
AW3: IT144
B4: Zásuvka ATIRA 70/144 | AU4: MALOBALENIE : | AW4: IT144-vnútorná | AY4: =AP15 -> 2 | BA4: =SUM(BA5:BA75) ->  | BC4: VELKOBALENIE: | BI4: =SUM(BI5:BI1016) -> 
AU5: =OBJ!B25 -> 9255242 | AV5: =VLOOKUP(AU5,CENY!$B$11:$G$1034,2,FALSE) -> AVANTECH YOU BOKY V SADĚ V77 MM NL500 MM STŘÍBRNÁ | AW5: =VLOOKUP(AU5,CENY!$B$11:$G$1034,3,FALSE) -> 1 | AZ5: =VLOOKUP(AU5,CENY!$B$11:$M$2005,12,FALSE) -> 576.28 | BA5: =IF(AZ5="","",AZ5*AY5) -> 0 | BC5: =OBJ!B62 -> 9255020 | BD5: =VLOOKUP(BC5,CENY!$B$11:$G$1034,2,FALSE) -> AVANTECH YOU BOK V101 MM NL550 MM STŘÍBRNÝ LEVÝ | BE5: =VLOOKUP(BC5,CENY!$B$11:$G$1034,3,FALSE) -> 20 | BH5: =VLOOKUP(BC5,CENY!$B$11:$M$2005,12,FALSE) -> 196.37 | BI5: =IF(BH5="","",BH5*BG5) -> 0
B6: =" "&verze!E90 -> bočnice: | F6: .70 | AU6: =OBJ!B26 -> 9255243 | AV6: =VLOOKUP(AU6,CENY!$B$11:$G$1034,2,FALSE) -> AVANTECH YOU BOKY V SADĚ V77 MM NL550 MM STŘÍBRNÁ | AW6: =VLOOKUP(AU6,CENY!$B$11:$G$1034,3,FALSE) -> 1 | AZ6: =VLOOKUP(AU6,CENY!$B$11:$M$2005,12,FALSE) -> 583.24 | BA6: 0 | BC6: =OBJ!B63 -> 9255021 | BD6: =VLOOKUP(BC6,CENY!$B$11:$G$1034,2,FALSE) -> AVANTECH YOU BOK V101 MM NL550 MM STŘÍBRNÝ PRAVÝ | BE6: =VLOOKUP(BC6,CENY!$B$11:$G$1034,3,FALSE) -> 20 | BH6: =VLOOKUP(BC6,CENY!$B$11:$M$2005,12,FALSE) -> 196.37 | BI6: 0
B7: =" "&verze!E91 -> záda: | F7: .70/144 | AU7: =OBJ!B27 -> 79665 | AV7: =VLOOKUP(AU7,CENY!$B$11:$G$1034,2,FALSE) -> SPOJOVACI ÚHELNÍK 31X31 MM | AW7: =VLOOKUP(AU7,CENY!$B$11:$G$1034,3,FALSE) -> 100 | AY7: =SUM(AY1:AY4)*(S19+S20+S21+S26+S27) -> 0 | AZ7: =VLOOKUP(AU7,CENY!$B$11:$M$2005,12,FALSE) -> 5.96 | BA7: 0 | BC7: =OBJ!B64 -> 9255022 | BD7: =VLOOKUP(BC7,CENY!$B$11:$G$1034,2,FALSE) -> AVANTECH YOU BOK V101 MM NL600 MM STŘÍBRNÝ LEVÝ | BE7: =VLOOKUP(BC7,CENY!$B$11:$G$1034,3,FALSE) -> 20 | BH7: =VLOOKUP(BC7,CENY!$B$11:$M$2005,12,FALSE) -> 201.36 | BI7: 0
B8: =" "&verze!E56 -> barva: | F8: =" "&FORM!U8 -> stříbrná | AU8: =OBJ!B28 -> 0 | AV8: =VLOOKUP(AU8,CENY!$B$11:$G$1034,2,FALSE) ->  | AW8: =VLOOKUP(AU8,CENY!$B$11:$G$1034,3,FALSE) ->  | AY8: =SUM(AY1:AY4)*(U19+U20+U21+U26+U27) -> 0 | AZ8: =VLOOKUP(AU8,CENY!$B$11:$M$2005,12,FALSE) ->  | BC8: =OBJ!B65 -> 9255023 | BD8: =VLOOKUP(BC8,CENY!$B$11:$G$1034,2,FALSE) -> AVANTECH YOU BOK V101 MM NL600 MM STŘÍBRNÝ PRAVÝ | BE8: =VLOOKUP(BC8,CENY!$B$11:$G$1034,3,FALSE) -> 20 | BH8: =VLOOKUP(BC8,CENY!$B$11:$M$2005,12,FALSE) -> 201.36 | BI8: 0
AO9: ……………… | AP9: 2 | AU9: =OBJ!B29 -> 9255000 | AV9: =VLOOKUP(AU9,CENY!$B$11:$G$1034,2,FALSE) -> AVANTECH YOU BOK V77 MM NL400 MM STŘÍBRNÝ LEVÝ | AW9: =VLOOKUP(AU9,CENY!$B$11:$G$1034,3,FALSE) -> 10 | AY9: =SUM(AY1:AY4)*(W19+W20+W21+W26+W27) -> 0 | AZ9: =VLOOKUP(AU9,CENY!$B$11:$M$2005,12,FALSE) -> 186.44 | BA9: 0 | BC9: =OBJ!B66 -> 9255024 | BD9: =VLOOKUP(BC9,CENY!$B$11:$G$1034,2,FALSE) -> AVANTECH YOU BOK V101 MM NL650 MM STŘÍBRNÝ LEVÝ | BE9: =VLOOKUP(BC9,CENY!$B$11:$G$1034,3,FALSE) -> 20 | BG9: =SUM(AY1:AY4)*(AI$19+AI$20+AI$21+AI$26+AI$27) -> 0 | BH9: =VLOOKUP(BC9,CENY!$B$11:$M$2005,12,FALSE) -> 208.15 | BI9: 0
B10: =" "&verze!E57 -> čelní kování: | F10: =" "&FORM!AM8 -> na vruty | AU10: =OBJ!B30 -> 9255001 | AV10: =VLOOKUP(AU10,CENY!$B$11:$G$1034,2,FALSE) -> AVANTECH YOU BOK V77 MM NL400 MM STŘÍBRNÝ PRAVÝ | AW10: =VLOOKUP(AU10,CENY!$B$11:$G$1034,3,FALSE) -> 10 | AY10: =SUM(AY1:AY4)*(Y19+Y20+Y21+Y26+Y27) -> 0 | AZ10: =VLOOKUP(AU10,CENY!$B$11:$M$2005,12,FALSE) -> 186.44 | BA10: 0 | BC10: =OBJ!B67 -> 9255025 | BD10: =VLOOKUP(BC10,CENY!$B$11:$G$1034,2,FALSE) -> AVANTECH YOU BOK V101 MM NL650 MM STŘÍBRNÝ PRAVÝ | BE10: =VLOOKUP(BC10,CENY!$B$11:$G$1034,3,FALSE) -> 20 | BG10: =SUM(AY1:AY4)*(AI$19+AI$20+AI$21+AI$26+AI$27) -> 0 | BH10: =VLOOKUP(BC10,CENY!$B$11:$M$2005,12,FALSE) -> 208.15 | BI10: 0
B11: =" "&verze!E92 -> cena kování: | F11: =BA4 ->  | J11: =IF(verze!E1="CZK","CZK","EUR") -> CZK | AU11: =OBJ!B31 -> 9255002 | AV11: =VLOOKUP(AU11,CENY!$B$11:$G$1034,2,FALSE) -> AVANTECH YOU BOK V77 MM NL450 MM STŘÍBRNÝ LEVÝ | AW11: =VLOOKUP(AU11,CENY!$B$11:$G$1034,3,FALSE) -> 10 | AY11: =SUM(AY1:AY4)*(AA21+AA27) -> 0 | AZ11: =VLOOKUP(AU11,CENY!$B$11:$M$2005,12,FALSE) -> 189.75 | BA11: 0 | BC11: =OBJ!#REF! ->  | BD11: =VLOOKUP(BC11,CENY!$B$11:$G$1034,2,FALSE) ->  | BE11: =VLOOKUP(BC11,CENY!$B$11:$G$1034,3,FALSE) ->  | BG11: =SUM(AY1:AY4)*(AK$19+AK$20+AK$21+AK$26+AK$27) -> 0 | BH11: =VLOOKUP(BC11,CENY!$B$11:$M$2005,12,FALSE) -> 
F12: =BI4 ->  | J12: =IF(verze!E1="CZK","CZK","EUR") -> CZK | BC12: =OBJ!B71 -> 9255804 | BD12: =VLOOKUP(BC12,CENY!$B$11:$G$1034,2,FALSE) -> AVANTECH YOU DEKORATIVNÍ PROFIL NL270 MM STŘÍBRNÝ | BE12: =VLOOKUP(BC12,CENY!$B$11:$G$1034,3,FALSE) -> 200 | BG12: =SUM(AY1:AY4)*(AK$19+AK$20+AK$21+AK$26+AK$27) -> 0 | BH12: =VLOOKUP(BC12,CENY!$B$11:$M$2005,12,FALSE) -> 9.18 | BI12: 0
F13: =SUM(BA77:BA100) ->  | J13: =IF(verze!E1="CZK","CZK","EUR") -> CZK | AU13: =OBJ!B34 -> 9255005 | AV13: =VLOOKUP(AU13,CENY!$B$11:$G$1034,2,FALSE) -> AVANTECH YOU BOK V77 MM NL500 MM STŘÍBRNÝ PRAVÝ | AW13: =VLOOKUP(AU13,CENY!$B$11:$G$1034,3,FALSE) -> 10 | AY13: =(AY1+AY2)*(SUM(O19:Z20)+SUM(Q21:AB21)+SUM(O26:Z26)+SUM(Q27:AB27)) -> 0 | AZ13: =VLOOKUP(AU13,CENY!$B$11:$M$2005,12,FALSE) -> 193.06 | BA13: 0 | BC13: =OBJ!B72 -> 9255805 | BD13: =VLOOKUP(BC13,CENY!$B$11:$G$1034,2,FALSE) -> AVANTECH YOU DEKORATIVNÍ PROFIL NL300 MM STŘÍBRNÝ | BE13: =VLOOKUP(BC13,CENY!$B$11:$G$1034,3,FALSE) -> 200 | BG13: =SUM(AY1:AY4)*(AM$19+AM$20+AM$21+AM$26+AM$27) -> 0 | BH13: =VLOOKUP(BC13,CENY!$B$11:$M$2005,12,FALSE) -> 9.28 | BI13: 0
AU14: =OBJ!B35 -> 9255006 | AV14: =VLOOKUP(AU14,CENY!$B$11:$G$1034,2,FALSE) -> AVANTECH YOU BOK V77 MM NL550 MM STŘÍBRNÝ LEVÝ | AW14: =VLOOKUP(AU14,CENY!$B$11:$G$1034,3,FALSE) -> 10 | AY14: =(AY3+AY4)*(SUM(O19:Z20)+SUM(Q21:AB21)+SUM(O26:Z26)+SUM(Q27:AB27)) -> 0 | AZ14: =VLOOKUP(AU14,CENY!$B$11:$M$2005,12,FALSE) -> 196.37 | BA14: 0 | BC14: =OBJ!B73 -> 9255806 | BD14: =VLOOKUP(BC14,CENY!$B$11:$G$1034,2,FALSE) -> AVANTECH YOU DEKORATIVNÍ PROFIL NL350 MM STŘÍBRNÝ | BE14: =VLOOKUP(BC14,CENY!$B$11:$G$1034,3,FALSE) -> 200 | BG14: =SUM(AY1:AY4)*(AM$19+AM$20+AM$21+AM$26+AM$27) -> 0 | BH14: =VLOOKUP(BC14,CENY!$B$11:$M$2005,12,FALSE) -> 9.45 | BI14: 0
AO15: ……………… | AP15: 2 | BC15: =OBJ!B74 -> 9255807 | BD15: =VLOOKUP(BC15,CENY!$B$11:$G$1034,2,FALSE) -> AVANTECH YOU DEKORATIVNÍ PROFIL NL400 MM STŘÍBRNÝ | BE15: =VLOOKUP(BC15,CENY!$B$11:$G$1034,3,FALSE) -> 200 | BG15: =SUM(AY1:AY4)*(AO$19+AO$20+AO$21+AO$26+AO$27) -> 0 | BH15: =VLOOKUP(BC15,CENY!$B$11:$M$2005,12,FALSE) -> 9.62 | BI15: 0
AU16: =OBJ!B39 -> 9255244 | AV16: =VLOOKUP(AU16,CENY!$B$11:$G$1034,2,FALSE) -> AVANTECH YOU BOKY V SADĚ V101 MM NL270 MM STŘÍBRNÁ | AW16: =VLOOKUP(AU16,CENY!$B$11:$G$1034,3,FALSE) -> 1 | AY16: =(AY3)*(S19+S20+S21+S26+S27) -> 0 | AZ16: =VLOOKUP(AU16,CENY!$B$11:$M$2005,12,FALSE) -> 561.98 | BA16: 0 | BC16: =OBJ!B75 -> 9255808 | BD16: =VLOOKUP(BC16,CENY!$B$11:$G$1034,2,FALSE) -> AVANTECH YOU DEKORATIVNÍ PROFIL NL450 MM STŘÍBRNÝ | BE16: =VLOOKUP(BC16,CENY!$B$11:$G$1034,3,FALSE) -> 200 | BG16: =SUM(AY1:AY4)*(AO$19+AO$20+AO$21+AO$26+AO$27) -> 0 | BH16: =VLOOKUP(BC16,CENY!$B$11:$M$2005,12,FALSE) -> 9.8 | BI16: 0
B17: =verze!E23 -> SILENT SYSTEM - s tlumením | O17: =verze!$E$26 -> flexibilní sety | AE17: =verze!$E$27 -> velkobalení | AU17: =OBJ!B40 -> 9255245 | AV17: =VLOOKUP(AU17,CENY!$B$11:$G$1034,2,FALSE) -> AVANTECH YOU BOKY V SADĚ V101 MM NL300 MM STŘÍBRNÁ | AW17: =VLOOKUP(AU17,CENY!$B$11:$G$1034,3,FALSE) -> 1 | AY17: =(AY3)*(U19+U20+U21+U26+U27) -> 0 | AZ17: =VLOOKUP(AU17,CENY!$B$11:$M$2005,12,FALSE) -> 566.15 | BA17: 0 | BC17: =OBJ!B76 -> 9255809 | BD17: =VLOOKUP(BC17,CENY!$B$11:$G$1034,2,FALSE) -> AVANTECH YOU DEKORATIVNÍ PROFIL NL500 MM STŘÍBRNÝ | BE17: =VLOOKUP(BC17,CENY!$B$11:$G$1034,3,FALSE) -> 200 | BG17: =SUM(AY1:AY4)*(AQ$21+AQ$27) -> 0 | BH17: =VLOOKUP(BC17,CENY!$B$11:$M$2005,12,FALSE) -> 9.97 | BI17: =IF(BH17="","",BH17*BG17) -> 0
N18: =verze!$E$20&" " -> Jmenovitá délka: | O18: 260 | Q18: 300 | S18: 350 | U18: 420 | W18: 470 | Y18: 520 | AA18: 620 | AE18: 260 | AG18: 300 | AI18: 350 | AK18: 420 | AM18: 470 | AO18: 520 | AQ18: 620 | AU18: =OBJ!B41 -> 9255246 | AV18: =VLOOKUP(AU18,CENY!$B$11:$G$1034,2,FALSE) -> AVANTECH YOU BOKY V SADĚ V101 MM NL350 MM STŘÍBRNÁ | AW18: =VLOOKUP(AU18,CENY!$B$11:$G$1034,3,FALSE) -> 1 | AY18: =(AY3)*(W19+W20+W21+W26+W27) -> 0 | AZ18: =VLOOKUP(AU18,CENY!$B$11:$M$2005,12,FALSE) -> 573.11 | BA18: 0 | BC18: =OBJ!B77 -> 9255810 | BD18: =VLOOKUP(BC18,CENY!$B$11:$G$1034,2,FALSE) -> AVANTECH YOU DEKORATIVNÍ PROFIL NL550 MM STŘÍBRNÝ | BE18: =VLOOKUP(BC18,CENY!$B$11:$G$1034,3,FALSE) -> 200 | BG18: =SUM(AY1:AY4)*(AQ$21+AQ$27) -> 0 | BH18: =VLOOKUP(BC18,CENY!$B$11:$M$2005,12,FALSE) -> 10.14 | BI18: =IF(BH18="","",BH18*BG18) -> 0
B19: Quadro 30 / SiSy | H19: =verze!E19 -> částečný výsuv | M19: 25 kg | AU19: =OBJ!B42 -> 9255247 | AV19: =VLOOKUP(AU19,CENY!$B$11:$G$1034,2,FALSE) -> AVANTECH YOU BOKY V SADĚ V101 MM NL400 MM STŘÍBRNÁ | AW19: =VLOOKUP(AU19,CENY!$B$11:$G$1034,3,FALSE) -> 1 | AY19: =(AY3)*(Y19+Y20+Y21+Y26+Y27) -> 0 | AZ19: =VLOOKUP(AU19,CENY!$B$11:$M$2005,12,FALSE) -> 580.07 | BA19: 0 | BI19: =IF(BH19="","",BH19*BG19) -> 
B20: Quadro V6 / SiSy | H20: =verze!E18 -> plnovýsuv | M20: 30 kg | AU20: =OBJ!B43 -> 9255248 | AV20: =VLOOKUP(AU20,CENY!$B$11:$G$1034,2,FALSE) -> AVANTECH YOU BOKY V SADĚ V101 MM NL450 MM STŘÍBRNÁ | AW20: =VLOOKUP(AU20,CENY!$B$11:$G$1034,3,FALSE) -> 1 | AY20: =(AY3)*(AA21+AA27) -> 0 | AZ20: =VLOOKUP(AU20,CENY!$B$11:$M$2005,12,FALSE) -> 587.04 | BA20: 0 | BC20: =OBJ!B88 -> 0 | BD20: =VLOOKUP(BC20,CENY!$B$11:$G$1034,2,FALSE) ->  | BE20: =VLOOKUP(BC20,CENY!$B$11:$G$1034,3,FALSE) ->  | BG20: =((2*(AY1+AY3))*(SUM(AE19:AP20)+SUM(AG21:AR21)+SUM(AE26:AP26)+SUM(AG27:AR27))) -> 0 | BH20: =VLOOKUP(BC20,CENY!$B$11:$M$2005,12,FALSE) -> 
B21: Quadro V6+ / SiSy | H21: =verze!E18 -> plnovýsuv | M21: 50 kg | BC21: =OBJ!B89 -> 9255028 | BD21: =VLOOKUP(BC21,CENY!$B$11:$G$1034,2,FALSE) -> AVANTECH YOU BOK V139 MM NL300 MM STŘÍBRNÝ LEVÝ | BE21: =VLOOKUP(BC21,CENY!$B$11:$G$1034,3,FALSE) -> 20 | BG21: =((2*AY3)*(SUM(AE19:AP20)+SUM(AG21:AR21)+SUM(AE26:AP26)+SUM(AG27:AR27))) -> 0 | BH21: =VLOOKUP(BC21,CENY!$B$11:$M$2005,12,FALSE) -> 229.12 | BI21: 0
AU22: =OBJ!B53 -> 9255011 | AV22: =VLOOKUP(AU22,CENY!$B$11:$G$1034,2,FALSE) -> AVANTECH YOU BOK V101 MM NL300 MM STŘÍBRNÝ PRAVÝ | AW22: =VLOOKUP(AU22,CENY!$B$11:$G$1034,3,FALSE) -> 20 | AY22: =(AY4)*(S19+S20+S21+S26+S27) -> 0 | AZ22: =VLOOKUP(AU22,CENY!$B$11:$M$2005,12,FALSE) -> 179.82 | BA22: 0 | BC22: =OBJ!B91 -> 9255030 | BD22: =VLOOKUP(BC22,CENY!$B$11:$G$1034,2,FALSE) -> AVANTECH YOU BOK V139 MM NL350 MM STŘÍBRNÝ LEVÝ | BE22: =VLOOKUP(BC22,CENY!$B$11:$G$1034,3,FALSE) -> 20 | BG22: =((2*SUM(AY1:AY4))*(SUM(AE19:AP20)+SUM(AG21:AR21)+SUM(AE26:AP26)+SUM(AG27:AR27))) -> 0 | BH22: =VLOOKUP(BC22,CENY!$B$11:$M$2005,12,FALSE) -> 233.33 | BI22: 0
AU23: =OBJ!B54 -> 9255012 | AV23: =VLOOKUP(AU23,CENY!$B$11:$G$1034,2,FALSE) -> AVANTECH YOU BOK V101 MM NL350 MM STŘÍBRNÝ LEVÝ | AW23: =VLOOKUP(AU23,CENY!$B$11:$G$1034,3,FALSE) -> 20 | AY23: =(AY4)*(U19+U20+U21+U26+U27) -> 0 | AZ23: =VLOOKUP(AU23,CENY!$B$11:$M$2005,12,FALSE) -> 183.13 | BA23: 0
B24: =verze!E24 -> PUSH-TO-OPEN - bez úchytkové | O24: =verze!$E$26 -> flexibilní sety | AE24: =verze!$E$27 -> velkobalení | AU24: =OBJ!B55 -> 9255013 | AV24: =VLOOKUP(AU24,CENY!$B$11:$G$1034,2,FALSE) -> AVANTECH YOU BOK V101 MM NL350 MM STŘÍBRNÝ PRAVÝ | AW24: =VLOOKUP(AU24,CENY!$B$11:$G$1034,3,FALSE) -> 20 | AY24: =(AY4)*(W19+W20+W21+W26+W27) -> 0 | AZ24: =VLOOKUP(AU24,CENY!$B$11:$M$2005,12,FALSE) -> 183.13 | BA24: 0 | BC24: =OBJ!B100 -> 9255039 | BD24: =VLOOKUP(BC24,CENY!$B$11:$G$1034,2,FALSE) -> AVANTECH YOU BOK V139 MM NL550 MM STŘÍBRNÝ PRAVÝ | BE24: =VLOOKUP(BC24,CENY!$B$11:$G$1034,3,FALSE) -> 20 | BG24: =(AY3)*(AI$19+AI$20+AI$21+AI$26+AI$27) -> 0 | BH24: =VLOOKUP(BC24,CENY!$B$11:$M$2005,12,FALSE) -> 250.2 | BI24: 0
N25: =verze!$E$20&" " -> Jmenovitá délka: | O25: 260 | Q25: 300 | S25: 350 | U25: 420 | W25: 470 | Y25: 520 | AA25: 620 | AE25: 260 | AG25: 300 | AI25: 350 | AK25: 420 | AM25: 470 | AO25: 520 | AQ25: 620 | AU25: =OBJ!B56 -> 9255014 | AV25: =VLOOKUP(AU25,CENY!$B$11:$G$1034,2,FALSE) -> AVANTECH YOU BOK V101 MM NL400 MM STŘÍBRNÝ LEVÝ | AW25: =VLOOKUP(AU25,CENY!$B$11:$G$1034,3,FALSE) -> 20 | AY25: =(AY4)*(Y19+Y20+Y21+Y26+Y27) -> 0 | AZ25: =VLOOKUP(AU25,CENY!$B$11:$M$2005,12,FALSE) -> 186.44 | BA25: 0 | BC25: =OBJ!B101 -> 9255040 | BD25: =VLOOKUP(BC25,CENY!$B$11:$G$1034,2,FALSE) -> AVANTECH YOU BOK V139 MM NL600 MM STŘÍBRNÝ LEVÝ | BE25: =VLOOKUP(BC25,CENY!$B$11:$G$1034,3,FALSE) -> 20 | BG25: =(AY3)*(AI$19+AI$20+AI$21+AI$26+AI$27) -> 0 | BH25: =VLOOKUP(BC25,CENY!$B$11:$M$2005,12,FALSE) -> 256.56 | BI25: 0
B26: Quadro V6 / P2O | H26: =verze!E18 -> plnovýsuv | M26: 30 kg | AU26: =OBJ!B57 -> 9255015 | AV26: =VLOOKUP(AU26,CENY!$B$11:$G$1034,2,FALSE) -> AVANTECH YOU BOK V101 MM NL400 MM STŘÍBRNÝ PRAVÝ | AW26: =VLOOKUP(AU26,CENY!$B$11:$G$1034,3,FALSE) -> 20 | AY26: =(AY4)*(AA21+AA27) -> 0 | AZ26: =VLOOKUP(AU26,CENY!$B$11:$M$2005,12,FALSE) -> 186.44 | BA26: 0 | BC26: =OBJ!B102 -> 9255041 | BD26: =VLOOKUP(BC26,CENY!$B$11:$G$1034,2,FALSE) -> AVANTECH YOU BOK V139 MM NL600 MM STŘÍBRNÝ PRAVÝ | BE26: =VLOOKUP(BC26,CENY!$B$11:$G$1034,3,FALSE) -> 20 | BG26: =(AY3)*(AK$19+AK$20+AK$21+AK$26+AK$27) -> 0 | BH26: =VLOOKUP(BC26,CENY!$B$11:$M$2005,12,FALSE) -> 256.56 | BI26: 0
B27: Quadro V6+ / P2O | H27: =verze!E18 -> plnovýsuv | M27: 50 kg | BC27: =OBJ!B104 -> 9257884 | BD27: =VLOOKUP(BC27,CENY!$B$11:$G$1034,2,FALSE) -> AVANTECH YOU PŘÍCHYTKA ČELA V139 MM K NAŠROUBOVÁNÍ | BE27: =VLOOKUP(BC27,CENY!$B$11:$G$1034,3,FALSE) -> 200 | BG27: =(AY3)*(AK$19+AK$20+AK$21+AK$26+AK$27) -> 0 | BH27: =VLOOKUP(BC27,CENY!$B$11:$M$2005,12,FALSE) -> 35.43 | BI27: 0
AU28: =OBJ!B137 -> 9255273 | AV28: =VLOOKUP(AU28,CENY!$B$11:$G$1034,2,FALSE) -> AVANTECH YOU BOKY V SADĚ V251 MM NL350 MM STŘÍBRNÁ | AW28: =VLOOKUP(AU28,CENY!$B$11:$G$1034,3,FALSE) -> 1 | AZ28: =VLOOKUP(AU28,CENY!$B$11:$M$2005,12,FALSE) -> 1230.56 | BA28: 0 | BC28: =OBJ!#REF! ->  | BD28: =VLOOKUP(BC28,CENY!$B$11:$G$1034,2,FALSE) ->  | BE28: =VLOOKUP(BC28,CENY!$B$11:$G$1034,3,FALSE) ->  | BG28: =(AY3)*(AM$19+AM$20+AM$21+AM$26+AM$27) -> 0 | BH28: =VLOOKUP(BC28,CENY!$B$11:$M$2005,12,FALSE) -> 
AU29: =OBJ!B140 -> 9255276 | AV29: =VLOOKUP(AU29,CENY!$B$11:$G$1034,2,FALSE) -> AVANTECH YOU BOKY V SADĚ V251 MM NL500 MM STŘÍBRNÁ | AW29: =VLOOKUP(AU29,CENY!$B$11:$G$1034,3,FALSE) -> 1 | AZ29: =VLOOKUP(AU29,CENY!$B$11:$M$2005,12,FALSE) -> 1283.24 | BA29: 0 | BC29: =OBJ!B105 -> 0 | BD29: =VLOOKUP(BC29,CENY!$B$11:$G$1034,2,FALSE) ->  | BE29: =VLOOKUP(BC29,CENY!$B$11:$G$1034,3,FALSE) ->  | BG29: =(AY3)*(AM$19+AM$20+AM$21+AM$26+AM$27) -> 0 | BH29: =VLOOKUP(BC29,CENY!$B$11:$M$2005,12,FALSE) -> 
O30: =verze!E160 -> Je nutné natypovat šířky čel ? | V30: =verze!E156 -> Ke každé zásuvce je uvažované jedno přední 2m hliníkové čelo a příčny reling. | AU30: =OBJ!B141 -> 9255277 | AV30: =VLOOKUP(AU30,CENY!$B$11:$G$1034,2,FALSE) -> AVANTECH YOU BOKY V SADĚ V251 MM NL550 MM STŘÍBRNÁ | AW30: =VLOOKUP(AU30,CENY!$B$11:$G$1034,3,FALSE) -> 1 | AZ30: =VLOOKUP(AU30,CENY!$B$11:$M$2005,12,FALSE) -> 1300.81 | BA30: 0 | BC30: =OBJ!B106 -> 9255262 | BD30: =VLOOKUP(BC30,CENY!$B$11:$G$1034,2,FALSE) -> AVANTECH YOU BOKY V SADĚ V187 MM NL270 MM STŘÍBRNÁ | BE30: =VLOOKUP(BC30,CENY!$B$11:$G$1034,3,FALSE) -> 1 | BG30: =(AY3)*(AO$19+AO$20+AO$21+AO$26+AO$27) -> 0 | BH30: =VLOOKUP(BC30,CENY!$B$11:$M$2005,12,FALSE) -> 847.2 | BI30: 0
V31: =verze!E158 -> Případnou úpravu počtu hliníkových čel (profilů) a příčných relingů vykonej v objednávce. | AU31: =OBJ!B142 -> 9255278 | AV31: =VLOOKUP(AU31,CENY!$B$11:$G$1034,2,FALSE) -> AVANTECH YOU BOKY V SADĚ V251 MM NL600 MM STŘÍBRNÁ | AW31: =VLOOKUP(AU31,CENY!$B$11:$G$1034,3,FALSE) -> 1 | AZ31: =VLOOKUP(AU31,CENY!$B$11:$M$2005,12,FALSE) -> 1327.3 | BA31: 0 | BC31: =OBJ!B107 -> 9255263 | BD31: =VLOOKUP(BC31,CENY!$B$11:$G$1034,2,FALSE) -> AVANTECH YOU BOKY V SADĚ V187 MM NL300 MM STŘÍBRNÁ | BE31: =VLOOKUP(BC31,CENY!$B$11:$G$1034,3,FALSE) -> 1 | BG31: =(AY3)*(AO$19+AO$20+AO$21+AO$26+AO$27) -> 0 | BH31: =VLOOKUP(BC31,CENY!$B$11:$M$2005,12,FALSE) -> 853.97 | BI31: =IF(BH31="","",BH31*BG31) -> 0
AU32: =OBJ!B143 -> 9255279 | AV32: =VLOOKUP(AU32,CENY!$B$11:$G$1034,2,FALSE) -> AVANTECH YOU BOKY V SADĚ V251 MM NL650 MM STŘÍBRNÁ | AW32: =VLOOKUP(AU32,CENY!$B$11:$G$1034,3,FALSE) -> 1 | AZ32: =VLOOKUP(AU32,CENY!$B$11:$M$2005,12,FALSE) -> 1363.32 | BA32: 0 | BC32: =OBJ!B108 -> 9255264 | BD32: =VLOOKUP(BC32,CENY!$B$11:$G$1034,2,FALSE) -> AVANTECH YOU BOKY V SADĚ V187 MM NL350 MM STŘÍBRNÁ | BE32: =VLOOKUP(BC32,CENY!$B$11:$G$1034,3,FALSE) -> 1 | BG32: =(AY3)*(AQ$21+AQ$27) -> 0 | BH32: =VLOOKUP(BC32,CENY!$B$11:$M$2005,12,FALSE) -> 865.25 | BI32: =IF(BH32="","",BH32*BG32) -> 0
AU33: =OBJ!B144 -> 0 | AV33: =VLOOKUP(AU33,CENY!$B$11:$G$1034,2,FALSE) ->  | AW33: =VLOOKUP(AU33,CENY!$B$11:$G$1034,3,FALSE) ->  | AZ33: =VLOOKUP(AU33,CENY!$B$11:$M$2005,12,FALSE) ->  | BC33: =OBJ!B109 -> 9255265 | BD33: =VLOOKUP(BC33,CENY!$B$11:$G$1034,2,FALSE) -> AVANTECH YOU BOKY V SADĚ V187 MM NL400 MM STŘÍBRNÁ | BE33: =VLOOKUP(BC33,CENY!$B$11:$G$1034,3,FALSE) -> 1 | BG33: =(AY3)*(AQ$21+AQ$27) -> 0 | BH33: =VLOOKUP(BC33,CENY!$B$11:$M$2005,12,FALSE) -> 876.53 | BI33: =IF(BH33="","",BH33*BG33) -> 0
BI34: =IF(BH34="","",BH34*BG34) -> 
AU35: =OBJ!B137 -> 9255273 | AV35: =VLOOKUP(AU35,CENY!$B$11:$G$1034,2,FALSE) -> AVANTECH YOU BOKY V SADĚ V251 MM NL350 MM STŘÍBRNÁ | AW35: =VLOOKUP(AU35,CENY!$B$11:$G$1034,3,FALSE) -> 1 | AZ35: =VLOOKUP(AU35,CENY!$B$11:$M$2005,12,FALSE) -> 1230.56 | BA35: 0 | BC35: =OBJ!B126 -> 9255054 | BD35: =VLOOKUP(BC35,CENY!$B$11:$G$1034,2,FALSE) -> AVANTECH YOU BOK V187 MM NL500 MM STŘÍBRNÝ LEVÝ | BE35: =VLOOKUP(BC35,CENY!$B$11:$G$1034,3,FALSE) -> 10 | BG35: =(AY4)*(AI$19+AI$20+AI$21+AI$26+AI$27) -> 0 | BH35: =VLOOKUP(BC35,CENY!$B$11:$M$2005,12,FALSE) -> 319.03 | BI35: 0
AU36: =OBJ!B221 -> 9283233 | AV36: =VLOOKUP(AU36,CENY!$B$11:$G$1034,2,FALSE) -> AVANTECH YOU SKLENĚNÁ VÝPLŇ 10 MM K ČELU INLAY V130 MM Š450 MM KD18 MM | AW36: =VLOOKUP(AU36,CENY!$B$11:$G$1034,3,FALSE) -> 1 | AZ36: =VLOOKUP(AU36,CENY!$B$11:$M$2005,12,FALSE) -> 458.09 | BA36: 0 | BC36: =OBJ!B127 -> 9255055 | BD36: =VLOOKUP(BC36,CENY!$B$11:$G$1034,2,FALSE) -> AVANTECH YOU BOK V187 MM NL500 MM STŘÍBRNÝ PRAVÝ | BE36: =VLOOKUP(BC36,CENY!$B$11:$G$1034,3,FALSE) -> 10 | BG36: =(AY4)*(AI$19+AI$20+AI$21+AI$26+AI$27) -> 0 | BH36: =VLOOKUP(BC36,CENY!$B$11:$M$2005,12,FALSE) -> 319.03 | BI36: 0
AU37: =OBJ!B222 -> 9283235 | AV37: =VLOOKUP(AU37,CENY!$B$11:$G$1034,2,FALSE) -> AVANTECH YOU SKLENĚNÁ VÝPLŇ 10 MM K ČELU INLAY V130 MM Š600 MM KD18 MM | AW37: =VLOOKUP(AU37,CENY!$B$11:$G$1034,3,FALSE) -> 1 | AZ37: =VLOOKUP(AU37,CENY!$B$11:$M$2005,12,FALSE) -> 520.58 | BA37: 0 | BC37: =OBJ!B128 -> 9255056 | BD37: =VLOOKUP(BC37,CENY!$B$11:$G$1034,2,FALSE) -> AVANTECH YOU BOK V187 MM NL550 MM STŘÍBRNÝ LEVÝ | BE37: =VLOOKUP(BC37,CENY!$B$11:$G$1034,3,FALSE) -> 10 | BG37: =(AY4)*(AK$19+AK$20+AK$21+AK$26+AK$27) -> 0 | BH37: =VLOOKUP(BC37,CENY!$B$11:$M$2005,12,FALSE) -> 324.5 | BI37: 0
AU38: =OBJ!B223 -> 9283237 | AV38: =VLOOKUP(AU38,CENY!$B$11:$G$1034,2,FALSE) -> AVANTECH YOU SKLENĚNÁ VÝPLŇ 10 MM K ČELU INLAY V130 MM Š900 MM KD18 MM | AW38: =VLOOKUP(AU38,CENY!$B$11:$G$1034,3,FALSE) -> 1 | AZ38: =VLOOKUP(AU38,CENY!$B$11:$M$2005,12,FALSE) -> 867.64 | BA38: 0 | BC38: =OBJ!B129 -> 9255057 | BD38: =VLOOKUP(BC38,CENY!$B$11:$G$1034,2,FALSE) -> AVANTECH YOU BOK V187 MM NL550 MM STŘÍBRNÝ PRAVÝ | BE38: =VLOOKUP(BC38,CENY!$B$11:$G$1034,3,FALSE) -> 10 | BG38: =(AY4)*(AK$19+AK$20+AK$21+AK$26+AK$27) -> 0 | BH38: =VLOOKUP(BC38,CENY!$B$11:$M$2005,12,FALSE) -> 324.5 | BI38: 0
AU39: =OBJ!B224 -> 9283238 | AV39: =VLOOKUP(AU39,CENY!$B$11:$G$1034,2,FALSE) -> AVANTECH YOU SKLENĚNÁ VÝPLŇ 10 MM K ČELU INLAY V130 MM Š1200 MM KD18 MM | AW39: =VLOOKUP(AU39,CENY!$B$11:$G$1034,3,FALSE) -> 1 | AZ39: =VLOOKUP(AU39,CENY!$B$11:$M$2005,12,FALSE) -> 1117.52 | BA39: 0 | BC39: =OBJ!B130 -> 9255058 | BD39: =VLOOKUP(BC39,CENY!$B$11:$G$1034,2,FALSE) -> AVANTECH YOU BOK V187 MM NL600 MM STŘÍBRNÝ LEVÝ | BE39: =VLOOKUP(BC39,CENY!$B$11:$G$1034,3,FALSE) -> 10 | BG39: =(AY4)*(AM$19+AM$20+AM$21+AM$26+AM$27) -> 0 | BH39: =VLOOKUP(BC39,CENY!$B$11:$M$2005,12,FALSE) -> 332.75 | BI39: 0
AU40: =OBJ!#REF! ->  | AV40: =VLOOKUP(AU40,CENY!$B$11:$G$1034,2,FALSE) ->  | AW40: =VLOOKUP(AU40,CENY!$B$11:$G$1034,3,FALSE) ->  | AZ40: =VLOOKUP(AU40,CENY!$B$11:$M$2005,12,FALSE) ->  | BC40: =OBJ!B131 -> 9255059 | BD40: =VLOOKUP(BC40,CENY!$B$11:$G$1034,2,FALSE) -> AVANTECH YOU BOK V187 MM NL600 MM STŘÍBRNÝ PRAVÝ | BE40: =VLOOKUP(BC40,CENY!$B$11:$G$1034,3,FALSE) -> 10 | BG40: =(AY4)*(AM$19+AM$20+AM$21+AM$26+AM$27) -> 0 | BH40: =VLOOKUP(BC40,CENY!$B$11:$M$2005,12,FALSE) -> 332.75 | BI40: 0
BC41: =OBJ!B132 -> 9255060 | BD41: =VLOOKUP(BC41,CENY!$B$11:$G$1034,2,FALSE) -> AVANTECH YOU BOK V187 MM NL650 MM STŘÍBRNÝ LEVÝ | BE41: =VLOOKUP(BC41,CENY!$B$11:$G$1034,3,FALSE) -> 10 | BG41: =(AY4)*(AO$19+AO$20+AO$21+AO$26+AO$27) -> 0 | BH41: =VLOOKUP(BC41,CENY!$B$11:$M$2005,12,FALSE) -> 343.97 | BI41: 0
AU42: =OBJ!B258 -> 9268679 | AV42: =VLOOKUP(AU42,CENY!$B$11:$G$1034,2,FALSE) -> ACTRO YOU 40KG PLNOVÝSUV 600 MM EB21 SILENT SYSTÉM LEVÝ | AW42: =VLOOKUP(AU42,CENY!$B$11:$G$1034,3,FALSE) -> 10 | AY42: =O19 -> 0 | AZ42: =VLOOKUP(AU42,CENY!$B$11:$M$2005,12,FALSE) -> 273.51 | BA42: 0 | BC42: =OBJ!B133 -> 9255061 | BD42: =VLOOKUP(BC42,CENY!$B$11:$G$1034,2,FALSE) -> AVANTECH YOU BOK V187 MM NL650 MM STŘÍBRNÝ PRAVÝ | BE42: =VLOOKUP(BC42,CENY!$B$11:$G$1034,3,FALSE) -> 10 | BG42: =(AY4)*(AO$19+AO$20+AO$21+AO$26+AO$27) -> 0 | BH42: =VLOOKUP(BC42,CENY!$B$11:$M$2005,12,FALSE) -> 343.97 | BI42: 0
AU43: =OBJ!B259 -> 9268680 | AV43: =VLOOKUP(AU43,CENY!$B$11:$G$1034,2,FALSE) -> ACTRO YOU 40KG PLNOVÝSUV 600 MM EB21 SILENT SYSTÉM PRAVÝ | AW43: =VLOOKUP(AU43,CENY!$B$11:$G$1034,3,FALSE) -> 10 | AY43: =Q19 -> 0 | AZ43: =VLOOKUP(AU43,CENY!$B$11:$M$2005,12,FALSE) -> 273.51 | BA43: 0 | BC43: =OBJ!B135 -> 9255838 | BD43: =VLOOKUP(BC43,CENY!$B$11:$G$1034,2,FALSE) -> AVANTECH YOU PŘÍCHYTKA ČELA V187 / 251 MM K NAŠROUBOVÁNÍ | BE43: =VLOOKUP(BC43,CENY!$B$11:$G$1034,3,FALSE) -> 200 | BG43: =(AY4)*(AQ$21+AQ$27) -> 0 | BH43: =VLOOKUP(BC43,CENY!$B$11:$M$2005,12,FALSE) -> 53.15 | BI43: 0
AU44: =OBJ!B260 -> 0 | AV44: =VLOOKUP(AU44,CENY!$B$11:$G$1034,2,FALSE) ->  | AW44: =VLOOKUP(AU44,CENY!$B$11:$G$1034,3,FALSE) ->  | AY44: =IF((AY1+AY3)>1,SUM(AY1:AY4)*S19-1*S19,SUM(AY1:AY4)*S19) -> 0 | AZ44: =VLOOKUP(AU44,CENY!$B$11:$M$2005,12,FALSE) ->  | BC44: =OBJ!#REF! ->  | BD44: =VLOOKUP(BC44,CENY!$B$11:$G$1034,2,FALSE) ->  | BE44: =VLOOKUP(BC44,CENY!$B$11:$G$1034,3,FALSE) ->  | BG44: =(AY4)*(AQ$21+AQ$27) -> 0 | BH44: =VLOOKUP(BC44,CENY!$B$11:$M$2005,12,FALSE) -> 
AU45: =OBJ!B261 -> 9257034 | AV45: =VLOOKUP(AU45,CENY!$B$11:$G$1034,2,FALSE) -> ACTRO YOU 70KG PLNOVÝSUV 450 MM EB21 SILENT SYSTEM SADA | AW45: =VLOOKUP(AU45,CENY!$B$11:$G$1034,3,FALSE) -> 1 | AY45: =IF((AY1+AY3)>1,SUM(AY1:AY4)*U19-1*U19,SUM(AY1:AY4)*U19) -> 0 | AZ45: =VLOOKUP(AU45,CENY!$B$11:$M$2005,12,FALSE) -> 691.9 | BA45: 0
AU46: =OBJ!B262 -> 9257036 | AV46: =VLOOKUP(AU46,CENY!$B$11:$G$1034,2,FALSE) -> ACTRO YOU 70KG PLNOVÝSUV 500 MM EB21 SILENT SYSTEM SADA | AW46: =VLOOKUP(AU46,CENY!$B$11:$G$1034,3,FALSE) -> 1 | AY46: =IF((AY1+AY3)>1,SUM(AY1:AY4)*W19-1*W19,SUM(AY1:AY4)*W19) -> 0 | AZ46: =VLOOKUP(AU46,CENY!$B$11:$M$2005,12,FALSE) -> 698.13 | BA46: 0 | BC46: =OBJ!B81 -> 9255254 | BD46: =VLOOKUP(BC46,CENY!$B$11:$G$1034,2,FALSE) -> AVANTECH YOU BOKY V SADĚ V139 MM NL300 MM STŘÍBRNÁ | BE46: =VLOOKUP(BC46,CENY!$B$11:$G$1034,3,FALSE) -> 1 | BG46: =(AY1+AY2)*(SUM(AE19:AP20)+SUM(AG21:AR21)+SUM(AE26:AP26)+SUM(AG27:AR27)) -> 0 | BH46: =VLOOKUP(BC46,CENY!$B$11:$M$2005,12,FALSE) -> 682.46 | BI46: =IF(BH46="","",BH46*BG46) -> 0
AU47: =OBJ!B263 -> 9257038 | AV47: =VLOOKUP(AU47,CENY!$B$11:$G$1034,2,FALSE) -> ACTRO YOU 70KG PLNOVÝSUV 550 MM EB21 SILENT SYSTEM SADA | AW47: =VLOOKUP(AU47,CENY!$B$11:$G$1034,3,FALSE) -> 1 | AY47: =IF((AY1+AY3)>1,SUM(AY1:AY4)*Y19-1*Y19,SUM(AY1:AY4)*Y19) -> 0 | AZ47: =VLOOKUP(AU47,CENY!$B$11:$M$2005,12,FALSE) -> 731.3 | BA47: 0 | BC47: =OBJ!B82 -> 9255255 | BD47: =VLOOKUP(BC47,CENY!$B$11:$G$1034,2,FALSE) -> AVANTECH YOU BOKY V SADĚ V139 MM NL350 MM STŘÍBRNÁ | BE47: =VLOOKUP(BC47,CENY!$B$11:$G$1034,3,FALSE) -> 1 | BG47: =(AY1+AY2)*(SUM(AE19:AP20)+SUM(AG21:AR21)+SUM(AE26:AP26)+SUM(AG27:AR27)) -> 0 | BH47: =VLOOKUP(BC47,CENY!$B$11:$M$2005,12,FALSE) -> 691.23 | BI47: =IF(BH47="","",BH47*BG47) -> 0
AU48: =OBJ!B264 -> 9257040 | AV48: =VLOOKUP(AU48,CENY!$B$11:$G$1034,2,FALSE) -> ACTRO YOU 70KG PLNOVÝSUV 600 MM EB21 SILENT SYSTEM SADA | AW48: =VLOOKUP(AU48,CENY!$B$11:$G$1034,3,FALSE) -> 1 | AY48: =O20 -> 0 | AZ48: =VLOOKUP(AU48,CENY!$B$11:$M$2005,12,FALSE) -> 798.31 | BA48: 0 | BC48: =OBJ!B83 -> 9255256 | BD48: =VLOOKUP(BC48,CENY!$B$11:$G$1034,2,FALSE) -> AVANTECH YOU BOKY V SADĚ V139 MM NL400 MM STŘÍBRNÁ | BE48: =VLOOKUP(BC48,CENY!$B$11:$G$1034,3,FALSE) -> 1 | BG48: =(AY3+AY4)*(SUM(AE19:AP20)+SUM(AG21:AR21)+SUM(AE26:AP26)+SUM(AG27:AR27)) -> 0 | BH48: =VLOOKUP(BC48,CENY!$B$11:$M$2005,12,FALSE) -> 700.01 | BI48: 0
AU49: =OBJ!B265 -> 9257041 | AV49: =VLOOKUP(AU49,CENY!$B$11:$G$1034,2,FALSE) -> ACTRO YOU 70KG PLNOVÝSUV 650 MM EB21 SILENT SYSTEM SADA | AW49: =VLOOKUP(AU49,CENY!$B$11:$G$1034,3,FALSE) -> 1 | AY49: =Q20 -> 0 | AZ49: =VLOOKUP(AU49,CENY!$B$11:$M$2005,12,FALSE) -> 828.55 | BA49: 0 | BC49: =OBJ!B84 -> 9255257 | BD49: =VLOOKUP(BC49,CENY!$B$11:$G$1034,2,FALSE) -> AVANTECH YOU BOKY V SADĚ V139 MM NL450 MM STŘÍBRNÁ | BE49: =VLOOKUP(BC49,CENY!$B$11:$G$1034,3,FALSE) -> 1 | BG49: =(AY3+AY4)*(SUM(AE19:AP20)+SUM(AG21:AR21)+SUM(AE26:AP26)+SUM(AG27:AR27)) -> 0 | BH49: =VLOOKUP(BC49,CENY!$B$11:$M$2005,12,FALSE) -> 708.78 | BI49: 0
AU50: =OBJ!B266 -> 9257013 | AV50: =VLOOKUP(AU50,CENY!$B$11:$G$1034,2,FALSE) -> ACTRO YOU 70KG PLNOVÝSUV 450 MM EB21 SILENT SYSTEM LEVÝ | AW50: =VLOOKUP(AU50,CENY!$B$11:$G$1034,3,FALSE) -> 10 | AY50: =IF((AY1+AY3)>1,SUM(AY1:AY4)*S20-1*S20,SUM(AY1:AY4)*S20) -> 0 | AZ50: =VLOOKUP(AU50,CENY!$B$11:$M$2005,12,FALSE) -> 309.07 | BA50: 0 | BI50: =IF(BH50="","",BH50*BG50) -> 
AU51: =OBJ!B267 -> 9257014 | AV51: =VLOOKUP(AU51,CENY!$B$11:$G$1034,2,FALSE) -> ACTRO YOU 70KG PLNOVÝSUV 450 MM EB21 SILENT SYSTEM PRAVÝ | AW51: =VLOOKUP(AU51,CENY!$B$11:$G$1034,3,FALSE) -> 10 | AY51: =IF((AY1+AY3)>1,SUM(AY1:AY4)*U20-1*U20,SUM(AY1:AY4)*U20) -> 0 | AZ51: =VLOOKUP(AU51,CENY!$B$11:$M$2005,12,FALSE) -> 309.07 | BA51: 0 | BC51: =OBJ!B137 -> 9255273 | BD51: =VLOOKUP(BC51,CENY!$B$11:$G$1034,2,FALSE) -> AVANTECH YOU BOKY V SADĚ V251 MM NL350 MM STŘÍBRNÁ | BE51: =VLOOKUP(BC51,CENY!$B$11:$G$1034,3,FALSE) -> 1 | BH51: =VLOOKUP(BC51,CENY!$B$11:$M$2005,12,FALSE) -> 1230.56 | BI51: =IF(BH51="","",BH51*BG51) -> 0
AU52: =OBJ!B268 -> 9257017 | AV52: =VLOOKUP(AU52,CENY!$B$11:$G$1034,2,FALSE) -> ACTRO YOU 70KG PLNOVÝSUV 500 MM EB21 SILENT SYSTEM LEVÝ | AW52: =VLOOKUP(AU52,CENY!$B$11:$G$1034,3,FALSE) -> 10 | AY52: =IF((AY1+AY3)>1,SUM(AY1:AY4)*W20-1*W20,SUM(AY1:AY4)*W20) -> 0 | AZ52: =VLOOKUP(AU52,CENY!$B$11:$M$2005,12,FALSE) -> 312.18 | BA52: 0 | BC52: =OBJ!B140 -> 9255276 | BD52: =VLOOKUP(BC52,CENY!$B$11:$G$1034,2,FALSE) -> AVANTECH YOU BOKY V SADĚ V251 MM NL500 MM STŘÍBRNÁ | BE52: =VLOOKUP(BC52,CENY!$B$11:$G$1034,3,FALSE) -> 1 | BH52: =VLOOKUP(BC52,CENY!$B$11:$M$2005,12,FALSE) -> 1283.24 | BI52: 0
AU53: =OBJ!B269 -> 9257018 | AV53: =VLOOKUP(AU53,CENY!$B$11:$G$1034,2,FALSE) -> ACTRO YOU 70KG PLNOVÝSUV 500 MM EB21 SILENT SYSTEM PRAVÝ | AW53: =VLOOKUP(AU53,CENY!$B$11:$G$1034,3,FALSE) -> 10 | AY53: =IF((AY1+AY3)>1,SUM(AY1:AY4)*Y20-1*Y20,SUM(AY1:AY4)*Y20) -> 0 | AZ53: =VLOOKUP(AU53,CENY!$B$11:$M$2005,12,FALSE) -> 312.18 | BA53: 0 | BC53: =OBJ!B141 -> 9255277 | BD53: =VLOOKUP(BC53,CENY!$B$11:$G$1034,2,FALSE) -> AVANTECH YOU BOKY V SADĚ V251 MM NL550 MM STŘÍBRNÁ | BE53: =VLOOKUP(BC53,CENY!$B$11:$G$1034,3,FALSE) -> 1 | BH53: =VLOOKUP(BC53,CENY!$B$11:$M$2005,12,FALSE) -> 1300.81 | BI53: 0
AU54: =OBJ!B270 -> 9257021 | AV54: =VLOOKUP(AU54,CENY!$B$11:$G$1034,2,FALSE) -> ACTRO YOU 70KG PLNOVÝSUV 550 MM EB21 SILENT SYSTEM LEVÝ | AW54: =VLOOKUP(AU54,CENY!$B$11:$G$1034,3,FALSE) -> 10 | AY54: =Q21 -> 0 | AZ54: =VLOOKUP(AU54,CENY!$B$11:$M$2005,12,FALSE) -> 328.77 | BA54: 0 | BC54: =OBJ!B142 -> 9255278 | BD54: =VLOOKUP(BC54,CENY!$B$11:$G$1034,2,FALSE) -> AVANTECH YOU BOKY V SADĚ V251 MM NL600 MM STŘÍBRNÁ | BE54: =VLOOKUP(BC54,CENY!$B$11:$G$1034,3,FALSE) -> 1 | BH54: =VLOOKUP(BC54,CENY!$B$11:$M$2005,12,FALSE) -> 1327.3 | BI54: 0
AU55: =OBJ!B271 -> 9257022 | AV55: =VLOOKUP(AU55,CENY!$B$11:$G$1034,2,FALSE) -> ACTRO YOU 70KG PLNOVÝSUV 550 MM EB21 SILENT SYSTEM PRAVÝ | AW55: =VLOOKUP(AU55,CENY!$B$11:$G$1034,3,FALSE) -> 10 | AY55: =IF((AY1+AY3)<2,SUM(AY1:AY4)*S21,1*(S20+S19)+SUM(AY1:AY4)*S21) -> 0 | AZ55: =VLOOKUP(AU55,CENY!$B$11:$M$2005,12,FALSE) -> 328.77 | BA55: 0 | BC55: =OBJ!B143 -> 9255279 | BD55: =VLOOKUP(BC55,CENY!$B$11:$G$1034,2,FALSE) -> AVANTECH YOU BOKY V SADĚ V251 MM NL650 MM STŘÍBRNÁ | BE55: =VLOOKUP(BC55,CENY!$B$11:$G$1034,3,FALSE) -> 1 | BH55: =VLOOKUP(BC55,CENY!$B$11:$M$2005,12,FALSE) -> 1363.32 | BI55: 0
AU56: =OBJ!B272 -> 9257025 | AV56: =VLOOKUP(AU56,CENY!$B$11:$G$1034,2,FALSE) -> ACTRO YOU 70KG PLNOVÝSUV 600 MM EB21 SILENT SYSTEM LEVÝ | AW56: =VLOOKUP(AU56,CENY!$B$11:$G$1034,3,FALSE) -> 10 | AY56: =IF((AY1+AY3)<2,SUM(AY1:AY4)*U21,1*(U20+U19)+SUM(AY1:AY4)*U21) -> 0 | AZ56: =VLOOKUP(AU56,CENY!$B$11:$M$2005,12,FALSE) -> 362.28 | BA56: 0 | BC56: =OBJ!B144 -> 0 | BD56: =VLOOKUP(BC56,CENY!$B$11:$G$1034,2,FALSE) ->  | BE56: =VLOOKUP(BC56,CENY!$B$11:$G$1034,3,FALSE) ->  | BH56: =VLOOKUP(BC56,CENY!$B$11:$M$2005,12,FALSE) -> 
AU57: =OBJ!B273 -> 9257026 | AV57: =VLOOKUP(AU57,CENY!$B$11:$G$1034,2,FALSE) -> ACTRO YOU 70KG PLNOVÝSUV 600 MM EB21 SILENT SYSTEM PRAVÝ | AW57: =VLOOKUP(AU57,CENY!$B$11:$G$1034,3,FALSE) -> 10 | AY57: =IF((AY1+AY3)<2,SUM(AY1:AY4)*W21,1*(W20+W19)+SUM(AY1:AY4)*W21) -> 0 | AZ57: =VLOOKUP(AU57,CENY!$B$11:$M$2005,12,FALSE) -> 362.28 | BA57: 0
AU58: =OBJ!B274 -> 9257027 | AV58: =VLOOKUP(AU58,CENY!$B$11:$G$1034,2,FALSE) -> ACTRO YOU 70KG PLNOVÝSUV 650 MM EB21 SILENT SYSTEM LEVÝ | AW58: =VLOOKUP(AU58,CENY!$B$11:$G$1034,3,FALSE) -> 5 | AY58: =IF((AY1+AY3)<2,SUM(AY1:AY4)*Y21,1*(Y20+Y19)+SUM(AY1:AY4)*Y21) -> 0 | AZ58: =VLOOKUP(AU58,CENY!$B$11:$M$2005,12,FALSE) -> 377.39 | BA58: 0 | BC58: =OBJ!B137 -> 9255273 | BD58: =VLOOKUP(BC58,CENY!$B$11:$G$1034,2,FALSE) -> AVANTECH YOU BOKY V SADĚ V251 MM NL350 MM STŘÍBRNÁ | BE58: =VLOOKUP(BC58,CENY!$B$11:$G$1034,3,FALSE) -> 1 | BH58: =VLOOKUP(BC58,CENY!$B$11:$M$2005,12,FALSE) -> 1230.56 | BI58: 0
AU59: =OBJ!B275 -> 9257028 | AV59: =VLOOKUP(AU59,CENY!$B$11:$G$1034,2,FALSE) -> ACTRO YOU 70KG PLNOVÝSUV 650 MM EB21 SILENT SYSTEM PRAVÝ | AW59: =VLOOKUP(AU59,CENY!$B$11:$G$1034,3,FALSE) -> 5 | AY59: =SUM(AY1:AY4)*AA21 -> 0 | AZ59: =VLOOKUP(AU59,CENY!$B$11:$M$2005,12,FALSE) -> 377.39 | BA59: 0 | BC59: =OBJ!B221 -> 9283233 | BD59: =VLOOKUP(BC59,CENY!$B$11:$G$1034,2,FALSE) -> AVANTECH YOU SKLENĚNÁ VÝPLŇ 10 MM K ČELU INLAY V130 MM Š450 MM KD18 MM | BE59: =VLOOKUP(BC59,CENY!$B$11:$G$1034,3,FALSE) -> 1 | BH59: =VLOOKUP(BC59,CENY!$B$11:$M$2005,12,FALSE) -> 458.09 | BI59: 0
AU60: =OBJ!B276 -> 0 | AV60: =VLOOKUP(AU60,CENY!$B$11:$G$1034,2,FALSE) ->  | AW60: =VLOOKUP(AU60,CENY!$B$11:$G$1034,3,FALSE) ->  | AY60: =O26 -> 0 | AZ60: =VLOOKUP(AU60,CENY!$B$11:$M$2005,12,FALSE) ->  | BC60: =OBJ!B222 -> 9283235 | BD60: =VLOOKUP(BC60,CENY!$B$11:$G$1034,2,FALSE) -> AVANTECH YOU SKLENĚNÁ VÝPLŇ 10 MM K ČELU INLAY V130 MM Š600 MM KD18 MM | BE60: =VLOOKUP(BC60,CENY!$B$11:$G$1034,3,FALSE) -> 1 | BH60: =VLOOKUP(BC60,CENY!$B$11:$M$2005,12,FALSE) -> 520.58 | BI60: 0
AU61: =OBJ!B277 -> 9257890 | AV61: =VLOOKUP(AU61,CENY!$B$11:$G$1034,2,FALSE) -> PUSH TO OPEN SILENT ACTRO YOU / ACTRO 5D 10 KG | AW61: =VLOOKUP(AU61,CENY!$B$11:$G$1034,3,FALSE) -> 1 | AY61: =Q26 -> 0 | AZ61: =VLOOKUP(AU61,CENY!$B$11:$M$2005,12,FALSE) -> 544.37 | BA61: 0 | BC61: =OBJ!B223 -> 9283237 | BD61: =VLOOKUP(BC61,CENY!$B$11:$G$1034,2,FALSE) -> AVANTECH YOU SKLENĚNÁ VÝPLŇ 10 MM K ČELU INLAY V130 MM Š900 MM KD18 MM | BE61: =VLOOKUP(BC61,CENY!$B$11:$G$1034,3,FALSE) -> 1 | BH61: =VLOOKUP(BC61,CENY!$B$11:$M$2005,12,FALSE) -> 867.64 | BI61: 0
AU62: =OBJ!B278 -> 9257891 | AV62: =VLOOKUP(AU62,CENY!$B$11:$G$1034,2,FALSE) -> PUSH TO OPEN SILENT ACTRO YOU / ACTRO 5D 20 KG | AW62: =VLOOKUP(AU62,CENY!$B$11:$G$1034,3,FALSE) -> 1 | AY62: =IF((AY1+AY3)>1,SUM(AY1:AY4)*S26-1*S26,SUM(AY1:AY4)*S26) -> 0 | AZ62: =VLOOKUP(AU62,CENY!$B$11:$M$2005,12,FALSE) -> 544.37 | BA62: 0 | BC62: =OBJ!B224 -> 9283238 | BD62: =VLOOKUP(BC62,CENY!$B$11:$G$1034,2,FALSE) -> AVANTECH YOU SKLENĚNÁ VÝPLŇ 10 MM K ČELU INLAY V130 MM Š1200 MM KD18 MM | BE62: =VLOOKUP(BC62,CENY!$B$11:$G$1034,3,FALSE) -> 1 | BH62: =VLOOKUP(BC62,CENY!$B$11:$M$2005,12,FALSE) -> 1117.52 | BI62: 0
AU63: =OBJ!B279 -> 9257892 | AV63: =VLOOKUP(AU63,CENY!$B$11:$G$1034,2,FALSE) -> PUSH TO OPEN SILENT ACTRO YOU / ACTRO 5D 40 KG | AW63: =VLOOKUP(AU63,CENY!$B$11:$G$1034,3,FALSE) -> 1 | AY63: =IF((AY1+AY3)>1,SUM(AY1:AY4)*U26-1*U26,SUM(AY1:AY4)*U26) -> 0 | AZ63: =VLOOKUP(AU63,CENY!$B$11:$M$2005,12,FALSE) -> 544.37 | BA63: 0 | BC63: =OBJ!#REF! ->  | BD63: =VLOOKUP(BC63,CENY!$B$11:$G$1034,2,FALSE) ->  | BE63: =VLOOKUP(BC63,CENY!$B$11:$G$1034,3,FALSE) ->  | BH63: =VLOOKUP(BC63,CENY!$B$11:$M$2005,12,FALSE) -> 
AU64: =OBJ!B280 -> 9257893 | AV64: =VLOOKUP(AU64,CENY!$B$11:$G$1034,2,FALSE) -> PUSH TO OPEN SILENT ACTRO YOU / ACTRO 5D 70 KG | AW64: =VLOOKUP(AU64,CENY!$B$11:$G$1034,3,FALSE) -> 1 | AY64: =IF((AY1+AY3)>1,SUM(AY1:AY4)*W26-1*W26,SUM(AY1:AY4)*W26) -> 0 | AZ64: =VLOOKUP(AU64,CENY!$B$11:$M$2005,12,FALSE) -> 544.37 | BA64: 0 | BI64: =IF(BH64="","",BH64*BG64) -> 
AU65: =OBJ!B281 -> 9236718 | AV65: =VLOOKUP(AU65,CENY!$B$11:$G$1034,2,FALSE) -> PUSH TO OPEN SYNCHRONIZAČNÍ TYČ 2000 MM | AW65: =VLOOKUP(AU65,CENY!$B$11:$G$1034,3,FALSE) -> 100 | AY65: =IF((AY1+AY3)>1,SUM(AY1:AY4)*Y26-1*Y26,SUM(AY1:AY4)*Y26) -> 0 | AZ65: =VLOOKUP(AU65,CENY!$B$11:$M$2005,12,FALSE) -> 144.3 | BA65: 0 | BC65: =OBJ!B289 -> 9256956 | BD65: =VLOOKUP(BC65,CENY!$B$11:$G$1034,2,FALSE) -> QUADRO YOU 10 KG PLNOVÝSUV 350 MM EB21 SILENT SYSTEM SADA | BE65: =VLOOKUP(BC65,CENY!$B$11:$G$1034,3,FALSE) -> 1 | BG65: =AE$19 -> 0 | BH65: =VLOOKUP(BC65,CENY!$B$11:$M$2005,12,FALSE) -> 421.61 | BI65: 0
AU66: =OBJ!B282 -> 9221295 | AV66: =VLOOKUP(AU66,CENY!$B$11:$G$1034,2,FALSE) -> PUSH TO OPEN SYNCHRO SPOJKA | AW66: =VLOOKUP(AU66,CENY!$B$11:$G$1034,3,FALSE) -> 20 | AY66: =Q27 -> 0 | AZ66: =VLOOKUP(AU66,CENY!$B$11:$M$2005,12,FALSE) -> 13.07 | BA66: 0 | BC66: =OBJ!B290 -> 9256944 | BD66: =VLOOKUP(BC66,CENY!$B$11:$G$1034,2,FALSE) -> QUADRO YOU 10 KG PLNOVÝSUV 270 MM EB21 SILENT SYSTEM LEVÝ | BE66: =VLOOKUP(BC66,CENY!$B$11:$G$1034,3,FALSE) -> 20 | BG66: =AE$19 -> 0 | BH66: =VLOOKUP(BC66,CENY!$B$11:$M$2005,12,FALSE) -> 174.19 | BI66: 0
B67: =verze!E13 -> << zpět | G67: =verze!E6 -> Úvod | O67: =verze!E7 -> Výběr zásuvek | U67: =verze!E8 ->  | AA67: =verze!E9 ->  | AI67: =verze!E10 -> Objednávka | AO67: =verze!E14 -> vpřed >> | AU67: =OBJ!B283 -> 9278452 | AV67: =VLOOKUP(AU67,CENY!$B$11:$G$1034,2,FALSE) -> PUSH TO OPEN SILENT ACTRO YOU MULTISYNCHRO - SPOJKA | AW67: =VLOOKUP(AU67,CENY!$B$11:$G$1034,3,FALSE) -> 20 | AY67: =IF((AY1+AY3)<2,SUM(AY1:AY4)*S27,1*(S26)+SUM(AY1:AY4)*S27) -> 0 | AZ67: =VLOOKUP(AU67,CENY!$B$11:$M$2005,12,FALSE) -> 35.33 | BA67: 0 | BC67: =OBJ!B291 -> 9256945 | BD67: =VLOOKUP(BC67,CENY!$B$11:$G$1034,2,FALSE) -> QUADRO YOU 10 KG PLNOVÝSUV 270 MM EB21 SILENT SYSTEM PRAVÝ | BE67: =VLOOKUP(BC67,CENY!$B$11:$G$1034,3,FALSE) -> 20 | BG67: =AG$19 -> 0 | BH67: =VLOOKUP(BC67,CENY!$B$11:$M$2005,12,FALSE) -> 174.19 | BI67: 0
AU68: =OBJ!B284 -> 9262213 | AV68: =VLOOKUP(AU68,CENY!$B$11:$G$1034,2,FALSE) -> PUSH TO OPEN SILENT SYNCHRO ADAPTÉR FLEXIBILNÍ | AW68: =VLOOKUP(AU68,CENY!$B$11:$G$1034,3,FALSE) -> 20 | AY68: =IF((AY1+AY3)<2,SUM(AY1:AY4)*U27,1*(U26)+SUM(AY1:AY4)*U27) -> 0 | AZ68: =VLOOKUP(AU68,CENY!$B$11:$M$2005,12,FALSE) -> 82.35 | BA68: 0 | BC68: =OBJ!B292 -> 9256946 | BD68: =VLOOKUP(BC68,CENY!$B$11:$G$1034,2,FALSE) -> QUADRO YOU 10 KG PLNOVÝSUV 300 MM EB21 SILENT SYSTEM LEVÝ | BE68: =VLOOKUP(BC68,CENY!$B$11:$G$1034,3,FALSE) -> 20 | BG68: =AG$19 -> 0 | BH68: =VLOOKUP(BC68,CENY!$B$11:$M$2005,12,FALSE) -> 172.7 | BI68: 0
B69: Zásuvka ATIRA 144 | AU69: =OBJ!B285 -> 9278453 | AV69: =VLOOKUP(AU69,CENY!$B$11:$G$1034,2,FALSE) -> PUSH TO OPEN SILENT ACTRO YOU SYNCHRO POSUNUTÉ NAPOJENÍ | AW69: =VLOOKUP(AU69,CENY!$B$11:$G$1034,3,FALSE) -> 1 | AY69: =IF((AY1+AY3)<2,SUM(AY1:AY4)*W27,1*(W26)+SUM(AY1:AY4)*W27) -> 0 | AZ69: =VLOOKUP(AU69,CENY!$B$11:$M$2005,12,FALSE) -> 783.93 | BA69: 0 | BC69: =OBJ!B293 -> 9256947 | BD69: =VLOOKUP(BC69,CENY!$B$11:$G$1034,2,FALSE) -> QUADRO YOU 10 KG PLNOVÝSUV 300 MM EB21 SILENT SYSTEM PRAVÝ | BE69: =VLOOKUP(BC69,CENY!$B$11:$G$1034,3,FALSE) -> 20 | BG69: =IF((AY1+AY3)>1,SUM(AY1:AY4)*AI19-1*AI19,SUM(AY1:AY4)*AI19) -> 0 | BH69: =VLOOKUP(BC69,CENY!$B$11:$M$2005,12,FALSE) -> 172.7 | BI69: 0
AU70: =OBJ!B286 -> 0 | AV70: =VLOOKUP(AU70,CENY!$B$11:$G$1034,2,FALSE) ->  | AW70: =VLOOKUP(AU70,CENY!$B$11:$G$1034,3,FALSE) ->  | AY70: =IF((AY1+AY3)<2,SUM(AY1:AY4)*Y27,1*(Y26)+SUM(AY1:AY4)*Y27) -> 0 | AZ70: =VLOOKUP(AU70,CENY!$B$11:$M$2005,12,FALSE) ->  | BA70: =IF(AZ70="","",AZ70*AY70) ->  | BC70: =OBJ!B294 -> 9256950 | BD70: =VLOOKUP(BC70,CENY!$B$11:$G$1034,2,FALSE) -> QUADRO YOU 10 KG PLNOVÝSUV 350 MM EB21 SILENT SYSTEM LEVÝ | BE70: =VLOOKUP(BC70,CENY!$B$11:$G$1034,3,FALSE) -> 20 | BG70: =IF((AY1+AY3)>1,SUM(AY1:AY4)*AI19-1*AI19,SUM(AY1:AY4)*AI19) -> 0 | BH70: =VLOOKUP(BC70,CENY!$B$11:$M$2005,12,FALSE) -> 176.43 | BI70: 0
AU71: =OBJ!B287 -> 9256953 | AV71: =VLOOKUP(AU71,CENY!$B$11:$G$1034,2,FALSE) -> QUADRO YOU 10 KG PLNOVÝSUV 270 MM EB21 SILENT SYSTEM SADA | AW71: =VLOOKUP(AU71,CENY!$B$11:$G$1034,3,FALSE) -> 1 | AY71: =SUM(AY1:AY4)*AA27 -> 0 | AZ71: =VLOOKUP(AU71,CENY!$B$11:$M$2005,12,FALSE) -> 413.4 | BA71: =IF(AZ71="","",AZ71*AY71) -> 0 | BC71: =OBJ!B295 -> 9256951 | BD71: =VLOOKUP(BC71,CENY!$B$11:$G$1034,2,FALSE) -> QUADRO YOU 10 KG PLNOVÝSUV 350 MM EB21 SILENT SYSTEM PRAVÝ | BE71: =VLOOKUP(BC71,CENY!$B$11:$G$1034,3,FALSE) -> 20 | BG71: =IF((AY1+AY3)>1,SUM(AY1:AY4)*AK19-1*AK19,SUM(AY1:AY4)*AK19) -> 0 | BH71: =VLOOKUP(BC71,CENY!$B$11:$M$2005,12,FALSE) -> 176.43 | BI71: 0
BA72: =IF(AZ72="","",AZ72*AY72) ->  | BC72: =OBJ!B296 -> 0 | BD72: =VLOOKUP(BC72,CENY!$B$11:$G$1034,2,FALSE) ->  | BE72: =VLOOKUP(BC72,CENY!$B$11:$G$1034,3,FALSE) ->  | BG72: =IF((AY1+AY3)>1,SUM(AY1:AY4)*AK19-1*AK19,SUM(AY1:AY4)*AK19) -> 0 | BH72: =VLOOKUP(BC72,CENY!$B$11:$M$2005,12,FALSE) -> 
AU73: 1065191 | AV73: =VLOOKUP(AU73,CENY!$B$11:$G$1034,2,FALSE) ->  | AW73: =VLOOKUP(AU73,CENY!$B$11:$G$1034,3,FALSE) ->  | AY73: =IF(FORM!AM8=FORM!AU10,((2*(AY1+AY3))*(SUM(O19:Z20)+SUM(Q21:AB21)+SUM(O26:Z26)+SUM(Q27:AB27))),0) -> 0 | AZ73: =VLOOKUP(AU73,CENY!$B$11:$M$2005,12,FALSE) ->  | BC73: =OBJ!B297 -> 9256883 | BD73: =VLOOKUP(BC73,CENY!$B$11:$G$1034,2,FALSE) -> QUADRO YOU PLNOVÝSUV 270 MM EB21 SILENT SYSTEM SADA | BE73: =VLOOKUP(BC73,CENY!$B$11:$G$1034,3,FALSE) -> 1 | BG73: =IF((AY1+AY3)>1,SUM(AY1:AY4)*AM19-1*AM19,SUM(AY1:AY4)*AM19) -> 0 | BH73: =VLOOKUP(BC73,CENY!$B$11:$M$2005,12,FALSE) -> 372.29 | BI73: 0
AU74: 9002503 | AV74: =VLOOKUP(AU74,CENY!$B$11:$G$1034,2,FALSE) ->  | AW74: =VLOOKUP(AU74,CENY!$B$11:$G$1034,3,FALSE) ->  | AY74: =IF(FORM!AM8=FORM!AU10,((2*AY3)*(SUM(O19:Z20)+SUM(Q21:AB21)+SUM(O26:Z26)+SUM(Q27:AB27))),0) -> 0 | AZ74: =VLOOKUP(AU74,CENY!$B$11:$M$2005,12,FALSE) ->  | BA74: =IF(AZ74="","",AZ74*AY74) ->  | BC74: =OBJ!B298 -> 9256884 | BD74: =VLOOKUP(BC74,CENY!$B$11:$G$1034,2,FALSE) -> QUADRO YOU PLNOVÝSUV 300 MM EB21 SILENT SYSTEM SADA | BE74: =VLOOKUP(BC74,CENY!$B$11:$G$1034,3,FALSE) -> 1 | BG74: =IF((AY1+AY3)>1,SUM(AY1:AY4)*AM19-1*AM19,SUM(AY1:AY4)*AM19) -> 0 | BH74: =VLOOKUP(BC74,CENY!$B$11:$M$2005,12,FALSE) -> 369.3 | BI74: 0
BA75: =IF(AZ75="","",AZ75*AY75) ->  | BC75: =OBJ!B299 -> 9256886 | BD75: =VLOOKUP(BC75,CENY!$B$11:$G$1034,2,FALSE) -> QUADRO YOU PLNOVÝSUV 350 MM EB21 SILENT SYSTEM SADA | BE75: =VLOOKUP(BC75,CENY!$B$11:$G$1034,3,FALSE) -> 1 | BG75: =IF((AY1+AY3)>1,SUM(AY1:AY4)*AO19-1*AO19,SUM(AY1:AY4)*AO19) -> 0 | BH75: =VLOOKUP(BC75,CENY!$B$11:$M$2005,12,FALSE) -> 376.77 | BI75: 0
BC76: =OBJ!B300 -> 9256888 | BD76: =VLOOKUP(BC76,CENY!$B$11:$G$1034,2,FALSE) -> QUADRO YOU PLNOVÝSUV 400 MM EB21 SILENT SYSTEM SADA | BE76: =VLOOKUP(BC76,CENY!$B$11:$G$1034,3,FALSE) -> 1 | BG76: =IF((AY1+AY3)>1,SUM(AY1:AY4)*AO19-1*AO19,SUM(AY1:AY4)*AO19) -> 0 | BH76: =VLOOKUP(BC76,CENY!$B$11:$M$2005,12,FALSE) -> 384.24 | BI76: 0
AU77: =OBJ!B186 -> 0 | AV77: =VLOOKUP(AU77,CENY!$B$11:$G$1034,2,FALSE) ->  | AW77: =VLOOKUP(AU77,CENY!$B$11:$G$1034,3,FALSE) ->  | AY77: =((AY2+AY4)*((SUM(O19:Z20)+SUM(Q21:AB21)+SUM(O26:Z26)+SUM(Q27:AB27))+1*(SUM(AE19:AP20)+SUM(AG21:AR21)+SUM(AE26:AP26)+SUM(AG27:AR27))))-(AU106*(AY2+AY4)) -> 0 | AZ77: =VLOOKUP(AU77,CENY!$B$11:$M$2005,12,FALSE) ->  | BA77: =IF(AZ77="","",AZ77*AY77) ->  | BC77: =OBJ!B301 -> 9256890 | BD77: =VLOOKUP(BC77,CENY!$B$11:$G$1034,2,FALSE) -> QUADRO YOU PLNOVÝSUV 450 MM EB21 SILENT SYSTEM SADA | BE77: =VLOOKUP(BC77,CENY!$B$11:$G$1034,3,FALSE) -> 1 | BG77: =AE$20 -> 0 | BH77: =VLOOKUP(BC77,CENY!$B$11:$M$2005,12,FALSE) -> 391.72 | BI77: 0
AU78: =OBJ!B187 -> 9257269 | AV78: =VLOOKUP(AU78,CENY!$B$11:$G$1034,2,FALSE) -> AVANTECH YOU ALU PROFIL VNITŘNÍ ČELO V101 MM L2000 MM STŘÍBRNÁ | AW78: =VLOOKUP(AU78,CENY!$B$11:$G$1034,3,FALSE) -> 1 | AY78: =((AY2)*((SUM(O19:Z20)+SUM(Q21:AB21)+SUM(O26:Z26)+SUM(Q27:AB27))+1*(SUM(AE19:AP20)+SUM(AG21:AR21)+SUM(AE26:AP26)+SUM(AG27:AR27))))-(AU106*(AY2)) -> 0 | AZ78: =VLOOKUP(AU78,CENY!$B$11:$M$2005,12,FALSE) -> 1421.71 | BA78: =IF(AZ78="","",AZ78*AY78) -> 0 | BC78: =OBJ!B302 -> 9256892 | BD78: =VLOOKUP(BC78,CENY!$B$11:$G$1034,2,FALSE) -> QUADRO YOU PLNOVÝSUV 500 MM EB21 SILENT SYSTEM SADA | BE78: =VLOOKUP(BC78,CENY!$B$11:$G$1034,3,FALSE) -> 1 | BG78: =AE$20 -> 0 | BH78: =VLOOKUP(BC78,CENY!$B$11:$M$2005,12,FALSE) -> 399.19 | BI78: 0
AU79: =OBJ!B188 -> 9257270 | AV79: =VLOOKUP(AU79,CENY!$B$11:$G$1034,2,FALSE) -> AVANTECH YOU ALU PROFIL VNITŘNÍ ČELO V139 MM L2000 MM STŘÍBRNÁ | AW79: =VLOOKUP(AU79,CENY!$B$11:$G$1034,3,FALSE) -> 1 | AY79: =((AY4)*((SUM(O19:Z20)+SUM(Q21:AB21)+SUM(O26:Z26)+SUM(Q27:AB27))+1*(SUM(AE19:AP20)+SUM(AG21:AR21)+SUM(AE26:AP26)+SUM(AG27:AR27))))-(AU106*(AY4)) -> 0 | AZ79: =VLOOKUP(AU79,CENY!$B$11:$M$2005,12,FALSE) -> 1700.74 | BA79: =IF(AZ79="","",AZ79*AY79) -> 0 | BC79: =OBJ!B303 -> 9256894 | BD79: =VLOOKUP(BC79,CENY!$B$11:$G$1034,2,FALSE) -> QUADRO YOU PLNOVÝSUV 550 MM EB21 SILENT SYSTEM SADA | BE79: =VLOOKUP(BC79,CENY!$B$11:$G$1034,3,FALSE) -> 1 | BG79: =AG$20 -> 0 | BH79: =VLOOKUP(BC79,CENY!$B$11:$M$2005,12,FALSE) -> 412.64 | BI79: 0
AU80: =OBJ!B189 -> 9257271 | AV80: =VLOOKUP(AU80,CENY!$B$11:$G$1034,2,FALSE) -> AVANTECH YOU ALU PROFIL VNITŘNÍ ČELO V187 MM L2000 MM STŘÍBRNÁ | AW80: =VLOOKUP(AU80,CENY!$B$11:$G$1034,3,FALSE) -> 1 | AY80: =((AY4)*((SUM(O19:Z20)+SUM(Q21:AB21)+SUM(O26:Z26)+SUM(Q27:AB27))+1*(SUM(AE19:AP20)+SUM(AG21:AR21)+SUM(AE26:AP26)+SUM(AG27:AR27))))-(AU106*(AY4)) -> 0 | AZ80: =VLOOKUP(AU80,CENY!$B$11:$M$2005,12,FALSE) -> 2125.92 | BA80: =IF(AZ80="","",AZ80*AY80) -> 0 | BC80: =OBJ!B304 -> 9256896 | BD80: =VLOOKUP(BC80,CENY!$B$11:$G$1034,2,FALSE) -> QUADRO YOU PLNOVÝSUV 600 MM EB21 SILENT SYSTEM SADA | BE80: =VLOOKUP(BC80,CENY!$B$11:$G$1034,3,FALSE) -> 1 | BG80: =AG$20 -> 0 | BH80: =VLOOKUP(BC80,CENY!$B$11:$M$2005,12,FALSE) -> 420.11 | BI80: 0
BA81: =IF(AZ81="","",AZ81*AY81) ->  | BC81: =OBJ!B305 -> 9256854 | BD81: =VLOOKUP(BC81,CENY!$B$11:$G$1034,2,FALSE) -> QUADRO YOU PLNOVÝSUV 270 MM EB21 SILENT SYSTEM LEVÝ | BE81: =VLOOKUP(BC81,CENY!$B$11:$G$1034,3,FALSE) -> 20 | BG81: =IF((AY1+AY3)>1,SUM(AY1:AY4)*AI20-1*AI20,SUM(AY1:AY4)*AI20) -> 0 | BH81: =VLOOKUP(BC81,CENY!$B$11:$M$2005,12,FALSE) -> 174.19 | BI81: 0
B82: =verze!E162 -> Čelo na vnitřní zásuvku | O82: =verze!E163 -> vnější rozměry zásuvkové skřínky [mm] | AU82: =OBJ!B191 -> 9257611 | AV82: =VLOOKUP(AU82,CENY!$B$11:$G$1034,2,FALSE) -> AVANTECH YOU SADA SPOJEK PRO VNITŘNÍ ČELO K BOKŮM V101 MM STŘÍBRNÁ | AW82: =VLOOKUP(AU82,CENY!$B$11:$G$1034,3,FALSE) -> 1 | AY82: =AY2*O84 -> 0 | AZ82: =VLOOKUP(AU82,CENY!$B$11:$M$2005,12,FALSE) -> 76.28 | BA82: 0 | BC82: =OBJ!B306 -> 9256855 | BD82: =VLOOKUP(BC82,CENY!$B$11:$G$1034,2,FALSE) -> QUADRO YOU PLNOVÝSUV 270 MM EB21 SILENT SYSTEM PRAVÝ | BE82: =VLOOKUP(BC82,CENY!$B$11:$G$1034,3,FALSE) -> 20 | BG82: =IF((AY1+AY3)>1,SUM(AY1:AY4)*AI20-1*AI20,SUM(AY1:AY4)*AI20) -> 0 | BH82: =VLOOKUP(BC82,CENY!$B$11:$M$2005,12,FALSE) -> 174.19 | BI82: 0
N83: =verze!E166&" " -> Šířka korpusu: | O83: 300 | Q83: 400 | S83: 450 | U83: 500 | W83: 600 | Y83: 800 | AA83: 900 | AC83: 1000 | AE83: 1200 | AU83: =OBJ!B192 -> 9257612 | AV83: =VLOOKUP(AU83,CENY!$B$11:$G$1034,2,FALSE) -> AVANTECH YOU SADA SPOJEK PRO VNITŘNÍ ČELO K BOKŮM V139 MM STŘÍBRNÁ | AW83: =VLOOKUP(AU83,CENY!$B$11:$G$1034,3,FALSE) -> 1 | AY83: =AY2*Q84 -> 0 | AZ83: =VLOOKUP(AU83,CENY!$B$11:$M$2005,12,FALSE) -> 96.7 | BA83: 0 | BC83: =OBJ!B307 -> 9256856 | BD83: =VLOOKUP(BC83,CENY!$B$11:$G$1034,2,FALSE) -> QUADRO YOU PLNOVÝSUV 300 MM EB21 SILENT SYSTEM LEVÝ | BE83: =VLOOKUP(BC83,CENY!$B$11:$G$1034,3,FALSE) -> 20 | BG83: =IF((AY1+AY3)>1,SUM(AY1:AY4)*AK20-1*AK20,SUM(AY1:AY4)*AK20) -> 0 | BH83: =VLOOKUP(BC83,CENY!$B$11:$M$2005,12,FALSE) -> 172.7 | BI83: 0
B84: =" "&verze!E167 -> ALU čelo | AU84: =OBJ!B193 -> 9257613 | AV84: =VLOOKUP(AU84,CENY!$B$11:$G$1034,2,FALSE) -> AVANTECH YOU SADA SPOJEK PRO VNITŘNÍ ČELO K BOKŮM V187 MM STŘÍBRNÁ | AW84: =VLOOKUP(AU84,CENY!$B$11:$G$1034,3,FALSE) -> 1 | AY84: =AY2*S84 -> 0 | AZ84: =VLOOKUP(AU84,CENY!$B$11:$M$2005,12,FALSE) -> 135.11 | BA84: 0 | BC84: =OBJ!B308 -> 9256857 | BD84: =VLOOKUP(BC84,CENY!$B$11:$G$1034,2,FALSE) -> QUADRO YOU PLNOVÝSUV 300 MM EB21 SILENT SYSTEM PRAVÝ | BE84: =VLOOKUP(BC84,CENY!$B$11:$G$1034,3,FALSE) -> 20 | BG84: =IF((AY1+AY3)>1,SUM(AY1:AY4)*AK20-1*AK20,SUM(AY1:AY4)*AK20) -> 0 | BH84: =VLOOKUP(BC84,CENY!$B$11:$M$2005,12,FALSE) -> 172.7 | BI84: 0
AU85: =OBJ!#REF! ->  | AV85: =VLOOKUP(AU85,CENY!$B$11:$G$1034,2,FALSE) ->  | AW85: =VLOOKUP(AU85,CENY!$B$11:$G$1034,3,FALSE) ->  | AY85: =AY2*U84 -> 0 | AZ85: =VLOOKUP(AU85,CENY!$B$11:$M$2005,12,FALSE) ->  | BC85: =OBJ!B309 -> 9256860 | BD85: =VLOOKUP(BC85,CENY!$B$11:$G$1034,2,FALSE) -> QUADRO YOU PLNOVÝSUV 350 MM EB21 SILENT SYSTEM LEVÝ | BE85: =VLOOKUP(BC85,CENY!$B$11:$G$1034,3,FALSE) -> 20 | BG85: =IF((AY1+AY3)>1,SUM(AY1:AY4)*AM20-1*AM20,SUM(AY1:AY4)*AM20) -> 0 | BH85: =VLOOKUP(BC85,CENY!$B$11:$M$2005,12,FALSE) -> 176.43 | BI85: 0
AR86: =IF(SUM(O84:AF84)=0,verze!E175&" "&AU104&" "&verze!E176,"") -> Je potřebné vybrat vnitřní čela na 0 skříň (skříně). | AU86: =OBJ!B194 -> 9257623 | AV86: =VLOOKUP(AU86,CENY!$B$11:$G$1034,2,FALSE) -> AVANTECH YOU SADA SPOJEK PRO VNITŘNÍ ČELO K BOKŮM INLAY V187 MM STŘÍBRNÁ | AW86: =VLOOKUP(AU86,CENY!$B$11:$G$1034,3,FALSE) -> 1 | AY86: =AY2*W84 -> 0 | AZ86: =VLOOKUP(AU86,CENY!$B$11:$M$2005,12,FALSE) -> 121.83 | BA86: 0 | BC86: =OBJ!B310 -> 9256861 | BD86: =VLOOKUP(BC86,CENY!$B$11:$G$1034,2,FALSE) -> QUADRO YOU PLNOVÝSUV 350 MM EB21 SILENT SYSTEM PRAVÝ | BE86: =VLOOKUP(BC86,CENY!$B$11:$G$1034,3,FALSE) -> 20 | BG86: =IF((AY1+AY3)>1,SUM(AY1:AY4)*AM20-1*AM20,SUM(AY1:AY4)*AM20) -> 0 | BH86: =VLOOKUP(BC86,CENY!$B$11:$M$2005,12,FALSE) -> 176.43 | BI86: 0
AR87: =IF(AU106=0,"",IF(AU104=AU106,verze!E174,IF(AU107<0,verze!E177&" "&AU108&" "&verze!E176,verze!E178&" "&AU107&" "&verze!E179))) ->  | BC87: =OBJ!B311 -> 9256864 | BD87: =VLOOKUP(BC87,CENY!$B$11:$G$1034,2,FALSE) -> QUADRO YOU PLNOVÝSUV 400 MM EB21 SILENT SYSTEM LEVÝ | BE87: =VLOOKUP(BC87,CENY!$B$11:$G$1034,3,FALSE) -> 20 | BG87: =IF((AY1+AY3)>1,SUM(AY1:AY4)*AO20-1*AO20,SUM(AY1:AY4)*AO20) -> 0 | BH87: =VLOOKUP(BC87,CENY!$B$11:$M$2005,12,FALSE) -> 180.17 | BI87: 0
AU88: =OBJ!B201 -> 9257734 | AV88: =VLOOKUP(AU88,CENY!$B$11:$G$1034,2,FALSE) -> AVANTECH YOU UNAŠEČ PRO VNITŘNÍ ČELO SADA STŘÍBRNÁ | AW88: =VLOOKUP(AU88,CENY!$B$11:$G$1034,3,FALSE) -> 1 | AY88: =AY4*O84 -> 0 | AZ88: =VLOOKUP(AU88,CENY!$B$11:$M$2005,12,FALSE) -> 139.51 | BA88: 0 | BC88: =OBJ!B312 -> 9256865 | BD88: =VLOOKUP(BC88,CENY!$B$11:$G$1034,2,FALSE) -> QUADRO YOU PLNOVÝSUV 400 MM EB21 SILENT SYSTEM PRAVÝ | BE88: =VLOOKUP(BC88,CENY!$B$11:$G$1034,3,FALSE) -> 20 | BG88: =IF((AY1+AY3)>1,SUM(AY1:AY4)*AO20-1*AO20,SUM(AY1:AY4)*AO20) -> 0 | BH88: =VLOOKUP(BC88,CENY!$B$11:$M$2005,12,FALSE) -> 180.17 | BI88: 0
AU89: =OBJ!B202 -> 0 | AV89: =VLOOKUP(AU89,CENY!$B$11:$G$1034,2,FALSE) ->  | AW89: =VLOOKUP(AU89,CENY!$B$11:$G$1034,3,FALSE) ->  | AY89: =AY4*Q84 -> 0 | AZ89: =VLOOKUP(AU89,CENY!$B$11:$M$2005,12,FALSE) ->  | BC89: =OBJ!B313 -> 9256868 | BD89: =VLOOKUP(BC89,CENY!$B$11:$G$1034,2,FALSE) -> QUADRO YOU PLNOVÝSUV 450 MM EB21 SILENT SYSTEM LEVÝ | BE89: =VLOOKUP(BC89,CENY!$B$11:$G$1034,3,FALSE) -> 20 | BG89: =AG$21 -> 0 | BH89: =VLOOKUP(BC89,CENY!$B$11:$M$2005,12,FALSE) -> 183.9 | BI89: 0
AU90: =OBJ!B203 -> 9257663 | AV90: =VLOOKUP(AU90,CENY!$B$11:$G$1034,2,FALSE) -> AVANTECH YOU NOSNÝ PROFIL PRO VNITŘNÍ ČELO INLAY L2000 MM STŘÍBRNÁ | AW90: =VLOOKUP(AU90,CENY!$B$11:$G$1034,3,FALSE) -> 1 | AY90: =AY4*S84 -> 0 | AZ90: =VLOOKUP(AU90,CENY!$B$11:$M$2005,12,FALSE) -> 710.85 | BA90: 0 | BC90: =OBJ!B314 -> 9256869 | BD90: =VLOOKUP(BC90,CENY!$B$11:$G$1034,2,FALSE) -> QUADRO YOU PLNOVÝSUV 450 MM EB21 SILENT SYSTEM PRAVÝ | BE90: =VLOOKUP(BC90,CENY!$B$11:$G$1034,3,FALSE) -> 20 | BG90: =AG$21 -> 0 | BH90: =VLOOKUP(BC90,CENY!$B$11:$M$2005,12,FALSE) -> 183.9 | BI90: 0
AU91: =OBJ!B204 -> 9257651 | AV91: =VLOOKUP(AU91,CENY!$B$11:$G$1034,2,FALSE) -> AVANTECH YOU SADA SPOJEK PRO VNITŘNÍ ČELO INLAY K BOKŮM STANDARD V187 MM STŘÍBRNÁ | AW91: =VLOOKUP(AU91,CENY!$B$11:$G$1034,3,FALSE) -> 1 | AY91: =AY4*U84 -> 0 | AZ91: =VLOOKUP(AU91,CENY!$B$11:$M$2005,12,FALSE) -> 492.14 | BA91: =IF(AZ91="","",AZ91*AY91) -> 0 | BC91: =OBJ!B315 -> 9256872 | BD91: =VLOOKUP(BC91,CENY!$B$11:$G$1034,2,FALSE) -> QUADRO YOU PLNOVÝSUV 500 MM EB21 SILENT SYSTEM LEVÝ | BE91: =VLOOKUP(BC91,CENY!$B$11:$G$1034,3,FALSE) -> 20 | BG91: =IF((AY1+AY3)<2,SUM(AY1:AY4)*AI21,1*(AI20+AI19)+SUM(AY1:AY4)*AI21) -> 0 | BH91: =VLOOKUP(BC91,CENY!$B$11:$M$2005,12,FALSE) -> 187.64 | BI91: 0
AU92: =OBJ!B205 -> 9257657 | AV92: =VLOOKUP(AU92,CENY!$B$11:$G$1034,2,FALSE) -> AVANTECH YOU SADA SPOJEK PRO VNITŘNÍ ČELO INLAY K BOKŮM INLAY V187 MM STŘÍBRNÁ | AW92: =VLOOKUP(AU92,CENY!$B$11:$G$1034,3,FALSE) -> 1 | AY92: =AY4*W84 -> 0 | AZ92: =VLOOKUP(AU92,CENY!$B$11:$M$2005,12,FALSE) -> 492.14 | BA92: =IF(AZ92="","",AZ92*AY92) -> 0 | BC92: =OBJ!B316 -> 9256873 | BD92: =VLOOKUP(BC92,CENY!$B$11:$G$1034,2,FALSE) -> QUADRO YOU PLNOVÝSUV 500 MM EB21 SILENT SYSTEM PRAVÝ | BE92: =VLOOKUP(BC92,CENY!$B$11:$G$1034,3,FALSE) -> 20 | BG92: =IF((AY1+AY3)<2,SUM(AY1:AY4)*AI21,1*(AI20+AI19)+SUM(AY1:AY4)*AI21) -> 0 | BH92: =VLOOKUP(BC92,CENY!$B$11:$M$2005,12,FALSE) -> 187.64 | BI92: =IF(BH92="","",BH92*BG92) -> 0
BC93: =OBJ!B317 -> 9256876 | BD93: =VLOOKUP(BC93,CENY!$B$11:$G$1034,2,FALSE) -> QUADRO YOU PLNOVÝSUV 550 MM EB21 SILENT SYSTEM LEVÝ | BE93: =VLOOKUP(BC93,CENY!$B$11:$G$1034,3,FALSE) -> 20 | BG93: =IF((AY1+AY3)<2,SUM(AY1:AY4)*AK21,1*(AK20+AK19)+SUM(AY1:AY4)*AK21) -> 0 | BH93: =VLOOKUP(BC93,CENY!$B$11:$M$2005,12,FALSE) -> 194.36 | BI93: 0
BC94: =OBJ!B318 -> 9256877 | BD94: =VLOOKUP(BC94,CENY!$B$11:$G$1034,2,FALSE) -> QUADRO YOU PLNOVÝSUV 550 MM EB21 SILENT SYSTEM PRAVÝ | BE94: =VLOOKUP(BC94,CENY!$B$11:$G$1034,3,FALSE) -> 20 | BG94: =IF((AY1+AY3)<2,SUM(AY1:AY4)*AK21,1*(AK20+AK19)+SUM(AY1:AY4)*AK21) -> 0 | BH94: =VLOOKUP(BC94,CENY!$B$11:$M$2005,12,FALSE) -> 194.36 | BI94: 0
AU95: =OBJ!B433 -> 9099540 | AV95: =VLOOKUP(AU95,CENY!$B$11:$G$1034,2,FALSE) -> SENSYS 8657I 165° B12,5 TH52 | AW95: =VLOOKUP(AU95,CENY!$B$11:$G$1034,3,FALSE) -> 50 | AY95: =VLOOKUP(SUM(AY2:AY4),AZ106:BA113,2,FALSE)*((SUM(O19:Z20)+SUM(Q21:AB21)+SUM(O26:Z26)+SUM(Q27:AB27))+(SUM(AE19:AP20)+SUM(AG21:AR21)+SUM(AE26:AP26)+SUM(AG27:AR27))) -> 0 | AZ95: =VLOOKUP(AU95,CENY!$B$11:$M$2005,12,FALSE) -> 142.76 | BA95: 0 | BC95: =OBJ!B319 -> 9256880 | BD95: =VLOOKUP(BC95,CENY!$B$11:$G$1034,2,FALSE) -> QUADRO YOU PLNOVÝSUV 600 MM EB21 SILENT SYSTEM LEVÝ | BE95: =VLOOKUP(BC95,CENY!$B$11:$G$1034,3,FALSE) -> 20 | BG95: =IF((AY1+AY3)<2,SUM(AY1:AY4)*AM21,1*(AM20+AM19)+SUM(AY1:AY4)*AM21) -> 0 | BH95: =VLOOKUP(BC95,CENY!$B$11:$M$2005,12,FALSE) -> 198.1 | BI95: 0
AU96: =OBJ!B434 -> 9099600 | AV96: =VLOOKUP(AU96,CENY!$B$11:$G$1034,2,FALSE) -> SENSYS 8657 165° B12,5 TH52 BEZ TLUMIČE | AW96: =VLOOKUP(AU96,CENY!$B$11:$G$1034,3,FALSE) -> 50 | AY96: 0 | AZ96: =VLOOKUP(AU96,CENY!$B$11:$M$2005,12,FALSE) -> 124.34 | BA96: 0 | BC96: =OBJ!B320 -> 9256881 | BD96: =VLOOKUP(BC96,CENY!$B$11:$G$1034,2,FALSE) -> QUADRO YOU PLNOVÝSUV 600 MM EB21 SILENT SYSTEM PRAVÝ | BE96: =VLOOKUP(BC96,CENY!$B$11:$G$1034,3,FALSE) -> 20 | BG96: =IF((AY1+AY3)<2,SUM(AY1:AY4)*AM21,1*(AM20+AM19)+SUM(AY1:AY4)*AM21) -> 0 | BH96: =VLOOKUP(BC96,CENY!$B$11:$M$2005,12,FALSE) -> 198.1 | BI96: 0
AU97: =OBJ!B435 -> 9099660 | AV97: =VLOOKUP(AU97,CENY!$B$11:$G$1034,2,FALSE) -> SENSYS 8687 165° B12,5 TH52 BEZ PRUŽINY | AW97: =VLOOKUP(AU97,CENY!$B$11:$G$1034,3,FALSE) -> 50 | AY97: 0 | AZ97: =VLOOKUP(AU97,CENY!$B$11:$M$2005,12,FALSE) -> 128.94 | BA97: 0 | BC97: =OBJ!B321 -> 0 | BD97: =VLOOKUP(BC97,CENY!$B$11:$G$1034,2,FALSE) ->  | BE97: =VLOOKUP(BC97,CENY!$B$11:$G$1034,3,FALSE) ->  | BG97: =IF((AY1+AY3)<2,SUM(AY1:AY4)*AO21,1*(AO20+AO19)+SUM(AY1:AY4)*AO21) -> 0 | BH97: =VLOOKUP(BC97,CENY!$B$11:$M$2005,12,FALSE) -> 
AU98: =OBJ!B436 -> 9071576 | AV98: =VLOOKUP(AU98,CENY!$B$11:$G$1034,2,FALSE) -> PODLOŽKA 8099 D1,5 | AW98: =VLOOKUP(AU98,CENY!$B$11:$G$1034,3,FALSE) -> 200 | AY98: =AY95 -> 0 | AZ98: =VLOOKUP(AU98,CENY!$B$11:$M$2005,12,FALSE) -> 7.79 | BA98: 0 | BC98: =OBJ!B322 -> 9257894 | BD98: =VLOOKUP(BC98,CENY!$B$11:$G$1034,2,FALSE) -> PUSH TO OPEN SILENT QUADRO YOU 10 KG | BE98: =VLOOKUP(BC98,CENY!$B$11:$G$1034,3,FALSE) -> 1 | BG98: =IF((AY1+AY3)<2,SUM(AY1:AY4)*AO21,1*(AO20+AO19)+SUM(AY1:AY4)*AO21) -> 0 | BH98: =VLOOKUP(BC98,CENY!$B$11:$M$2005,12,FALSE) -> 544.37 | BI98: 0
AU99: =OBJ!B437 -> 9071671 | AV99: =VLOOKUP(AU99,CENY!$B$11:$G$1034,2,FALSE) -> PODLOŽKA 8099 D1,5 EXCENTR VRUTY | AW99: =VLOOKUP(AU99,CENY!$B$11:$G$1034,3,FALSE) -> 200 | AY99: 0 | AZ99: =VLOOKUP(AU99,CENY!$B$11:$M$2005,12,FALSE) -> 15.98 | BA99: 0 | BC99: =OBJ!B323 -> 9257895 | BD99: =VLOOKUP(BC99,CENY!$B$11:$G$1034,2,FALSE) -> PUSH TO OPEN SILENT QUADRO YOU 20 KG | BE99: =VLOOKUP(BC99,CENY!$B$11:$G$1034,3,FALSE) -> 1 | BG99: =SUM(AY1:AY4)*AQ21 -> 0 | BH99: =VLOOKUP(BC99,CENY!$B$11:$M$2005,12,FALSE) -> 544.37 | BI99: 0
BC100: =OBJ!B324 -> 9257896 | BD100: =VLOOKUP(BC100,CENY!$B$11:$G$1034,2,FALSE) -> PUSH TO OPEN SILENT QUADRO YOU 30 KG | BE100: =VLOOKUP(BC100,CENY!$B$11:$G$1034,3,FALSE) -> 1 | BG100: =SUM(AY1:AY4)*AQ21 -> 0 | BH100: =VLOOKUP(BC100,CENY!$B$11:$M$2005,12,FALSE) -> 544.37 | BI100: 0
BC101: =OBJ!B325 -> 0 | BD101: =VLOOKUP(BC101,CENY!$B$11:$G$1034,2,FALSE) ->  | BE101: =VLOOKUP(BC101,CENY!$B$11:$G$1034,3,FALSE) ->  | BG101: =AE$26 -> 0 | BH101: =VLOOKUP(BC101,CENY!$B$11:$M$2005,12,FALSE) -> 
AU102: =1*(SUM(O19:Z20)+SUM(Q21:AB21)+SUM(O26:Z26)+SUM(Q27:AB27)) -> 0 | AV102: =verze!E174 -> Počet vnitřních čel nyní pasuje s počtem zásuvek. | BC102: =OBJ!B326 -> 9256928 | BD102: =VLOOKUP(BC102,CENY!$B$11:$G$1034,2,FALSE) -> QUADRO YOU PLNOVÝSUV 270 MM EB21 PUSH TO OPEN SADA | BE102: =VLOOKUP(BC102,CENY!$B$11:$G$1034,3,FALSE) -> 1 | BG102: =AE$26 -> 0 | BH102: =VLOOKUP(BC102,CENY!$B$11:$M$2005,12,FALSE) -> 413.4 | BI102: 0
AU103: =1*(SUM(AE19:AP20)+SUM(AG21:AR21)+SUM(AE26:AP26)+SUM(AG27:AR27)) -> 0 | BC103: =OBJ!B327 -> 9256929 | BD103: =VLOOKUP(BC103,CENY!$B$11:$G$1034,2,FALSE) -> QUADRO YOU PLNOVÝSUV 300 MM EB21 PUSH TO OPEN SADA | BE103: =VLOOKUP(BC103,CENY!$B$11:$G$1034,3,FALSE) -> 1 | BG103: =AG$26 -> 0 | BH103: =VLOOKUP(BC103,CENY!$B$11:$M$2005,12,FALSE) -> 414.13 | BI103: 0
AU104: =AU103+AU102 -> 0 | BC104: =OBJ!B328 -> 9256931 | BD104: =VLOOKUP(BC104,CENY!$B$11:$G$1034,2,FALSE) -> QUADRO YOU PLNOVÝSUV 350 MM EB21 PUSH TO OPEN SADA | BE104: =VLOOKUP(BC104,CENY!$B$11:$G$1034,3,FALSE) -> 1 | BG104: =AG$26 -> 0 | BH104: =VLOOKUP(BC104,CENY!$B$11:$M$2005,12,FALSE) -> 421.61 | BI104: 0
AZ105: zásuvky | BA105: závesy | BC105: =OBJ!B329 -> 9256933 | BD105: =VLOOKUP(BC105,CENY!$B$11:$G$1034,2,FALSE) -> QUADRO YOU PLNOVÝSUV 400 MM EB21 PUSH TO OPEN SADA | BE105: =VLOOKUP(BC105,CENY!$B$11:$G$1034,3,FALSE) -> 1 | BG105: =IF((AY1+AY3)>1,SUM(AY1:AY4)*AI26-1*AI26,SUM(AY1:AY4)*AI26) -> 0 | BH105: =VLOOKUP(BC105,CENY!$B$11:$M$2005,12,FALSE) -> 429.08 | BI105: 0
AU106: =SUM(O84:AF84) -> 0 | AZ106: 1 | BA106: 2 | BC106: =OBJ!B330 -> 9256935 | BD106: =VLOOKUP(BC106,CENY!$B$11:$G$1034,2,FALSE) -> QUADRO YOU PLNOVÝSUV 450 MM EB21 PUSH TO OPEN SADA | BE106: =VLOOKUP(BC106,CENY!$B$11:$G$1034,3,FALSE) -> 1 | BG106: =IF((AY1+AY3)>1,SUM(AY1:AY4)*AI26-1*AI26,SUM(AY1:AY4)*AI26) -> 0 | BH106: =VLOOKUP(BC106,CENY!$B$11:$M$2005,12,FALSE) -> 436.55 | BI106: 0
AU107: =AU106-AU104 -> 0 | AZ107: 2 | BA107: 2 | BC107: =OBJ!B331 -> 9256937 | BD107: =VLOOKUP(BC107,CENY!$B$11:$G$1034,2,FALSE) -> QUADRO YOU PLNOVÝSUV 500 MM EB21 PUSH TO OPEN SADA | BE107: =VLOOKUP(BC107,CENY!$B$11:$G$1034,3,FALSE) -> 1 | BG107: =IF((AY1+AY3)>1,SUM(AY1:AY4)*AK26-1*AK26,SUM(AY1:AY4)*AK26) -> 0 | BH107: =VLOOKUP(BC107,CENY!$B$11:$M$2005,12,FALSE) -> 444.02 | BI107: 0
AU108: =AU104-AU106 -> 0 | AZ108: 3 | BA108: 3 | BC108: =OBJ!B332 -> 9256939 | BD108: =VLOOKUP(BC108,CENY!$B$11:$G$1034,2,FALSE) -> QUADRO YOU PLNOVÝSUV 550 MM EB21 PUSH TO OPEN SADA | BE108: =VLOOKUP(BC108,CENY!$B$11:$G$1034,3,FALSE) -> 1 | BG108: =IF((AY1+AY3)>1,SUM(AY1:AY4)*AK26-1*AK26,SUM(AY1:AY4)*AK26) -> 0 | BH108: =VLOOKUP(BC108,CENY!$B$11:$M$2005,12,FALSE) -> 457.48 | BI108: 0
AZ109: 4 | BA109: 3 | BC109: =OBJ!B333 -> 9256941 | BD109: =VLOOKUP(BC109,CENY!$B$11:$G$1034,2,FALSE) -> QUADRO YOU PLNOVÝSUV 600 MM EB21 PUSH TO OPEN SADA | BE109: =VLOOKUP(BC109,CENY!$B$11:$G$1034,3,FALSE) -> 1 | BG109: =IF((AY1+AY3)>1,SUM(AY1:AY4)*AM26-1*AM26,SUM(AY1:AY4)*AM26) -> 0 | BH109: =VLOOKUP(BC109,CENY!$B$11:$M$2005,12,FALSE) -> 464.95 | BI109: 0
AZ110: 5 | BA110: 4 | BC110: =OBJ!B334 -> 9256899 | BD110: =VLOOKUP(BC110,CENY!$B$11:$G$1034,2,FALSE) -> QUADRO YOU PLNOVÝSUV 270 MM EB21 PUSH TO OPEN LEVÝ | BE110: =VLOOKUP(BC110,CENY!$B$11:$G$1034,3,FALSE) -> 20 | BG110: =IF((AY1+AY3)>1,SUM(AY1:AY4)*AM26-1*AM26,SUM(AY1:AY4)*AM26) -> 0 | BH110: =VLOOKUP(BC110,CENY!$B$11:$M$2005,12,FALSE) -> 194.74 | BI110: 0
AZ111: 6 | BA111: 5 | BC111: =OBJ!B335 -> 9256900 | BD111: =VLOOKUP(BC111,CENY!$B$11:$G$1034,2,FALSE) -> QUADRO YOU PLNOVÝSUV 270 MM EB21 PUSH TO OPEN PRAVÝ | BE111: =VLOOKUP(BC111,CENY!$B$11:$G$1034,3,FALSE) -> 20 | BG111: =IF((AY1+AY3)>1,SUM(AY1:AY4)*AO26-1*AO26,SUM(AY1:AY4)*AO26) -> 0 | BH111: =VLOOKUP(BC111,CENY!$B$11:$M$2005,12,FALSE) -> 194.74 | BI111: 0
AZ112: 7 | BA112: 5 | BC112: =OBJ!B336 -> 9256901 | BD112: =VLOOKUP(BC112,CENY!$B$11:$G$1034,2,FALSE) -> QUADRO YOU PLNOVÝSUV 300 MM EB21 PUSH TO OPEN LEVÝ | BE112: =VLOOKUP(BC112,CENY!$B$11:$G$1034,3,FALSE) -> 20 | BG112: =IF((AY1+AY3)>1,SUM(AY1:AY4)*AO26-1*AO26,SUM(AY1:AY4)*AO26) -> 0 | BH112: =VLOOKUP(BC112,CENY!$B$11:$M$2005,12,FALSE) -> 195.11 | BI112: 0
AZ113: 8 | BA113: 5 | BC113: =OBJ!B337 -> 9256902 | BD113: =VLOOKUP(BC113,CENY!$B$11:$G$1034,2,FALSE) -> QUADRO YOU PLNOVÝSUV 300 MM EB21 PUSH TO OPEN PRAVÝ | BE113: =VLOOKUP(BC113,CENY!$B$11:$G$1034,3,FALSE) -> 20 | BG113: =AG$27 -> 0 | BH113: =VLOOKUP(BC113,CENY!$B$11:$M$2005,12,FALSE) -> 195.11 | BI113: 0
BC114: =OBJ!B338 -> 9256905 | BD114: =VLOOKUP(BC114,CENY!$B$11:$G$1034,2,FALSE) -> QUADRO YOU PLNOVÝSUV 350 MM EB21 PUSH TO OPEN LEVÝ | BE114: =VLOOKUP(BC114,CENY!$B$11:$G$1034,3,FALSE) -> 20 | BG114: =AG$27 -> 0 | BH114: =VLOOKUP(BC114,CENY!$B$11:$M$2005,12,FALSE) -> 198.85 | BI114: 0
BC115: =OBJ!B339 -> 9256906 | BD115: =VLOOKUP(BC115,CENY!$B$11:$G$1034,2,FALSE) -> QUADRO YOU PLNOVÝSUV 350 MM EB21 PUSH TO OPEN PRAVÝ | BE115: =VLOOKUP(BC115,CENY!$B$11:$G$1034,3,FALSE) -> 20 | BG115: =IF((AY1+AY3)<2,SUM(AY1:AY4)*AI27,1*(AI26)+SUM(AY1:AY4)*AI27) -> 0 | BH115: =VLOOKUP(BC115,CENY!$B$11:$M$2005,12,FALSE) -> 198.85 | BI115: 0
BC116: =OBJ!B340 -> 9256909 | BD116: =VLOOKUP(BC116,CENY!$B$11:$G$1034,2,FALSE) -> QUADRO YOU PLNOVÝSUV 400 MM EB21 PUSH TO OPEN LEVÝ | BE116: =VLOOKUP(BC116,CENY!$B$11:$G$1034,3,FALSE) -> 20 | BG116: =IF((AY1+AY3)<2,SUM(AY1:AY4)*AI27,1*(AI26)+SUM(AY1:AY4)*AI27) -> 0 | BH116: =VLOOKUP(BC116,CENY!$B$11:$M$2005,12,FALSE) -> 202.58 | BI116: 0
BC117: =OBJ!B341 -> 9256910 | BD117: =VLOOKUP(BC117,CENY!$B$11:$G$1034,2,FALSE) -> QUADRO YOU PLNOVÝSUV 400 MM EB21 PUSH TO OPEN PRAVÝ | BE117: =VLOOKUP(BC117,CENY!$B$11:$G$1034,3,FALSE) -> 20 | BG117: =IF((AY1+AY3)<2,SUM(AY1:AY4)*AK27,1*(AK26)+SUM(AY1:AY4)*AK27) -> 0 | BH117: =VLOOKUP(BC117,CENY!$B$11:$M$2005,12,FALSE) -> 202.58 | BI117: 0
BC118: =OBJ!B342 -> 9256913 | BD118: =VLOOKUP(BC118,CENY!$B$11:$G$1034,2,FALSE) -> QUADRO YOU PLNOVÝSUV 450 MM EB21 PUSH TO OPEN LEVÝ | BE118: =VLOOKUP(BC118,CENY!$B$11:$G$1034,3,FALSE) -> 20 | BG118: =IF((AY1+AY3)<2,SUM(AY1:AY4)*AK27,1*(AK26)+SUM(AY1:AY4)*AK27) -> 0 | BH118: =VLOOKUP(BC118,CENY!$B$11:$M$2005,12,FALSE) -> 206.32 | BI118: 0
BC119: =OBJ!B343 -> 9256914 | BD119: =VLOOKUP(BC119,CENY!$B$11:$G$1034,2,FALSE) -> QUADRO YOU PLNOVÝSUV 450 MM EB21 PUSH TO OPEN PRAVÝ | BE119: =VLOOKUP(BC119,CENY!$B$11:$G$1034,3,FALSE) -> 20 | BG119: =IF((AY1+AY3)<2,SUM(AY1:AY4)*AM27,1*(AM26)+SUM(AY1:AY4)*AM27) -> 0 | BH119: =VLOOKUP(BC119,CENY!$B$11:$M$2005,12,FALSE) -> 206.32 | BI119: 0
BC120: =OBJ!B344 -> 9256917 | BD120: =VLOOKUP(BC120,CENY!$B$11:$G$1034,2,FALSE) -> QUADRO YOU PLNOVÝSUV 500 MM EB21 PUSH TO OPEN LEVÝ | BE120: =VLOOKUP(BC120,CENY!$B$11:$G$1034,3,FALSE) -> 20 | BG120: =IF((AY1+AY3)<2,SUM(AY1:AY4)*AM27,1*(AM26)+SUM(AY1:AY4)*AM27) -> 0 | BH120: =VLOOKUP(BC120,CENY!$B$11:$M$2005,12,FALSE) -> 210.06 | BI120: 0
BC121: =OBJ!B345 -> 9256918 | BD121: =VLOOKUP(BC121,CENY!$B$11:$G$1034,2,FALSE) -> QUADRO YOU PLNOVÝSUV 500 MM EB21 PUSH TO OPEN PRAVÝ | BE121: =VLOOKUP(BC121,CENY!$B$11:$G$1034,3,FALSE) -> 20 | BG121: =IF((AY1+AY3)<2,SUM(AY1:AY4)*AO27,1*(AO26)+SUM(AY1:AY4)*AO27) -> 0 | BH121: =VLOOKUP(BC121,CENY!$B$11:$M$2005,12,FALSE) -> 210.06 | BI121: 0
BC122: =OBJ!B346 -> 9256921 | BD122: =VLOOKUP(BC122,CENY!$B$11:$G$1034,2,FALSE) -> QUADRO YOU PLNOVÝSUV 550 MM EB21 PUSH TO OPEN LEVÝ | BE122: =VLOOKUP(BC122,CENY!$B$11:$G$1034,3,FALSE) -> 20 | BG122: =IF((AY1+AY3)<2,SUM(AY1:AY4)*AO27,1*(AO26)+SUM(AY1:AY4)*AO27) -> 0 | BH122: =VLOOKUP(BC122,CENY!$B$11:$M$2005,12,FALSE) -> 216.78 | BI122: 0
BC123: =OBJ!B347 -> 9256922 | BD123: =VLOOKUP(BC123,CENY!$B$11:$G$1034,2,FALSE) -> QUADRO YOU PLNOVÝSUV 550 MM EB21 PUSH TO OPEN PRAVÝ | BE123: =VLOOKUP(BC123,CENY!$B$11:$G$1034,3,FALSE) -> 20 | BG123: =SUM(AY1:AY4)*AQ27 -> 0 | BH123: =VLOOKUP(BC123,CENY!$B$11:$M$2005,12,FALSE) -> 216.78 | BI123: 0
BC124: =OBJ!B348 -> 9256925 | BD124: =VLOOKUP(BC124,CENY!$B$11:$G$1034,2,FALSE) -> QUADRO YOU PLNOVÝSUV 600 MM EB21 PUSH TO OPEN LEVÝ | BE124: =VLOOKUP(BC124,CENY!$B$11:$G$1034,3,FALSE) -> 20 | BG124: =SUM(AY1:AY4)*AQ27 -> 0 | BH124: =VLOOKUP(BC124,CENY!$B$11:$M$2005,12,FALSE) -> 223.51 | BI124: 0
BI127: =IF(BH127="","",BH127*BG127) -> 

Sheet AVT101
B2: =verze!E13 -> << zpět | G2: =verze!E6 -> Úvod | O2: =verze!E7 -> Výběr zásuvek | U2: =verze!E8 ->  | AA2: =verze!E9 ->  | AI2: =verze!E10 -> Objednávka | AO2: =verze!E14 -> vpřed >>
B4: Zásuvka AVANTECH YOU 101 | AU4: MALOBALENIE : | AW4: =IF(FORM!AU13=FORM!U18,1,0) -> 1 | BB4: =SUM(BB5:BB990) -> 0 | BD4: VELKOBALENIE: | BK4: =SUM(BK5:BK985) -> 0
AU5: =OBJ!B39 -> 9255244 | AV5: =VLOOKUP(AU5,CENY!$B$11:$G$1034,2,FALSE) -> AVANTECH YOU BOKY V SADĚ V101 MM NL270 MM STŘÍBRNÁ | AW5: =VLOOKUP(AU5,CENY!$B$11:$G$1034,3,FALSE) -> 1 | AX5: 4 | AY5: =O19+O20+O27+O28+O30 -> 0 | AZ5: =IF(AY5="","",IF($AW$4=1,AY5,0)) -> 0 | BA5: =VLOOKUP(AU5,CENY!$B$11:$M$2005,12,FALSE) -> 561.98 | BB5: =IF(BA5="","",BA5*AY5) -> 0 | BD5: =OBJ!B50 -> 9255008 | BE5: =VLOOKUP(BD5,CENY!$B$11:$G$1034,2,FALSE) -> AVANTECH YOU BOK V101 MM NL270 MM STŘÍBRNÝ LEVÝ | BF5: =VLOOKUP(BD5,CENY!$B$11:$G$1034,3,FALSE) -> 20 | BH5: =AY5 -> 0 | BI5: =IF(BH5="","",IF($AW$4=0,BH5,0)) -> 0 | BJ5: =VLOOKUP(BD5,CENY!$B$11:$M$2005,12,FALSE) -> 177.84 | BK5: =IF(BJ5="","",BJ5*BH5) -> 0
B6: =" "&verze!E90 -> bočnice: | F6: .101 | AU6: =OBJ!B40 -> 9255245 | AV6: =VLOOKUP(AU6,CENY!$B$11:$G$1034,2,FALSE) -> AVANTECH YOU BOKY V SADĚ V101 MM NL300 MM STŘÍBRNÁ | AW6: =VLOOKUP(AU6,CENY!$B$11:$G$1034,3,FALSE) -> 1 | AX6: 4 | AY6: =Q19+Q20+Q27+Q28+Q30 -> 0 | AZ6: =IF(AY6="","",IF($AW$4=1,AY6,0)) -> 0 | BA6: =VLOOKUP(AU6,CENY!$B$11:$M$2005,12,FALSE) -> 566.15 | BB6: 0 | BD6: =OBJ!B51 -> 9255009 | BE6: =VLOOKUP(BD6,CENY!$B$11:$G$1034,2,FALSE) -> AVANTECH YOU BOK V101 MM NL270 MM STŘÍBRNÝ PRAVÝ | BF6: =VLOOKUP(BD6,CENY!$B$11:$G$1034,3,FALSE) -> 20 | BH6: =AY5 -> 0 | BI6: =IF(BH6="","",IF($AW$4=0,BH6,0)) -> 0 | BJ6: =VLOOKUP(BD6,CENY!$B$11:$M$2005,12,FALSE) -> 177.84 | BK6: =IF(BJ6="","",BJ6*BH6) -> 0
B7: =" "&verze!E56 -> barva: | F7: =" "&FORM!U8 -> stříbrná | AU7: =OBJ!B41 -> 9255246 | AV7: =VLOOKUP(AU7,CENY!$B$11:$G$1034,2,FALSE) -> AVANTECH YOU BOKY V SADĚ V101 MM NL350 MM STŘÍBRNÁ | AW7: =VLOOKUP(AU7,CENY!$B$11:$G$1034,3,FALSE) -> 1 | AX7: 6 | AY7: =S19+S20+S27+S28+S30 -> 0 | AZ7: 0 | BA7: =VLOOKUP(AU7,CENY!$B$11:$M$2005,12,FALSE) -> 573.11 | BB7: 0 | BD7: =OBJ!B52 -> 9255010 | BE7: =VLOOKUP(BD7,CENY!$B$11:$G$1034,2,FALSE) -> AVANTECH YOU BOK V101 MM NL300 MM STŘÍBRNÝ LEVÝ | BF7: =VLOOKUP(BD7,CENY!$B$11:$G$1034,3,FALSE) -> 20 | BH7: =AY6 -> 0 | BI7: 0 | BJ7: =VLOOKUP(BD7,CENY!$B$11:$M$2005,12,FALSE) -> 179.82 | BK7: 0
B8: =" "&verze!E70 -> dekorativní profil: | F8: =" "&FORM!AM18 -> v barvě bočnice | AU8: =OBJ!B42 -> 9255247 | AV8: =VLOOKUP(AU8,CENY!$B$11:$G$1034,2,FALSE) -> AVANTECH YOU BOKY V SADĚ V101 MM NL400 MM STŘÍBRNÁ | AW8: =VLOOKUP(AU8,CENY!$B$11:$G$1034,3,FALSE) -> 1 | AX8: 6 | AY8: =U20+U28+U30 -> 0 | AZ8: 0 | BA8: =VLOOKUP(AU8,CENY!$B$11:$M$2005,12,FALSE) -> 580.07 | BB8: 0 | BD8: =OBJ!B53 -> 9255011 | BE8: =VLOOKUP(BD8,CENY!$B$11:$G$1034,2,FALSE) -> AVANTECH YOU BOK V101 MM NL300 MM STŘÍBRNÝ PRAVÝ | BF8: =VLOOKUP(BD8,CENY!$B$11:$G$1034,3,FALSE) -> 20 | BH8: =AY6 -> 0 | BI8: 0 | BJ8: =VLOOKUP(BD8,CENY!$B$11:$M$2005,12,FALSE) -> 179.82 | BK8: 0
AU9: =OBJ!B43 -> 9255248 | AV9: =VLOOKUP(AU9,CENY!$B$11:$G$1034,2,FALSE) -> AVANTECH YOU BOKY V SADĚ V101 MM NL450 MM STŘÍBRNÁ | AW9: =VLOOKUP(AU9,CENY!$B$11:$G$1034,3,FALSE) -> 1 | AX9: 6 | AY9: =W20+W22+W28+W30 -> 0 | AZ9: 0 | BA9: =VLOOKUP(AU9,CENY!$B$11:$M$2005,12,FALSE) -> 587.04 | BB9: 0 | BD9: =OBJ!B54 -> 9255012 | BE9: =VLOOKUP(BD9,CENY!$B$11:$G$1034,2,FALSE) -> AVANTECH YOU BOK V101 MM NL350 MM STŘÍBRNÝ LEVÝ | BF9: =VLOOKUP(BD9,CENY!$B$11:$G$1034,3,FALSE) -> 20 | BH9: =AY7 -> 0 | BI9: 0 | BJ9: =VLOOKUP(BD9,CENY!$B$11:$M$2005,12,FALSE) -> 183.13 | BK9: 0
B10: =" "&verze!E57 -> čelní kování: | F10: =" "&FORM!AM8 -> na vruty | AU10: =OBJ!B44 -> 9255249 | AV10: =VLOOKUP(AU10,CENY!$B$11:$G$1034,2,FALSE) -> AVANTECH YOU BOKY V SADĚ V101 MM NL500 MM STŘÍBRNÁ | AW10: =VLOOKUP(AU10,CENY!$B$11:$G$1034,3,FALSE) -> 1 | AX10: 8 | AY10: =Y20+Y22+Y28+Y30 -> 0 | AZ10: 0 | BA10: =VLOOKUP(AU10,CENY!$B$11:$M$2005,12,FALSE) -> 594 | BB10: 0 | BD10: =OBJ!B55 -> 9255013 | BE10: =VLOOKUP(BD10,CENY!$B$11:$G$1034,2,FALSE) -> AVANTECH YOU BOK V101 MM NL350 MM STŘÍBRNÝ PRAVÝ | BF10: =VLOOKUP(BD10,CENY!$B$11:$G$1034,3,FALSE) -> 20 | BH10: =AY7 -> 0 | BI10: 0 | BJ10: =VLOOKUP(BD10,CENY!$B$11:$M$2005,12,FALSE) -> 183.13 | BK10: 0
B11: =" "&verze!E76 -> krytka: | F11: =" "&FORM!AM21 -> žádná | AU11: =OBJ!B45 -> 9255250 | AV11: =VLOOKUP(AU11,CENY!$B$11:$G$1034,2,FALSE) -> AVANTECH YOU BOKY V SADĚ V101 MM NL550 MM STŘÍBRNÁ | AW11: =VLOOKUP(AU11,CENY!$B$11:$G$1034,3,FALSE) -> 1 | AX11: 8 | AY11: =AA20+AA22+AA28+AA30 -> 0 | AZ11: 0 | BA11: =VLOOKUP(AU11,CENY!$B$11:$M$2005,12,FALSE) -> 600.96 | BB11: 0 | BD11: =OBJ!B56 -> 9255014 | BE11: =VLOOKUP(BD11,CENY!$B$11:$G$1034,2,FALSE) -> AVANTECH YOU BOK V101 MM NL400 MM STŘÍBRNÝ LEVÝ | BF11: =VLOOKUP(BD11,CENY!$B$11:$G$1034,3,FALSE) -> 20 | BH11: =AY8 -> 0 | BI11: 0 | BJ11: =VLOOKUP(BD11,CENY!$B$11:$M$2005,12,FALSE) -> 186.44 | BK11: 0
AU12: =OBJ!B46 -> 9255251 | AV12: =VLOOKUP(AU12,CENY!$B$11:$G$1034,2,FALSE) -> AVANTECH YOU BOKY V SADĚ V101 MM NL600 MM STŘÍBRNÁ | AW12: =VLOOKUP(AU12,CENY!$B$11:$G$1034,3,FALSE) -> 1 | AX12: 8 | AY12: =AC20+AC22+AC28+AC30 -> 0 | AZ12: 0 | BA12: =VLOOKUP(AU12,CENY!$B$11:$M$2005,12,FALSE) -> 611.46 | BB12: 0 | BD12: =OBJ!B57 -> 9255015 | BE12: =VLOOKUP(BD12,CENY!$B$11:$G$1034,2,FALSE) -> AVANTECH YOU BOK V101 MM NL400 MM STŘÍBRNÝ PRAVÝ | BF12: =VLOOKUP(BD12,CENY!$B$11:$G$1034,3,FALSE) -> 20 | BH12: =AY8 -> 0 | BI12: 0 | BJ12: =VLOOKUP(BD12,CENY!$B$11:$M$2005,12,FALSE) -> 186.44 | BK12: 0
B13: =" "&verze!E92 -> cena kování: | F13: =IF(AW4=1,BB4,BK4) -> 0 | J13: =IF(verze!E1="CZK","CZK","EUR") -> CZK | AU13: =OBJ!B47 -> 9255252 | AV13: =VLOOKUP(AU13,CENY!$B$11:$G$1034,2,FALSE) -> AVANTECH YOU BOKY V SADĚ V101 MM NL650 MM STŘÍBRNÁ | AW13: =VLOOKUP(AU13,CENY!$B$11:$G$1034,3,FALSE) -> 1 | AX13: 10 | AY13: =AE22 -> 0 | AZ13: 0 | BA13: =VLOOKUP(AU13,CENY!$B$11:$M$2005,12,FALSE) -> 625.73 | BB13: 0 | BD13: =OBJ!B58 -> 9255016 | BE13: =VLOOKUP(BD13,CENY!$B$11:$G$1034,2,FALSE) -> AVANTECH YOU BOK V101 MM NL450 MM STŘÍBRNÝ LEVÝ | BF13: =VLOOKUP(BD13,CENY!$B$11:$G$1034,3,FALSE) -> 20 | BH13: =AY9 -> 0 | BI13: 0 | BJ13: =VLOOKUP(BD13,CENY!$B$11:$M$2005,12,FALSE) -> 189.75 | BK13: 0
BD14: =OBJ!B59 -> 9255017 | BE14: =VLOOKUP(BD14,CENY!$B$11:$G$1034,2,FALSE) -> AVANTECH YOU BOK V101 MM NL450 MM STŘÍBRNÝ PRAVÝ | BF14: =VLOOKUP(BD14,CENY!$B$11:$G$1034,3,FALSE) -> 20 | BH14: =AY9 -> 0 | BI14: 0 | BJ14: =VLOOKUP(BD14,CENY!$B$11:$M$2005,12,FALSE) -> 189.75 | BK14: 0
AU15: =OBJ!B71 -> 9255804 | AV15: =VLOOKUP(AU15,CENY!$B$11:$G$1034,2,FALSE) -> AVANTECH YOU DEKORATIVNÍ PROFIL NL270 MM STŘÍBRNÝ | AW15: =VLOOKUP(AU15,CENY!$B$11:$G$1034,3,FALSE) -> 200 | AY15: =IF(FORM!AM18=FORM!AU16,0,2*(O19+O20+O27+O28+O30)) -> 0 | AZ15: 0 | BA15: =VLOOKUP(AU15,CENY!$B$11:$M$2005,12,FALSE) -> 9.18 | BB15: 0 | BD15: =OBJ!B60 -> 9255018 | BE15: =VLOOKUP(BD15,CENY!$B$11:$G$1034,2,FALSE) -> AVANTECH YOU BOK V101 MM NL500 MM STŘÍBRNÝ LEVÝ | BF15: =VLOOKUP(BD15,CENY!$B$11:$G$1034,3,FALSE) -> 20 | BH15: =AY10 -> 0 | BI15: 0 | BJ15: =VLOOKUP(BD15,CENY!$B$11:$M$2005,12,FALSE) -> 193.06 | BK15: 0
AU16: =OBJ!B72 -> 9255805 | AV16: =VLOOKUP(AU16,CENY!$B$11:$G$1034,2,FALSE) -> AVANTECH YOU DEKORATIVNÍ PROFIL NL300 MM STŘÍBRNÝ | AW16: =VLOOKUP(AU16,CENY!$B$11:$G$1034,3,FALSE) -> 200 | AY16: =IF(FORM!AM18=FORM!AU16,0,2*(Q19+Q20+Q27+Q28+Q30)) -> 0 | AZ16: 0 | BA16: =VLOOKUP(AU16,CENY!$B$11:$M$2005,12,FALSE) -> 9.28 | BB16: 0 | BD16: =OBJ!B61 -> 9255019 | BE16: =VLOOKUP(BD16,CENY!$B$11:$G$1034,2,FALSE) -> AVANTECH YOU BOK V101 MM NL500 MM STŘÍBRNÝ PRAVÝ | BF16: =VLOOKUP(BD16,CENY!$B$11:$G$1034,3,FALSE) -> 20 | BH16: =AY10 -> 0 | BI16: 0 | BJ16: =VLOOKUP(BD16,CENY!$B$11:$M$2005,12,FALSE) -> 193.06 | BK16: 0
B17: Actro YOU | O17: =FORM!U18 -> flexibilní sety | AI17: =verze!E198 -> P2O Silent pro Actro | AU17: =OBJ!B73 -> 9255806 | AV17: =VLOOKUP(AU17,CENY!$B$11:$G$1034,2,FALSE) -> AVANTECH YOU DEKORATIVNÍ PROFIL NL350 MM STŘÍBRNÝ | AW17: =VLOOKUP(AU17,CENY!$B$11:$G$1034,3,FALSE) -> 200 | AY17: =IF(FORM!AM18=FORM!AU16,0,2*(S19+S20+S27+S28+S30)) -> 0 | AZ17: 0 | BA17: =VLOOKUP(AU17,CENY!$B$11:$M$2005,12,FALSE) -> 9.45 | BB17: 0 | BD17: =OBJ!B62 -> 9255020 | BE17: =VLOOKUP(BD17,CENY!$B$11:$G$1034,2,FALSE) -> AVANTECH YOU BOK V101 MM NL550 MM STŘÍBRNÝ LEVÝ | BF17: =VLOOKUP(BD17,CENY!$B$11:$G$1034,3,FALSE) -> 20 | BH17: =AY11 -> 0 | BI17: 0 | BJ17: =VLOOKUP(BD17,CENY!$B$11:$M$2005,12,FALSE) -> 196.37 | BK17: 0
N18: =verze!$E$20&" " -> Jmenovitá délka: | O18: 270 | Q18: 300 | S18: 350 | U18: 400 | W18: 450 | Y18: 500 | AA18: 550 | AC18: 600 | AE18: 650 | AI18: typ | AU18: =OBJ!B74 -> 9255807 | AV18: =VLOOKUP(AU18,CENY!$B$11:$G$1034,2,FALSE) -> AVANTECH YOU DEKORATIVNÍ PROFIL NL400 MM STŘÍBRNÝ | AW18: =VLOOKUP(AU18,CENY!$B$11:$G$1034,3,FALSE) -> 200 | AY18: =IF(FORM!AM18=FORM!AU16,0,2*(U20+U28+U30)) -> 0 | AZ18: 0 | BA18: =VLOOKUP(AU18,CENY!$B$11:$M$2005,12,FALSE) -> 9.62 | BB18: 0 | BD18: =OBJ!B63 -> 9255021 | BE18: =VLOOKUP(BD18,CENY!$B$11:$G$1034,2,FALSE) -> AVANTECH YOU BOK V101 MM NL550 MM STŘÍBRNÝ PRAVÝ | BF18: =VLOOKUP(BD18,CENY!$B$11:$G$1034,3,FALSE) -> 20 | BH18: =AY11 -> 0 | BI18: 0 | BJ18: =VLOOKUP(BD18,CENY!$B$11:$M$2005,12,FALSE) -> 196.37 | BK18: 0
B19: Actro YOU 10 / SiSy | H19: =verze!E18 -> plnovýsuv | M19: 10 kg | AM19: < 10 kg | AU19: =OBJ!B75 -> 9255808 | AV19: =VLOOKUP(AU19,CENY!$B$11:$G$1034,2,FALSE) -> AVANTECH YOU DEKORATIVNÍ PROFIL NL450 MM STŘÍBRNÝ | AW19: =VLOOKUP(AU19,CENY!$B$11:$G$1034,3,FALSE) -> 200 | AY19: =IF(FORM!AM18=FORM!AU16,0,2*(W20+W22+W28+W30)) -> 0 | AZ19: 0 | BA19: =VLOOKUP(AU19,CENY!$B$11:$M$2005,12,FALSE) -> 9.8 | BB19: 0 | BD19: =OBJ!B64 -> 9255022 | BE19: =VLOOKUP(BD19,CENY!$B$11:$G$1034,2,FALSE) -> AVANTECH YOU BOK V101 MM NL600 MM STŘÍBRNÝ LEVÝ | BF19: =VLOOKUP(BD19,CENY!$B$11:$G$1034,3,FALSE) -> 20 | BH19: =AY12 -> 0 | BI19: 0 | BJ19: =VLOOKUP(BD19,CENY!$B$11:$M$2005,12,FALSE) -> 201.36 | BK19: 0
B20: Actro YOU 40 / SiSy | H20: =verze!E18 -> plnovýsuv | M20: 40 kg | AM20: 8 - 20 kg | AU20: =OBJ!B76 -> 9255809 | AV20: =VLOOKUP(AU20,CENY!$B$11:$G$1034,2,FALSE) -> AVANTECH YOU DEKORATIVNÍ PROFIL NL500 MM STŘÍBRNÝ | AW20: =VLOOKUP(AU20,CENY!$B$11:$G$1034,3,FALSE) -> 200 | AY20: =IF(FORM!AM18=FORM!AU16,0,2*(Y20+Y22+Y28+Y30)) -> 0 | AZ20: 0 | BA20: =VLOOKUP(AU20,CENY!$B$11:$M$2005,12,FALSE) -> 9.97 | BB20: 0 | BD20: =OBJ!B65 -> 9255023 | BE20: =VLOOKUP(BD20,CENY!$B$11:$G$1034,2,FALSE) -> AVANTECH YOU BOK V101 MM NL600 MM STŘÍBRNÝ PRAVÝ | BF20: =VLOOKUP(BD20,CENY!$B$11:$G$1034,3,FALSE) -> 20 | BH20: =AY12 -> 0 | BI20: 0 | BJ20: =VLOOKUP(BD20,CENY!$B$11:$M$2005,12,FALSE) -> 201.36 | BK20: 0
AM21: 10 - 40 kg | AU21: =OBJ!B77 -> 9255810 | AV21: =VLOOKUP(AU21,CENY!$B$11:$G$1034,2,FALSE) -> AVANTECH YOU DEKORATIVNÍ PROFIL NL550 MM STŘÍBRNÝ | AW21: =VLOOKUP(AU21,CENY!$B$11:$G$1034,3,FALSE) -> 200 | AY21: =IF(FORM!AM18=FORM!AU16,0,2*(AA20+AA22+AA28+AA30)) -> 0 | AZ21: 0 | BA21: =VLOOKUP(AU21,CENY!$B$11:$M$2005,12,FALSE) -> 10.14 | BB21: 0 | BD21: =OBJ!B66 -> 9255024 | BE21: =VLOOKUP(BD21,CENY!$B$11:$G$1034,2,FALSE) -> AVANTECH YOU BOK V101 MM NL650 MM STŘÍBRNÝ LEVÝ | BF21: =VLOOKUP(BD21,CENY!$B$11:$G$1034,3,FALSE) -> 20 | BH21: =AY13 -> 0 | BI21: 0 | BJ21: =VLOOKUP(BD21,CENY!$B$11:$M$2005,12,FALSE) -> 208.15 | BK21: 0
B22: Actro YOU 70 / SiSy | H22: =verze!E18 -> plnovýsuv | M22: 70 kg | AM22: 20 - 70 kg | AU22: =OBJ!B78 -> 9255811 | AV22: =VLOOKUP(AU22,CENY!$B$11:$G$1034,2,FALSE) -> AVANTECH YOU DEKORATIVNÍ PROFIL NL600 MM STŘÍBRNÝ | AW22: =VLOOKUP(AU22,CENY!$B$11:$G$1034,3,FALSE) -> 200 | AY22: =IF(FORM!AM18=FORM!AU16,0,2*(AC20+AC22+AC28+AC30)) -> 0 | AZ22: 0 | BA22: =VLOOKUP(AU22,CENY!$B$11:$M$2005,12,FALSE) -> 10.39 | BB22: 0 | BD22: =OBJ!B67 -> 9255025 | BE22: =VLOOKUP(BD22,CENY!$B$11:$G$1034,2,FALSE) -> AVANTECH YOU BOK V101 MM NL650 MM STŘÍBRNÝ PRAVÝ | BF22: =VLOOKUP(BD22,CENY!$B$11:$G$1034,3,FALSE) -> 20 | BH22: =AY13 -> 0 | BI22: 0 | BJ22: =VLOOKUP(BD22,CENY!$B$11:$M$2005,12,FALSE) -> 208.15 | BK22: 0
AU23: =OBJ!B79 -> 9255812 | AV23: =VLOOKUP(AU23,CENY!$B$11:$G$1034,2,FALSE) -> AVANTECH YOU DEKORATIVNÍ PROFIL NL650 MM STŘÍBRNÝ | AW23: =VLOOKUP(AU23,CENY!$B$11:$G$1034,3,FALSE) -> 200 | AY23: =IF(FORM!AM18=FORM!AU16,0,2*AE22) -> 0 | AZ23: 0 | BA23: =VLOOKUP(AU23,CENY!$B$11:$M$2005,12,FALSE) -> 10.74 | BB23: 0
BD24: =OBJ!B69 -> 9255835 | BE24: =VLOOKUP(BD24,CENY!$B$11:$G$1034,2,FALSE) -> AVANTECH YOU PŘÍCHYTKA ČELA V101 MM K NAŠROUBOVÁNÍ | BF24: =VLOOKUP(BD24,CENY!$B$11:$G$1034,3,FALSE) -> 200 | BH24: =2*(SUM(O19:T19)+SUM(O20:AD20)+SUM(W22:AF22)+SUM(O27:T27)+SUM(O28:AD28)+SUM(O30:AD30)) -> 0 | BI24: 0 | BJ24: =VLOOKUP(BD24,CENY!$B$11:$M$2005,12,FALSE) -> 26.57 | BK24: 0
B25: Quadro YOU | AI25: =verze!E199 -> P2O Silent pro Quadro | AU25: =OBJ!B226 -> 9256968 | AV25: =VLOOKUP(AU25,CENY!$B$11:$G$1034,2,FALSE) -> ACTRO YOU 10KG PLNOVÝSUV 270 MM EB21 SILENT SYSTEM SADA | AW25: =VLOOKUP(AU25,CENY!$B$11:$G$1034,3,FALSE) -> 1 | AX25: 4 | AY25: =O19 -> 0 | AZ25: 0 | BA25: =VLOOKUP(AU25,CENY!$B$11:$M$2005,12,FALSE) -> 561.63 | BB25: 0 | BD25: =OBJ!B48 -> 9257702 | BE25: =VLOOKUP(BD25,CENY!$B$11:$G$1034,2,FALSE) -> AVANTECH YOU STABILIZÁTOR ZAD V101/139/187/251 MM | BF25: =VLOOKUP(BD25,CENY!$B$11:$G$1034,3,FALSE) -> 200 | BH25: =2*(SUM(O19:T19)+SUM(O20:AD20)+SUM(W22:AF22)+SUM(O27:T27)+SUM(O28:AD28)+SUM(O30:AD30)) -> 0 | BI25: 0 | BJ25: =VLOOKUP(BD25,CENY!$B$11:$M$2005,12,FALSE) -> 13.29 | BK25: 0
N26: =verze!$E$20&" " -> Jmenovitá délka: | O26: 270 | Q26: 300 | S26: 350 | U26: 400 | W26: 450 | Y26: 500 | AA26: 550 | AC26: 600 | AI26: typ | AU26: =OBJ!B227 -> 9256969 | AV26: =VLOOKUP(AU26,CENY!$B$11:$G$1034,2,FALSE) -> ACTRO YOU 10KG PLNOVÝSUV 300 MM EB21 SILENT SYSTEM SADA | AW26: =VLOOKUP(AU26,CENY!$B$11:$G$1034,3,FALSE) -> 1 | AX26: 4 | AY26: =Q19 -> 0 | AZ26: 0 | BA26: =VLOOKUP(AU26,CENY!$B$11:$M$2005,12,FALSE) -> 561.63 | BB26: 0
B27: Quadro YOU 10 / SiSy | H27: =verze!E18 -> plnovýsuv | M27: 10 kg | AM27: < 10 kg | AU27: =OBJ!B228 -> 9256971 | AV27: =VLOOKUP(AU27,CENY!$B$11:$G$1034,2,FALSE) -> ACTRO YOU 10KG PLNOVÝSUV 350 MM EB21 SILENT SYSTEM SADA | AW27: =VLOOKUP(AU27,CENY!$B$11:$G$1034,3,FALSE) -> 1 | AX27: 4 | AY27: =S19 -> 0 | AZ27: 0 | BA27: =VLOOKUP(AU27,CENY!$B$11:$M$2005,12,FALSE) -> 561.63 | BB27: 0 | BD27: =OBJ!B71 -> 9255804 | BE27: =VLOOKUP(BD27,CENY!$B$11:$G$1034,2,FALSE) -> AVANTECH YOU DEKORATIVNÍ PROFIL NL270 MM STŘÍBRNÝ | BF27: =VLOOKUP(BD27,CENY!$B$11:$G$1034,3,FALSE) -> 200 | BH27: =2*(O19+O20+O27+O28+O30) -> 0 | BI27: 0 | BJ27: =VLOOKUP(BD27,CENY!$B$11:$M$2005,12,FALSE) -> 9.18 | BK27: 0
B28: Quadro YOU 30 / SiSy | H28: =verze!E18 -> plnovýsuv | M28: 30 kg | AM28: 8 - 20 kg | BD28: =OBJ!B72 -> 9255805 | BE28: =VLOOKUP(BD28,CENY!$B$11:$G$1034,2,FALSE) -> AVANTECH YOU DEKORATIVNÍ PROFIL NL300 MM STŘÍBRNÝ | BF28: =VLOOKUP(BD28,CENY!$B$11:$G$1034,3,FALSE) -> 200 | BH28: =2*(Q19+Q20+Q27+Q28+Q30) -> 0 | BI28: 0 | BJ28: =VLOOKUP(BD28,CENY!$B$11:$M$2005,12,FALSE) -> 9.28 | BK28: 0
AM29: 10 - 30 kg | AU29: =OBJ!B236 -> 9256999 | AV29: =VLOOKUP(AU29,CENY!$B$11:$G$1034,2,FALSE) -> ACTRO YOU 40KG PLNOVÝSUV 270 MM EB21 SILENT SYSTEM SADA | AW29: =VLOOKUP(AU29,CENY!$B$11:$G$1034,3,FALSE) -> 1 | AX29: 8 | AY29: =O20 -> 0 | AZ29: 0 | BA29: =VLOOKUP(AU29,CENY!$B$11:$M$2005,12,FALSE) -> 561.63 | BB29: 0 | BD29: =OBJ!B73 -> 9255806 | BE29: =VLOOKUP(BD29,CENY!$B$11:$G$1034,2,FALSE) -> AVANTECH YOU DEKORATIVNÍ PROFIL NL350 MM STŘÍBRNÝ | BF29: =VLOOKUP(BD29,CENY!$B$11:$G$1034,3,FALSE) -> 200 | BH29: =2*(S19+S20+S27+S28+S30) -> 0 | BI29: 0 | BJ29: =VLOOKUP(BD29,CENY!$B$11:$M$2005,12,FALSE) -> 9.45 | BK29: 0
B30: Quadro YOU 30 / P2O | H30: =verze!E18 -> plnovýsuv | M30: 30 kg | AU30: =OBJ!B237 -> 9257000 | AV30: =VLOOKUP(AU30,CENY!$B$11:$G$1034,2,FALSE) -> ACTRO YOU 40KG PLNOVÝSUV 300 MM EB21 SILENT SYSTEM SADA | AW30: =VLOOKUP(AU30,CENY!$B$11:$G$1034,3,FALSE) -> 1 | AX30: 8 | AY30: =Q20 -> 0 | AZ30: 0 | BA30: =VLOOKUP(AU30,CENY!$B$11:$M$2005,12,FALSE) -> 561.63 | BB30: 0 | BD30: =OBJ!B74 -> 9255807 | BE30: =VLOOKUP(BD30,CENY!$B$11:$G$1034,2,FALSE) -> AVANTECH YOU DEKORATIVNÍ PROFIL NL400 MM STŘÍBRNÝ | BF30: =VLOOKUP(BD30,CENY!$B$11:$G$1034,3,FALSE) -> 200 | BH30: =2*(U20+U28+U30) -> 0 | BI30: 0 | BJ30: =VLOOKUP(BD30,CENY!$B$11:$M$2005,12,FALSE) -> 9.62 | BK30: 0
AU31: =OBJ!B238 -> 9257002 | AV31: =VLOOKUP(AU31,CENY!$B$11:$G$1034,2,FALSE) -> ACTRO YOU 40KG PLNOVÝSUV 350 MM EB21 SILENT SYSTEM SADA | AW31: =VLOOKUP(AU31,CENY!$B$11:$G$1034,3,FALSE) -> 1 | AX31: 8 | AY31: =S20 -> 0 | AZ31: 0 | BA31: =VLOOKUP(AU31,CENY!$B$11:$M$2005,12,FALSE) -> 561.63 | BB31: 0 | BD31: =OBJ!B75 -> 9255808 | BE31: =VLOOKUP(BD31,CENY!$B$11:$G$1034,2,FALSE) -> AVANTECH YOU DEKORATIVNÍ PROFIL NL450 MM STŘÍBRNÝ | BF31: =VLOOKUP(BD31,CENY!$B$11:$G$1034,3,FALSE) -> 200 | BH31: =2*(W20+W22+W28+W30) -> 0 | BI31: 0 | BJ31: =VLOOKUP(BD31,CENY!$B$11:$M$2005,12,FALSE) -> 9.8 | BK31: 0
B32: =verze!E201 -> SiSy = tlumení Silent System | AU32: =OBJ!B239 -> 9257004 | AV32: =VLOOKUP(AU32,CENY!$B$11:$G$1034,2,FALSE) -> ACTRO YOU 40KG PLNOVÝSUV 400 MM EB21 SILENT SYSTEM SADA | AW32: =VLOOKUP(AU32,CENY!$B$11:$G$1034,3,FALSE) -> 1 | AX32: 8 | AY32: =U20 -> 0 | AZ32: 0 | BA32: =VLOOKUP(AU32,CENY!$B$11:$M$2005,12,FALSE) -> 567.85 | BB32: 0 | BD32: =OBJ!B76 -> 9255809 | BE32: =VLOOKUP(BD32,CENY!$B$11:$G$1034,2,FALSE) -> AVANTECH YOU DEKORATIVNÍ PROFIL NL500 MM STŘÍBRNÝ | BF32: =VLOOKUP(BD32,CENY!$B$11:$G$1034,3,FALSE) -> 200 | BH32: =2*(Y20+Y22+Y28+Y30) -> 0 | BI32: 0 | BJ32: =VLOOKUP(BD32,CENY!$B$11:$M$2005,12,FALSE) -> 9.97 | BK32: 0
B33: =verze!E204 -> P2O = otvírání bez úchytky Push to open | AU33: =OBJ!B240 -> 9257006 | AV33: =VLOOKUP(AU33,CENY!$B$11:$G$1034,2,FALSE) -> ACTRO YOU 40KG PLNOVÝSUV 450 MM EB21 SILENT SYSTEM SADA | AW33: =VLOOKUP(AU33,CENY!$B$11:$G$1034,3,FALSE) -> 1 | AX33: 10 | AY33: =W20 -> 0 | AZ33: 0 | BA33: =VLOOKUP(AU33,CENY!$B$11:$M$2005,12,FALSE) -> 574.04 | BB33: 0 | BD33: =OBJ!B77 -> 9255810 | BE33: =VLOOKUP(BD33,CENY!$B$11:$G$1034,2,FALSE) -> AVANTECH YOU DEKORATIVNÍ PROFIL NL550 MM STŘÍBRNÝ | BF33: =VLOOKUP(BD33,CENY!$B$11:$G$1034,3,FALSE) -> 200 | BH33: =2*(AA20+AA22+AA28+AA30) -> 0 | BI33: 0 | BJ33: =VLOOKUP(BD33,CENY!$B$11:$M$2005,12,FALSE) -> 10.14 | BK33: 0
B34: =verze!E203 -> P2O Silent = tlumení s otvíráním bez úchytky Push to open Silent | AU34: =OBJ!B241 -> 9257008 | AV34: =VLOOKUP(AU34,CENY!$B$11:$G$1034,2,FALSE) -> ACTRO YOU 40KG PLNOVÝSUV 500 MM EB21 SILENT SYSTEM SADA | AW34: =VLOOKUP(AU34,CENY!$B$11:$G$1034,3,FALSE) -> 1 | AX34: 10 | AY34: =Y20 -> 0 | AZ34: 0 | BA34: =VLOOKUP(AU34,CENY!$B$11:$M$2005,12,FALSE) -> 580.26 | BB34: 0 | BD34: =OBJ!B78 -> 9255811 | BE34: =VLOOKUP(BD34,CENY!$B$11:$G$1034,2,FALSE) -> AVANTECH YOU DEKORATIVNÍ PROFIL NL600 MM STŘÍBRNÝ | BF34: =VLOOKUP(BD34,CENY!$B$11:$G$1034,3,FALSE) -> 200 | BH34: =2*(AC20+AC22+AC28+AC30) -> 0 | BI34: 0 | BJ34: =VLOOKUP(BD34,CENY!$B$11:$M$2005,12,FALSE) -> 10.39 | BK34: 0
AU35: =OBJ!B242 -> 9257010 | AV35: =VLOOKUP(AU35,CENY!$B$11:$G$1034,2,FALSE) -> ACTRO YOU 40KG PLNOVÝSUV 550 MM EB21 SILENT SYSTEM SADA | AW35: =VLOOKUP(AU35,CENY!$B$11:$G$1034,3,FALSE) -> 1 | AX35: 10 | AY35: =AA20 -> 0 | AZ35: 0 | BA35: =VLOOKUP(AU35,CENY!$B$11:$M$2005,12,FALSE) -> 613.44 | BB35: 0 | BD35: =OBJ!B79 -> 9255812 | BE35: =VLOOKUP(BD35,CENY!$B$11:$G$1034,2,FALSE) -> AVANTECH YOU DEKORATIVNÍ PROFIL NL650 MM STŘÍBRNÝ | BF35: =VLOOKUP(BD35,CENY!$B$11:$G$1034,3,FALSE) -> 200 | BH35: =2*AE22 -> 0 | BI35: 0 | BJ35: =VLOOKUP(BD35,CENY!$B$11:$M$2005,12,FALSE) -> 10.74 | BK35: 0
AU36: =OBJ!B243 -> 9268681 | AV36: =VLOOKUP(AU36,CENY!$B$11:$G$1034,2,FALSE) -> ACTRO YOU 40KG PLNOVÝSUV 600 MM EB21 SILENT SYSTÉM SADA | AW36: =VLOOKUP(AU36,CENY!$B$11:$G$1034,3,FALSE) -> 1 | AX36: 10 | AY36: =AC20 -> 0 | AZ36: 0 | BA36: =VLOOKUP(AU36,CENY!$B$11:$M$2005,12,FALSE) -> 620.78 | BB36: 0
BD37: =OBJ!B229 -> 9256959 | BE37: =VLOOKUP(BD37,CENY!$B$11:$G$1034,2,FALSE) -> ACTRO YOU 10KG PLNOVÝSUV 270 MM EB21 SILENT SYSTEM LEVÝ | BF37: =VLOOKUP(BD37,CENY!$B$11:$G$1034,3,FALSE) -> 10 | BH37: =AY25 -> 0 | BI37: 0 | BJ37: =VLOOKUP(BD37,CENY!$B$11:$M$2005,12,FALSE) -> 243.93 | BK37: 0
AU38: =OBJ!B261 -> 9257034 | AV38: =VLOOKUP(AU38,CENY!$B$11:$G$1034,2,FALSE) -> ACTRO YOU 70KG PLNOVÝSUV 450 MM EB21 SILENT SYSTEM SADA | AW38: =VLOOKUP(AU38,CENY!$B$11:$G$1034,3,FALSE) -> 1 | AX38: 10 | AY38: =W22 -> 0 | AZ38: 0 | BA38: =VLOOKUP(AU38,CENY!$B$11:$M$2005,12,FALSE) -> 691.9 | BB38: 0 | BD38: =OBJ!B230 -> 9256960 | BE38: =VLOOKUP(BD38,CENY!$B$11:$G$1034,2,FALSE) -> ACTRO YOU 10KG PLNOVÝSUV 270 MM EB21 SILENT SYSTEM PRAVÝ | BF38: =VLOOKUP(BD38,CENY!$B$11:$G$1034,3,FALSE) -> 10 | BH38: =AY25 -> 0 | BI38: 0 | BJ38: =VLOOKUP(BD38,CENY!$B$11:$M$2005,12,FALSE) -> 243.93 | BK38: 0
AU39: =OBJ!B262 -> 9257036 | AV39: =VLOOKUP(AU39,CENY!$B$11:$G$1034,2,FALSE) -> ACTRO YOU 70KG PLNOVÝSUV 500 MM EB21 SILENT SYSTEM SADA | AW39: =VLOOKUP(AU39,CENY!$B$11:$G$1034,3,FALSE) -> 1 | AX39: 10 | AY39: =Y22 -> 0 | AZ39: 0 | BA39: =VLOOKUP(AU39,CENY!$B$11:$M$2005,12,FALSE) -> 698.13 | BB39: 0 | BD39: =OBJ!B231 -> 9256961 | BE39: =VLOOKUP(BD39,CENY!$B$11:$G$1034,2,FALSE) -> ACTRO YOU 10KG PLNOVÝSUV 300 MM EB21 SILENT SYSTEM LEVÝ | BF39: =VLOOKUP(BD39,CENY!$B$11:$G$1034,3,FALSE) -> 10 | BH39: =AY26 -> 0 | BI39: 0 | BJ39: =VLOOKUP(BD39,CENY!$B$11:$M$2005,12,FALSE) -> 243.93 | BK39: 0
AU40: =OBJ!B263 -> 9257038 | AV40: =VLOOKUP(AU40,CENY!$B$11:$G$1034,2,FALSE) -> ACTRO YOU 70KG PLNOVÝSUV 550 MM EB21 SILENT SYSTEM SADA | AW40: =VLOOKUP(AU40,CENY!$B$11:$G$1034,3,FALSE) -> 1 | AX40: 10 | AY40: =AA22 -> 0 | AZ40: 0 | BA40: =VLOOKUP(AU40,CENY!$B$11:$M$2005,12,FALSE) -> 731.3 | BB40: 0 | BD40: =OBJ!B232 -> 9256962 | BE40: =VLOOKUP(BD40,CENY!$B$11:$G$1034,2,FALSE) -> ACTRO YOU 10KG PLNOVÝSUV 300 MM EB21 SILENT SYSTEM PRAVÝ | BF40: =VLOOKUP(BD40,CENY!$B$11:$G$1034,3,FALSE) -> 10 | BH40: =AY26 -> 0 | BI40: 0 | BJ40: =VLOOKUP(BD40,CENY!$B$11:$M$2005,12,FALSE) -> 243.93 | BK40: 0
AU41: =OBJ!B264 -> 9257040 | AV41: =VLOOKUP(AU41,CENY!$B$11:$G$1034,2,FALSE) -> ACTRO YOU 70KG PLNOVÝSUV 600 MM EB21 SILENT SYSTEM SADA | AW41: =VLOOKUP(AU41,CENY!$B$11:$G$1034,3,FALSE) -> 1 | AX41: 10 | AY41: =AC22 -> 0 | AZ41: 0 | BA41: =VLOOKUP(AU41,CENY!$B$11:$M$2005,12,FALSE) -> 798.31 | BB41: 0 | BD41: =OBJ!B233 -> 9256965 | BE41: =VLOOKUP(BD41,CENY!$B$11:$G$1034,2,FALSE) -> ACTRO YOU 10KG PLNOVÝSUV 350 MM EB21 SILENT SYSTEM LEVÝ | BF41: =VLOOKUP(BD41,CENY!$B$11:$G$1034,3,FALSE) -> 10 | BH41: =AY27 -> 0 | BI41: 0 | BJ41: =VLOOKUP(BD41,CENY!$B$11:$M$2005,12,FALSE) -> 243.93 | BK41: 0
AU42: =OBJ!B265 -> 9257041 | AV42: =VLOOKUP(AU42,CENY!$B$11:$G$1034,2,FALSE) -> ACTRO YOU 70KG PLNOVÝSUV 650 MM EB21 SILENT SYSTEM SADA | AW42: =VLOOKUP(AU42,CENY!$B$11:$G$1034,3,FALSE) -> 1 | AX42: 10 | AY42: =AE22 -> 0 | AZ42: 0 | BA42: =VLOOKUP(AU42,CENY!$B$11:$M$2005,12,FALSE) -> 828.55 | BB42: 0 | BD42: =OBJ!B234 -> 9256966 | BE42: =VLOOKUP(BD42,CENY!$B$11:$G$1034,2,FALSE) -> ACTRO YOU 10KG PLNOVÝSUV 350 MM EB21 SILENT SYSTEM PRAVÝ | BF42: =VLOOKUP(BD42,CENY!$B$11:$G$1034,3,FALSE) -> 10 | BH42: =AY27 -> 0 | BI42: 0 | BJ42: =VLOOKUP(BD42,CENY!$B$11:$M$2005,12,FALSE) -> 243.93 | BK42: 0
AU44: =OBJ!B277 -> 9257890 | AV44: =VLOOKUP(AU44,CENY!$B$11:$G$1034,2,FALSE) -> PUSH TO OPEN SILENT ACTRO YOU / ACTRO 5D 10 KG | AW44: =VLOOKUP(AU44,CENY!$B$11:$G$1034,3,FALSE) -> 1 | AY44: =AN19 -> 0 | AZ44: 0 | BA44: =VLOOKUP(AU44,CENY!$B$11:$M$2005,12,FALSE) -> 544.37 | BB44: 0 | BD44: =OBJ!B244 -> 9256974 | BE44: =VLOOKUP(BD44,CENY!$B$11:$G$1034,2,FALSE) -> ACTRO YOU 40KG PLNOVÝSUV 270 MM EB21 SILENT SYSTEM LEVÝ | BF44: =VLOOKUP(BD44,CENY!$B$11:$G$1034,3,FALSE) -> 10 | BH44: =AY29 -> 0 | BI44: 0 | BJ44: =VLOOKUP(BD44,CENY!$B$11:$M$2005,12,FALSE) -> 243.93 | BK44: 0
AU45: =OBJ!B278 -> 9257891 | AV45: =VLOOKUP(AU45,CENY!$B$11:$G$1034,2,FALSE) -> PUSH TO OPEN SILENT ACTRO YOU / ACTRO 5D 20 KG | AW45: =VLOOKUP(AU45,CENY!$B$11:$G$1034,3,FALSE) -> 1 | AY45: =AN20 -> 0 | AZ45: 0 | BA45: =VLOOKUP(AU45,CENY!$B$11:$M$2005,12,FALSE) -> 544.37 | BB45: 0 | BD45: =OBJ!B245 -> 9256975 | BE45: =VLOOKUP(BD45,CENY!$B$11:$G$1034,2,FALSE) -> ACTRO YOU 40KG PLNOVÝSUV 270 MM EB21 SILENT SYSTEM PRAVÝ | BF45: =VLOOKUP(BD45,CENY!$B$11:$G$1034,3,FALSE) -> 10 | BH45: =AY29 -> 0 | BI45: 0 | BJ45: =VLOOKUP(BD45,CENY!$B$11:$M$2005,12,FALSE) -> 243.93 | BK45: 0
AU46: =OBJ!B279 -> 9257892 | AV46: =VLOOKUP(AU46,CENY!$B$11:$G$1034,2,FALSE) -> PUSH TO OPEN SILENT ACTRO YOU / ACTRO 5D 40 KG | AW46: =VLOOKUP(AU46,CENY!$B$11:$G$1034,3,FALSE) -> 1 | AY46: =AN21 -> 0 | AZ46: 0 | BA46: =VLOOKUP(AU46,CENY!$B$11:$M$2005,12,FALSE) -> 544.37 | BB46: 0 | BD46: =OBJ!B246 -> 9256976 | BE46: =VLOOKUP(BD46,CENY!$B$11:$G$1034,2,FALSE) -> ACTRO YOU 40KG PLNOVÝSUV 300 MM EB21 SILENT SYSTEM LEVÝ | BF46: =VLOOKUP(BD46,CENY!$B$11:$G$1034,3,FALSE) -> 10 | BH46: =AY30 -> 0 | BI46: 0 | BJ46: =VLOOKUP(BD46,CENY!$B$11:$M$2005,12,FALSE) -> 243.93 | BK46: 0
AU47: =OBJ!B280 -> 9257893 | AV47: =VLOOKUP(AU47,CENY!$B$11:$G$1034,2,FALSE) -> PUSH TO OPEN SILENT ACTRO YOU / ACTRO 5D 70 KG | AW47: =VLOOKUP(AU47,CENY!$B$11:$G$1034,3,FALSE) -> 1 | AY47: =AN22 -> 0 | AZ47: 0 | BA47: =VLOOKUP(AU47,CENY!$B$11:$M$2005,12,FALSE) -> 544.37 | BB47: 0 | BD47: =OBJ!B247 -> 9256977 | BE47: =VLOOKUP(BD47,CENY!$B$11:$G$1034,2,FALSE) -> ACTRO YOU 40KG PLNOVÝSUV 300 MM EB21 SILENT SYSTEM PRAVÝ | BF47: =VLOOKUP(BD47,CENY!$B$11:$G$1034,3,FALSE) -> 10 | BH47: =AY30 -> 0 | BI47: 0 | BJ47: =VLOOKUP(BD47,CENY!$B$11:$M$2005,12,FALSE) -> 243.93 | BK47: 0
AU48: =OBJ!B281 -> 9236718 | AV48: =VLOOKUP(AU48,CENY!$B$11:$G$1034,2,FALSE) -> PUSH TO OPEN SYNCHRONIZAČNÍ TYČ 2000 MM | AW48: =VLOOKUP(AU48,CENY!$B$11:$G$1034,3,FALSE) -> 100 | AY48: =SUM(AN19:AO22)+SUM(AN27:AO29)+SUM(O30:AD30) -> 0 | AZ48: 0 | BA48: =VLOOKUP(AU48,CENY!$B$11:$M$2005,12,FALSE) -> 144.3 | BB48: 0 | BD48: =OBJ!B248 -> 9256980 | BE48: =VLOOKUP(BD48,CENY!$B$11:$G$1034,2,FALSE) -> ACTRO YOU 40KG PLNOVÝSUV 350 MM EB21 SILENT SYSTEM LEVÝ | BF48: =VLOOKUP(BD48,CENY!$B$11:$G$1034,3,FALSE) -> 10 | BH48: =AY31 -> 0 | BI48: 0 | BJ48: =VLOOKUP(BD48,CENY!$B$11:$M$2005,12,FALSE) -> 243.93 | BK48: 0
BD49: =OBJ!B249 -> 9256981 | BE49: =VLOOKUP(BD49,CENY!$B$11:$G$1034,2,FALSE) -> ACTRO YOU 40KG PLNOVÝSUV 350 MM EB21 SILENT SYSTEM PRAVÝ | BF49: =VLOOKUP(BD49,CENY!$B$11:$G$1034,3,FALSE) -> 10 | BH49: =AY31 -> 0 | BI49: 0 | BJ49: =VLOOKUP(BD49,CENY!$B$11:$M$2005,12,FALSE) -> 243.93 | BK49: 0
AU50: =OBJ!B287 -> 9256953 | AV50: =VLOOKUP(AU50,CENY!$B$11:$G$1034,2,FALSE) -> QUADRO YOU 10 KG PLNOVÝSUV 270 MM EB21 SILENT SYSTEM SADA | AW50: =VLOOKUP(AU50,CENY!$B$11:$G$1034,3,FALSE) -> 1 | AX50: 4 | AY50: =O27 -> 0 | AZ50: 0 | BA50: =VLOOKUP(AU50,CENY!$B$11:$M$2005,12,FALSE) -> 413.4 | BB50: 0 | BD50: =OBJ!B250 -> 9256984 | BE50: =VLOOKUP(BD50,CENY!$B$11:$G$1034,2,FALSE) -> ACTRO YOU 40KG PLNOVÝSUV 400 MM EB21 SILENT SYSTEM LEVÝ | BF50: =VLOOKUP(BD50,CENY!$B$11:$G$1034,3,FALSE) -> 10 | BH50: =AY32 -> 0 | BI50: 0 | BJ50: =VLOOKUP(BD50,CENY!$B$11:$M$2005,12,FALSE) -> 247.05 | BK50: 0
AU51: =OBJ!B288 -> 9256954 | AV51: =VLOOKUP(AU51,CENY!$B$11:$G$1034,2,FALSE) -> QUADRO YOU 10 KG PLNOVÝSUV 300 MM EB21 SILENT SYSTEM SADA | AW51: =VLOOKUP(AU51,CENY!$B$11:$G$1034,3,FALSE) -> 1 | AX51: 4 | AY51: =Q27 -> 0 | AZ51: 0 | BA51: =VLOOKUP(AU51,CENY!$B$11:$M$2005,12,FALSE) -> 414.13 | BB51: 0 | BD51: =OBJ!B251 -> 9256985 | BE51: =VLOOKUP(BD51,CENY!$B$11:$G$1034,2,FALSE) -> ACTRO YOU 40KG PLNOVÝSUV 400 MM EB21 SILENT SYSTEM PRAVÝ | BF51: =VLOOKUP(BD51,CENY!$B$11:$G$1034,3,FALSE) -> 10 | BH51: =AY32 -> 0 | BI51: 0 | BJ51: =VLOOKUP(BD51,CENY!$B$11:$M$2005,12,FALSE) -> 247.05 | BK51: 0
AU52: =OBJ!B289 -> 9256956 | AV52: =VLOOKUP(AU52,CENY!$B$11:$G$1034,2,FALSE) -> QUADRO YOU 10 KG PLNOVÝSUV 350 MM EB21 SILENT SYSTEM SADA | AW52: =VLOOKUP(AU52,CENY!$B$11:$G$1034,3,FALSE) -> 1 | AX52: 4 | AY52: =S27 -> 0 | AZ52: 0 | BA52: =VLOOKUP(AU52,CENY!$B$11:$M$2005,12,FALSE) -> 421.61 | BB52: 0 | BD52: =OBJ!B252 -> 9256988 | BE52: =VLOOKUP(BD52,CENY!$B$11:$G$1034,2,FALSE) -> ACTRO YOU 40KG PLNOVÝSUV 450 MM EB21 SILENT SYSTEM LEVÝ | BF52: =VLOOKUP(BD52,CENY!$B$11:$G$1034,3,FALSE) -> 10 | BH52: =AY33 -> 0 | BI52: 0 | BJ52: =VLOOKUP(BD52,CENY!$B$11:$M$2005,12,FALSE) -> 250.14 | BK52: 0
BD53: =OBJ!B253 -> 9256989 | BE53: =VLOOKUP(BD53,CENY!$B$11:$G$1034,2,FALSE) -> ACTRO YOU 40KG PLNOVÝSUV 450 MM EB21 SILENT SYSTEM PRAVÝ | BF53: =VLOOKUP(BD53,CENY!$B$11:$G$1034,3,FALSE) -> 10 | BH53: =AY33 -> 0 | BI53: 0 | BJ53: =VLOOKUP(BD53,CENY!$B$11:$M$2005,12,FALSE) -> 250.14 | BK53: 0
AU54: =OBJ!B297 -> 9256883 | AV54: =VLOOKUP(AU54,CENY!$B$11:$G$1034,2,FALSE) -> QUADRO YOU PLNOVÝSUV 270 MM EB21 SILENT SYSTEM SADA | AW54: =VLOOKUP(AU54,CENY!$B$11:$G$1034,3,FALSE) -> 1 | AX54: 8 | AY54: =O28 -> 0 | AZ54: 0 | BA54: =VLOOKUP(AU54,CENY!$B$11:$M$2005,12,FALSE) -> 372.29 | BB54: 0 | BD54: =OBJ!B254 -> 9256992 | BE54: =VLOOKUP(BD54,CENY!$B$11:$G$1034,2,FALSE) -> ACTRO YOU 40KG PLNOVÝSUV 500 MM EB21 SILENT SYSTEM LEVÝ | BF54: =VLOOKUP(BD54,CENY!$B$11:$G$1034,3,FALSE) -> 10 | BH54: =AY34 -> 0 | BI54: 0 | BJ54: =VLOOKUP(BD54,CENY!$B$11:$M$2005,12,FALSE) -> 253.25 | BK54: 0
AU55: =OBJ!B298 -> 9256884 | AV55: =VLOOKUP(AU55,CENY!$B$11:$G$1034,2,FALSE) -> QUADRO YOU PLNOVÝSUV 300 MM EB21 SILENT SYSTEM SADA | AW55: =VLOOKUP(AU55,CENY!$B$11:$G$1034,3,FALSE) -> 1 | AX55: 8 | AY55: =Q28 -> 0 | AZ55: 0 | BA55: =VLOOKUP(AU55,CENY!$B$11:$M$2005,12,FALSE) -> 369.3 | BB55: 0 | BD55: =OBJ!B255 -> 9256993 | BE55: =VLOOKUP(BD55,CENY!$B$11:$G$1034,2,FALSE) -> ACTRO YOU 40KG PLNOVÝSUV 500 MM EB21 SILENT SYSTEM PRAVÝ | BF55: =VLOOKUP(BD55,CENY!$B$11:$G$1034,3,FALSE) -> 10 | BH55: =AY34 -> 0 | BI55: 0 | BJ55: =VLOOKUP(BD55,CENY!$B$11:$M$2005,12,FALSE) -> 253.25 | BK55: 0
AU56: =OBJ!B299 -> 9256886 | AV56: =VLOOKUP(AU56,CENY!$B$11:$G$1034,2,FALSE) -> QUADRO YOU PLNOVÝSUV 350 MM EB21 SILENT SYSTEM SADA | AW56: =VLOOKUP(AU56,CENY!$B$11:$G$1034,3,FALSE) -> 1 | AX56: 8 | AY56: =S28 -> 0 | AZ56: 0 | BA56: =VLOOKUP(AU56,CENY!$B$11:$M$2005,12,FALSE) -> 376.77 | BB56: 0 | BD56: =OBJ!B256 -> 9256996 | BE56: =VLOOKUP(BD56,CENY!$B$11:$G$1034,2,FALSE) -> ACTRO YOU 40KG PLNOVÝSUV 550 MM EB21 SILENT SYSTEM LEVÝ | BF56: =VLOOKUP(BD56,CENY!$B$11:$G$1034,3,FALSE) -> 10 | BH56: =AY35 -> 0 | BI56: 0 | BJ56: =VLOOKUP(BD56,CENY!$B$11:$M$2005,12,FALSE) -> 269.84 | BK56: 0
AU57: =OBJ!B300 -> 9256888 | AV57: =VLOOKUP(AU57,CENY!$B$11:$G$1034,2,FALSE) -> QUADRO YOU PLNOVÝSUV 400 MM EB21 SILENT SYSTEM SADA | AW57: =VLOOKUP(AU57,CENY!$B$11:$G$1034,3,FALSE) -> 1 | AX57: 8 | AY57: =U28 -> 0 | AZ57: 0 | BA57: =VLOOKUP(AU57,CENY!$B$11:$M$2005,12,FALSE) -> 384.24 | BB57: 0 | BD57: =OBJ!B257 -> 9256997 | BE57: =VLOOKUP(BD57,CENY!$B$11:$G$1034,2,FALSE) -> ACTRO YOU 40KG PLNOVÝSUV 550 MM EB21 SILENT SYSTEM PRAVÝ | BF57: =VLOOKUP(BD57,CENY!$B$11:$G$1034,3,FALSE) -> 10 | BH57: =AY35 -> 0 | BI57: 0 | BJ57: =VLOOKUP(BD57,CENY!$B$11:$M$2005,12,FALSE) -> 269.84 | BK57: 0
AU58: =OBJ!B301 -> 9256890 | AV58: =VLOOKUP(AU58,CENY!$B$11:$G$1034,2,FALSE) -> QUADRO YOU PLNOVÝSUV 450 MM EB21 SILENT SYSTEM SADA | AW58: =VLOOKUP(AU58,CENY!$B$11:$G$1034,3,FALSE) -> 1 | AX58: 8 | AY58: =W28 -> 0 | AZ58: 0 | BA58: =VLOOKUP(AU58,CENY!$B$11:$M$2005,12,FALSE) -> 391.72 | BB58: 0 | BD58: =OBJ!B258 -> 9268679 | BE58: =VLOOKUP(BD58,CENY!$B$11:$G$1034,2,FALSE) -> ACTRO YOU 40KG PLNOVÝSUV 600 MM EB21 SILENT SYSTÉM LEVÝ | BF58: =VLOOKUP(BD58,CENY!$B$11:$G$1034,3,FALSE) -> 10 | BH58: =AY36 -> 0 | BI58: 0 | BJ58: =VLOOKUP(BD58,CENY!$B$11:$M$2005,12,FALSE) -> 273.51 | BK58: 0
AU59: =OBJ!B302 -> 9256892 | AV59: =VLOOKUP(AU59,CENY!$B$11:$G$1034,2,FALSE) -> QUADRO YOU PLNOVÝSUV 500 MM EB21 SILENT SYSTEM SADA | AW59: =VLOOKUP(AU59,CENY!$B$11:$G$1034,3,FALSE) -> 1 | AX59: 8 | AY59: =Y28 -> 0 | AZ59: 0 | BA59: =VLOOKUP(AU59,CENY!$B$11:$M$2005,12,FALSE) -> 399.19 | BB59: 0 | BD59: =OBJ!B259 -> 9268680 | BE59: =VLOOKUP(BD59,CENY!$B$11:$G$1034,2,FALSE) -> ACTRO YOU 40KG PLNOVÝSUV 600 MM EB21 SILENT SYSTÉM PRAVÝ | BF59: =VLOOKUP(BD59,CENY!$B$11:$G$1034,3,FALSE) -> 10 | BH59: =AY36 -> 0 | BI59: 0 | BJ59: =VLOOKUP(BD59,CENY!$B$11:$M$2005,12,FALSE) -> 273.51 | BK59: 0
AU60: =OBJ!B303 -> 9256894 | AV60: =VLOOKUP(AU60,CENY!$B$11:$G$1034,2,FALSE) -> QUADRO YOU PLNOVÝSUV 550 MM EB21 SILENT SYSTEM SADA | AW60: =VLOOKUP(AU60,CENY!$B$11:$G$1034,3,FALSE) -> 1 | AX60: 8 | AY60: =AA28 -> 0 | AZ60: 0 | BA60: =VLOOKUP(AU60,CENY!$B$11:$M$2005,12,FALSE) -> 412.64 | BB60: 0
AU61: =OBJ!B304 -> 9256896 | AV61: =VLOOKUP(AU61,CENY!$B$11:$G$1034,2,FALSE) -> QUADRO YOU PLNOVÝSUV 600 MM EB21 SILENT SYSTEM SADA | AW61: =VLOOKUP(AU61,CENY!$B$11:$G$1034,3,FALSE) -> 1 | AX61: 8 | AY61: =AC28 -> 0 | AZ61: 0 | BA61: =VLOOKUP(AU61,CENY!$B$11:$M$2005,12,FALSE) -> 420.11 | BB61: 0 | BD61: =OBJ!B266 -> 9257013 | BE61: =VLOOKUP(BD61,CENY!$B$11:$G$1034,2,FALSE) -> ACTRO YOU 70KG PLNOVÝSUV 450 MM EB21 SILENT SYSTEM LEVÝ | BF61: =VLOOKUP(BD61,CENY!$B$11:$G$1034,3,FALSE) -> 10 | BH61: =AY38 -> 0 | BI61: 0 | BJ61: =VLOOKUP(BD61,CENY!$B$11:$M$2005,12,FALSE) -> 309.07 | BK61: 0
BD62: =OBJ!B267 -> 9257014 | BE62: =VLOOKUP(BD62,CENY!$B$11:$G$1034,2,FALSE) -> ACTRO YOU 70KG PLNOVÝSUV 450 MM EB21 SILENT SYSTEM PRAVÝ | BF62: =VLOOKUP(BD62,CENY!$B$11:$G$1034,3,FALSE) -> 10 | BH62: =AY38 -> 0 | BI62: 0 | BJ62: =VLOOKUP(BD62,CENY!$B$11:$M$2005,12,FALSE) -> 309.07 | BK62: 0
AU63: =OBJ!B322 -> 9257894 | AV63: =VLOOKUP(AU63,CENY!$B$11:$G$1034,2,FALSE) -> PUSH TO OPEN SILENT QUADRO YOU 10 KG | AW63: =VLOOKUP(AU63,CENY!$B$11:$G$1034,3,FALSE) -> 1 | AY63: =AN27 -> 0 | AZ63: 0 | BA63: =VLOOKUP(AU63,CENY!$B$11:$M$2005,12,FALSE) -> 544.37 | BB63: 0 | BD63: =OBJ!B268 -> 9257017 | BE63: =VLOOKUP(BD63,CENY!$B$11:$G$1034,2,FALSE) -> ACTRO YOU 70KG PLNOVÝSUV 500 MM EB21 SILENT SYSTEM LEVÝ | BF63: =VLOOKUP(BD63,CENY!$B$11:$G$1034,3,FALSE) -> 10 | BH63: =AY39 -> 0 | BI63: 0 | BJ63: =VLOOKUP(BD63,CENY!$B$11:$M$2005,12,FALSE) -> 312.18 | BK63: 0
AU64: =OBJ!B323 -> 9257895 | AV64: =VLOOKUP(AU64,CENY!$B$11:$G$1034,2,FALSE) -> PUSH TO OPEN SILENT QUADRO YOU 20 KG | AW64: =VLOOKUP(AU64,CENY!$B$11:$G$1034,3,FALSE) -> 1 | AY64: =AN28 -> 0 | AZ64: 0 | BA64: =VLOOKUP(AU64,CENY!$B$11:$M$2005,12,FALSE) -> 544.37 | BB64: 0 | BD64: =OBJ!B269 -> 9257018 | BE64: =VLOOKUP(BD64,CENY!$B$11:$G$1034,2,FALSE) -> ACTRO YOU 70KG PLNOVÝSUV 500 MM EB21 SILENT SYSTEM PRAVÝ | BF64: =VLOOKUP(BD64,CENY!$B$11:$G$1034,3,FALSE) -> 10 | BH64: =AY39 -> 0 | BI64: 0 | BJ64: =VLOOKUP(BD64,CENY!$B$11:$M$2005,12,FALSE) -> 312.18 | BK64: 0
AU65: =OBJ!B324 -> 9257896 | AV65: =VLOOKUP(AU65,CENY!$B$11:$G$1034,2,FALSE) -> PUSH TO OPEN SILENT QUADRO YOU 30 KG | AW65: =VLOOKUP(AU65,CENY!$B$11:$G$1034,3,FALSE) -> 1 | AY65: =AN29 -> 0 | AZ65: 0 | BA65: =VLOOKUP(AU65,CENY!$B$11:$M$2005,12,FALSE) -> 544.37 | BB65: 0 | BD65: =OBJ!B270 -> 9257021 | BE65: =VLOOKUP(BD65,CENY!$B$11:$G$1034,2,FALSE) -> ACTRO YOU 70KG PLNOVÝSUV 550 MM EB21 SILENT SYSTEM LEVÝ | BF65: =VLOOKUP(BD65,CENY!$B$11:$G$1034,3,FALSE) -> 10 | BH65: =AY40 -> 0 | BI65: 0 | BJ65: =VLOOKUP(BD65,CENY!$B$11:$M$2005,12,FALSE) -> 328.77 | BK65: 0
BD66: =OBJ!B271 -> 9257022 | BE66: =VLOOKUP(BD66,CENY!$B$11:$G$1034,2,FALSE) -> ACTRO YOU 70KG PLNOVÝSUV 550 MM EB21 SILENT SYSTEM PRAVÝ | BF66: =VLOOKUP(BD66,CENY!$B$11:$G$1034,3,FALSE) -> 10 | BH66: =AY40 -> 0 | BI66: 0 | BJ66: =VLOOKUP(BD66,CENY!$B$11:$M$2005,12,FALSE) -> 328.77 | BK66: 0
AU67: =OBJ!B326 -> 9256928 | AV67: =VLOOKUP(AU67,CENY!$B$11:$G$1034,2,FALSE) -> QUADRO YOU PLNOVÝSUV 270 MM EB21 PUSH TO OPEN SADA | AW67: =VLOOKUP(AU67,CENY!$B$11:$G$1034,3,FALSE) -> 1 | AX67: 8 | AY67: =O30 -> 0 | AZ67: 0 | BA67: =VLOOKUP(AU67,CENY!$B$11:$M$2005,12,FALSE) -> 413.4 | BB67: =IF(BA67="","",BA67*AY67) -> 0 | BD67: =OBJ!B272 -> 9257025 | BE67: =VLOOKUP(BD67,CENY!$B$11:$G$1034,2,FALSE) -> ACTRO YOU 70KG PLNOVÝSUV 600 MM EB21 SILENT SYSTEM LEVÝ | BF67: =VLOOKUP(BD67,CENY!$B$11:$G$1034,3,FALSE) -> 10 | BH67: =AY41 -> 0 | BI67: 0 | BJ67: =VLOOKUP(BD67,CENY!$B$11:$M$2005,12,FALSE) -> 362.28 | BK67: 0
AU68: =OBJ!B327 -> 9256929 | AV68: =VLOOKUP(AU68,CENY!$B$11:$G$1034,2,FALSE) -> QUADRO YOU PLNOVÝSUV 300 MM EB21 PUSH TO OPEN SADA | AW68: =VLOOKUP(AU68,CENY!$B$11:$G$1034,3,FALSE) -> 1 | AX68: 8 | AY68: =Q30 -> 0 | AZ68: =IF(AY68="","",IF($AW$4=1,AY68,0)) -> 0 | BA68: =VLOOKUP(AU68,CENY!$B$11:$M$2005,12,FALSE) -> 414.13 | BB68: 0 | BD68: =OBJ!B273 -> 9257026 | BE68: =VLOOKUP(BD68,CENY!$B$11:$G$1034,2,FALSE) -> ACTRO YOU 70KG PLNOVÝSUV 600 MM EB21 SILENT SYSTEM PRAVÝ | BF68: =VLOOKUP(BD68,CENY!$B$11:$G$1034,3,FALSE) -> 10 | BH68: =AY41 -> 0 | BI68: 0 | BJ68: =VLOOKUP(BD68,CENY!$B$11:$M$2005,12,FALSE) -> 362.28 | BK68: 0
AU69: =OBJ!B328 -> 9256931 | AV69: =VLOOKUP(AU69,CENY!$B$11:$G$1034,2,FALSE) -> QUADRO YOU PLNOVÝSUV 350 MM EB21 PUSH TO OPEN SADA | AW69: =VLOOKUP(AU69,CENY!$B$11:$G$1034,3,FALSE) -> 1 | AX69: 8 | AY69: =S30 -> 0 | AZ69: 0 | BA69: =VLOOKUP(AU69,CENY!$B$11:$M$2005,12,FALSE) -> 421.61 | BB69: 0 | BD69: =OBJ!B274 -> 9257027 | BE69: =VLOOKUP(BD69,CENY!$B$11:$G$1034,2,FALSE) -> ACTRO YOU 70KG PLNOVÝSUV 650 MM EB21 SILENT SYSTEM LEVÝ | BF69: =VLOOKUP(BD69,CENY!$B$11:$G$1034,3,FALSE) -> 5 | BH69: =AY42 -> 0 | BI69: 0 | BJ69: =VLOOKUP(BD69,CENY!$B$11:$M$2005,12,FALSE) -> 377.39 | BK69: 0
AU70: =OBJ!B329 -> 9256933 | AV70: =VLOOKUP(AU70,CENY!$B$11:$G$1034,2,FALSE) -> QUADRO YOU PLNOVÝSUV 400 MM EB21 PUSH TO OPEN SADA | AW70: =VLOOKUP(AU70,CENY!$B$11:$G$1034,3,FALSE) -> 1 | AX70: 8 | AY70: =U30 -> 0 | AZ70: 0 | BA70: =VLOOKUP(AU70,CENY!$B$11:$M$2005,12,FALSE) -> 429.08 | BB70: 0 | BD70: =OBJ!B275 -> 9257028 | BE70: =VLOOKUP(BD70,CENY!$B$11:$G$1034,2,FALSE) -> ACTRO YOU 70KG PLNOVÝSUV 650 MM EB21 SILENT SYSTEM PRAVÝ | BF70: =VLOOKUP(BD70,CENY!$B$11:$G$1034,3,FALSE) -> 5 | BH70: =AY42 -> 0 | BI70: =IF(BH70="","",IF($AW$4=0,BH70,0)) -> 0 | BJ70: =VLOOKUP(BD70,CENY!$B$11:$M$2005,12,FALSE) -> 377.39 | BK70: =IF(BJ70="","",BJ70*BH70) -> 0
AU71: =OBJ!B330 -> 9256935 | AV71: =VLOOKUP(AU71,CENY!$B$11:$G$1034,2,FALSE) -> QUADRO YOU PLNOVÝSUV 450 MM EB21 PUSH TO OPEN SADA | AW71: =VLOOKUP(AU71,CENY!$B$11:$G$1034,3,FALSE) -> 1 | AX71: 8 | AY71: =W30 -> 0 | AZ71: 0 | BA71: =VLOOKUP(AU71,CENY!$B$11:$M$2005,12,FALSE) -> 436.55 | BB71: 0
AU72: =OBJ!B331 -> 9256937 | AV72: =VLOOKUP(AU72,CENY!$B$11:$G$1034,2,FALSE) -> QUADRO YOU PLNOVÝSUV 500 MM EB21 PUSH TO OPEN SADA | AW72: =VLOOKUP(AU72,CENY!$B$11:$G$1034,3,FALSE) -> 1 | AX72: 8 | AY72: =Y30 -> 0 | AZ72: 0 | BA72: =VLOOKUP(AU72,CENY!$B$11:$M$2005,12,FALSE) -> 444.02 | BB72: 0 | BD72: =OBJ!B277 -> 9257890 | BE72: =VLOOKUP(BD72,CENY!$B$11:$G$1034,2,FALSE) -> PUSH TO OPEN SILENT ACTRO YOU / ACTRO 5D 10 KG | BF72: =VLOOKUP(BD72,CENY!$B$11:$G$1034,3,FALSE) -> 1 | BH72: =AY44 -> 0 | BI72: 0 | BJ72: =VLOOKUP(BD72,CENY!$B$11:$M$2005,12,FALSE) -> 544.37 | BK72: 0
AU73: =OBJ!B332 -> 9256939 | AV73: =VLOOKUP(AU73,CENY!$B$11:$G$1034,2,FALSE) -> QUADRO YOU PLNOVÝSUV 550 MM EB21 PUSH TO OPEN SADA | AW73: =VLOOKUP(AU73,CENY!$B$11:$G$1034,3,FALSE) -> 1 | AX73: 8 | AY73: =AA30 -> 0 | AZ73: 0 | BA73: =VLOOKUP(AU73,CENY!$B$11:$M$2005,12,FALSE) -> 457.48 | BB73: 0 | BD73: =OBJ!B278 -> 9257891 | BE73: =VLOOKUP(BD73,CENY!$B$11:$G$1034,2,FALSE) -> PUSH TO OPEN SILENT ACTRO YOU / ACTRO 5D 20 KG | BF73: =VLOOKUP(BD73,CENY!$B$11:$G$1034,3,FALSE) -> 1 | BH73: =AY45 -> 0 | BI73: 0 | BJ73: =VLOOKUP(BD73,CENY!$B$11:$M$2005,12,FALSE) -> 544.37 | BK73: 0
AU74: =OBJ!B333 -> 9256941 | AV74: =VLOOKUP(AU74,CENY!$B$11:$G$1034,2,FALSE) -> QUADRO YOU PLNOVÝSUV 600 MM EB21 PUSH TO OPEN SADA | AW74: =VLOOKUP(AU74,CENY!$B$11:$G$1034,3,FALSE) -> 1 | AX74: 8 | AY74: =AC30 -> 0 | AZ74: 0 | BA74: =VLOOKUP(AU74,CENY!$B$11:$M$2005,12,FALSE) -> 464.95 | BB74: 0 | BD74: =OBJ!B279 -> 9257892 | BE74: =VLOOKUP(BD74,CENY!$B$11:$G$1034,2,FALSE) -> PUSH TO OPEN SILENT ACTRO YOU / ACTRO 5D 40 KG | BF74: =VLOOKUP(BD74,CENY!$B$11:$G$1034,3,FALSE) -> 1 | BH74: =AY46 -> 0 | BI74: 0 | BJ74: =VLOOKUP(BD74,CENY!$B$11:$M$2005,12,FALSE) -> 544.37 | BK74: 0
BD75: =OBJ!B280 -> 9257893 | BE75: =VLOOKUP(BD75,CENY!$B$11:$G$1034,2,FALSE) -> PUSH TO OPEN SILENT ACTRO YOU / ACTRO 5D 70 KG | BF75: =VLOOKUP(BD75,CENY!$B$11:$G$1034,3,FALSE) -> 1 | BH75: =AY47 -> 0 | BI75: 0 | BJ75: =VLOOKUP(BD75,CENY!$B$11:$M$2005,12,FALSE) -> 544.37 | BK75: 0
AU76: =OBJ!B351 -> 9219966 | AV76: =VLOOKUP(AU76,CENY!$B$11:$G$1034,2,FALSE) -> PUSH TO OPEN SYNCHRO ADAPTÉR TYP A | AW76: =VLOOKUP(AU76,CENY!$B$11:$G$1034,3,FALSE) -> 200 | AY76: =2*SUM(O30:AD30) -> 0 | AZ76: 0 | BA76: =VLOOKUP(AU76,CENY!$B$11:$M$2005,12,FALSE) -> 13.07 | BB76: 0 | BD76: =OBJ!B281 -> 9236718 | BE76: =VLOOKUP(BD76,CENY!$B$11:$G$1034,2,FALSE) -> PUSH TO OPEN SYNCHRONIZAČNÍ TYČ 2000 MM | BF76: =VLOOKUP(BD76,CENY!$B$11:$G$1034,3,FALSE) -> 100 | BH76: =AY48 -> 0 | BI76: 0 | BJ76: =VLOOKUP(BD76,CENY!$B$11:$M$2005,12,FALSE) -> 144.3 | BK76: 0
AU78: 9255836 | AV78: =VLOOKUP(AU78,CENY!$B$11:$G$1034,2,FALSE) -> AVANTECH YOU PŘÍCHYTKA ČELA V101 MM K ZALISOVÁNÍ | AW78: =VLOOKUP(AU78,CENY!$B$11:$G$1034,3,FALSE) -> 200 | AY78: =IF(FORM!AM8=FORM!AU11,(2*(+SUM(O19:T19)+SUM(O20:AD20)+SUM(W22:AF22)+SUM(O27:T27)+SUM(O28:AD28)+SUM(O30:AD30))),0) -> 0 | AZ78: 0 | BA78: =VLOOKUP(AU78,CENY!$B$11:$M$2005,12,FALSE) -> 27.23 | BB78: 0 | BD78: =OBJ!B290 -> 9256944 | BE78: =VLOOKUP(BD78,CENY!$B$11:$G$1034,2,FALSE) -> QUADRO YOU 10 KG PLNOVÝSUV 270 MM EB21 SILENT SYSTEM LEVÝ | BF78: =VLOOKUP(BD78,CENY!$B$11:$G$1034,3,FALSE) -> 20 | BH78: =AY50 -> 0 | BI78: 0 | BJ78: =VLOOKUP(BD78,CENY!$B$11:$M$2005,12,FALSE) -> 174.19 | BK78: 0
BD79: =OBJ!B291 -> 9256945 | BE79: =VLOOKUP(BD79,CENY!$B$11:$G$1034,2,FALSE) -> QUADRO YOU 10 KG PLNOVÝSUV 270 MM EB21 SILENT SYSTEM PRAVÝ | BF79: =VLOOKUP(BD79,CENY!$B$11:$G$1034,3,FALSE) -> 20 | BH79: =AY50 -> 0 | BI79: 0 | BJ79: =VLOOKUP(BD79,CENY!$B$11:$M$2005,12,FALSE) -> 174.19 | BK79: 0
AU80: =OBJ!B207 -> 0 | AV80: =VLOOKUP(AU80,CENY!$B$11:$G$1034,2,FALSE) ->  | AW80: =VLOOKUP(AU80,CENY!$B$11:$G$1034,3,FALSE) ->  | AY80: =IF(FORM!AM21<>FORM!AW16,(2*(+SUM(O19:T19)+SUM(O20:AD20)+SUM(W22:AF22)+SUM(O27:T27)+SUM(O28:AD28)+SUM(O30:AD30))),0) -> 0 | AZ80: 0 | BA80: =IF(AU80=0,"",VLOOKUP(AU80,CENY!$B$11:$M$2005,12,FALSE)) ->  | BB80: =IF(BA80="","",BA80*AY80) ->  | BD80: =OBJ!B292 -> 9256946 | BE80: =VLOOKUP(BD80,CENY!$B$11:$G$1034,2,FALSE) -> QUADRO YOU 10 KG PLNOVÝSUV 300 MM EB21 SILENT SYSTEM LEVÝ | BF80: =VLOOKUP(BD80,CENY!$B$11:$G$1034,3,FALSE) -> 20 | BH80: =AY51 -> 0 | BI80: 0 | BJ80: =VLOOKUP(BD80,CENY!$B$11:$M$2005,12,FALSE) -> 172.7 | BK80: 0
BD81: =OBJ!B293 -> 9256947 | BE81: =VLOOKUP(BD81,CENY!$B$11:$G$1034,2,FALSE) -> QUADRO YOU 10 KG PLNOVÝSUV 300 MM EB21 SILENT SYSTEM PRAVÝ | BF81: =VLOOKUP(BD81,CENY!$B$11:$G$1034,3,FALSE) -> 20 | BH81: =AY51 -> 0 | BI81: 0 | BJ81: =VLOOKUP(BD81,CENY!$B$11:$M$2005,12,FALSE) -> 172.7 | BK81: 0
BD82: =OBJ!B294 -> 9256950 | BE82: =VLOOKUP(BD82,CENY!$B$11:$G$1034,2,FALSE) -> QUADRO YOU 10 KG PLNOVÝSUV 350 MM EB21 SILENT SYSTEM LEVÝ | BF82: =VLOOKUP(BD82,CENY!$B$11:$G$1034,3,FALSE) -> 20 | BH82: =AY52 -> 0 | BI82: 0 | BJ82: =VLOOKUP(BD82,CENY!$B$11:$M$2005,12,FALSE) -> 176.43 | BK82: 0
BD83: =OBJ!B295 -> 9256951 | BE83: =VLOOKUP(BD83,CENY!$B$11:$G$1034,2,FALSE) -> QUADRO YOU 10 KG PLNOVÝSUV 350 MM EB21 SILENT SYSTEM PRAVÝ | BF83: =VLOOKUP(BD83,CENY!$B$11:$G$1034,3,FALSE) -> 20 | BH83: =AY52 -> 0 | BI83: 0 | BJ83: =VLOOKUP(BD83,CENY!$B$11:$M$2005,12,FALSE) -> 176.43 | BK83: 0
BD85: =OBJ!B305 -> 9256854 | BE85: =VLOOKUP(BD85,CENY!$B$11:$G$1034,2,FALSE) -> QUADRO YOU PLNOVÝSUV 270 MM EB21 SILENT SYSTEM LEVÝ | BF85: =VLOOKUP(BD85,CENY!$B$11:$G$1034,3,FALSE) -> 20 | BH85: =AY54 -> 0 | BI85: 0 | BJ85: =VLOOKUP(BD85,CENY!$B$11:$M$2005,12,FALSE) -> 174.19 | BK85: 0
BD86: =OBJ!B306 -> 9256855 | BE86: =VLOOKUP(BD86,CENY!$B$11:$G$1034,2,FALSE) -> QUADRO YOU PLNOVÝSUV 270 MM EB21 SILENT SYSTEM PRAVÝ | BF86: =VLOOKUP(BD86,CENY!$B$11:$G$1034,3,FALSE) -> 20 | BH86: =AY54 -> 0 | BI86: 0 | BJ86: =VLOOKUP(BD86,CENY!$B$11:$M$2005,12,FALSE) -> 174.19 | BK86: 0
BD87: =OBJ!B307 -> 9256856 | BE87: =VLOOKUP(BD87,CENY!$B$11:$G$1034,2,FALSE) -> QUADRO YOU PLNOVÝSUV 300 MM EB21 SILENT SYSTEM LEVÝ | BF87: =VLOOKUP(BD87,CENY!$B$11:$G$1034,3,FALSE) -> 20 | BH87: =AY55 -> 0 | BI87: 0 | BJ87: =VLOOKUP(BD87,CENY!$B$11:$M$2005,12,FALSE) -> 172.7 | BK87: 0
BD88: =OBJ!B308 -> 9256857 | BE88: =VLOOKUP(BD88,CENY!$B$11:$G$1034,2,FALSE) -> QUADRO YOU PLNOVÝSUV 300 MM EB21 SILENT SYSTEM PRAVÝ | BF88: =VLOOKUP(BD88,CENY!$B$11:$G$1034,3,FALSE) -> 20 | BH88: =AY55 -> 0 | BI88: 0 | BJ88: =VLOOKUP(BD88,CENY!$B$11:$M$2005,12,FALSE) -> 172.7 | BK88: 0
BB89: =IF(BA89="","",BA89*AY89) ->  | BD89: =OBJ!B309 -> 9256860 | BE89: =VLOOKUP(BD89,CENY!$B$11:$G$1034,2,FALSE) -> QUADRO YOU PLNOVÝSUV 350 MM EB21 SILENT SYSTEM LEVÝ | BF89: =VLOOKUP(BD89,CENY!$B$11:$G$1034,3,FALSE) -> 20 | BH89: =AY56 -> 0 | BI89: 0 | BJ89: =VLOOKUP(BD89,CENY!$B$11:$M$2005,12,FALSE) -> 176.43 | BK89: 0
BD90: =OBJ!B310 -> 9256861 | BE90: =VLOOKUP(BD90,CENY!$B$11:$G$1034,2,FALSE) -> QUADRO YOU PLNOVÝSUV 350 MM EB21 SILENT SYSTEM PRAVÝ | BF90: =VLOOKUP(BD90,CENY!$B$11:$G$1034,3,FALSE) -> 20 | BH90: =AY56 -> 0 | BI90: 0 | BJ90: =VLOOKUP(BD90,CENY!$B$11:$M$2005,12,FALSE) -> 176.43 | BK90: 0
BD91: =OBJ!B311 -> 9256864 | BE91: =VLOOKUP(BD91,CENY!$B$11:$G$1034,2,FALSE) -> QUADRO YOU PLNOVÝSUV 400 MM EB21 SILENT SYSTEM LEVÝ | BF91: =VLOOKUP(BD91,CENY!$B$11:$G$1034,3,FALSE) -> 20 | BH91: =AY57 -> 0 | BI91: 0 | BJ91: =VLOOKUP(BD91,CENY!$B$11:$M$2005,12,FALSE) -> 180.17 | BK91: 0
BD92: =OBJ!B312 -> 9256865 | BE92: =VLOOKUP(BD92,CENY!$B$11:$G$1034,2,FALSE) -> QUADRO YOU PLNOVÝSUV 400 MM EB21 SILENT SYSTEM PRAVÝ | BF92: =VLOOKUP(BD92,CENY!$B$11:$G$1034,3,FALSE) -> 20 | BH92: =AY57 -> 0 | BI92: 0 | BJ92: =VLOOKUP(BD92,CENY!$B$11:$M$2005,12,FALSE) -> 180.17 | BK92: 0
BD93: =OBJ!B313 -> 9256868 | BE93: =VLOOKUP(BD93,CENY!$B$11:$G$1034,2,FALSE) -> QUADRO YOU PLNOVÝSUV 450 MM EB21 SILENT SYSTEM LEVÝ | BF93: =VLOOKUP(BD93,CENY!$B$11:$G$1034,3,FALSE) -> 20 | BH93: =AY58 -> 0 | BI93: 0 | BJ93: =VLOOKUP(BD93,CENY!$B$11:$M$2005,12,FALSE) -> 183.9 | BK93: 0
BD94: =OBJ!B314 -> 9256869 | BE94: =VLOOKUP(BD94,CENY!$B$11:$G$1034,2,FALSE) -> QUADRO YOU PLNOVÝSUV 450 MM EB21 SILENT SYSTEM PRAVÝ | BF94: =VLOOKUP(BD94,CENY!$B$11:$G$1034,3,FALSE) -> 20 | BH94: =AY58 -> 0 | BI94: 0 | BJ94: =VLOOKUP(BD94,CENY!$B$11:$M$2005,12,FALSE) -> 183.9 | BK94: 0
BD95: =OBJ!B315 -> 9256872 | BE95: =VLOOKUP(BD95,CENY!$B$11:$G$1034,2,FALSE) -> QUADRO YOU PLNOVÝSUV 500 MM EB21 SILENT SYSTEM LEVÝ | BF95: =VLOOKUP(BD95,CENY!$B$11:$G$1034,3,FALSE) -> 20 | BH95: =AY59 -> 0 | BI95: 0 | BJ95: =VLOOKUP(BD95,CENY!$B$11:$M$2005,12,FALSE) -> 187.64 | BK95: 0
BD96: =OBJ!B316 -> 9256873 | BE96: =VLOOKUP(BD96,CENY!$B$11:$G$1034,2,FALSE) -> QUADRO YOU PLNOVÝSUV 500 MM EB21 SILENT SYSTEM PRAVÝ | BF96: =VLOOKUP(BD96,CENY!$B$11:$G$1034,3,FALSE) -> 20 | BH96: =AY59 -> 0 | BI96: 0 | BJ96: =VLOOKUP(BD96,CENY!$B$11:$M$2005,12,FALSE) -> 187.64 | BK96: 0
BD97: =OBJ!B317 -> 9256876 | BE97: =VLOOKUP(BD97,CENY!$B$11:$G$1034,2,FALSE) -> QUADRO YOU PLNOVÝSUV 550 MM EB21 SILENT SYSTEM LEVÝ | BF97: =VLOOKUP(BD97,CENY!$B$11:$G$1034,3,FALSE) -> 20 | BH97: =AY60 -> 0 | BI97: 0 | BJ97: =VLOOKUP(BD97,CENY!$B$11:$M$2005,12,FALSE) -> 194.36 | BK97: 0
BB98: =IF(BA98="","",BA98*AY98) ->  | BD98: =OBJ!B318 -> 9256877 | BE98: =VLOOKUP(BD98,CENY!$B$11:$G$1034,2,FALSE) -> QUADRO YOU PLNOVÝSUV 550 MM EB21 SILENT SYSTEM PRAVÝ | BF98: =VLOOKUP(BD98,CENY!$B$11:$G$1034,3,FALSE) -> 20 | BH98: =AY60 -> 0 | BI98: 0 | BJ98: =VLOOKUP(BD98,CENY!$B$11:$M$2005,12,FALSE) -> 194.36 | BK98: 0
BD99: =OBJ!B319 -> 9256880 | BE99: =VLOOKUP(BD99,CENY!$B$11:$G$1034,2,FALSE) -> QUADRO YOU PLNOVÝSUV 600 MM EB21 SILENT SYSTEM LEVÝ | BF99: =VLOOKUP(BD99,CENY!$B$11:$G$1034,3,FALSE) -> 20 | BH99: =AY61 -> 0 | BI99: 0 | BJ99: =VLOOKUP(BD99,CENY!$B$11:$M$2005,12,FALSE) -> 198.1 | BK99: 0
BD100: =OBJ!B320 -> 9256881 | BE100: =VLOOKUP(BD100,CENY!$B$11:$G$1034,2,FALSE) -> QUADRO YOU PLNOVÝSUV 600 MM EB21 SILENT SYSTEM PRAVÝ | BF100: =VLOOKUP(BD100,CENY!$B$11:$G$1034,3,FALSE) -> 20 | BH100: =AY61 -> 0 | BI100: 0 | BJ100: =VLOOKUP(BD100,CENY!$B$11:$M$2005,12,FALSE) -> 198.1 | BK100: 0
BD102: =OBJ!B322 -> 9257894 | BE102: =VLOOKUP(BD102,CENY!$B$11:$G$1034,2,FALSE) -> PUSH TO OPEN SILENT QUADRO YOU 10 KG | BF102: =VLOOKUP(BD102,CENY!$B$11:$G$1034,3,FALSE) -> 1 | BH102: =AY63 -> 0 | BI102: 0 | BJ102: =VLOOKUP(BD102,CENY!$B$11:$M$2005,12,FALSE) -> 544.37 | BK102: 0
BD103: =OBJ!B323 -> 9257895 | BE103: =VLOOKUP(BD103,CENY!$B$11:$G$1034,2,FALSE) -> PUSH TO OPEN SILENT QUADRO YOU 20 KG | BF103: =VLOOKUP(BD103,CENY!$B$11:$G$1034,3,FALSE) -> 1 | BH103: =AY64 -> 0 | BI103: 0 | BJ103: =VLOOKUP(BD103,CENY!$B$11:$M$2005,12,FALSE) -> 544.37 | BK103: 0
BD104: =OBJ!B324 -> 9257896 | BE104: =VLOOKUP(BD104,CENY!$B$11:$G$1034,2,FALSE) -> PUSH TO OPEN SILENT QUADRO YOU 30 KG | BF104: =VLOOKUP(BD104,CENY!$B$11:$G$1034,3,FALSE) -> 1 | BH104: =AY65 -> 0 | BI104: 0 | BJ104: =VLOOKUP(BD104,CENY!$B$11:$M$2005,12,FALSE) -> 544.37 | BK104: 0
BD106: =OBJ!B334 -> 9256899 | BE106: =VLOOKUP(BD106,CENY!$B$11:$G$1034,2,FALSE) -> QUADRO YOU PLNOVÝSUV 270 MM EB21 PUSH TO OPEN LEVÝ | BF106: =VLOOKUP(BD106,CENY!$B$11:$G$1034,3,FALSE) -> 20 | BH106: =AY67 -> 0 | BI106: 0 | BJ106: =VLOOKUP(BD106,CENY!$B$11:$M$2005,12,FALSE) -> 194.74 | BK106: 0
BD107: =OBJ!B335 -> 9256900 | BE107: =VLOOKUP(BD107,CENY!$B$11:$G$1034,2,FALSE) -> QUADRO YOU PLNOVÝSUV 270 MM EB21 PUSH TO OPEN PRAVÝ | BF107: =VLOOKUP(BD107,CENY!$B$11:$G$1034,3,FALSE) -> 20 | BH107: =AY67 -> 0 | BI107: 0 | BJ107: =VLOOKUP(BD107,CENY!$B$11:$M$2005,12,FALSE) -> 194.74 | BK107: 0
BD108: =OBJ!B336 -> 9256901 | BE108: =VLOOKUP(BD108,CENY!$B$11:$G$1034,2,FALSE) -> QUADRO YOU PLNOVÝSUV 300 MM EB21 PUSH TO OPEN LEVÝ | BF108: =VLOOKUP(BD108,CENY!$B$11:$G$1034,3,FALSE) -> 20 | BH108: =AY68 -> 0 | BI108: 0 | BJ108: =VLOOKUP(BD108,CENY!$B$11:$M$2005,12,FALSE) -> 195.11 | BK108: 0
BD109: =OBJ!B337 -> 9256902 | BE109: =VLOOKUP(BD109,CENY!$B$11:$G$1034,2,FALSE) -> QUADRO YOU PLNOVÝSUV 300 MM EB21 PUSH TO OPEN PRAVÝ | BF109: =VLOOKUP(BD109,CENY!$B$11:$G$1034,3,FALSE) -> 20 | BH109: =AY68 -> 0 | BI109: 0 | BJ109: =VLOOKUP(BD109,CENY!$B$11:$M$2005,12,FALSE) -> 195.11 | BK109: 0
BD110: =OBJ!B338 -> 9256905 | BE110: =VLOOKUP(BD110,CENY!$B$11:$G$1034,2,FALSE) -> QUADRO YOU PLNOVÝSUV 350 MM EB21 PUSH TO OPEN LEVÝ | BF110: =VLOOKUP(BD110,CENY!$B$11:$G$1034,3,FALSE) -> 20 | BH110: =AY69 -> 0 | BI110: 0 | BJ110: =VLOOKUP(BD110,CENY!$B$11:$M$2005,12,FALSE) -> 198.85 | BK110: 0
BD111: =OBJ!B339 -> 9256906 | BE111: =VLOOKUP(BD111,CENY!$B$11:$G$1034,2,FALSE) -> QUADRO YOU PLNOVÝSUV 350 MM EB21 PUSH TO OPEN PRAVÝ | BF111: =VLOOKUP(BD111,CENY!$B$11:$G$1034,3,FALSE) -> 20 | BH111: =AY69 -> 0 | BI111: 0 | BJ111: =VLOOKUP(BD111,CENY!$B$11:$M$2005,12,FALSE) -> 198.85 | BK111: 0
BD112: =OBJ!B340 -> 9256909 | BE112: =VLOOKUP(BD112,CENY!$B$11:$G$1034,2,FALSE) -> QUADRO YOU PLNOVÝSUV 400 MM EB21 PUSH TO OPEN LEVÝ | BF112: =VLOOKUP(BD112,CENY!$B$11:$G$1034,3,FALSE) -> 20 | BH112: =AY70 -> 0 | BI112: 0 | BJ112: =VLOOKUP(BD112,CENY!$B$11:$M$2005,12,FALSE) -> 202.58 | BK112: 0
BD113: =OBJ!B341 -> 9256910 | BE113: =VLOOKUP(BD113,CENY!$B$11:$G$1034,2,FALSE) -> QUADRO YOU PLNOVÝSUV 400 MM EB21 PUSH TO OPEN PRAVÝ | BF113: =VLOOKUP(BD113,CENY!$B$11:$G$1034,3,FALSE) -> 20 | BH113: =AY70 -> 0 | BI113: 0 | BJ113: =VLOOKUP(BD113,CENY!$B$11:$M$2005,12,FALSE) -> 202.58 | BK113: 0
BD114: =OBJ!B342 -> 9256913 | BE114: =VLOOKUP(BD114,CENY!$B$11:$G$1034,2,FALSE) -> QUADRO YOU PLNOVÝSUV 450 MM EB21 PUSH TO OPEN LEVÝ | BF114: =VLOOKUP(BD114,CENY!$B$11:$G$1034,3,FALSE) -> 20 | BH114: =AY71 -> 0 | BI114: 0 | BJ114: =VLOOKUP(BD114,CENY!$B$11:$M$2005,12,FALSE) -> 206.32 | BK114: 0
BD115: =OBJ!B343 -> 9256914 | BE115: =VLOOKUP(BD115,CENY!$B$11:$G$1034,2,FALSE) -> QUADRO YOU PLNOVÝSUV 450 MM EB21 PUSH TO OPEN PRAVÝ | BF115: =VLOOKUP(BD115,CENY!$B$11:$G$1034,3,FALSE) -> 20 | BH115: =AY71 -> 0 | BI115: 0 | BJ115: =VLOOKUP(BD115,CENY!$B$11:$M$2005,12,FALSE) -> 206.32 | BK115: 0
BD116: =OBJ!B344 -> 9256917 | BE116: =VLOOKUP(BD116,CENY!$B$11:$G$1034,2,FALSE) -> QUADRO YOU PLNOVÝSUV 500 MM EB21 PUSH TO OPEN LEVÝ | BF116: =VLOOKUP(BD116,CENY!$B$11:$G$1034,3,FALSE) -> 20 | BH116: =AY72 -> 0 | BI116: 0 | BJ116: =VLOOKUP(BD116,CENY!$B$11:$M$2005,12,FALSE) -> 210.06 | BK116: 0
BD117: =OBJ!B345 -> 9256918 | BE117: =VLOOKUP(BD117,CENY!$B$11:$G$1034,2,FALSE) -> QUADRO YOU PLNOVÝSUV 500 MM EB21 PUSH TO OPEN PRAVÝ | BF117: =VLOOKUP(BD117,CENY!$B$11:$G$1034,3,FALSE) -> 20 | BH117: =AY72 -> 0 | BI117: 0 | BJ117: =VLOOKUP(BD117,CENY!$B$11:$M$2005,12,FALSE) -> 210.06 | BK117: 0
BD118: =OBJ!B346 -> 9256921 | BE118: =VLOOKUP(BD118,CENY!$B$11:$G$1034,2,FALSE) -> QUADRO YOU PLNOVÝSUV 550 MM EB21 PUSH TO OPEN LEVÝ | BF118: =VLOOKUP(BD118,CENY!$B$11:$G$1034,3,FALSE) -> 20 | BH118: =AY73 -> 0 | BI118: 0 | BJ118: =VLOOKUP(BD118,CENY!$B$11:$M$2005,12,FALSE) -> 216.78 | BK118: 0
BD119: =OBJ!B347 -> 9256922 | BE119: =VLOOKUP(BD119,CENY!$B$11:$G$1034,2,FALSE) -> QUADRO YOU PLNOVÝSUV 550 MM EB21 PUSH TO OPEN PRAVÝ | BF119: =VLOOKUP(BD119,CENY!$B$11:$G$1034,3,FALSE) -> 20 | BH119: =AY73 -> 0 | BI119: 0 | BJ119: =VLOOKUP(BD119,CENY!$B$11:$M$2005,12,FALSE) -> 216.78 | BK119: 0
BD120: =OBJ!B348 -> 9256925 | BE120: =VLOOKUP(BD120,CENY!$B$11:$G$1034,2,FALSE) -> QUADRO YOU PLNOVÝSUV 600 MM EB21 PUSH TO OPEN LEVÝ | BF120: =VLOOKUP(BD120,CENY!$B$11:$G$1034,3,FALSE) -> 20 | BH120: =AY74 -> 0 | BI120: 0 | BJ120: =VLOOKUP(BD120,CENY!$B$11:$M$2005,12,FALSE) -> 223.51 | BK120: 0
BD121: =OBJ!B349 -> 9256926 | BE121: =VLOOKUP(BD121,CENY!$B$11:$G$1034,2,FALSE) -> QUADRO YOU PLNOVÝSUV 600 MM EB21 PUSH TO OPEN PRAVÝ | BF121: =VLOOKUP(BD121,CENY!$B$11:$G$1034,3,FALSE) -> 20 | BH121: =AY74 -> 0 | BI121: 0 | BJ121: =VLOOKUP(BD121,CENY!$B$11:$M$2005,12,FALSE) -> 223.51 | BK121: 0
BD123: =OBJ!B351 -> 9219966 | BE123: =VLOOKUP(BD123,CENY!$B$11:$G$1034,2,FALSE) -> PUSH TO OPEN SYNCHRO ADAPTÉR TYP A | BF123: =VLOOKUP(BD123,CENY!$B$11:$G$1034,3,FALSE) -> 200 | BH123: =AY76 -> 0 | BI123: 0 | BJ123: =VLOOKUP(BD123,CENY!$B$11:$M$2005,12,FALSE) -> 13.07 | BK123: 0
BD125: =OBJ!B207 -> 0 | BE125: =VLOOKUP(BD125,CENY!$B$11:$G$1034,2,FALSE) ->  | BF125: =VLOOKUP(BD125,CENY!$B$11:$G$1034,3,FALSE) ->  | BH125: =AY80 -> 0 | BI125: 0 | BJ125: =IF(BD125=0,"",VLOOKUP(BD125,CENY!$B$11:$M$2005,12,FALSE)) ->  | BK125: =IF(BJ125="","",BJ125*BH125) -> 
AU127: =OBJ!B354 -> 45167 | AV127: =VLOOKUP(AU127,CENY!$B$11:$G$1034,2,FALSE) -> VRUT PANHEAD 35X12 | AW127: =VLOOKUP(AU127,CENY!$B$11:$G$1034,3,FALSE) -> 200 | AY127: =SUMPRODUCT(AX5:AX13,AY5:AY13) -> 0 | AZ127: =IF(AY127="","",IF($AW$4=1,AY127,0)) -> 0 | BA127: =VLOOKUP(AU127,CENY!$B$11:$M$2005,12,FALSE) -> 0.54 | BB127: 0 | BC127: na dno + stabilizátor chrbáta | BD127: =OBJ!B354 -> 45167 | BE127: =VLOOKUP(BD127,CENY!$B$11:$G$1034,2,FALSE) -> VRUT PANHEAD 35X12 | BF127: =VLOOKUP(BD127,CENY!$B$11:$G$1034,3,FALSE) -> 200 | BH127: =AY127+BH25*2 -> 0 | BI127: =IF(BH127="","",IF($AW$4=0,BH127,0)) -> 0 | BJ127: =VLOOKUP(BD127,CENY!$B$11:$M$2005,12,FALSE) -> 0.54 | BK127: =IF(BJ127="","",BJ127*BH127) -> 0
AU128: =OBJ!B355 -> 45168 | AV128: =VLOOKUP(AU128,CENY!$B$11:$G$1034,2,FALSE) -> VRUT PANHEAD 35X20 | AW128: =VLOOKUP(AU128,CENY!$B$11:$G$1034,3,FALSE) -> 200 | AY128: 0 | AZ128: 0 | BA128: =VLOOKUP(AU128,CENY!$B$11:$M$2005,12,FALSE) -> 0.78 | BB128: 0 | BC128: na príchytky čela | BD128: =OBJ!B355 -> 45168 | BE128: =VLOOKUP(BD128,CENY!$B$11:$G$1034,2,FALSE) -> VRUT PANHEAD 35X20 | BF128: =VLOOKUP(BD128,CENY!$B$11:$G$1034,3,FALSE) -> 200 | BH128: =IF(FORM!$AM$8=FORM!$AU$10,BH24*2,0) -> 0 | BI128: =IF(BH128="","",IF($AW$4=0,BH128,0)) -> 0 | BJ128: =VLOOKUP(BD128,CENY!$B$11:$M$2005,12,FALSE) -> 0.78 | BK128: =IF(BJ128="","",BJ128*BH128) -> 0
AU129: =OBJ!B356 -> 9278224 | AV129: =VLOOKUP(AU129,CENY!$B$11:$G$1034,2,FALSE) -> AVANTECH YOU VRUT 3,5X30 PANHEAD POZINK. | AW129: =VLOOKUP(AU129,CENY!$B$11:$G$1034,3,FALSE) -> 200 | AY129: 0 | AZ129: 0 | BA129: =VLOOKUP(AU129,CENY!$B$11:$M$2005,12,FALSE) -> 0.73 | BB129: 0 | BC129: na chrbát | BD129: =OBJ!B356 -> 9278224 | BE129: =VLOOKUP(BD129,CENY!$B$11:$G$1034,2,FALSE) -> AVANTECH YOU VRUT 3,5X30 PANHEAD POZINK. | BF129: =VLOOKUP(BD129,CENY!$B$11:$G$1034,3,FALSE) -> 200 | BH129: =SUM(BH5:BH22) -> 0 | BI129: =IF(BH129="","",IF($AW$4=0,BH129,0)) -> 0 | BJ129: =VLOOKUP(BD129,CENY!$B$11:$M$2005,12,FALSE) -> 0.73 | BK129: =IF(BJ129="","",BJ129*BH129) -> 0
AU130: =OBJ!B357 -> 9279197 | AV130: =VLOOKUP(AU130,CENY!$B$11:$G$1034,2,FALSE) -> SAMOŘEZNÝ ŠROUB 3,5X12 PANHEAD POZINK. | AW130: =VLOOKUP(AU130,CENY!$B$11:$G$1034,3,FALSE) -> 1000 | AY130: 0 | AZ130: 0 | BA130: =VLOOKUP(AU130,CENY!$B$11:$M$2005,12,FALSE) -> 1.51 | BB130: 0 | BC130: na ALU čelo | BD130: =OBJ!B357 -> 9279197 | BE130: =VLOOKUP(BD130,CENY!$B$11:$G$1034,2,FALSE) -> SAMOŘEZNÝ ŠROUB 3,5X12 PANHEAD POZINK. | BF130: =VLOOKUP(BD130,CENY!$B$11:$G$1034,3,FALSE) -> 1000 | BH130: =AY130 -> 0 | BI130: =IF(BH130="","",IF($AW$4=0,BH130,0)) -> 0 | BJ130: =VLOOKUP(BD130,CENY!$B$11:$M$2005,12,FALSE) -> 1.51 | BK130: =IF(BJ130="","",BJ130*BH130) -> 0
AU131: =OBJ!B358 -> 9137114 | AV131: =VLOOKUP(AU131,CENY!$B$11:$G$1034,2,FALSE) -> EUROŠROUB DBS 60 X 14 | AW131: =VLOOKUP(AU131,CENY!$B$11:$G$1034,3,FALSE) -> 200 | AY131: =SUMPRODUCT(AX25:AX74,AY25:AY74) -> 0 | AZ131: 0 | BA131: =VLOOKUP(AU131,CENY!$B$11:$M$2005,12,FALSE) -> 1.2 | BB131: 0 | BC131: na Quadro a Actro lišty | BD131: =OBJ!B358 -> 9137114 | BE131: =VLOOKUP(BD131,CENY!$B$11:$G$1034,2,FALSE) -> EUROŠROUB DBS 60 X 14 | BF131: =VLOOKUP(BD131,CENY!$B$11:$G$1034,3,FALSE) -> 200 | BH131: =AY131 -> 0 | BI131: =IF(BH131="","",IF($AW$4=0,BH131,0)) -> 0 | BJ131: =VLOOKUP(BD131,CENY!$B$11:$M$2005,12,FALSE) -> 1.2 | BK131: =IF(BJ131="","",BJ131*BH131) -> 0
BI134: =IF(BH134="","",IF($AW$4=0,BH134,0)) ->  | BK134: =IF(BJ134="","",BJ134*BH134) -> 
BI135: =IF(BH135="","",IF($AW$4=0,BH135,0)) ->  | BK135: =IF(BJ135="","",BJ135*BH135) -> 

Sheet AVT139
B2: =verze!E13 -> << zpět | G2: =verze!E6 -> Úvod | O2: =verze!E7 -> Výběr zásuvek | U2: =verze!E8 ->  | AA2: =verze!E9 ->  | AI2: =verze!E10 -> Objednávka | AO2: =verze!E14 -> vpřed >>
B4: Zásuvka AVANTECH YOU 139 | AU4: MALOBALENIE : | AW4: =IF(FORM!AU13=FORM!U18,1,0) -> 1 | BB4: =SUM(BB5:BB972) -> 0 | BD4: VELKOBALENIE: | BK4: =SUM(BK5:BK967) -> 0
AU5: =OBJ!B81 -> 9255254 | AV5: =VLOOKUP(AU5,CENY!$B$11:$G$1034,2,FALSE) -> AVANTECH YOU BOKY V SADĚ V139 MM NL300 MM STŘÍBRNÁ | AW5: =VLOOKUP(AU5,CENY!$B$11:$G$1034,3,FALSE) -> 1 | AX5: 4 | AY5: =Q19+Q20+Q27+Q28+Q30 -> 0 | AZ5: =IF(AY5="","",IF($AW$4=1,AY5,0)) -> 0 | BA5: =VLOOKUP(AU5,CENY!$B$11:$M$2005,12,FALSE) -> 682.46 | BB5: =IF(BA5="","",BA5*AY5) -> 0 | BD5: =OBJ!B89 -> 9255028 | BE5: =VLOOKUP(BD5,CENY!$B$11:$G$1034,2,FALSE) -> AVANTECH YOU BOK V139 MM NL300 MM STŘÍBRNÝ LEVÝ | BF5: =VLOOKUP(BD5,CENY!$B$11:$G$1034,3,FALSE) -> 20 | BH5: =AY5 -> 0 | BI5: =IF(BH5="","",IF($AW$4=0,BH5,0)) -> 0 | BJ5: =VLOOKUP(BD5,CENY!$B$11:$M$2005,12,FALSE) -> 229.12 | BK5: =IF(BJ5="","",BJ5*BH5) -> 0
B6: =" "&verze!E90 -> bočnice: | F6: .139 | AU6: =OBJ!B82 -> 9255255 | AV6: =VLOOKUP(AU6,CENY!$B$11:$G$1034,2,FALSE) -> AVANTECH YOU BOKY V SADĚ V139 MM NL350 MM STŘÍBRNÁ | AW6: =VLOOKUP(AU6,CENY!$B$11:$G$1034,3,FALSE) -> 1 | AX6: 6 | AY6: =S19+S20+S27+S28+S30 -> 0 | AZ6: =IF(AY6="","",IF($AW$4=1,AY6,0)) -> 0 | BA6: =VLOOKUP(AU6,CENY!$B$11:$M$2005,12,FALSE) -> 691.23 | BB6: 0 | BD6: =OBJ!B90 -> 9255029 | BE6: =VLOOKUP(BD6,CENY!$B$11:$G$1034,2,FALSE) -> AVANTECH YOU BOK V139 MM NL300 MM STŘÍBRNÝ PRAVÝ | BF6: =VLOOKUP(BD6,CENY!$B$11:$G$1034,3,FALSE) -> 20 | BH6: =AY5 -> 0 | BI6: =IF(BH6="","",IF($AW$4=0,BH6,0)) -> 0 | BJ6: =VLOOKUP(BD6,CENY!$B$11:$M$2005,12,FALSE) -> 229.12 | BK6: =IF(BJ6="","",BJ6*BH6) -> 0
B7: =" "&verze!E56 -> barva: | F7: =" "&FORM!U8 -> stříbrná | AU7: =OBJ!B83 -> 9255256 | AV7: =VLOOKUP(AU7,CENY!$B$11:$G$1034,2,FALSE) -> AVANTECH YOU BOKY V SADĚ V139 MM NL400 MM STŘÍBRNÁ | AW7: =VLOOKUP(AU7,CENY!$B$11:$G$1034,3,FALSE) -> 1 | AX7: 6 | AY7: =U20+U28+U30 -> 0 | AZ7: 0 | BA7: =VLOOKUP(AU7,CENY!$B$11:$M$2005,12,FALSE) -> 700.01 | BB7: 0 | BD7: =OBJ!B91 -> 9255030 | BE7: =VLOOKUP(BD7,CENY!$B$11:$G$1034,2,FALSE) -> AVANTECH YOU BOK V139 MM NL350 MM STŘÍBRNÝ LEVÝ | BF7: =VLOOKUP(BD7,CENY!$B$11:$G$1034,3,FALSE) -> 20 | BH7: =AY6 -> 0 | BI7: 0 | BJ7: =VLOOKUP(BD7,CENY!$B$11:$M$2005,12,FALSE) -> 233.33 | BK7: 0
B8: =" "&verze!E70 -> dekorativní profil: | F8: =" "&FORM!AM18 -> v barvě bočnice | AU8: =OBJ!B84 -> 9255257 | AV8: =VLOOKUP(AU8,CENY!$B$11:$G$1034,2,FALSE) -> AVANTECH YOU BOKY V SADĚ V139 MM NL450 MM STŘÍBRNÁ | AW8: =VLOOKUP(AU8,CENY!$B$11:$G$1034,3,FALSE) -> 1 | AX8: 6 | AY8: =W20+W22+W28+W30 -> 0 | AZ8: 0 | BA8: =VLOOKUP(AU8,CENY!$B$11:$M$2005,12,FALSE) -> 708.78 | BB8: 0 | BD8: =OBJ!B92 -> 9255031 | BE8: =VLOOKUP(BD8,CENY!$B$11:$G$1034,2,FALSE) -> AVANTECH YOU BOK V139 MM NL350 MM STŘÍBRNÝ PRAVÝ | BF8: =VLOOKUP(BD8,CENY!$B$11:$G$1034,3,FALSE) -> 20 | BH8: =AY6 -> 0 | BI8: 0 | BJ8: =VLOOKUP(BD8,CENY!$B$11:$M$2005,12,FALSE) -> 233.33 | BK8: 0
AU9: =OBJ!B85 -> 9255258 | AV9: =VLOOKUP(AU9,CENY!$B$11:$G$1034,2,FALSE) -> AVANTECH YOU BOKY V SADĚ V139 MM NL500 MM STŘÍBRNÁ | AW9: =VLOOKUP(AU9,CENY!$B$11:$G$1034,3,FALSE) -> 1 | AX9: 8 | AY9: =Y20+Y22+Y28+Y30 -> 0 | AZ9: 0 | BA9: =VLOOKUP(AU9,CENY!$B$11:$M$2005,12,FALSE) -> 717.56 | BB9: 0 | BD9: =OBJ!B93 -> 9255032 | BE9: =VLOOKUP(BD9,CENY!$B$11:$G$1034,2,FALSE) -> AVANTECH YOU BOK V139 MM NL400 MM STŘÍBRNÝ LEVÝ | BF9: =VLOOKUP(BD9,CENY!$B$11:$G$1034,3,FALSE) -> 20 | BH9: =AY7 -> 0 | BI9: 0 | BJ9: =VLOOKUP(BD9,CENY!$B$11:$M$2005,12,FALSE) -> 237.55 | BK9: 0
B10: =" "&verze!E57 -> čelní kování: | F10: =" "&FORM!AM8 -> na vruty | AU10: =OBJ!B86 -> 9255259 | AV10: =VLOOKUP(AU10,CENY!$B$11:$G$1034,2,FALSE) -> AVANTECH YOU BOKY V SADĚ V139 MM NL550 MM STŘÍBRNÁ | AW10: =VLOOKUP(AU10,CENY!$B$11:$G$1034,3,FALSE) -> 1 | AX10: 8 | AY10: =AA20+AA22+AA28+AA30 -> 0 | AZ10: 0 | BA10: =VLOOKUP(AU10,CENY!$B$11:$M$2005,12,FALSE) -> 726.33 | BB10: 0 | BD10: =OBJ!B94 -> 9255033 | BE10: =VLOOKUP(BD10,CENY!$B$11:$G$1034,2,FALSE) -> AVANTECH YOU BOK V139 MM NL400 MM STŘÍBRNÝ PRAVÝ | BF10: =VLOOKUP(BD10,CENY!$B$11:$G$1034,3,FALSE) -> 20 | BH10: =AY7 -> 0 | BI10: 0 | BJ10: =VLOOKUP(BD10,CENY!$B$11:$M$2005,12,FALSE) -> 237.55 | BK10: 0
B11: =" "&verze!E76 -> krytka: | F11: =" "&FORM!AM21 -> žádná | AU11: =OBJ!B87 -> 9255260 | AV11: =VLOOKUP(AU11,CENY!$B$11:$G$1034,2,FALSE) -> AVANTECH YOU BOKY V SADĚ V139 MM NL600 MM STŘÍBRNÁ | AW11: =VLOOKUP(AU11,CENY!$B$11:$G$1034,3,FALSE) -> 1 | AX11: 8 | AY11: =AC20+AC22+AC28+AC30 -> 0 | AZ11: 0 | BA11: =VLOOKUP(AU11,CENY!$B$11:$M$2005,12,FALSE) -> 739.57 | BB11: 0 | BD11: =OBJ!B95 -> 9255034 | BE11: =VLOOKUP(BD11,CENY!$B$11:$G$1034,2,FALSE) -> AVANTECH YOU BOK V139 MM NL450 MM STŘÍBRNÝ LEVÝ | BF11: =VLOOKUP(BD11,CENY!$B$11:$G$1034,3,FALSE) -> 20 | BH11: =AY8 -> 0 | BI11: 0 | BJ11: =VLOOKUP(BD11,CENY!$B$11:$M$2005,12,FALSE) -> 241.77 | BK11: 0
BD12: =OBJ!B96 -> 9255035 | BE12: =VLOOKUP(BD12,CENY!$B$11:$G$1034,2,FALSE) -> AVANTECH YOU BOK V139 MM NL450 MM STŘÍBRNÝ PRAVÝ | BF12: =VLOOKUP(BD12,CENY!$B$11:$G$1034,3,FALSE) -> 20 | BH12: =AY8 -> 0 | BI12: 0 | BJ12: =VLOOKUP(BD12,CENY!$B$11:$M$2005,12,FALSE) -> 241.77 | BK12: 0
B13: =" "&verze!E92 -> cena kování: | F13: =IF(AW4=1,BB4,BK4) -> 0 | J13: =IF(verze!E1="CZK","CZK","EUR") -> CZK | AU13: =OBJ!B72 -> 9255805 | AV13: =VLOOKUP(AU13,CENY!$B$11:$G$1034,2,FALSE) -> AVANTECH YOU DEKORATIVNÍ PROFIL NL300 MM STŘÍBRNÝ | AW13: =VLOOKUP(AU13,CENY!$B$11:$G$1034,3,FALSE) -> 200 | AY13: =IF(FORM!AM18=FORM!AU16,0,2*(Q19+Q20+Q27+Q28+Q30)) -> 0 | AZ13: 0 | BA13: =VLOOKUP(AU13,CENY!$B$11:$M$2005,12,FALSE) -> 9.28 | BB13: 0 | BD13: =OBJ!B97 -> 9255036 | BE13: =VLOOKUP(BD13,CENY!$B$11:$G$1034,2,FALSE) -> AVANTECH YOU BOK V139 MM NL500 MM STŘÍBRNÝ LEVÝ | BF13: =VLOOKUP(BD13,CENY!$B$11:$G$1034,3,FALSE) -> 20 | BH13: =AY9 -> 0 | BI13: 0 | BJ13: =VLOOKUP(BD13,CENY!$B$11:$M$2005,12,FALSE) -> 245.98 | BK13: 0
AU14: =OBJ!B73 -> 9255806 | AV14: =VLOOKUP(AU14,CENY!$B$11:$G$1034,2,FALSE) -> AVANTECH YOU DEKORATIVNÍ PROFIL NL350 MM STŘÍBRNÝ | AW14: =VLOOKUP(AU14,CENY!$B$11:$G$1034,3,FALSE) -> 200 | AY14: =IF(FORM!AM18=FORM!AU16,0,2*(S19+S20+S27+S28+S30)) -> 0 | AZ14: 0 | BA14: =VLOOKUP(AU14,CENY!$B$11:$M$2005,12,FALSE) -> 9.45 | BB14: 0 | BD14: =OBJ!B98 -> 9255037 | BE14: =VLOOKUP(BD14,CENY!$B$11:$G$1034,2,FALSE) -> AVANTECH YOU BOK V139 MM NL500 MM STŘÍBRNÝ PRAVÝ | BF14: =VLOOKUP(BD14,CENY!$B$11:$G$1034,3,FALSE) -> 20 | BH14: =AY9 -> 0 | BI14: 0 | BJ14: =VLOOKUP(BD14,CENY!$B$11:$M$2005,12,FALSE) -> 245.98 | BK14: 0
AU15: =OBJ!B74 -> 9255807 | AV15: =VLOOKUP(AU15,CENY!$B$11:$G$1034,2,FALSE) -> AVANTECH YOU DEKORATIVNÍ PROFIL NL400 MM STŘÍBRNÝ | AW15: =VLOOKUP(AU15,CENY!$B$11:$G$1034,3,FALSE) -> 200 | AY15: =IF(FORM!AM18=FORM!AU16,0,2*(U20+U28+U30)) -> 0 | AZ15: 0 | BA15: =VLOOKUP(AU15,CENY!$B$11:$M$2005,12,FALSE) -> 9.62 | BB15: 0 | BD15: =OBJ!B99 -> 9255038 | BE15: =VLOOKUP(BD15,CENY!$B$11:$G$1034,2,FALSE) -> AVANTECH YOU BOK V139 MM NL550 MM STŘÍBRNÝ LEVÝ | BF15: =VLOOKUP(BD15,CENY!$B$11:$G$1034,3,FALSE) -> 20 | BH15: =AY10 -> 0 | BI15: 0 | BJ15: =VLOOKUP(BD15,CENY!$B$11:$M$2005,12,FALSE) -> 250.2 | BK15: 0
AU16: =OBJ!B75 -> 9255808 | AV16: =VLOOKUP(AU16,CENY!$B$11:$G$1034,2,FALSE) -> AVANTECH YOU DEKORATIVNÍ PROFIL NL450 MM STŘÍBRNÝ | AW16: =VLOOKUP(AU16,CENY!$B$11:$G$1034,3,FALSE) -> 200 | AY16: =IF(FORM!AM18=FORM!AU16,0,2*(W20+W22+W28+W30)) -> 0 | AZ16: 0 | BA16: =VLOOKUP(AU16,CENY!$B$11:$M$2005,12,FALSE) -> 9.8 | BB16: 0 | BD16: =OBJ!B100 -> 9255039 | BE16: =VLOOKUP(BD16,CENY!$B$11:$G$1034,2,FALSE) -> AVANTECH YOU BOK V139 MM NL550 MM STŘÍBRNÝ PRAVÝ | BF16: =VLOOKUP(BD16,CENY!$B$11:$G$1034,3,FALSE) -> 20 | BH16: =AY10 -> 0 | BI16: 0 | BJ16: =VLOOKUP(BD16,CENY!$B$11:$M$2005,12,FALSE) -> 250.2 | BK16: 0
B17: Actro YOU | O17: =FORM!U18 -> flexibilní sety | AI17: =verze!E198 -> P2O Silent pro Actro | AU17: =OBJ!B76 -> 9255809 | AV17: =VLOOKUP(AU17,CENY!$B$11:$G$1034,2,FALSE) -> AVANTECH YOU DEKORATIVNÍ PROFIL NL500 MM STŘÍBRNÝ | AW17: =VLOOKUP(AU17,CENY!$B$11:$G$1034,3,FALSE) -> 200 | AY17: =IF(FORM!AM18=FORM!AU16,0,2*(Y20+Y22+Y28+Y30)) -> 0 | AZ17: 0 | BA17: =VLOOKUP(AU17,CENY!$B$11:$M$2005,12,FALSE) -> 9.97 | BB17: 0 | BD17: =OBJ!B101 -> 9255040 | BE17: =VLOOKUP(BD17,CENY!$B$11:$G$1034,2,FALSE) -> AVANTECH YOU BOK V139 MM NL600 MM STŘÍBRNÝ LEVÝ | BF17: =VLOOKUP(BD17,CENY!$B$11:$G$1034,3,FALSE) -> 20 | BH17: =AY11 -> 0 | BI17: 0 | BJ17: =VLOOKUP(BD17,CENY!$B$11:$M$2005,12,FALSE) -> 256.56 | BK17: 0
N18: =verze!$E$20&" " -> Jmenovitá délka: | O18: 270 | Q18: 300 | S18: 350 | U18: 400 | W18: 450 | Y18: 500 | AA18: 550 | AC18: 600 | AE18: 650 | AI18: typ | AU18: =OBJ!B77 -> 9255810 | AV18: =VLOOKUP(AU18,CENY!$B$11:$G$1034,2,FALSE) -> AVANTECH YOU DEKORATIVNÍ PROFIL NL550 MM STŘÍBRNÝ | AW18: =VLOOKUP(AU18,CENY!$B$11:$G$1034,3,FALSE) -> 200 | AY18: =IF(FORM!AM18=FORM!AU16,0,2*(AA20+AA22+AA28+AA30)) -> 0 | AZ18: 0 | BA18: =VLOOKUP(AU18,CENY!$B$11:$M$2005,12,FALSE) -> 10.14 | BB18: 0 | BD18: =OBJ!B102 -> 9255041 | BE18: =VLOOKUP(BD18,CENY!$B$11:$G$1034,2,FALSE) -> AVANTECH YOU BOK V139 MM NL600 MM STŘÍBRNÝ PRAVÝ | BF18: =VLOOKUP(BD18,CENY!$B$11:$G$1034,3,FALSE) -> 20 | BH18: =AY11 -> 0 | BI18: 0 | BJ18: =VLOOKUP(BD18,CENY!$B$11:$M$2005,12,FALSE) -> 256.56 | BK18: 0
B19: Actro YOU 10 / SiSy | H19: =verze!E18 -> plnovýsuv | M19: 10 kg | AM19: < 10 kg | AU19: =OBJ!B78 -> 9255811 | AV19: =VLOOKUP(AU19,CENY!$B$11:$G$1034,2,FALSE) -> AVANTECH YOU DEKORATIVNÍ PROFIL NL600 MM STŘÍBRNÝ | AW19: =VLOOKUP(AU19,CENY!$B$11:$G$1034,3,FALSE) -> 200 | AY19: =IF(FORM!AM18=FORM!AU16,0,2*(AC20+AC22+AC28+AC30)) -> 0 | AZ19: 0 | BA19: =VLOOKUP(AU19,CENY!$B$11:$M$2005,12,FALSE) -> 10.39 | BB19: 0
B20: Actro YOU 40 / SiSy | H20: =verze!E18 -> plnovýsuv | M20: 40 kg | AM20: 8 - 20 kg | BD20: =OBJ!B104 -> 9257884 | BE20: =VLOOKUP(BD20,CENY!$B$11:$G$1034,2,FALSE) -> AVANTECH YOU PŘÍCHYTKA ČELA V139 MM K NAŠROUBOVÁNÍ | BF20: =VLOOKUP(BD20,CENY!$B$11:$G$1034,3,FALSE) -> 200 | BH20: =2*(SUM(Q19:T19)+SUM(Q20:AD20)+SUM(W22:AD22)+SUM(Q27:T27)+SUM(Q28:AD28)+SUM(Q30:AD30)) -> 0 | BI20: 0 | BJ20: =VLOOKUP(BD20,CENY!$B$11:$M$2005,12,FALSE) -> 35.43 | BK20: 0
AM21: 10 - 40 kg | AU21: =OBJ!B227 -> 9256969 | AV21: =VLOOKUP(AU21,CENY!$B$11:$G$1034,2,FALSE) -> ACTRO YOU 10KG PLNOVÝSUV 300 MM EB21 SILENT SYSTEM SADA | AW21: =VLOOKUP(AU21,CENY!$B$11:$G$1034,3,FALSE) -> 1 | AX21: 4 | AY21: =Q19 -> 0 | AZ21: 0 | BA21: =VLOOKUP(AU21,CENY!$B$11:$M$2005,12,FALSE) -> 561.63 | BB21: 0 | BD21: =OBJ!B48 -> 9257702 | BE21: =VLOOKUP(BD21,CENY!$B$11:$G$1034,2,FALSE) -> AVANTECH YOU STABILIZÁTOR ZAD V101/139/187/251 MM | BF21: =VLOOKUP(BD21,CENY!$B$11:$G$1034,3,FALSE) -> 200 | BH21: =2*(SUM(Q19:T19)+SUM(Q20:AD20)+SUM(W22:AD22)+SUM(Q27:T27)+SUM(Q28:AD28)+SUM(Q30:AD30)) -> 0 | BI21: 0 | BJ21: =VLOOKUP(BD21,CENY!$B$11:$M$2005,12,FALSE) -> 13.29 | BK21: 0
B22: Actro YOU 70 / SiSy | H22: =verze!E18 -> plnovýsuv | M22: 70 kg | AM22: 20 - 70 kg | AU22: =OBJ!B228 -> 9256971 | AV22: =VLOOKUP(AU22,CENY!$B$11:$G$1034,2,FALSE) -> ACTRO YOU 10KG PLNOVÝSUV 350 MM EB21 SILENT SYSTEM SADA | AW22: =VLOOKUP(AU22,CENY!$B$11:$G$1034,3,FALSE) -> 1 | AX22: 4 | AY22: =S19 -> 0 | AZ22: 0 | BA22: =VLOOKUP(AU22,CENY!$B$11:$M$2005,12,FALSE) -> 561.63 | BB22: 0
BD23: =OBJ!B72 -> 9255805 | BE23: =VLOOKUP(BD23,CENY!$B$11:$G$1034,2,FALSE) -> AVANTECH YOU DEKORATIVNÍ PROFIL NL300 MM STŘÍBRNÝ | BF23: =VLOOKUP(BD23,CENY!$B$11:$G$1034,3,FALSE) -> 200 | BH23: =2*(Q19+Q20+Q27+Q28+Q30) -> 0 | BI23: 0 | BJ23: =VLOOKUP(BD23,CENY!$B$11:$M$2005,12,FALSE) -> 9.28 | BK23: 0
AU24: =OBJ!B237 -> 9257000 | AV24: =VLOOKUP(AU24,CENY!$B$11:$G$1034,2,FALSE) -> ACTRO YOU 40KG PLNOVÝSUV 300 MM EB21 SILENT SYSTEM SADA | AW24: =VLOOKUP(AU24,CENY!$B$11:$G$1034,3,FALSE) -> 1 | AX24: 8 | AY24: =Q20 -> 0 | AZ24: 0 | BA24: =VLOOKUP(AU24,CENY!$B$11:$M$2005,12,FALSE) -> 561.63 | BB24: 0 | BD24: =OBJ!B73 -> 9255806 | BE24: =VLOOKUP(BD24,CENY!$B$11:$G$1034,2,FALSE) -> AVANTECH YOU DEKORATIVNÍ PROFIL NL350 MM STŘÍBRNÝ | BF24: =VLOOKUP(BD24,CENY!$B$11:$G$1034,3,FALSE) -> 200 | BH24: =2*(S19+S20+S27+S28+S30) -> 0 | BI24: 0 | BJ24: =VLOOKUP(BD24,CENY!$B$11:$M$2005,12,FALSE) -> 9.45 | BK24: 0
B25: Quadro YOU | AI25: =verze!E199 -> P2O Silent pro Quadro | AU25: =OBJ!B238 -> 9257002 | AV25: =VLOOKUP(AU25,CENY!$B$11:$G$1034,2,FALSE) -> ACTRO YOU 40KG PLNOVÝSUV 350 MM EB21 SILENT SYSTEM SADA | AW25: =VLOOKUP(AU25,CENY!$B$11:$G$1034,3,FALSE) -> 1 | AX25: 8 | AY25: =S20 -> 0 | AZ25: 0 | BA25: =VLOOKUP(AU25,CENY!$B$11:$M$2005,12,FALSE) -> 561.63 | BB25: 0 | BD25: =OBJ!B74 -> 9255807 | BE25: =VLOOKUP(BD25,CENY!$B$11:$G$1034,2,FALSE) -> AVANTECH YOU DEKORATIVNÍ PROFIL NL400 MM STŘÍBRNÝ | BF25: =VLOOKUP(BD25,CENY!$B$11:$G$1034,3,FALSE) -> 200 | BH25: =2*(U20+U28+U30) -> 0 | BI25: 0 | BJ25: =VLOOKUP(BD25,CENY!$B$11:$M$2005,12,FALSE) -> 9.62 | BK25: 0
N26: =verze!$E$20&" " -> Jmenovitá délka: | O26: 270 | Q26: 300 | S26: 350 | U26: 400 | W26: 450 | Y26: 500 | AA26: 550 | AC26: 600 | AI26: typ | AU26: =OBJ!B239 -> 9257004 | AV26: =VLOOKUP(AU26,CENY!$B$11:$G$1034,2,FALSE) -> ACTRO YOU 40KG PLNOVÝSUV 400 MM EB21 SILENT SYSTEM SADA | AW26: =VLOOKUP(AU26,CENY!$B$11:$G$1034,3,FALSE) -> 1 | AX26: 8 | AY26: =U20 -> 0 | AZ26: 0 | BA26: =VLOOKUP(AU26,CENY!$B$11:$M$2005,12,FALSE) -> 567.85 | BB26: 0 | BD26: =OBJ!B75 -> 9255808 | BE26: =VLOOKUP(BD26,CENY!$B$11:$G$1034,2,FALSE) -> AVANTECH YOU DEKORATIVNÍ PROFIL NL450 MM STŘÍBRNÝ | BF26: =VLOOKUP(BD26,CENY!$B$11:$G$1034,3,FALSE) -> 200 | BH26: =2*(W20+W22+W28+W30) -> 0 | BI26: 0 | BJ26: =VLOOKUP(BD26,CENY!$B$11:$M$2005,12,FALSE) -> 9.8 | BK26: 0
B27: Quadro YOU 10 / SiSy | H27: =verze!E18 -> plnovýsuv | M27: 10 kg | AM27: < 10 kg | AU27: =OBJ!B240 -> 9257006 | AV27: =VLOOKUP(AU27,CENY!$B$11:$G$1034,2,FALSE) -> ACTRO YOU 40KG PLNOVÝSUV 450 MM EB21 SILENT SYSTEM SADA | AW27: =VLOOKUP(AU27,CENY!$B$11:$G$1034,3,FALSE) -> 1 | AX27: 10 | AY27: =W20 -> 0 | AZ27: 0 | BA27: =VLOOKUP(AU27,CENY!$B$11:$M$2005,12,FALSE) -> 574.04 | BB27: 0 | BD27: =OBJ!B76 -> 9255809 | BE27: =VLOOKUP(BD27,CENY!$B$11:$G$1034,2,FALSE) -> AVANTECH YOU DEKORATIVNÍ PROFIL NL500 MM STŘÍBRNÝ | BF27: =VLOOKUP(BD27,CENY!$B$11:$G$1034,3,FALSE) -> 200 | BH27: =2*(Y20+Y22+Y28+Y30) -> 0 | BI27: 0 | BJ27: =VLOOKUP(BD27,CENY!$B$11:$M$2005,12,FALSE) -> 9.97 | BK27: 0
B28: Quadro YOU 30 / SiSy | H28: =verze!E18 -> plnovýsuv | M28: 30 kg | AM28: 8 - 20 kg | AU28: =OBJ!B241 -> 9257008 | AV28: =VLOOKUP(AU28,CENY!$B$11:$G$1034,2,FALSE) -> ACTRO YOU 40KG PLNOVÝSUV 500 MM EB21 SILENT SYSTEM SADA | AW28: =VLOOKUP(AU28,CENY!$B$11:$G$1034,3,FALSE) -> 1 | AX28: 10 | AY28: =Y20 -> 0 | AZ28: 0 | BA28: =VLOOKUP(AU28,CENY!$B$11:$M$2005,12,FALSE) -> 580.26 | BB28: 0 | BD28: =OBJ!B77 -> 9255810 | BE28: =VLOOKUP(BD28,CENY!$B$11:$G$1034,2,FALSE) -> AVANTECH YOU DEKORATIVNÍ PROFIL NL550 MM STŘÍBRNÝ | BF28: =VLOOKUP(BD28,CENY!$B$11:$G$1034,3,FALSE) -> 200 | BH28: =2*(AA20+AA22+AA28+AA30) -> 0 | BI28: 0 | BJ28: =VLOOKUP(BD28,CENY!$B$11:$M$2005,12,FALSE) -> 10.14 | BK28: 0
AM29: 10 - 30 kg | AU29: =OBJ!B242 -> 9257010 | AV29: =VLOOKUP(AU29,CENY!$B$11:$G$1034,2,FALSE) -> ACTRO YOU 40KG PLNOVÝSUV 550 MM EB21 SILENT SYSTEM SADA | AW29: =VLOOKUP(AU29,CENY!$B$11:$G$1034,3,FALSE) -> 1 | AX29: 10 | AY29: =AA20 -> 0 | AZ29: 0 | BA29: =VLOOKUP(AU29,CENY!$B$11:$M$2005,12,FALSE) -> 613.44 | BB29: 0 | BD29: =OBJ!B78 -> 9255811 | BE29: =VLOOKUP(BD29,CENY!$B$11:$G$1034,2,FALSE) -> AVANTECH YOU DEKORATIVNÍ PROFIL NL600 MM STŘÍBRNÝ | BF29: =VLOOKUP(BD29,CENY!$B$11:$G$1034,3,FALSE) -> 200 | BH29: =2*(AC20+AC22+AC28+AC30) -> 0 | BI29: 0 | BJ29: =VLOOKUP(BD29,CENY!$B$11:$M$2005,12,FALSE) -> 10.39 | BK29: 0
B30: Quadro YOU 30 / P2O | H30: =verze!E18 -> plnovýsuv | M30: 30 kg | AU30: =OBJ!B243 -> 9268681 | AV30: =VLOOKUP(AU30,CENY!$B$11:$G$1034,2,FALSE) -> ACTRO YOU 40KG PLNOVÝSUV 600 MM EB21 SILENT SYSTÉM SADA | AW30: =VLOOKUP(AU30,CENY!$B$11:$G$1034,3,FALSE) -> 1 | AX30: 10 | AY30: =AC20 -> 0 | AZ30: 0 | BA30: =VLOOKUP(AU30,CENY!$B$11:$M$2005,12,FALSE) -> 620.78 | BB30: 0
BD31: =OBJ!B231 -> 9256961 | BE31: =VLOOKUP(BD31,CENY!$B$11:$G$1034,2,FALSE) -> ACTRO YOU 10KG PLNOVÝSUV 300 MM EB21 SILENT SYSTEM LEVÝ | BF31: =VLOOKUP(BD31,CENY!$B$11:$G$1034,3,FALSE) -> 10 | BH31: =AY21 -> 0 | BI31: 0 | BJ31: =VLOOKUP(BD31,CENY!$B$11:$M$2005,12,FALSE) -> 243.93 | BK31: 0
B32: =verze!E201 -> SiSy = tlumení Silent System | AU32: =OBJ!B261 -> 9257034 | AV32: =VLOOKUP(AU32,CENY!$B$11:$G$1034,2,FALSE) -> ACTRO YOU 70KG PLNOVÝSUV 450 MM EB21 SILENT SYSTEM SADA | AW32: =VLOOKUP(AU32,CENY!$B$11:$G$1034,3,FALSE) -> 1 | AX32: 10 | AY32: =W22 -> 0 | AZ32: 0 | BA32: =VLOOKUP(AU32,CENY!$B$11:$M$2005,12,FALSE) -> 691.9 | BB32: 0 | BD32: =OBJ!B232 -> 9256962 | BE32: =VLOOKUP(BD32,CENY!$B$11:$G$1034,2,FALSE) -> ACTRO YOU 10KG PLNOVÝSUV 300 MM EB21 SILENT SYSTEM PRAVÝ | BF32: =VLOOKUP(BD32,CENY!$B$11:$G$1034,3,FALSE) -> 10 | BH32: =AY21 -> 0 | BI32: 0 | BJ32: =VLOOKUP(BD32,CENY!$B$11:$M$2005,12,FALSE) -> 243.93 | BK32: 0
B33: =verze!E204 -> P2O = otvírání bez úchytky Push to open | AU33: =OBJ!B262 -> 9257036 | AV33: =VLOOKUP(AU33,CENY!$B$11:$G$1034,2,FALSE) -> ACTRO YOU 70KG PLNOVÝSUV 500 MM EB21 SILENT SYSTEM SADA | AW33: =VLOOKUP(AU33,CENY!$B$11:$G$1034,3,FALSE) -> 1 | AX33: 10 | AY33: =Y22 -> 0 | AZ33: 0 | BA33: =VLOOKUP(AU33,CENY!$B$11:$M$2005,12,FALSE) -> 698.13 | BB33: 0 | BD33: =OBJ!B233 -> 9256965 | BE33: =VLOOKUP(BD33,CENY!$B$11:$G$1034,2,FALSE) -> ACTRO YOU 10KG PLNOVÝSUV 350 MM EB21 SILENT SYSTEM LEVÝ | BF33: =VLOOKUP(BD33,CENY!$B$11:$G$1034,3,FALSE) -> 10 | BH33: =AY22 -> 0 | BI33: 0 | BJ33: =VLOOKUP(BD33,CENY!$B$11:$M$2005,12,FALSE) -> 243.93 | BK33: 0
B34: =verze!E203 -> P2O Silent = tlumení s otvíráním bez úchytky Push to open Silent | AU34: =OBJ!B263 -> 9257038 | AV34: =VLOOKUP(AU34,CENY!$B$11:$G$1034,2,FALSE) -> ACTRO YOU 70KG PLNOVÝSUV 550 MM EB21 SILENT SYSTEM SADA | AW34: =VLOOKUP(AU34,CENY!$B$11:$G$1034,3,FALSE) -> 1 | AX34: 10 | AY34: =AA22 -> 0 | AZ34: 0 | BA34: =VLOOKUP(AU34,CENY!$B$11:$M$2005,12,FALSE) -> 731.3 | BB34: 0 | BD34: =OBJ!B234 -> 9256966 | BE34: =VLOOKUP(BD34,CENY!$B$11:$G$1034,2,FALSE) -> ACTRO YOU 10KG PLNOVÝSUV 350 MM EB21 SILENT SYSTEM PRAVÝ | BF34: =VLOOKUP(BD34,CENY!$B$11:$G$1034,3,FALSE) -> 10 | BH34: =AY22 -> 0 | BI34: 0 | BJ34: =VLOOKUP(BD34,CENY!$B$11:$M$2005,12,FALSE) -> 243.93 | BK34: 0
AU35: =OBJ!B264 -> 9257040 | AV35: =VLOOKUP(AU35,CENY!$B$11:$G$1034,2,FALSE) -> ACTRO YOU 70KG PLNOVÝSUV 600 MM EB21 SILENT SYSTEM SADA | AW35: =VLOOKUP(AU35,CENY!$B$11:$G$1034,3,FALSE) -> 1 | AX35: 10 | AY35: =AC22 -> 0 | AZ35: 0 | BA35: =VLOOKUP(AU35,CENY!$B$11:$M$2005,12,FALSE) -> 798.31 | BB35: 0
BD36: =OBJ!B246 -> 9256976 | BE36: =VLOOKUP(BD36,CENY!$B$11:$G$1034,2,FALSE) -> ACTRO YOU 40KG PLNOVÝSUV 300 MM EB21 SILENT SYSTEM LEVÝ | BF36: =VLOOKUP(BD36,CENY!$B$11:$G$1034,3,FALSE) -> 10 | BH36: =AY24 -> 0 | BI36: 0 | BJ36: =VLOOKUP(BD36,CENY!$B$11:$M$2005,12,FALSE) -> 243.93 | BK36: 0
AU37: =OBJ!B277 -> 9257890 | AV37: =VLOOKUP(AU37,CENY!$B$11:$G$1034,2,FALSE) -> PUSH TO OPEN SILENT ACTRO YOU / ACTRO 5D 10 KG | AW37: =VLOOKUP(AU37,CENY!$B$11:$G$1034,3,FALSE) -> 1 | AY37: =AN19 -> 0 | AZ37: 0 | BA37: =VLOOKUP(AU37,CENY!$B$11:$M$2005,12,FALSE) -> 544.37 | BB37: 0 | BD37: =OBJ!B247 -> 9256977 | BE37: =VLOOKUP(BD37,CENY!$B$11:$G$1034,2,FALSE) -> ACTRO YOU 40KG PLNOVÝSUV 300 MM EB21 SILENT SYSTEM PRAVÝ | BF37: =VLOOKUP(BD37,CENY!$B$11:$G$1034,3,FALSE) -> 10 | BH37: =AY24 -> 0 | BI37: 0 | BJ37: =VLOOKUP(BD37,CENY!$B$11:$M$2005,12,FALSE) -> 243.93 | BK37: 0
AU38: =OBJ!B278 -> 9257891 | AV38: =VLOOKUP(AU38,CENY!$B$11:$G$1034,2,FALSE) -> PUSH TO OPEN SILENT ACTRO YOU / ACTRO 5D 20 KG | AW38: =VLOOKUP(AU38,CENY!$B$11:$G$1034,3,FALSE) -> 1 | AY38: =AN20 -> 0 | AZ38: 0 | BA38: =VLOOKUP(AU38,CENY!$B$11:$M$2005,12,FALSE) -> 544.37 | BB38: 0 | BD38: =OBJ!B248 -> 9256980 | BE38: =VLOOKUP(BD38,CENY!$B$11:$G$1034,2,FALSE) -> ACTRO YOU 40KG PLNOVÝSUV 350 MM EB21 SILENT SYSTEM LEVÝ | BF38: =VLOOKUP(BD38,CENY!$B$11:$G$1034,3,FALSE) -> 10 | BH38: =AY25 -> 0 | BI38: 0 | BJ38: =VLOOKUP(BD38,CENY!$B$11:$M$2005,12,FALSE) -> 243.93 | BK38: 0
AU39: =OBJ!B279 -> 9257892 | AV39: =VLOOKUP(AU39,CENY!$B$11:$G$1034,2,FALSE) -> PUSH TO OPEN SILENT ACTRO YOU / ACTRO 5D 40 KG | AW39: =VLOOKUP(AU39,CENY!$B$11:$G$1034,3,FALSE) -> 1 | AY39: =AN21 -> 0 | AZ39: 0 | BA39: =VLOOKUP(AU39,CENY!$B$11:$M$2005,12,FALSE) -> 544.37 | BB39: 0 | BD39: =OBJ!B249 -> 9256981 | BE39: =VLOOKUP(BD39,CENY!$B$11:$G$1034,2,FALSE) -> ACTRO YOU 40KG PLNOVÝSUV 350 MM EB21 SILENT SYSTEM PRAVÝ | BF39: =VLOOKUP(BD39,CENY!$B$11:$G$1034,3,FALSE) -> 10 | BH39: =AY25 -> 0 | BI39: 0 | BJ39: =VLOOKUP(BD39,CENY!$B$11:$M$2005,12,FALSE) -> 243.93 | BK39: 0
AU40: =OBJ!B280 -> 9257893 | AV40: =VLOOKUP(AU40,CENY!$B$11:$G$1034,2,FALSE) -> PUSH TO OPEN SILENT ACTRO YOU / ACTRO 5D 70 KG | AW40: =VLOOKUP(AU40,CENY!$B$11:$G$1034,3,FALSE) -> 1 | AY40: =AN22 -> 0 | AZ40: 0 | BA40: =VLOOKUP(AU40,CENY!$B$11:$M$2005,12,FALSE) -> 544.37 | BB40: 0 | BD40: =OBJ!B250 -> 9256984 | BE40: =VLOOKUP(BD40,CENY!$B$11:$G$1034,2,FALSE) -> ACTRO YOU 40KG PLNOVÝSUV 400 MM EB21 SILENT SYSTEM LEVÝ | BF40: =VLOOKUP(BD40,CENY!$B$11:$G$1034,3,FALSE) -> 10 | BH40: =AY26 -> 0 | BI40: 0 | BJ40: =VLOOKUP(BD40,CENY!$B$11:$M$2005,12,FALSE) -> 247.05 | BK40: 0
AU41: =OBJ!B281 -> 9236718 | AV41: =VLOOKUP(AU41,CENY!$B$11:$G$1034,2,FALSE) -> PUSH TO OPEN SYNCHRONIZAČNÍ TYČ 2000 MM | AW41: =VLOOKUP(AU41,CENY!$B$11:$G$1034,3,FALSE) -> 100 | AY41: =SUM(AN19:AO22)+SUM(AN27:AO29)+SUM(Q30:AD30) -> 0 | AZ41: 0 | BA41: =VLOOKUP(AU41,CENY!$B$11:$M$2005,12,FALSE) -> 144.3 | BB41: 0 | BD41: =OBJ!B251 -> 9256985 | BE41: =VLOOKUP(BD41,CENY!$B$11:$G$1034,2,FALSE) -> ACTRO YOU 40KG PLNOVÝSUV 400 MM EB21 SILENT SYSTEM PRAVÝ | BF41: =VLOOKUP(BD41,CENY!$B$11:$G$1034,3,FALSE) -> 10 | BH41: =AY26 -> 0 | BI41: 0 | BJ41: =VLOOKUP(BD41,CENY!$B$11:$M$2005,12,FALSE) -> 247.05 | BK41: 0
BD42: =OBJ!B252 -> 9256988 | BE42: =VLOOKUP(BD42,CENY!$B$11:$G$1034,2,FALSE) -> ACTRO YOU 40KG PLNOVÝSUV 450 MM EB21 SILENT SYSTEM LEVÝ | BF42: =VLOOKUP(BD42,CENY!$B$11:$G$1034,3,FALSE) -> 10 | BH42: =AY27 -> 0 | BI42: 0 | BJ42: =VLOOKUP(BD42,CENY!$B$11:$M$2005,12,FALSE) -> 250.14 | BK42: 0
AU43: =OBJ!B288 -> 9256954 | AV43: =VLOOKUP(AU43,CENY!$B$11:$G$1034,2,FALSE) -> QUADRO YOU 10 KG PLNOVÝSUV 300 MM EB21 SILENT SYSTEM SADA | AW43: =VLOOKUP(AU43,CENY!$B$11:$G$1034,3,FALSE) -> 1 | AX43: 4 | AY43: =Q27 -> 0 | AZ43: 0 | BA43: =VLOOKUP(AU43,CENY!$B$11:$M$2005,12,FALSE) -> 414.13 | BB43: 0 | BD43: =OBJ!B253 -> 9256989 | BE43: =VLOOKUP(BD43,CENY!$B$11:$G$1034,2,FALSE) -> ACTRO YOU 40KG PLNOVÝSUV 450 MM EB21 SILENT SYSTEM PRAVÝ | BF43: =VLOOKUP(BD43,CENY!$B$11:$G$1034,3,FALSE) -> 10 | BH43: =AY27 -> 0 | BI43: 0 | BJ43: =VLOOKUP(BD43,CENY!$B$11:$M$2005,12,FALSE) -> 250.14 | BK43: 0
AU44: =OBJ!B289 -> 9256956 | AV44: =VLOOKUP(AU44,CENY!$B$11:$G$1034,2,FALSE) -> QUADRO YOU 10 KG PLNOVÝSUV 350 MM EB21 SILENT SYSTEM SADA | AW44: =VLOOKUP(AU44,CENY!$B$11:$G$1034,3,FALSE) -> 1 | AX44: 4 | AY44: =S27 -> 0 | AZ44: 0 | BA44: =VLOOKUP(AU44,CENY!$B$11:$M$2005,12,FALSE) -> 421.61 | BB44: 0 | BD44: =OBJ!B254 -> 9256992 | BE44: =VLOOKUP(BD44,CENY!$B$11:$G$1034,2,FALSE) -> ACTRO YOU 40KG PLNOVÝSUV 500 MM EB21 SILENT SYSTEM LEVÝ | BF44: =VLOOKUP(BD44,CENY!$B$11:$G$1034,3,FALSE) -> 10 | BH44: =AY28 -> 0 | BI44: 0 | BJ44: =VLOOKUP(BD44,CENY!$B$11:$M$2005,12,FALSE) -> 253.25 | BK44: 0
BD45: =OBJ!B255 -> 9256993 | BE45: =VLOOKUP(BD45,CENY!$B$11:$G$1034,2,FALSE) -> ACTRO YOU 40KG PLNOVÝSUV 500 MM EB21 SILENT SYSTEM PRAVÝ | BF45: =VLOOKUP(BD45,CENY!$B$11:$G$1034,3,FALSE) -> 10 | BH45: =AY28 -> 0 | BI45: 0 | BJ45: =VLOOKUP(BD45,CENY!$B$11:$M$2005,12,FALSE) -> 253.25 | BK45: 0
AU46: =OBJ!B298 -> 9256884 | AV46: =VLOOKUP(AU46,CENY!$B$11:$G$1034,2,FALSE) -> QUADRO YOU PLNOVÝSUV 300 MM EB21 SILENT SYSTEM SADA | AW46: =VLOOKUP(AU46,CENY!$B$11:$G$1034,3,FALSE) -> 1 | AX46: 8 | AY46: =Q28 -> 0 | AZ46: 0 | BA46: =VLOOKUP(AU46,CENY!$B$11:$M$2005,12,FALSE) -> 369.3 | BB46: 0 | BD46: =OBJ!B256 -> 9256996 | BE46: =VLOOKUP(BD46,CENY!$B$11:$G$1034,2,FALSE) -> ACTRO YOU 40KG PLNOVÝSUV 550 MM EB21 SILENT SYSTEM LEVÝ | BF46: =VLOOKUP(BD46,CENY!$B$11:$G$1034,3,FALSE) -> 10 | BH46: =AY29 -> 0 | BI46: 0 | BJ46: =VLOOKUP(BD46,CENY!$B$11:$M$2005,12,FALSE) -> 269.84 | BK46: 0
AU47: =OBJ!B299 -> 9256886 | AV47: =VLOOKUP(AU47,CENY!$B$11:$G$1034,2,FALSE) -> QUADRO YOU PLNOVÝSUV 350 MM EB21 SILENT SYSTEM SADA | AW47: =VLOOKUP(AU47,CENY!$B$11:$G$1034,3,FALSE) -> 1 | AX47: 8 | AY47: =S28 -> 0 | AZ47: 0 | BA47: =VLOOKUP(AU47,CENY!$B$11:$M$2005,12,FALSE) -> 376.77 | BB47: 0 | BD47: =OBJ!B257 -> 9256997 | BE47: =VLOOKUP(BD47,CENY!$B$11:$G$1034,2,FALSE) -> ACTRO YOU 40KG PLNOVÝSUV 550 MM EB21 SILENT SYSTEM PRAVÝ | BF47: =VLOOKUP(BD47,CENY!$B$11:$G$1034,3,FALSE) -> 10 | BH47: =AY29 -> 0 | BI47: 0 | BJ47: =VLOOKUP(BD47,CENY!$B$11:$M$2005,12,FALSE) -> 269.84 | BK47: 0
AU48: =OBJ!B300 -> 9256888 | AV48: =VLOOKUP(AU48,CENY!$B$11:$G$1034,2,FALSE) -> QUADRO YOU PLNOVÝSUV 400 MM EB21 SILENT SYSTEM SADA | AW48: =VLOOKUP(AU48,CENY!$B$11:$G$1034,3,FALSE) -> 1 | AX48: 8 | AY48: =U28 -> 0 | AZ48: 0 | BA48: =VLOOKUP(AU48,CENY!$B$11:$M$2005,12,FALSE) -> 384.24 | BB48: 0 | BD48: =OBJ!B258 -> 9268679 | BE48: =VLOOKUP(BD48,CENY!$B$11:$G$1034,2,FALSE) -> ACTRO YOU 40KG PLNOVÝSUV 600 MM EB21 SILENT SYSTÉM LEVÝ | BF48: =VLOOKUP(BD48,CENY!$B$11:$G$1034,3,FALSE) -> 10 | BH48: =AY30 -> 0 | BI48: 0 | BJ48: =VLOOKUP(BD48,CENY!$B$11:$M$2005,12,FALSE) -> 273.51 | BK48: 0
AU49: =OBJ!B301 -> 9256890 | AV49: =VLOOKUP(AU49,CENY!$B$11:$G$1034,2,FALSE) -> QUADRO YOU PLNOVÝSUV 450 MM EB21 SILENT SYSTEM SADA | AW49: =VLOOKUP(AU49,CENY!$B$11:$G$1034,3,FALSE) -> 1 | AX49: 8 | AY49: =W28 -> 0 | AZ49: 0 | BA49: =VLOOKUP(AU49,CENY!$B$11:$M$2005,12,FALSE) -> 391.72 | BB49: 0 | BD49: =OBJ!B259 -> 9268680 | BE49: =VLOOKUP(BD49,CENY!$B$11:$G$1034,2,FALSE) -> ACTRO YOU 40KG PLNOVÝSUV 600 MM EB21 SILENT SYSTÉM PRAVÝ | BF49: =VLOOKUP(BD49,CENY!$B$11:$G$1034,3,FALSE) -> 10 | BH49: =AY30 -> 0 | BI49: 0 | BJ49: =VLOOKUP(BD49,CENY!$B$11:$M$2005,12,FALSE) -> 273.51 | BK49: 0
AU50: =OBJ!B302 -> 9256892 | AV50: =VLOOKUP(AU50,CENY!$B$11:$G$1034,2,FALSE) -> QUADRO YOU PLNOVÝSUV 500 MM EB21 SILENT SYSTEM SADA | AW50: =VLOOKUP(AU50,CENY!$B$11:$G$1034,3,FALSE) -> 1 | AX50: 8 | AY50: =Y28 -> 0 | AZ50: 0 | BA50: =VLOOKUP(AU50,CENY!$B$11:$M$2005,12,FALSE) -> 399.19 | BB50: 0
AU51: =OBJ!B303 -> 9256894 | AV51: =VLOOKUP(AU51,CENY!$B$11:$G$1034,2,FALSE) -> QUADRO YOU PLNOVÝSUV 550 MM EB21 SILENT SYSTEM SADA | AW51: =VLOOKUP(AU51,CENY!$B$11:$G$1034,3,FALSE) -> 1 | AX51: 8 | AY51: =AA28 -> 0 | AZ51: 0 | BA51: =VLOOKUP(AU51,CENY!$B$11:$M$2005,12,FALSE) -> 412.64 | BB51: 0 | BD51: =OBJ!B266 -> 9257013 | BE51: =VLOOKUP(BD51,CENY!$B$11:$G$1034,2,FALSE) -> ACTRO YOU 70KG PLNOVÝSUV 450 MM EB21 SILENT SYSTEM LEVÝ | BF51: =VLOOKUP(BD51,CENY!$B$11:$G$1034,3,FALSE) -> 10 | BH51: =AY32 -> 0 | BI51: 0 | BJ51: =VLOOKUP(BD51,CENY!$B$11:$M$2005,12,FALSE) -> 309.07 | BK51: 0
AU52: =OBJ!B304 -> 9256896 | AV52: =VLOOKUP(AU52,CENY!$B$11:$G$1034,2,FALSE) -> QUADRO YOU PLNOVÝSUV 600 MM EB21 SILENT SYSTEM SADA | AW52: =VLOOKUP(AU52,CENY!$B$11:$G$1034,3,FALSE) -> 1 | AX52: 8 | AY52: =AC28 -> 0 | AZ52: 0 | BA52: =VLOOKUP(AU52,CENY!$B$11:$M$2005,12,FALSE) -> 420.11 | BB52: 0 | BD52: =OBJ!B267 -> 9257014 | BE52: =VLOOKUP(BD52,CENY!$B$11:$G$1034,2,FALSE) -> ACTRO YOU 70KG PLNOVÝSUV 450 MM EB21 SILENT SYSTEM PRAVÝ | BF52: =VLOOKUP(BD52,CENY!$B$11:$G$1034,3,FALSE) -> 10 | BH52: =AY32 -> 0 | BI52: 0 | BJ52: =VLOOKUP(BD52,CENY!$B$11:$M$2005,12,FALSE) -> 309.07 | BK52: 0
BD53: =OBJ!B268 -> 9257017 | BE53: =VLOOKUP(BD53,CENY!$B$11:$G$1034,2,FALSE) -> ACTRO YOU 70KG PLNOVÝSUV 500 MM EB21 SILENT SYSTEM LEVÝ | BF53: =VLOOKUP(BD53,CENY!$B$11:$G$1034,3,FALSE) -> 10 | BH53: =AY33 -> 0 | BI53: 0 | BJ53: =VLOOKUP(BD53,CENY!$B$11:$M$2005,12,FALSE) -> 312.18 | BK53: 0
AU54: =OBJ!B322 -> 9257894 | AV54: =VLOOKUP(AU54,CENY!$B$11:$G$1034,2,FALSE) -> PUSH TO OPEN SILENT QUADRO YOU 10 KG | AW54: =VLOOKUP(AU54,CENY!$B$11:$G$1034,3,FALSE) -> 1 | AY54: =AN27 -> 0 | AZ54: 0 | BA54: =VLOOKUP(AU54,CENY!$B$11:$M$2005,12,FALSE) -> 544.37 | BB54: 0 | BD54: =OBJ!B269 -> 9257018 | BE54: =VLOOKUP(BD54,CENY!$B$11:$G$1034,2,FALSE) -> ACTRO YOU 70KG PLNOVÝSUV 500 MM EB21 SILENT SYSTEM PRAVÝ | BF54: =VLOOKUP(BD54,CENY!$B$11:$G$1034,3,FALSE) -> 10 | BH54: =AY33 -> 0 | BI54: 0 | BJ54: =VLOOKUP(BD54,CENY!$B$11:$M$2005,12,FALSE) -> 312.18 | BK54: 0
AU55: =OBJ!B323 -> 9257895 | AV55: =VLOOKUP(AU55,CENY!$B$11:$G$1034,2,FALSE) -> PUSH TO OPEN SILENT QUADRO YOU 20 KG | AW55: =VLOOKUP(AU55,CENY!$B$11:$G$1034,3,FALSE) -> 1 | AY55: =AN28 -> 0 | AZ55: 0 | BA55: =VLOOKUP(AU55,CENY!$B$11:$M$2005,12,FALSE) -> 544.37 | BB55: 0 | BD55: =OBJ!B270 -> 9257021 | BE55: =VLOOKUP(BD55,CENY!$B$11:$G$1034,2,FALSE) -> ACTRO YOU 70KG PLNOVÝSUV 550 MM EB21 SILENT SYSTEM LEVÝ | BF55: =VLOOKUP(BD55,CENY!$B$11:$G$1034,3,FALSE) -> 10 | BH55: =AY34 -> 0 | BI55: 0 | BJ55: =VLOOKUP(BD55,CENY!$B$11:$M$2005,12,FALSE) -> 328.77 | BK55: 0
AU56: =OBJ!B324 -> 9257896 | AV56: =VLOOKUP(AU56,CENY!$B$11:$G$1034,2,FALSE) -> PUSH TO OPEN SILENT QUADRO YOU 30 KG | AW56: =VLOOKUP(AU56,CENY!$B$11:$G$1034,3,FALSE) -> 1 | AY56: =AN29 -> 0 | AZ56: 0 | BA56: =VLOOKUP(AU56,CENY!$B$11:$M$2005,12,FALSE) -> 544.37 | BB56: 0 | BD56: =OBJ!B271 -> 9257022 | BE56: =VLOOKUP(BD56,CENY!$B$11:$G$1034,2,FALSE) -> ACTRO YOU 70KG PLNOVÝSUV 550 MM EB21 SILENT SYSTEM PRAVÝ | BF56: =VLOOKUP(BD56,CENY!$B$11:$G$1034,3,FALSE) -> 10 | BH56: =AY34 -> 0 | BI56: 0 | BJ56: =VLOOKUP(BD56,CENY!$B$11:$M$2005,12,FALSE) -> 328.77 | BK56: 0
BD57: =OBJ!B272 -> 9257025 | BE57: =VLOOKUP(BD57,CENY!$B$11:$G$1034,2,FALSE) -> ACTRO YOU 70KG PLNOVÝSUV 600 MM EB21 SILENT SYSTEM LEVÝ | BF57: =VLOOKUP(BD57,CENY!$B$11:$G$1034,3,FALSE) -> 10 | BH57: =AY35 -> 0 | BI57: 0 | BJ57: =VLOOKUP(BD57,CENY!$B$11:$M$2005,12,FALSE) -> 362.28 | BK57: 0
AU58: =OBJ!B327 -> 9256929 | AV58: =VLOOKUP(AU58,CENY!$B$11:$G$1034,2,FALSE) -> QUADRO YOU PLNOVÝSUV 300 MM EB21 PUSH TO OPEN SADA | AW58: =VLOOKUP(AU58,CENY!$B$11:$G$1034,3,FALSE) -> 1 | AX58: 8 | AY58: =Q30 -> 0 | AZ58: 0 | BA58: =VLOOKUP(AU58,CENY!$B$11:$M$2005,12,FALSE) -> 414.13 | BB58: 0 | BD58: =OBJ!B273 -> 9257026 | BE58: =VLOOKUP(BD58,CENY!$B$11:$G$1034,2,FALSE) -> ACTRO YOU 70KG PLNOVÝSUV 600 MM EB21 SILENT SYSTEM PRAVÝ | BF58: =VLOOKUP(BD58,CENY!$B$11:$G$1034,3,FALSE) -> 10 | BH58: =AY35 -> 0 | BI58: 0 | BJ58: =VLOOKUP(BD58,CENY!$B$11:$M$2005,12,FALSE) -> 362.28 | BK58: 0
AU59: =OBJ!B328 -> 9256931 | AV59: =VLOOKUP(AU59,CENY!$B$11:$G$1034,2,FALSE) -> QUADRO YOU PLNOVÝSUV 350 MM EB21 PUSH TO OPEN SADA | AW59: =VLOOKUP(AU59,CENY!$B$11:$G$1034,3,FALSE) -> 1 | AX59: 8 | AY59: =S30 -> 0 | AZ59: 0 | BA59: =VLOOKUP(AU59,CENY!$B$11:$M$2005,12,FALSE) -> 421.61 | BB59: 0
AU60: =OBJ!B329 -> 9256933 | AV60: =VLOOKUP(AU60,CENY!$B$11:$G$1034,2,FALSE) -> QUADRO YOU PLNOVÝSUV 400 MM EB21 PUSH TO OPEN SADA | AW60: =VLOOKUP(AU60,CENY!$B$11:$G$1034,3,FALSE) -> 1 | AX60: 8 | AY60: =U30 -> 0 | AZ60: 0 | BA60: =VLOOKUP(AU60,CENY!$B$11:$M$2005,12,FALSE) -> 429.08 | BB60: 0 | BD60: =OBJ!B277 -> 9257890 | BE60: =VLOOKUP(BD60,CENY!$B$11:$G$1034,2,FALSE) -> PUSH TO OPEN SILENT ACTRO YOU / ACTRO 5D 10 KG | BF60: =VLOOKUP(BD60,CENY!$B$11:$G$1034,3,FALSE) -> 1 | BH60: =AY37 -> 0 | BI60: 0 | BJ60: =VLOOKUP(BD60,CENY!$B$11:$M$2005,12,FALSE) -> 544.37 | BK60: 0
AU61: =OBJ!B330 -> 9256935 | AV61: =VLOOKUP(AU61,CENY!$B$11:$G$1034,2,FALSE) -> QUADRO YOU PLNOVÝSUV 450 MM EB21 PUSH TO OPEN SADA | AW61: =VLOOKUP(AU61,CENY!$B$11:$G$1034,3,FALSE) -> 1 | AX61: 8 | AY61: =W30 -> 0 | AZ61: 0 | BA61: =VLOOKUP(AU61,CENY!$B$11:$M$2005,12,FALSE) -> 436.55 | BB61: 0 | BD61: =OBJ!B278 -> 9257891 | BE61: =VLOOKUP(BD61,CENY!$B$11:$G$1034,2,FALSE) -> PUSH TO OPEN SILENT ACTRO YOU / ACTRO 5D 20 KG | BF61: =VLOOKUP(BD61,CENY!$B$11:$G$1034,3,FALSE) -> 1 | BH61: =AY38 -> 0 | BI61: 0 | BJ61: =VLOOKUP(BD61,CENY!$B$11:$M$2005,12,FALSE) -> 544.37 | BK61: 0
AU62: =OBJ!B331 -> 9256937 | AV62: =VLOOKUP(AU62,CENY!$B$11:$G$1034,2,FALSE) -> QUADRO YOU PLNOVÝSUV 500 MM EB21 PUSH TO OPEN SADA | AW62: =VLOOKUP(AU62,CENY!$B$11:$G$1034,3,FALSE) -> 1 | AX62: 8 | AY62: =Y30 -> 0 | AZ62: 0 | BA62: =VLOOKUP(AU62,CENY!$B$11:$M$2005,12,FALSE) -> 444.02 | BB62: 0 | BD62: =OBJ!B279 -> 9257892 | BE62: =VLOOKUP(BD62,CENY!$B$11:$G$1034,2,FALSE) -> PUSH TO OPEN SILENT ACTRO YOU / ACTRO 5D 40 KG | BF62: =VLOOKUP(BD62,CENY!$B$11:$G$1034,3,FALSE) -> 1 | BH62: =AY39 -> 0 | BI62: 0 | BJ62: =VLOOKUP(BD62,CENY!$B$11:$M$2005,12,FALSE) -> 544.37 | BK62: 0
AU63: =OBJ!B332 -> 9256939 | AV63: =VLOOKUP(AU63,CENY!$B$11:$G$1034,2,FALSE) -> QUADRO YOU PLNOVÝSUV 550 MM EB21 PUSH TO OPEN SADA | AW63: =VLOOKUP(AU63,CENY!$B$11:$G$1034,3,FALSE) -> 1 | AX63: 8 | AY63: =AA30 -> 0 | AZ63: 0 | BA63: =VLOOKUP(AU63,CENY!$B$11:$M$2005,12,FALSE) -> 457.48 | BB63: 0 | BD63: =OBJ!B280 -> 9257893 | BE63: =VLOOKUP(BD63,CENY!$B$11:$G$1034,2,FALSE) -> PUSH TO OPEN SILENT ACTRO YOU / ACTRO 5D 70 KG | BF63: =VLOOKUP(BD63,CENY!$B$11:$G$1034,3,FALSE) -> 1 | BH63: =AY40 -> 0 | BI63: 0 | BJ63: =VLOOKUP(BD63,CENY!$B$11:$M$2005,12,FALSE) -> 544.37 | BK63: 0
AU64: =OBJ!B333 -> 9256941 | AV64: =VLOOKUP(AU64,CENY!$B$11:$G$1034,2,FALSE) -> QUADRO YOU PLNOVÝSUV 600 MM EB21 PUSH TO OPEN SADA | AW64: =VLOOKUP(AU64,CENY!$B$11:$G$1034,3,FALSE) -> 1 | AX64: 8 | AY64: =AC30 -> 0 | AZ64: 0 | BA64: =VLOOKUP(AU64,CENY!$B$11:$M$2005,12,FALSE) -> 464.95 | BB64: 0 | BD64: =OBJ!B281 -> 9236718 | BE64: =VLOOKUP(BD64,CENY!$B$11:$G$1034,2,FALSE) -> PUSH TO OPEN SYNCHRONIZAČNÍ TYČ 2000 MM | BF64: =VLOOKUP(BD64,CENY!$B$11:$G$1034,3,FALSE) -> 100 | BH64: =AY41 -> 0 | BI64: 0 | BJ64: =VLOOKUP(BD64,CENY!$B$11:$M$2005,12,FALSE) -> 144.3 | BK64: 0
AU66: =OBJ!B351 -> 9219966 | AV66: =VLOOKUP(AU66,CENY!$B$11:$G$1034,2,FALSE) -> PUSH TO OPEN SYNCHRO ADAPTÉR TYP A | AW66: =VLOOKUP(AU66,CENY!$B$11:$G$1034,3,FALSE) -> 200 | AY66: =2*SUM(Q30:AD30) -> 0 | AZ66: 0 | BA66: =VLOOKUP(AU66,CENY!$B$11:$M$2005,12,FALSE) -> 13.07 | BB66: 0 | BD66: =OBJ!B292 -> 9256946 | BE66: =VLOOKUP(BD66,CENY!$B$11:$G$1034,2,FALSE) -> QUADRO YOU 10 KG PLNOVÝSUV 300 MM EB21 SILENT SYSTEM LEVÝ | BF66: =VLOOKUP(BD66,CENY!$B$11:$G$1034,3,FALSE) -> 20 | BH66: =AY43 -> 0 | BI66: 0 | BJ66: =VLOOKUP(BD66,CENY!$B$11:$M$2005,12,FALSE) -> 172.7 | BK66: 0
BB67: =IF(BA67="","",BA67*AY67) ->  | BD67: =OBJ!B293 -> 9256947 | BE67: =VLOOKUP(BD67,CENY!$B$11:$G$1034,2,FALSE) -> QUADRO YOU 10 KG PLNOVÝSUV 300 MM EB21 SILENT SYSTEM PRAVÝ | BF67: =VLOOKUP(BD67,CENY!$B$11:$G$1034,3,FALSE) -> 20 | BH67: =AY43 -> 0 | BI67: 0 | BJ67: =VLOOKUP(BD67,CENY!$B$11:$M$2005,12,FALSE) -> 172.7 | BK67: 0
AU68: 9257885 | AV68: =VLOOKUP(AU68,CENY!$B$11:$G$1034,2,FALSE) -> AVANTECH YOU PŘÍCHYTKA ČELA V139 MM K ZALISOVÁNÍ | AW68: =VLOOKUP(AU68,CENY!$B$11:$G$1034,3,FALSE) -> 200 | AY68: =IF(FORM!AM8=FORM!AU11,(2*(+SUM(O19:T19)+SUM(O20:AD20)+SUM(W22:AF22)+SUM(O27:T27)+SUM(O28:AD28)+SUM(O30:AD30))),0) -> 0 | AZ68: =IF(AY68="","",IF($AW$4=1,AY68,0)) -> 0 | BA68: =VLOOKUP(AU68,CENY!$B$11:$M$2005,12,FALSE) -> 36.09 | BB68: 0 | BD68: =OBJ!B294 -> 9256950 | BE68: =VLOOKUP(BD68,CENY!$B$11:$G$1034,2,FALSE) -> QUADRO YOU 10 KG PLNOVÝSUV 350 MM EB21 SILENT SYSTEM LEVÝ | BF68: =VLOOKUP(BD68,CENY!$B$11:$G$1034,3,FALSE) -> 20 | BH68: =AY44 -> 0 | BI68: 0 | BJ68: =VLOOKUP(BD68,CENY!$B$11:$M$2005,12,FALSE) -> 176.43 | BK68: 0
BD69: =OBJ!B295 -> 9256951 | BE69: =VLOOKUP(BD69,CENY!$B$11:$G$1034,2,FALSE) -> QUADRO YOU 10 KG PLNOVÝSUV 350 MM EB21 SILENT SYSTEM PRAVÝ | BF69: =VLOOKUP(BD69,CENY!$B$11:$G$1034,3,FALSE) -> 20 | BH69: =AY44 -> 0 | BI69: 0 | BJ69: =VLOOKUP(BD69,CENY!$B$11:$M$2005,12,FALSE) -> 176.43 | BK69: 0
AU70: =OBJ!B207 -> 0 | AV70: =VLOOKUP(AU70,CENY!$B$11:$G$1034,2,FALSE) ->  | AW70: =VLOOKUP(AU70,CENY!$B$11:$G$1034,3,FALSE) ->  | AY70: =IF(FORM!AM21<>FORM!AW16,(2*(+SUM(O19:T19)+SUM(O20:AD20)+SUM(W22:AF22)+SUM(O27:T27)+SUM(O28:AD28)+SUM(O30:AD30))),0) -> 0 | AZ70: 0 | BA70: =IF(AU70=0,"",VLOOKUP(AU70,CENY!$B$11:$M$2005,12,FALSE)) ->  | BI70: =IF(BH70="","",IF($AW$4=0,BH70,0)) ->  | BK70: =IF(BJ70="","",BJ70*BH70) -> 
BD71: =OBJ!B307 -> 9256856 | BE71: =VLOOKUP(BD71,CENY!$B$11:$G$1034,2,FALSE) -> QUADRO YOU PLNOVÝSUV 300 MM EB21 SILENT SYSTEM LEVÝ | BF71: =VLOOKUP(BD71,CENY!$B$11:$G$1034,3,FALSE) -> 20 | BH71: =AY46 -> 0 | BI71: 0 | BJ71: =VLOOKUP(BD71,CENY!$B$11:$M$2005,12,FALSE) -> 172.7 | BK71: 0
BD72: =OBJ!B308 -> 9256857 | BE72: =VLOOKUP(BD72,CENY!$B$11:$G$1034,2,FALSE) -> QUADRO YOU PLNOVÝSUV 300 MM EB21 SILENT SYSTEM PRAVÝ | BF72: =VLOOKUP(BD72,CENY!$B$11:$G$1034,3,FALSE) -> 20 | BH72: =AY46 -> 0 | BI72: 0 | BJ72: =VLOOKUP(BD72,CENY!$B$11:$M$2005,12,FALSE) -> 172.7 | BK72: 0
BD73: =OBJ!B309 -> 9256860 | BE73: =VLOOKUP(BD73,CENY!$B$11:$G$1034,2,FALSE) -> QUADRO YOU PLNOVÝSUV 350 MM EB21 SILENT SYSTEM LEVÝ | BF73: =VLOOKUP(BD73,CENY!$B$11:$G$1034,3,FALSE) -> 20 | BH73: =AY47 -> 0 | BI73: 0 | BJ73: =VLOOKUP(BD73,CENY!$B$11:$M$2005,12,FALSE) -> 176.43 | BK73: 0
BD74: =OBJ!B310 -> 9256861 | BE74: =VLOOKUP(BD74,CENY!$B$11:$G$1034,2,FALSE) -> QUADRO YOU PLNOVÝSUV 350 MM EB21 SILENT SYSTEM PRAVÝ | BF74: =VLOOKUP(BD74,CENY!$B$11:$G$1034,3,FALSE) -> 20 | BH74: =AY47 -> 0 | BI74: 0 | BJ74: =VLOOKUP(BD74,CENY!$B$11:$M$2005,12,FALSE) -> 176.43 | BK74: 0
BD75: =OBJ!B311 -> 9256864 | BE75: =VLOOKUP(BD75,CENY!$B$11:$G$1034,2,FALSE) -> QUADRO YOU PLNOVÝSUV 400 MM EB21 SILENT SYSTEM LEVÝ | BF75: =VLOOKUP(BD75,CENY!$B$11:$G$1034,3,FALSE) -> 20 | BH75: =AY48 -> 0 | BI75: 0 | BJ75: =VLOOKUP(BD75,CENY!$B$11:$M$2005,12,FALSE) -> 180.17 | BK75: 0
BD76: =OBJ!B312 -> 9256865 | BE76: =VLOOKUP(BD76,CENY!$B$11:$G$1034,2,FALSE) -> QUADRO YOU PLNOVÝSUV 400 MM EB21 SILENT SYSTEM PRAVÝ | BF76: =VLOOKUP(BD76,CENY!$B$11:$G$1034,3,FALSE) -> 20 | BH76: =AY48 -> 0 | BI76: 0 | BJ76: =VLOOKUP(BD76,CENY!$B$11:$M$2005,12,FALSE) -> 180.17 | BK76: 0
BD77: =OBJ!B313 -> 9256868 | BE77: =VLOOKUP(BD77,CENY!$B$11:$G$1034,2,FALSE) -> QUADRO YOU PLNOVÝSUV 450 MM EB21 SILENT SYSTEM LEVÝ | BF77: =VLOOKUP(BD77,CENY!$B$11:$G$1034,3,FALSE) -> 20 | BH77: =AY49 -> 0 | BI77: 0 | BJ77: =VLOOKUP(BD77,CENY!$B$11:$M$2005,12,FALSE) -> 183.9 | BK77: 0
BD78: =OBJ!B314 -> 9256869 | BE78: =VLOOKUP(BD78,CENY!$B$11:$G$1034,2,FALSE) -> QUADRO YOU PLNOVÝSUV 450 MM EB21 SILENT SYSTEM PRAVÝ | BF78: =VLOOKUP(BD78,CENY!$B$11:$G$1034,3,FALSE) -> 20 | BH78: =AY49 -> 0 | BI78: 0 | BJ78: =VLOOKUP(BD78,CENY!$B$11:$M$2005,12,FALSE) -> 183.9 | BK78: 0
BD79: =OBJ!B315 -> 9256872 | BE79: =VLOOKUP(BD79,CENY!$B$11:$G$1034,2,FALSE) -> QUADRO YOU PLNOVÝSUV 500 MM EB21 SILENT SYSTEM LEVÝ | BF79: =VLOOKUP(BD79,CENY!$B$11:$G$1034,3,FALSE) -> 20 | BH79: =AY50 -> 0 | BI79: 0 | BJ79: =VLOOKUP(BD79,CENY!$B$11:$M$2005,12,FALSE) -> 187.64 | BK79: 0
BD80: =OBJ!B316 -> 9256873 | BE80: =VLOOKUP(BD80,CENY!$B$11:$G$1034,2,FALSE) -> QUADRO YOU PLNOVÝSUV 500 MM EB21 SILENT SYSTEM PRAVÝ | BF80: =VLOOKUP(BD80,CENY!$B$11:$G$1034,3,FALSE) -> 20 | BH80: =AY50 -> 0 | BI80: 0 | BJ80: =VLOOKUP(BD80,CENY!$B$11:$M$2005,12,FALSE) -> 187.64 | BK80: 0
BD81: =OBJ!B317 -> 9256876 | BE81: =VLOOKUP(BD81,CENY!$B$11:$G$1034,2,FALSE) -> QUADRO YOU PLNOVÝSUV 550 MM EB21 SILENT SYSTEM LEVÝ | BF81: =VLOOKUP(BD81,CENY!$B$11:$G$1034,3,FALSE) -> 20 | BH81: =AY51 -> 0 | BI81: 0 | BJ81: =VLOOKUP(BD81,CENY!$B$11:$M$2005,12,FALSE) -> 194.36 | BK81: 0
BD82: =OBJ!B318 -> 9256877 | BE82: =VLOOKUP(BD82,CENY!$B$11:$G$1034,2,FALSE) -> QUADRO YOU PLNOVÝSUV 550 MM EB21 SILENT SYSTEM PRAVÝ | BF82: =VLOOKUP(BD82,CENY!$B$11:$G$1034,3,FALSE) -> 20 | BH82: =AY51 -> 0 | BI82: 0 | BJ82: =VLOOKUP(BD82,CENY!$B$11:$M$2005,12,FALSE) -> 194.36 | BK82: 0
BD83: =OBJ!B319 -> 9256880 | BE83: =VLOOKUP(BD83,CENY!$B$11:$G$1034,2,FALSE) -> QUADRO YOU PLNOVÝSUV 600 MM EB21 SILENT SYSTEM LEVÝ | BF83: =VLOOKUP(BD83,CENY!$B$11:$G$1034,3,FALSE) -> 20 | BH83: =AY52 -> 0 | BI83: 0 | BJ83: =VLOOKUP(BD83,CENY!$B$11:$M$2005,12,FALSE) -> 198.1 | BK83: 0
BD84: =OBJ!B320 -> 9256881 | BE84: =VLOOKUP(BD84,CENY!$B$11:$G$1034,2,FALSE) -> QUADRO YOU PLNOVÝSUV 600 MM EB21 SILENT SYSTEM PRAVÝ | BF84: =VLOOKUP(BD84,CENY!$B$11:$G$1034,3,FALSE) -> 20 | BH84: =AY52 -> 0 | BI84: 0 | BJ84: =VLOOKUP(BD84,CENY!$B$11:$M$2005,12,FALSE) -> 198.1 | BK84: 0
BD86: =OBJ!B322 -> 9257894 | BE86: =VLOOKUP(BD86,CENY!$B$11:$G$1034,2,FALSE) -> PUSH TO OPEN SILENT QUADRO YOU 10 KG | BF86: =VLOOKUP(BD86,CENY!$B$11:$G$1034,3,FALSE) -> 1 | BH86: =AY54 -> 0 | BI86: 0 | BJ86: =VLOOKUP(BD86,CENY!$B$11:$M$2005,12,FALSE) -> 544.37 | BK86: 0
BD87: =OBJ!B323 -> 9257895 | BE87: =VLOOKUP(BD87,CENY!$B$11:$G$1034,2,FALSE) -> PUSH TO OPEN SILENT QUADRO YOU 20 KG | BF87: =VLOOKUP(BD87,CENY!$B$11:$G$1034,3,FALSE) -> 1 | BH87: =AY55 -> 0 | BI87: 0 | BJ87: =VLOOKUP(BD87,CENY!$B$11:$M$2005,12,FALSE) -> 544.37 | BK87: 0
BD88: =OBJ!B324 -> 9257896 | BE88: =VLOOKUP(BD88,CENY!$B$11:$G$1034,2,FALSE) -> PUSH TO OPEN SILENT QUADRO YOU 30 KG | BF88: =VLOOKUP(BD88,CENY!$B$11:$G$1034,3,FALSE) -> 1 | BH88: =AY56 -> 0 | BI88: 0 | BJ88: =VLOOKUP(BD88,CENY!$B$11:$M$2005,12,FALSE) -> 544.37 | BK88: 0
BD90: =OBJ!B336 -> 9256901 | BE90: =VLOOKUP(BD90,CENY!$B$11:$G$1034,2,FALSE) -> QUADRO YOU PLNOVÝSUV 300 MM EB21 PUSH TO OPEN LEVÝ | BF90: =VLOOKUP(BD90,CENY!$B$11:$G$1034,3,FALSE) -> 20 | BH90: =AY58 -> 0 | BI90: 0 | BJ90: =VLOOKUP(BD90,CENY!$B$11:$M$2005,12,FALSE) -> 195.11 | BK90: 0
BD91: =OBJ!B337 -> 9256902 | BE91: =VLOOKUP(BD91,CENY!$B$11:$G$1034,2,FALSE) -> QUADRO YOU PLNOVÝSUV 300 MM EB21 PUSH TO OPEN PRAVÝ | BF91: =VLOOKUP(BD91,CENY!$B$11:$G$1034,3,FALSE) -> 20 | BH91: =AY58 -> 0 | BI91: 0 | BJ91: =VLOOKUP(BD91,CENY!$B$11:$M$2005,12,FALSE) -> 195.11 | BK91: 0
BD92: =OBJ!B338 -> 9256905 | BE92: =VLOOKUP(BD92,CENY!$B$11:$G$1034,2,FALSE) -> QUADRO YOU PLNOVÝSUV 350 MM EB21 PUSH TO OPEN LEVÝ | BF92: =VLOOKUP(BD92,CENY!$B$11:$G$1034,3,FALSE) -> 20 | BH92: =AY59 -> 0 | BI92: 0 | BJ92: =VLOOKUP(BD92,CENY!$B$11:$M$2005,12,FALSE) -> 198.85 | BK92: 0
BD93: =OBJ!B339 -> 9256906 | BE93: =VLOOKUP(BD93,CENY!$B$11:$G$1034,2,FALSE) -> QUADRO YOU PLNOVÝSUV 350 MM EB21 PUSH TO OPEN PRAVÝ | BF93: =VLOOKUP(BD93,CENY!$B$11:$G$1034,3,FALSE) -> 20 | BH93: =AY59 -> 0 | BI93: 0 | BJ93: =VLOOKUP(BD93,CENY!$B$11:$M$2005,12,FALSE) -> 198.85 | BK93: 0
BD94: =OBJ!B340 -> 9256909 | BE94: =VLOOKUP(BD94,CENY!$B$11:$G$1034,2,FALSE) -> QUADRO YOU PLNOVÝSUV 400 MM EB21 PUSH TO OPEN LEVÝ | BF94: =VLOOKUP(BD94,CENY!$B$11:$G$1034,3,FALSE) -> 20 | BH94: =AY60 -> 0 | BI94: 0 | BJ94: =VLOOKUP(BD94,CENY!$B$11:$M$2005,12,FALSE) -> 202.58 | BK94: 0
BD95: =OBJ!B341 -> 9256910 | BE95: =VLOOKUP(BD95,CENY!$B$11:$G$1034,2,FALSE) -> QUADRO YOU PLNOVÝSUV 400 MM EB21 PUSH TO OPEN PRAVÝ | BF95: =VLOOKUP(BD95,CENY!$B$11:$G$1034,3,FALSE) -> 20 | BH95: =AY60 -> 0 | BI95: 0 | BJ95: =VLOOKUP(BD95,CENY!$B$11:$M$2005,12,FALSE) -> 202.58 | BK95: 0
BD96: =OBJ!B342 -> 9256913 | BE96: =VLOOKUP(BD96,CENY!$B$11:$G$1034,2,FALSE) -> QUADRO YOU PLNOVÝSUV 450 MM EB21 PUSH TO OPEN LEVÝ | BF96: =VLOOKUP(BD96,CENY!$B$11:$G$1034,3,FALSE) -> 20 | BH96: =AY61 -> 0 | BI96: 0 | BJ96: =VLOOKUP(BD96,CENY!$B$11:$M$2005,12,FALSE) -> 206.32 | BK96: 0
BD97: =OBJ!B343 -> 9256914 | BE97: =VLOOKUP(BD97,CENY!$B$11:$G$1034,2,FALSE) -> QUADRO YOU PLNOVÝSUV 450 MM EB21 PUSH TO OPEN PRAVÝ | BF97: =VLOOKUP(BD97,CENY!$B$11:$G$1034,3,FALSE) -> 20 | BH97: =AY61 -> 0 | BI97: 0 | BJ97: =VLOOKUP(BD97,CENY!$B$11:$M$2005,12,FALSE) -> 206.32 | BK97: 0
BD98: =OBJ!B344 -> 9256917 | BE98: =VLOOKUP(BD98,CENY!$B$11:$G$1034,2,FALSE) -> QUADRO YOU PLNOVÝSUV 500 MM EB21 PUSH TO OPEN LEVÝ | BF98: =VLOOKUP(BD98,CENY!$B$11:$G$1034,3,FALSE) -> 20 | BH98: =AY62 -> 0 | BI98: 0 | BJ98: =VLOOKUP(BD98,CENY!$B$11:$M$2005,12,FALSE) -> 210.06 | BK98: 0
BD99: =OBJ!B345 -> 9256918 | BE99: =VLOOKUP(BD99,CENY!$B$11:$G$1034,2,FALSE) -> QUADRO YOU PLNOVÝSUV 500 MM EB21 PUSH TO OPEN PRAVÝ | BF99: =VLOOKUP(BD99,CENY!$B$11:$G$1034,3,FALSE) -> 20 | BH99: =AY62 -> 0 | BI99: 0 | BJ99: =VLOOKUP(BD99,CENY!$B$11:$M$2005,12,FALSE) -> 210.06 | BK99: 0
BD100: =OBJ!B346 -> 9256921 | BE100: =VLOOKUP(BD100,CENY!$B$11:$G$1034,2,FALSE) -> QUADRO YOU PLNOVÝSUV 550 MM EB21 PUSH TO OPEN LEVÝ | BF100: =VLOOKUP(BD100,CENY!$B$11:$G$1034,3,FALSE) -> 20 | BH100: =AY63 -> 0 | BI100: 0 | BJ100: =VLOOKUP(BD100,CENY!$B$11:$M$2005,12,FALSE) -> 216.78 | BK100: 0
BD101: =OBJ!B347 -> 9256922 | BE101: =VLOOKUP(BD101,CENY!$B$11:$G$1034,2,FALSE) -> QUADRO YOU PLNOVÝSUV 550 MM EB21 PUSH TO OPEN PRAVÝ | BF101: =VLOOKUP(BD101,CENY!$B$11:$G$1034,3,FALSE) -> 20 | BH101: =AY63 -> 0 | BI101: 0 | BJ101: =VLOOKUP(BD101,CENY!$B$11:$M$2005,12,FALSE) -> 216.78 | BK101: 0
BD102: =OBJ!B348 -> 9256925 | BE102: =VLOOKUP(BD102,CENY!$B$11:$G$1034,2,FALSE) -> QUADRO YOU PLNOVÝSUV 600 MM EB21 PUSH TO OPEN LEVÝ | BF102: =VLOOKUP(BD102,CENY!$B$11:$G$1034,3,FALSE) -> 20 | BH102: =AY64 -> 0 | BI102: 0 | BJ102: =VLOOKUP(BD102,CENY!$B$11:$M$2005,12,FALSE) -> 223.51 | BK102: 0
BD103: =OBJ!B349 -> 9256926 | BE103: =VLOOKUP(BD103,CENY!$B$11:$G$1034,2,FALSE) -> QUADRO YOU PLNOVÝSUV 600 MM EB21 PUSH TO OPEN PRAVÝ | BF103: =VLOOKUP(BD103,CENY!$B$11:$G$1034,3,FALSE) -> 20 | BH103: =AY64 -> 0 | BI103: 0 | BJ103: =VLOOKUP(BD103,CENY!$B$11:$M$2005,12,FALSE) -> 223.51 | BK103: 0
BD105: =OBJ!B351 -> 9219966 | BE105: =VLOOKUP(BD105,CENY!$B$11:$G$1034,2,FALSE) -> PUSH TO OPEN SYNCHRO ADAPTÉR TYP A | BF105: =VLOOKUP(BD105,CENY!$B$11:$G$1034,3,FALSE) -> 200 | BH105: =AY66 -> 0 | BI105: 0 | BJ105: =VLOOKUP(BD105,CENY!$B$11:$M$2005,12,FALSE) -> 13.07 | BK105: 0
BD107: =OBJ!B207 -> 0 | BE107: =VLOOKUP(BD107,CENY!$B$11:$G$1034,2,FALSE) ->  | BF107: =VLOOKUP(BD107,CENY!$B$11:$G$1034,3,FALSE) ->  | BH107: =AY70 -> 0 | BI107: 0 | BJ107: =IF(BD107=0,"",VLOOKUP(BD107,CENY!$B$11:$M$2005,12,FALSE)) -> 
AU109: =OBJ!B354 -> 45167 | AV109: =VLOOKUP(AU109,CENY!$B$11:$G$1034,2,FALSE) -> VRUT PANHEAD 35X12 | AW109: =VLOOKUP(AU109,CENY!$B$11:$G$1034,3,FALSE) -> 200 | AY109: =SUMPRODUCT(AX5:AX11,AY5:AY11) -> 0 | AZ109: 0 | BA109: =VLOOKUP(AU109,CENY!$B$11:$M$2005,12,FALSE) -> 0.54 | BB109: 0 | BC109: na dno + stabilizátor chrbáta | BD109: =OBJ!B354 -> 45167 | BE109: =VLOOKUP(BD109,CENY!$B$11:$G$1034,2,FALSE) -> VRUT PANHEAD 35X12 | BF109: =VLOOKUP(BD109,CENY!$B$11:$G$1034,3,FALSE) -> 200 | BH109: =AY109+BH21*2 -> 0 | BI109: =IF(BH109="","",IF($AW$4=0,BH109,0)) -> 0 | BJ109: =VLOOKUP(BD109,CENY!$B$11:$M$2005,12,FALSE) -> 0.54 | BK109: =IF(BJ109="","",BJ109*BH109) -> 0
AU110: =OBJ!B355 -> 45168 | AV110: =VLOOKUP(AU110,CENY!$B$11:$G$1034,2,FALSE) -> VRUT PANHEAD 35X20 | AW110: =VLOOKUP(AU110,CENY!$B$11:$G$1034,3,FALSE) -> 200 | AY110: 0 | AZ110: 0 | BA110: =VLOOKUP(AU110,CENY!$B$11:$M$2005,12,FALSE) -> 0.78 | BB110: 0 | BC110: na príchytky čela | BD110: =OBJ!B355 -> 45168 | BE110: =VLOOKUP(BD110,CENY!$B$11:$G$1034,2,FALSE) -> VRUT PANHEAD 35X20 | BF110: =VLOOKUP(BD110,CENY!$B$11:$G$1034,3,FALSE) -> 200 | BH110: =IF(FORM!$AM$8=FORM!$AU$10,BH20*3,0) -> 0 | BI110: =IF(BH110="","",IF($AW$4=0,BH110,0)) -> 0 | BJ110: =VLOOKUP(BD110,CENY!$B$11:$M$2005,12,FALSE) -> 0.78 | BK110: =IF(BJ110="","",BJ110*BH110) -> 0
AU111: =OBJ!B356 -> 9278224 | AV111: =VLOOKUP(AU111,CENY!$B$11:$G$1034,2,FALSE) -> AVANTECH YOU VRUT 3,5X30 PANHEAD POZINK. | AW111: =VLOOKUP(AU111,CENY!$B$11:$G$1034,3,FALSE) -> 200 | AY111: 0 | AZ111: 0 | BA111: =VLOOKUP(AU111,CENY!$B$11:$M$2005,12,FALSE) -> 0.73 | BB111: 0 | BC111: na chrbát | BD111: =OBJ!B356 -> 9278224 | BE111: =VLOOKUP(BD111,CENY!$B$11:$G$1034,2,FALSE) -> AVANTECH YOU VRUT 3,5X30 PANHEAD POZINK. | BF111: =VLOOKUP(BD111,CENY!$B$11:$G$1034,3,FALSE) -> 200 | BH111: =2*SUM(BH5:BH18) -> 0 | BI111: =IF(BH111="","",IF($AW$4=0,BH111,0)) -> 0 | BJ111: =VLOOKUP(BD111,CENY!$B$11:$M$2005,12,FALSE) -> 0.73 | BK111: =IF(BJ111="","",BJ111*BH111) -> 0
AU112: =OBJ!B357 -> 9279197 | AV112: =VLOOKUP(AU112,CENY!$B$11:$G$1034,2,FALSE) -> SAMOŘEZNÝ ŠROUB 3,5X12 PANHEAD POZINK. | AW112: =VLOOKUP(AU112,CENY!$B$11:$G$1034,3,FALSE) -> 1000 | AY112: 0 | AZ112: 0 | BA112: =VLOOKUP(AU112,CENY!$B$11:$M$2005,12,FALSE) -> 1.51 | BB112: 0 | BC112: na ALU čelo | BD112: =OBJ!B357 -> 9279197 | BE112: =VLOOKUP(BD112,CENY!$B$11:$G$1034,2,FALSE) -> SAMOŘEZNÝ ŠROUB 3,5X12 PANHEAD POZINK. | BF112: =VLOOKUP(BD112,CENY!$B$11:$G$1034,3,FALSE) -> 1000 | BH112: =AY112 -> 0 | BI112: =IF(BH112="","",IF($AW$4=0,BH112,0)) -> 0 | BJ112: =VLOOKUP(BD112,CENY!$B$11:$M$2005,12,FALSE) -> 1.51 | BK112: =IF(BJ112="","",BJ112*BH112) -> 0
AU113: =OBJ!B358 -> 9137114 | AV113: =VLOOKUP(AU113,CENY!$B$11:$G$1034,2,FALSE) -> EUROŠROUB DBS 60 X 14 | AW113: =VLOOKUP(AU113,CENY!$B$11:$G$1034,3,FALSE) -> 200 | AY113: =SUMPRODUCT(AX21:AX64,AY21:AY64) -> 0 | AZ113: 0 | BA113: =VLOOKUP(AU113,CENY!$B$11:$M$2005,12,FALSE) -> 1.2 | BB113: =IF(BA113="","",BA113*AY113) -> 0 | BC113: na Quadro a Actro lišty | BD113: =OBJ!B358 -> 9137114 | BE113: =VLOOKUP(BD113,CENY!$B$11:$G$1034,2,FALSE) -> EUROŠROUB DBS 60 X 14 | BF113: =VLOOKUP(BD113,CENY!$B$11:$G$1034,3,FALSE) -> 200 | BH113: =AY113 -> 0 | BI113: =IF(BH113="","",IF($AW$4=0,BH113,0)) -> 0 | BJ113: =VLOOKUP(BD113,CENY!$B$11:$M$2005,12,FALSE) -> 1.2 | BK113: =IF(BJ113="","",BJ113*BH113) -> 0
AZ114: =IF(AY114="","",IF($AW$4=1,AY114,0)) ->  | BB114: =IF(BA114="","",BA114*AY114) -> 
AZ115: =IF(AY115="","",IF($AW$4=1,AY115,0)) ->  | BB115: =IF(BA115="","",BA115*AY115) -> 
BI116: =IF(BH116="","",IF($AW$4=0,BH116,0)) ->  | BK116: =IF(BJ116="","",BJ116*BH116) -> 
BI117: =IF(BH117="","",IF($AW$4=0,BH117,0)) ->  | BK117: =IF(BJ117="","",BJ117*BH117) -> 

Sheet AVT187
B2: =verze!E13 -> << zpět | G2: =verze!E6 -> Úvod | O2: =verze!E7 -> Výběr zásuvek | U2: =verze!E8 ->  | AA2: =verze!E9 ->  | AI2: =verze!E10 -> Objednávka | AO2: =verze!E14 -> vpřed >>
B4: Zásuvka AVANTECH YOU 187 | AU4: MALOBALENIE : | AW4: =IF(FORM!AU13=FORM!U18,1,0) -> 1 | BB4: =SUM(BB5:BB990) -> 0 | BD4: VELKOBALENIE: | BK4: =SUM(BK5:BK985) -> 0
AU5: =OBJ!B106 -> 9255262 | AV5: =VLOOKUP(AU5,CENY!$B$11:$G$1034,2,FALSE) -> AVANTECH YOU BOKY V SADĚ V187 MM NL270 MM STŘÍBRNÁ | AW5: =VLOOKUP(AU5,CENY!$B$11:$G$1034,3,FALSE) -> 1 | AX5: 4 | AY5: =O19+O20+O27+O28+O30 -> 0 | AZ5: =IF(AY5="","",IF($AW$4=1,AY5,0)) -> 0 | BA5: =VLOOKUP(AU5,CENY!$B$11:$M$2005,12,FALSE) -> 847.2 | BB5: =IF(BA5="","",BA5*AY5) -> 0 | BD5: =OBJ!B116 -> 9255044 | BE5: =VLOOKUP(BD5,CENY!$B$11:$G$1034,2,FALSE) -> AVANTECH YOU BOK V187 MM NL270 MM STŘÍBRNÝ LEVÝ | BF5: =VLOOKUP(BD5,CENY!$B$11:$G$1034,3,FALSE) -> 10 | BH5: =AY5 -> 0 | BI5: =IF(BH5="","",IF($AW$4=0,BH5,0)) -> 0 | BJ5: =VLOOKUP(BD5,CENY!$B$11:$M$2005,12,FALSE) -> 293.88 | BK5: =IF(BJ5="","",BJ5*BH5) -> 0
B6: =" "&verze!E90 -> bočnice: | F6: .187 | AU6: =OBJ!B107 -> 9255263 | AV6: =VLOOKUP(AU6,CENY!$B$11:$G$1034,2,FALSE) -> AVANTECH YOU BOKY V SADĚ V187 MM NL300 MM STŘÍBRNÁ | AW6: =VLOOKUP(AU6,CENY!$B$11:$G$1034,3,FALSE) -> 1 | AX6: 4 | AY6: =Q19+Q20+Q27+Q28+Q30 -> 0 | AZ6: =IF(AY6="","",IF($AW$4=1,AY6,0)) -> 0 | BA6: =VLOOKUP(AU6,CENY!$B$11:$M$2005,12,FALSE) -> 853.97 | BB6: 0 | BD6: =OBJ!B117 -> 9255045 | BE6: =VLOOKUP(BD6,CENY!$B$11:$G$1034,2,FALSE) -> AVANTECH YOU BOK V187 MM NL270 MM STŘÍBRNÝ PRAVÝ | BF6: =VLOOKUP(BD6,CENY!$B$11:$G$1034,3,FALSE) -> 10 | BH6: =AY5 -> 0 | BI6: =IF(BH6="","",IF($AW$4=0,BH6,0)) -> 0 | BJ6: =VLOOKUP(BD6,CENY!$B$11:$M$2005,12,FALSE) -> 293.88 | BK6: =IF(BJ6="","",BJ6*BH6) -> 0
B7: =" "&verze!E56 -> barva: | F7: =" "&FORM!U8 -> stříbrná | AU7: =OBJ!B108 -> 9255264 | AV7: =VLOOKUP(AU7,CENY!$B$11:$G$1034,2,FALSE) -> AVANTECH YOU BOKY V SADĚ V187 MM NL350 MM STŘÍBRNÁ | AW7: =VLOOKUP(AU7,CENY!$B$11:$G$1034,3,FALSE) -> 1 | AX7: 6 | AY7: =S19+S20+S27+S28+S30 -> 0 | AZ7: 0 | BA7: =VLOOKUP(AU7,CENY!$B$11:$M$2005,12,FALSE) -> 865.25 | BB7: 0 | BD7: =OBJ!B118 -> 9255046 | BE7: =VLOOKUP(BD7,CENY!$B$11:$G$1034,2,FALSE) -> AVANTECH YOU BOK V187 MM NL300 MM STŘÍBRNÝ LEVÝ | BF7: =VLOOKUP(BD7,CENY!$B$11:$G$1034,3,FALSE) -> 10 | BH7: =AY6 -> 0 | BI7: 0 | BJ7: =VLOOKUP(BD7,CENY!$B$11:$M$2005,12,FALSE) -> 297.16 | BK7: 0
B8: =" "&verze!E70 -> dekorativní profil: | F8: =" "&FORM!AM18 -> v barvě bočnice | AU8: =OBJ!B109 -> 9255265 | AV8: =VLOOKUP(AU8,CENY!$B$11:$G$1034,2,FALSE) -> AVANTECH YOU BOKY V SADĚ V187 MM NL400 MM STŘÍBRNÁ | AW8: =VLOOKUP(AU8,CENY!$B$11:$G$1034,3,FALSE) -> 1 | AX8: 6 | AY8: =U20+U28+U30 -> 0 | AZ8: 0 | BA8: =VLOOKUP(AU8,CENY!$B$11:$M$2005,12,FALSE) -> 876.53 | BB8: 0 | BD8: =OBJ!B119 -> 9255047 | BE8: =VLOOKUP(BD8,CENY!$B$11:$G$1034,2,FALSE) -> AVANTECH YOU BOK V187 MM NL300 MM STŘÍBRNÝ PRAVÝ | BF8: =VLOOKUP(BD8,CENY!$B$11:$G$1034,3,FALSE) -> 10 | BH8: =AY6 -> 0 | BI8: 0 | BJ8: =VLOOKUP(BD8,CENY!$B$11:$M$2005,12,FALSE) -> 297.16 | BK8: 0
AU9: =OBJ!B110 -> 9255266 | AV9: =VLOOKUP(AU9,CENY!$B$11:$G$1034,2,FALSE) -> AVANTECH YOU BOKY V SADĚ V187 MM NL450 MM STŘÍBRNÁ | AW9: =VLOOKUP(AU9,CENY!$B$11:$G$1034,3,FALSE) -> 1 | AX9: 6 | AY9: =W20+W22+W28+W30 -> 0 | AZ9: 0 | BA9: =VLOOKUP(AU9,CENY!$B$11:$M$2005,12,FALSE) -> 887.81 | BB9: 0 | BD9: =OBJ!B120 -> 9255048 | BE9: =VLOOKUP(BD9,CENY!$B$11:$G$1034,2,FALSE) -> AVANTECH YOU BOK V187 MM NL350 MM STŘÍBRNÝ LEVÝ | BF9: =VLOOKUP(BD9,CENY!$B$11:$G$1034,3,FALSE) -> 10 | BH9: =AY7 -> 0 | BI9: 0 | BJ9: =VLOOKUP(BD9,CENY!$B$11:$M$2005,12,FALSE) -> 302.63 | BK9: 0
B10: =" "&verze!E57 -> čelní kování: | F10: =" "&FORM!AM8 -> na vruty | AU10: =OBJ!B111 -> 9255267 | AV10: =VLOOKUP(AU10,CENY!$B$11:$G$1034,2,FALSE) -> AVANTECH YOU BOKY V SADĚ V187 MM NL500 MM STŘÍBRNÁ | AW10: =VLOOKUP(AU10,CENY!$B$11:$G$1034,3,FALSE) -> 1 | AX10: 8 | AY10: =Y20+Y22+Y28+Y30 -> 0 | AZ10: 0 | BA10: =VLOOKUP(AU10,CENY!$B$11:$M$2005,12,FALSE) -> 899.09 | BB10: 0 | BD10: =OBJ!B121 -> 9255049 | BE10: =VLOOKUP(BD10,CENY!$B$11:$G$1034,2,FALSE) -> AVANTECH YOU BOK V187 MM NL350 MM STŘÍBRNÝ PRAVÝ | BF10: =VLOOKUP(BD10,CENY!$B$11:$G$1034,3,FALSE) -> 10 | BH10: =AY7 -> 0 | BI10: 0 | BJ10: =VLOOKUP(BD10,CENY!$B$11:$M$2005,12,FALSE) -> 302.63 | BK10: 0
B11: =" "&verze!E76 -> krytka: | F11: =" "&FORM!AM21 -> žádná | AU11: =OBJ!B112 -> 9255268 | AV11: =VLOOKUP(AU11,CENY!$B$11:$G$1034,2,FALSE) -> AVANTECH YOU BOKY V SADĚ V187 MM NL550 MM STŘÍBRNÁ | AW11: =VLOOKUP(AU11,CENY!$B$11:$G$1034,3,FALSE) -> 1 | AX11: 8 | AY11: =AA20+AA22+AA28+AA30 -> 0 | AZ11: 0 | BA11: =VLOOKUP(AU11,CENY!$B$11:$M$2005,12,FALSE) -> 910.37 | BB11: 0 | BD11: =OBJ!B122 -> 9255050 | BE11: =VLOOKUP(BD11,CENY!$B$11:$G$1034,2,FALSE) -> AVANTECH YOU BOK V187 MM NL400 MM STŘÍBRNÝ LEVÝ | BF11: =VLOOKUP(BD11,CENY!$B$11:$G$1034,3,FALSE) -> 10 | BH11: =AY8 -> 0 | BI11: 0 | BJ11: =VLOOKUP(BD11,CENY!$B$11:$M$2005,12,FALSE) -> 308.1 | BK11: 0
AU12: =OBJ!B113 -> 9255269 | AV12: =VLOOKUP(AU12,CENY!$B$11:$G$1034,2,FALSE) -> AVANTECH YOU BOKY V SADĚ V187 MM NL600 MM STŘÍBRNÁ | AW12: =VLOOKUP(AU12,CENY!$B$11:$G$1034,3,FALSE) -> 1 | AX12: 8 | AY12: =AC20+AC22+AC28+AC30 -> 0 | AZ12: 0 | BA12: =VLOOKUP(AU12,CENY!$B$11:$M$2005,12,FALSE) -> 927.39 | BB12: 0 | BD12: =OBJ!B123 -> 9255051 | BE12: =VLOOKUP(BD12,CENY!$B$11:$G$1034,2,FALSE) -> AVANTECH YOU BOK V187 MM NL400 MM STŘÍBRNÝ PRAVÝ | BF12: =VLOOKUP(BD12,CENY!$B$11:$G$1034,3,FALSE) -> 10 | BH12: =AY8 -> 0 | BI12: 0 | BJ12: =VLOOKUP(BD12,CENY!$B$11:$M$2005,12,FALSE) -> 308.1 | BK12: 0
B13: =" "&verze!E92 -> cena kování: | F13: =IF(AW4=1,BB4,BK4) -> 0 | J13: =IF(verze!E1="CZK","CZK","EUR") -> CZK | AU13: =OBJ!B114 -> 9255270 | AV13: =VLOOKUP(AU13,CENY!$B$11:$G$1034,2,FALSE) -> AVANTECH YOU BOKY V SADĚ V187 MM NL650 MM STŘÍBRNÁ | AW13: =VLOOKUP(AU13,CENY!$B$11:$G$1034,3,FALSE) -> 1 | AX13: 10 | AY13: =AE22 -> 0 | AZ13: 0 | BA13: =VLOOKUP(AU13,CENY!$B$11:$M$2005,12,FALSE) -> 950.52 | BB13: 0 | BD13: =OBJ!B124 -> 9255052 | BE13: =VLOOKUP(BD13,CENY!$B$11:$G$1034,2,FALSE) -> AVANTECH YOU BOK V187 MM NL450 MM STŘÍBRNÝ LEVÝ | BF13: =VLOOKUP(BD13,CENY!$B$11:$G$1034,3,FALSE) -> 10 | BH13: =AY9 -> 0 | BI13: 0 | BJ13: =VLOOKUP(BD13,CENY!$B$11:$M$2005,12,FALSE) -> 313.57 | BK13: 0
BD14: =OBJ!B125 -> 9255053 | BE14: =VLOOKUP(BD14,CENY!$B$11:$G$1034,2,FALSE) -> AVANTECH YOU BOK V187 MM NL450 MM STŘÍBRNÝ PRAVÝ | BF14: =VLOOKUP(BD14,CENY!$B$11:$G$1034,3,FALSE) -> 10 | BH14: =AY9 -> 0 | BI14: 0 | BJ14: =VLOOKUP(BD14,CENY!$B$11:$M$2005,12,FALSE) -> 313.57 | BK14: 0
AU15: =OBJ!B71 -> 9255804 | AV15: =VLOOKUP(AU15,CENY!$B$11:$G$1034,2,FALSE) -> AVANTECH YOU DEKORATIVNÍ PROFIL NL270 MM STŘÍBRNÝ | AW15: =VLOOKUP(AU15,CENY!$B$11:$G$1034,3,FALSE) -> 200 | AY15: =IF(FORM!AM18=FORM!AU16,0,2*(O19+O20+O27+O28+O30)) -> 0 | AZ15: 0 | BA15: =VLOOKUP(AU15,CENY!$B$11:$M$2005,12,FALSE) -> 9.18 | BB15: 0 | BD15: =OBJ!B126 -> 9255054 | BE15: =VLOOKUP(BD15,CENY!$B$11:$G$1034,2,FALSE) -> AVANTECH YOU BOK V187 MM NL500 MM STŘÍBRNÝ LEVÝ | BF15: =VLOOKUP(BD15,CENY!$B$11:$G$1034,3,FALSE) -> 10 | BH15: =AY10 -> 0 | BI15: 0 | BJ15: =VLOOKUP(BD15,CENY!$B$11:$M$2005,12,FALSE) -> 319.03 | BK15: 0
AU16: =OBJ!B72 -> 9255805 | AV16: =VLOOKUP(AU16,CENY!$B$11:$G$1034,2,FALSE) -> AVANTECH YOU DEKORATIVNÍ PROFIL NL300 MM STŘÍBRNÝ | AW16: =VLOOKUP(AU16,CENY!$B$11:$G$1034,3,FALSE) -> 200 | AY16: =IF(FORM!AM18=FORM!AU16,0,2*(Q19+Q20+Q27+Q28+Q30)) -> 0 | AZ16: 0 | BA16: =VLOOKUP(AU16,CENY!$B$11:$M$2005,12,FALSE) -> 9.28 | BB16: 0 | BD16: =OBJ!B127 -> 9255055 | BE16: =VLOOKUP(BD16,CENY!$B$11:$G$1034,2,FALSE) -> AVANTECH YOU BOK V187 MM NL500 MM STŘÍBRNÝ PRAVÝ | BF16: =VLOOKUP(BD16,CENY!$B$11:$G$1034,3,FALSE) -> 10 | BH16: =AY10 -> 0 | BI16: 0 | BJ16: =VLOOKUP(BD16,CENY!$B$11:$M$2005,12,FALSE) -> 319.03 | BK16: 0
B17: Actro YOU | O17: =FORM!U18 -> flexibilní sety | AI17: =verze!E198 -> P2O Silent pro Actro | AU17: =OBJ!B73 -> 9255806 | AV17: =VLOOKUP(AU17,CENY!$B$11:$G$1034,2,FALSE) -> AVANTECH YOU DEKORATIVNÍ PROFIL NL350 MM STŘÍBRNÝ | AW17: =VLOOKUP(AU17,CENY!$B$11:$G$1034,3,FALSE) -> 200 | AY17: =IF(FORM!AM18=FORM!AU16,0,2*(S19+S20+S27+S28+S30)) -> 0 | AZ17: 0 | BA17: =VLOOKUP(AU17,CENY!$B$11:$M$2005,12,FALSE) -> 9.45 | BB17: 0 | BD17: =OBJ!B128 -> 9255056 | BE17: =VLOOKUP(BD17,CENY!$B$11:$G$1034,2,FALSE) -> AVANTECH YOU BOK V187 MM NL550 MM STŘÍBRNÝ LEVÝ | BF17: =VLOOKUP(BD17,CENY!$B$11:$G$1034,3,FALSE) -> 10 | BH17: =AY11 -> 0 | BI17: 0 | BJ17: =VLOOKUP(BD17,CENY!$B$11:$M$2005,12,FALSE) -> 324.5 | BK17: 0
N18: =verze!$E$20&" " -> Jmenovitá délka: | O18: 270 | Q18: 300 | S18: 350 | U18: 400 | W18: 450 | Y18: 500 | AA18: 550 | AC18: 600 | AE18: 650 | AI18: typ | AU18: =OBJ!B74 -> 9255807 | AV18: =VLOOKUP(AU18,CENY!$B$11:$G$1034,2,FALSE) -> AVANTECH YOU DEKORATIVNÍ PROFIL NL400 MM STŘÍBRNÝ | AW18: =VLOOKUP(AU18,CENY!$B$11:$G$1034,3,FALSE) -> 200 | AY18: =IF(FORM!AM18=FORM!AU16,0,2*(U20+U28+U30)) -> 0 | AZ18: 0 | BA18: =VLOOKUP(AU18,CENY!$B$11:$M$2005,12,FALSE) -> 9.62 | BB18: 0 | BD18: =OBJ!B129 -> 9255057 | BE18: =VLOOKUP(BD18,CENY!$B$11:$G$1034,2,FALSE) -> AVANTECH YOU BOK V187 MM NL550 MM STŘÍBRNÝ PRAVÝ | BF18: =VLOOKUP(BD18,CENY!$B$11:$G$1034,3,FALSE) -> 10 | BH18: =AY11 -> 0 | BI18: 0 | BJ18: =VLOOKUP(BD18,CENY!$B$11:$M$2005,12,FALSE) -> 324.5 | BK18: 0
B19: Actro YOU 10 / SiSy | H19: =verze!E18 -> plnovýsuv | M19: 10 kg | AM19: < 10 kg | AU19: =OBJ!B75 -> 9255808 | AV19: =VLOOKUP(AU19,CENY!$B$11:$G$1034,2,FALSE) -> AVANTECH YOU DEKORATIVNÍ PROFIL NL450 MM STŘÍBRNÝ | AW19: =VLOOKUP(AU19,CENY!$B$11:$G$1034,3,FALSE) -> 200 | AY19: =IF(FORM!AM18=FORM!AU16,0,2*(W20+W22+W28+W30)) -> 0 | AZ19: 0 | BA19: =VLOOKUP(AU19,CENY!$B$11:$M$2005,12,FALSE) -> 9.8 | BB19: 0 | BD19: =OBJ!B130 -> 9255058 | BE19: =VLOOKUP(BD19,CENY!$B$11:$G$1034,2,FALSE) -> AVANTECH YOU BOK V187 MM NL600 MM STŘÍBRNÝ LEVÝ | BF19: =VLOOKUP(BD19,CENY!$B$11:$G$1034,3,FALSE) -> 10 | BH19: =AY12 -> 0 | BI19: 0 | BJ19: =VLOOKUP(BD19,CENY!$B$11:$M$2005,12,FALSE) -> 332.75 | BK19: 0
B20: Actro YOU 40 / SiSy | H20: =verze!E18 -> plnovýsuv | M20: 40 kg | AM20: 8 - 20 kg | AU20: =OBJ!B76 -> 9255809 | AV20: =VLOOKUP(AU20,CENY!$B$11:$G$1034,2,FALSE) -> AVANTECH YOU DEKORATIVNÍ PROFIL NL500 MM STŘÍBRNÝ | AW20: =VLOOKUP(AU20,CENY!$B$11:$G$1034,3,FALSE) -> 200 | AY20: =IF(FORM!AM18=FORM!AU16,0,2*(Y20+Y22+Y28+Y30)) -> 0 | AZ20: 0 | BA20: =VLOOKUP(AU20,CENY!$B$11:$M$2005,12,FALSE) -> 9.97 | BB20: 0 | BD20: =OBJ!B131 -> 9255059 | BE20: =VLOOKUP(BD20,CENY!$B$11:$G$1034,2,FALSE) -> AVANTECH YOU BOK V187 MM NL600 MM STŘÍBRNÝ PRAVÝ | BF20: =VLOOKUP(BD20,CENY!$B$11:$G$1034,3,FALSE) -> 10 | BH20: =AY12 -> 0 | BI20: 0 | BJ20: =VLOOKUP(BD20,CENY!$B$11:$M$2005,12,FALSE) -> 332.75 | BK20: 0
AM21: 10 - 40 kg | AU21: =OBJ!B77 -> 9255810 | AV21: =VLOOKUP(AU21,CENY!$B$11:$G$1034,2,FALSE) -> AVANTECH YOU DEKORATIVNÍ PROFIL NL550 MM STŘÍBRNÝ | AW21: =VLOOKUP(AU21,CENY!$B$11:$G$1034,3,FALSE) -> 200 | AY21: =IF(FORM!AM18=FORM!AU16,0,2*(AA20+AA22+AA28+AA30)) -> 0 | AZ21: 0 | BA21: =VLOOKUP(AU21,CENY!$B$11:$M$2005,12,FALSE) -> 10.14 | BB21: 0 | BD21: =OBJ!B132 -> 9255060 | BE21: =VLOOKUP(BD21,CENY!$B$11:$G$1034,2,FALSE) -> AVANTECH YOU BOK V187 MM NL650 MM STŘÍBRNÝ LEVÝ | BF21: =VLOOKUP(BD21,CENY!$B$11:$G$1034,3,FALSE) -> 10 | BH21: =AY13 -> 0 | BI21: 0 | BJ21: =VLOOKUP(BD21,CENY!$B$11:$M$2005,12,FALSE) -> 343.97 | BK21: 0
B22: Actro YOU 70 / SiSy | H22: =verze!E18 -> plnovýsuv | M22: 70 kg | AM22: 20 - 70 kg | AU22: =OBJ!B78 -> 9255811 | AV22: =VLOOKUP(AU22,CENY!$B$11:$G$1034,2,FALSE) -> AVANTECH YOU DEKORATIVNÍ PROFIL NL600 MM STŘÍBRNÝ | AW22: =VLOOKUP(AU22,CENY!$B$11:$G$1034,3,FALSE) -> 200 | AY22: =IF(FORM!AM18=FORM!AU16,0,2*(AC20+AC22+AC28+AC30)) -> 0 | AZ22: 0 | BA22: =VLOOKUP(AU22,CENY!$B$11:$M$2005,12,FALSE) -> 10.39 | BB22: 0 | BD22: =OBJ!B133 -> 9255061 | BE22: =VLOOKUP(BD22,CENY!$B$11:$G$1034,2,FALSE) -> AVANTECH YOU BOK V187 MM NL650 MM STŘÍBRNÝ PRAVÝ | BF22: =VLOOKUP(BD22,CENY!$B$11:$G$1034,3,FALSE) -> 10 | BH22: =AY13 -> 0 | BI22: 0 | BJ22: =VLOOKUP(BD22,CENY!$B$11:$M$2005,12,FALSE) -> 343.97 | BK22: 0
AU23: =OBJ!B79 -> 9255812 | AV23: =VLOOKUP(AU23,CENY!$B$11:$G$1034,2,FALSE) -> AVANTECH YOU DEKORATIVNÍ PROFIL NL650 MM STŘÍBRNÝ | AW23: =VLOOKUP(AU23,CENY!$B$11:$G$1034,3,FALSE) -> 200 | AY23: =IF(FORM!AM18=FORM!AU16,0,2*AE22) -> 0 | AZ23: 0 | BA23: =VLOOKUP(AU23,CENY!$B$11:$M$2005,12,FALSE) -> 10.74 | BB23: 0
BD24: =OBJ!B135 -> 9255838 | BE24: =VLOOKUP(BD24,CENY!$B$11:$G$1034,2,FALSE) -> AVANTECH YOU PŘÍCHYTKA ČELA V187 / 251 MM K NAŠROUBOVÁNÍ | BF24: =VLOOKUP(BD24,CENY!$B$11:$G$1034,3,FALSE) -> 200 | BH24: =2*(SUM(O19:T19)+SUM(O20:AD20)+SUM(W22:AF22)+SUM(O27:T27)+SUM(O28:AD28)+SUM(O30:AD30)) -> 0 | BI24: 0 | BJ24: =VLOOKUP(BD24,CENY!$B$11:$M$2005,12,FALSE) -> 53.15 | BK24: 0
B25: Quadro YOU | AI25: =verze!E199 -> P2O Silent pro Quadro | AU25: =OBJ!B226 -> 9256968 | AV25: =VLOOKUP(AU25,CENY!$B$11:$G$1034,2,FALSE) -> ACTRO YOU 10KG PLNOVÝSUV 270 MM EB21 SILENT SYSTEM SADA | AW25: =VLOOKUP(AU25,CENY!$B$11:$G$1034,3,FALSE) -> 1 | AX25: 4 | AY25: =O19 -> 0 | AZ25: 0 | BA25: =VLOOKUP(AU25,CENY!$B$11:$M$2005,12,FALSE) -> 561.63 | BB25: 0 | BD25: =OBJ!B48 -> 9257702 | BE25: =VLOOKUP(BD25,CENY!$B$11:$G$1034,2,FALSE) -> AVANTECH YOU STABILIZÁTOR ZAD V101/139/187/251 MM | BF25: =VLOOKUP(BD25,CENY!$B$11:$G$1034,3,FALSE) -> 200 | BH25: =2*(SUM(O19:T19)+SUM(O20:AD20)+SUM(W22:AF22)+SUM(O27:T27)+SUM(O28:AD28)+SUM(O30:AD30)) -> 0 | BI25: 0 | BJ25: =VLOOKUP(BD25,CENY!$B$11:$M$2005,12,FALSE) -> 13.29 | BK25: 0
N26: =verze!$E$20&" " -> Jmenovitá délka: | O26: 270 | Q26: 300 | S26: 350 | U26: 400 | W26: 450 | Y26: 500 | AA26: 550 | AC26: 600 | AI26: typ | AU26: =OBJ!B227 -> 9256969 | AV26: =VLOOKUP(AU26,CENY!$B$11:$G$1034,2,FALSE) -> ACTRO YOU 10KG PLNOVÝSUV 300 MM EB21 SILENT SYSTEM SADA | AW26: =VLOOKUP(AU26,CENY!$B$11:$G$1034,3,FALSE) -> 1 | AX26: 4 | AY26: =Q19 -> 0 | AZ26: 0 | BA26: =VLOOKUP(AU26,CENY!$B$11:$M$2005,12,FALSE) -> 561.63 | BB26: 0
B27: Quadro YOU 10 / SiSy | H27: =verze!E18 -> plnovýsuv | M27: 10 kg | AM27: < 10 kg | AU27: =OBJ!B228 -> 9256971 | AV27: =VLOOKUP(AU27,CENY!$B$11:$G$1034,2,FALSE) -> ACTRO YOU 10KG PLNOVÝSUV 350 MM EB21 SILENT SYSTEM SADA | AW27: =VLOOKUP(AU27,CENY!$B$11:$G$1034,3,FALSE) -> 1 | AX27: 4 | AY27: =S19 -> 0 | AZ27: 0 | BA27: =VLOOKUP(AU27,CENY!$B$11:$M$2005,12,FALSE) -> 561.63 | BB27: 0 | BD27: =OBJ!B71 -> 9255804 | BE27: =VLOOKUP(BD27,CENY!$B$11:$G$1034,2,FALSE) -> AVANTECH YOU DEKORATIVNÍ PROFIL NL270 MM STŘÍBRNÝ | BF27: =VLOOKUP(BD27,CENY!$B$11:$G$1034,3,FALSE) -> 200 | BH27: =2*(O19+O20+O27+O28+O30) -> 0 | BI27: 0 | BJ27: =VLOOKUP(BD27,CENY!$B$11:$M$2005,12,FALSE) -> 9.18 | BK27: 0
B28: Quadro YOU 30 / SiSy | H28: =verze!E18 -> plnovýsuv | M28: 30 kg | AM28: 8 - 20 kg | BD28: =OBJ!B72 -> 9255805 | BE28: =VLOOKUP(BD28,CENY!$B$11:$G$1034,2,FALSE) -> AVANTECH YOU DEKORATIVNÍ PROFIL NL300 MM STŘÍBRNÝ | BF28: =VLOOKUP(BD28,CENY!$B$11:$G$1034,3,FALSE) -> 200 | BH28: =2*(Q19+Q20+Q27+Q28+Q30) -> 0 | BI28: 0 | BJ28: =VLOOKUP(BD28,CENY!$B$11:$M$2005,12,FALSE) -> 9.28 | BK28: 0
AM29: 10 - 30 kg | AU29: =OBJ!B236 -> 9256999 | AV29: =VLOOKUP(AU29,CENY!$B$11:$G$1034,2,FALSE) -> ACTRO YOU 40KG PLNOVÝSUV 270 MM EB21 SILENT SYSTEM SADA | AW29: =VLOOKUP(AU29,CENY!$B$11:$G$1034,3,FALSE) -> 1 | AX29: 8 | AY29: =O20 -> 0 | AZ29: 0 | BA29: =VLOOKUP(AU29,CENY!$B$11:$M$2005,12,FALSE) -> 561.63 | BB29: 0 | BD29: =OBJ!B73 -> 9255806 | BE29: =VLOOKUP(BD29,CENY!$B$11:$G$1034,2,FALSE) -> AVANTECH YOU DEKORATIVNÍ PROFIL NL350 MM STŘÍBRNÝ | BF29: =VLOOKUP(BD29,CENY!$B$11:$G$1034,3,FALSE) -> 200 | BH29: =2*(S19+S20+S27+S28+S30) -> 0 | BI29: 0 | BJ29: =VLOOKUP(BD29,CENY!$B$11:$M$2005,12,FALSE) -> 9.45 | BK29: 0
B30: Quadro YOU 30 / P2O | H30: =verze!E18 -> plnovýsuv | M30: 30 kg | AU30: =OBJ!B237 -> 9257000 | AV30: =VLOOKUP(AU30,CENY!$B$11:$G$1034,2,FALSE) -> ACTRO YOU 40KG PLNOVÝSUV 300 MM EB21 SILENT SYSTEM SADA | AW30: =VLOOKUP(AU30,CENY!$B$11:$G$1034,3,FALSE) -> 1 | AX30: 8 | AY30: =Q20 -> 0 | AZ30: 0 | BA30: =VLOOKUP(AU30,CENY!$B$11:$M$2005,12,FALSE) -> 561.63 | BB30: 0 | BD30: =OBJ!B74 -> 9255807 | BE30: =VLOOKUP(BD30,CENY!$B$11:$G$1034,2,FALSE) -> AVANTECH YOU DEKORATIVNÍ PROFIL NL400 MM STŘÍBRNÝ | BF30: =VLOOKUP(BD30,CENY!$B$11:$G$1034,3,FALSE) -> 200 | BH30: =2*(U20+U28+U30) -> 0 | BI30: 0 | BJ30: =VLOOKUP(BD30,CENY!$B$11:$M$2005,12,FALSE) -> 9.62 | BK30: 0
AU31: =OBJ!B238 -> 9257002 | AV31: =VLOOKUP(AU31,CENY!$B$11:$G$1034,2,FALSE) -> ACTRO YOU 40KG PLNOVÝSUV 350 MM EB21 SILENT SYSTEM SADA | AW31: =VLOOKUP(AU31,CENY!$B$11:$G$1034,3,FALSE) -> 1 | AX31: 8 | AY31: =S20 -> 0 | AZ31: 0 | BA31: =VLOOKUP(AU31,CENY!$B$11:$M$2005,12,FALSE) -> 561.63 | BB31: 0 | BD31: =OBJ!B75 -> 9255808 | BE31: =VLOOKUP(BD31,CENY!$B$11:$G$1034,2,FALSE) -> AVANTECH YOU DEKORATIVNÍ PROFIL NL450 MM STŘÍBRNÝ | BF31: =VLOOKUP(BD31,CENY!$B$11:$G$1034,3,FALSE) -> 200 | BH31: =2*(W20+W22+W28+W30) -> 0 | BI31: 0 | BJ31: =VLOOKUP(BD31,CENY!$B$11:$M$2005,12,FALSE) -> 9.8 | BK31: 0
B32: =verze!E201 -> SiSy = tlumení Silent System | AU32: =OBJ!B239 -> 9257004 | AV32: =VLOOKUP(AU32,CENY!$B$11:$G$1034,2,FALSE) -> ACTRO YOU 40KG PLNOVÝSUV 400 MM EB21 SILENT SYSTEM SADA | AW32: =VLOOKUP(AU32,CENY!$B$11:$G$1034,3,FALSE) -> 1 | AX32: 8 | AY32: =U20 -> 0 | AZ32: 0 | BA32: =VLOOKUP(AU32,CENY!$B$11:$M$2005,12,FALSE) -> 567.85 | BB32: 0 | BD32: =OBJ!B76 -> 9255809 | BE32: =VLOOKUP(BD32,CENY!$B$11:$G$1034,2,FALSE) -> AVANTECH YOU DEKORATIVNÍ PROFIL NL500 MM STŘÍBRNÝ | BF32: =VLOOKUP(BD32,CENY!$B$11:$G$1034,3,FALSE) -> 200 | BH32: =2*(Y20+Y22+Y28+Y30) -> 0 | BI32: 0 | BJ32: =VLOOKUP(BD32,CENY!$B$11:$M$2005,12,FALSE) -> 9.97 | BK32: 0
B33: =verze!E204 -> P2O = otvírání bez úchytky Push to open | AU33: =OBJ!B240 -> 9257006 | AV33: =VLOOKUP(AU33,CENY!$B$11:$G$1034,2,FALSE) -> ACTRO YOU 40KG PLNOVÝSUV 450 MM EB21 SILENT SYSTEM SADA | AW33: =VLOOKUP(AU33,CENY!$B$11:$G$1034,3,FALSE) -> 1 | AX33: 10 | AY33: =W20 -> 0 | AZ33: 0 | BA33: =VLOOKUP(AU33,CENY!$B$11:$M$2005,12,FALSE) -> 574.04 | BB33: 0 | BD33: =OBJ!B77 -> 9255810 | BE33: =VLOOKUP(BD33,CENY!$B$11:$G$1034,2,FALSE) -> AVANTECH YOU DEKORATIVNÍ PROFIL NL550 MM STŘÍBRNÝ | BF33: =VLOOKUP(BD33,CENY!$B$11:$G$1034,3,FALSE) -> 200 | BH33: =2*(AA20+AA22+AA28+AA30) -> 0 | BI33: 0 | BJ33: =VLOOKUP(BD33,CENY!$B$11:$M$2005,12,FALSE) -> 10.14 | BK33: 0
B34: =verze!E203 -> P2O Silent = tlumení s otvíráním bez úchytky Push to open Silent | AU34: =OBJ!B241 -> 9257008 | AV34: =VLOOKUP(AU34,CENY!$B$11:$G$1034,2,FALSE) -> ACTRO YOU 40KG PLNOVÝSUV 500 MM EB21 SILENT SYSTEM SADA | AW34: =VLOOKUP(AU34,CENY!$B$11:$G$1034,3,FALSE) -> 1 | AX34: 10 | AY34: =Y20 -> 0 | AZ34: 0 | BA34: =VLOOKUP(AU34,CENY!$B$11:$M$2005,12,FALSE) -> 580.26 | BB34: 0 | BD34: =OBJ!B78 -> 9255811 | BE34: =VLOOKUP(BD34,CENY!$B$11:$G$1034,2,FALSE) -> AVANTECH YOU DEKORATIVNÍ PROFIL NL600 MM STŘÍBRNÝ | BF34: =VLOOKUP(BD34,CENY!$B$11:$G$1034,3,FALSE) -> 200 | BH34: =2*(AC20+AC22+AC28+AC30) -> 0 | BI34: 0 | BJ34: =VLOOKUP(BD34,CENY!$B$11:$M$2005,12,FALSE) -> 10.39 | BK34: 0
AU35: =OBJ!B242 -> 9257010 | AV35: =VLOOKUP(AU35,CENY!$B$11:$G$1034,2,FALSE) -> ACTRO YOU 40KG PLNOVÝSUV 550 MM EB21 SILENT SYSTEM SADA | AW35: =VLOOKUP(AU35,CENY!$B$11:$G$1034,3,FALSE) -> 1 | AX35: 10 | AY35: =AA20 -> 0 | AZ35: 0 | BA35: =VLOOKUP(AU35,CENY!$B$11:$M$2005,12,FALSE) -> 613.44 | BB35: 0 | BD35: =OBJ!B79 -> 9255812 | BE35: =VLOOKUP(BD35,CENY!$B$11:$G$1034,2,FALSE) -> AVANTECH YOU DEKORATIVNÍ PROFIL NL650 MM STŘÍBRNÝ | BF35: =VLOOKUP(BD35,CENY!$B$11:$G$1034,3,FALSE) -> 200 | BH35: =2*AE22 -> 0 | BI35: 0 | BJ35: =VLOOKUP(BD35,CENY!$B$11:$M$2005,12,FALSE) -> 10.74 | BK35: 0
AU36: =OBJ!B243 -> 9268681 | AV36: =VLOOKUP(AU36,CENY!$B$11:$G$1034,2,FALSE) -> ACTRO YOU 40KG PLNOVÝSUV 600 MM EB21 SILENT SYSTÉM SADA | AW36: =VLOOKUP(AU36,CENY!$B$11:$G$1034,3,FALSE) -> 1 | AX36: 10 | AY36: =AC20 -> 0 | AZ36: 0 | BA36: =VLOOKUP(AU36,CENY!$B$11:$M$2005,12,FALSE) -> 620.78 | BB36: 0
BD37: =OBJ!B229 -> 9256959 | BE37: =VLOOKUP(BD37,CENY!$B$11:$G$1034,2,FALSE) -> ACTRO YOU 10KG PLNOVÝSUV 270 MM EB21 SILENT SYSTEM LEVÝ | BF37: =VLOOKUP(BD37,CENY!$B$11:$G$1034,3,FALSE) -> 10 | BH37: =AY25 -> 0 | BI37: 0 | BJ37: =VLOOKUP(BD37,CENY!$B$11:$M$2005,12,FALSE) -> 243.93 | BK37: 0
AU38: =OBJ!B261 -> 9257034 | AV38: =VLOOKUP(AU38,CENY!$B$11:$G$1034,2,FALSE) -> ACTRO YOU 70KG PLNOVÝSUV 450 MM EB21 SILENT SYSTEM SADA | AW38: =VLOOKUP(AU38,CENY!$B$11:$G$1034,3,FALSE) -> 1 | AX38: 10 | AY38: =W22 -> 0 | AZ38: 0 | BA38: =VLOOKUP(AU38,CENY!$B$11:$M$2005,12,FALSE) -> 691.9 | BB38: 0 | BD38: =OBJ!B230 -> 9256960 | BE38: =VLOOKUP(BD38,CENY!$B$11:$G$1034,2,FALSE) -> ACTRO YOU 10KG PLNOVÝSUV 270 MM EB21 SILENT SYSTEM PRAVÝ | BF38: =VLOOKUP(BD38,CENY!$B$11:$G$1034,3,FALSE) -> 10 | BH38: =AY25 -> 0 | BI38: 0 | BJ38: =VLOOKUP(BD38,CENY!$B$11:$M$2005,12,FALSE) -> 243.93 | BK38: 0
AU39: =OBJ!B262 -> 9257036 | AV39: =VLOOKUP(AU39,CENY!$B$11:$G$1034,2,FALSE) -> ACTRO YOU 70KG PLNOVÝSUV 500 MM EB21 SILENT SYSTEM SADA | AW39: =VLOOKUP(AU39,CENY!$B$11:$G$1034,3,FALSE) -> 1 | AX39: 10 | AY39: =Y22 -> 0 | AZ39: 0 | BA39: =VLOOKUP(AU39,CENY!$B$11:$M$2005,12,FALSE) -> 698.13 | BB39: 0 | BD39: =OBJ!B231 -> 9256961 | BE39: =VLOOKUP(BD39,CENY!$B$11:$G$1034,2,FALSE) -> ACTRO YOU 10KG PLNOVÝSUV 300 MM EB21 SILENT SYSTEM LEVÝ | BF39: =VLOOKUP(BD39,CENY!$B$11:$G$1034,3,FALSE) -> 10 | BH39: =AY26 -> 0 | BI39: 0 | BJ39: =VLOOKUP(BD39,CENY!$B$11:$M$2005,12,FALSE) -> 243.93 | BK39: 0
AU40: =OBJ!B263 -> 9257038 | AV40: =VLOOKUP(AU40,CENY!$B$11:$G$1034,2,FALSE) -> ACTRO YOU 70KG PLNOVÝSUV 550 MM EB21 SILENT SYSTEM SADA | AW40: =VLOOKUP(AU40,CENY!$B$11:$G$1034,3,FALSE) -> 1 | AX40: 10 | AY40: =AA22 -> 0 | AZ40: 0 | BA40: =VLOOKUP(AU40,CENY!$B$11:$M$2005,12,FALSE) -> 731.3 | BB40: 0 | BD40: =OBJ!B232 -> 9256962 | BE40: =VLOOKUP(BD40,CENY!$B$11:$G$1034,2,FALSE) -> ACTRO YOU 10KG PLNOVÝSUV 300 MM EB21 SILENT SYSTEM PRAVÝ | BF40: =VLOOKUP(BD40,CENY!$B$11:$G$1034,3,FALSE) -> 10 | BH40: =AY26 -> 0 | BI40: 0 | BJ40: =VLOOKUP(BD40,CENY!$B$11:$M$2005,12,FALSE) -> 243.93 | BK40: 0
AU41: =OBJ!B264 -> 9257040 | AV41: =VLOOKUP(AU41,CENY!$B$11:$G$1034,2,FALSE) -> ACTRO YOU 70KG PLNOVÝSUV 600 MM EB21 SILENT SYSTEM SADA | AW41: =VLOOKUP(AU41,CENY!$B$11:$G$1034,3,FALSE) -> 1 | AX41: 10 | AY41: =AC22 -> 0 | AZ41: 0 | BA41: =VLOOKUP(AU41,CENY!$B$11:$M$2005,12,FALSE) -> 798.31 | BB41: 0 | BD41: =OBJ!B233 -> 9256965 | BE41: =VLOOKUP(BD41,CENY!$B$11:$G$1034,2,FALSE) -> ACTRO YOU 10KG PLNOVÝSUV 350 MM EB21 SILENT SYSTEM LEVÝ | BF41: =VLOOKUP(BD41,CENY!$B$11:$G$1034,3,FALSE) -> 10 | BH41: =AY27 -> 0 | BI41: 0 | BJ41: =VLOOKUP(BD41,CENY!$B$11:$M$2005,12,FALSE) -> 243.93 | BK41: 0
AU42: =OBJ!B265 -> 9257041 | AV42: =VLOOKUP(AU42,CENY!$B$11:$G$1034,2,FALSE) -> ACTRO YOU 70KG PLNOVÝSUV 650 MM EB21 SILENT SYSTEM SADA | AW42: =VLOOKUP(AU42,CENY!$B$11:$G$1034,3,FALSE) -> 1 | AX42: 10 | AY42: =AE22 -> 0 | AZ42: 0 | BA42: =VLOOKUP(AU42,CENY!$B$11:$M$2005,12,FALSE) -> 828.55 | BB42: 0 | BD42: =OBJ!B234 -> 9256966 | BE42: =VLOOKUP(BD42,CENY!$B$11:$G$1034,2,FALSE) -> ACTRO YOU 10KG PLNOVÝSUV 350 MM EB21 SILENT SYSTEM PRAVÝ | BF42: =VLOOKUP(BD42,CENY!$B$11:$G$1034,3,FALSE) -> 10 | BH42: =AY27 -> 0 | BI42: 0 | BJ42: =VLOOKUP(BD42,CENY!$B$11:$M$2005,12,FALSE) -> 243.93 | BK42: 0
AU44: =OBJ!B277 -> 9257890 | AV44: =VLOOKUP(AU44,CENY!$B$11:$G$1034,2,FALSE) -> PUSH TO OPEN SILENT ACTRO YOU / ACTRO 5D 10 KG | AW44: =VLOOKUP(AU44,CENY!$B$11:$G$1034,3,FALSE) -> 1 | AY44: =AN19 -> 0 | AZ44: 0 | BA44: =VLOOKUP(AU44,CENY!$B$11:$M$2005,12,FALSE) -> 544.37 | BB44: 0 | BD44: =OBJ!B244 -> 9256974 | BE44: =VLOOKUP(BD44,CENY!$B$11:$G$1034,2,FALSE) -> ACTRO YOU 40KG PLNOVÝSUV 270 MM EB21 SILENT SYSTEM LEVÝ | BF44: =VLOOKUP(BD44,CENY!$B$11:$G$1034,3,FALSE) -> 10 | BH44: =AY29 -> 0 | BI44: 0 | BJ44: =VLOOKUP(BD44,CENY!$B$11:$M$2005,12,FALSE) -> 243.93 | BK44: 0
